Workbook

Sheet Pomocniczy (hidden)

Sheet zadanie 11-12 (hidden)
A1: 1 | B1: DIAMANT CUKIER BIAŁY KOSTKA 1KG | C1: Cukier biały DIAMANT w kostkach, 1 kg | D1: 1 op. ( 1 kg.)
A2: 2 | B2: DIAMANT CUKIER BIAŁY W SASZET OPK100X5G | C2: Cukier biały DIAMANT, saszetki 100 sztuk x 5 g | D2: 1 op. (100 sztuk)
A3: 3 | B3: DIAMANT CUKIER DRY DEMERARA SYPKI 0,5KG | C3: Cukier trzcinowy DIAMANT Dry Demerara, sypki, 500 g | D3: 1 op. ( 500 g)
A4: 4 | B4: DIAMANT CUKIER KRYSZTAŁ BIAŁY 1KG | C4: Cukier biały DIAMANT sypki, 1 kg | D4: 1 op.( 1 kg.)
A5: 5 | B5: AHMAD HERBATA EARL GREY OPK100 | C5: Herbata czarna AHMAD Earl Grey, 100 torebek | D5: 1 op. (100 torobek)
A6: 6 | B6: BIG-ACTIVE PURE CEYLON HERBATA OPK100 | C6: Herbata czarna BIG-ACTIVE Pure Ceylon, 100 torebek | D6: 1 op. (100 torobek)
A7: 7 | B7: DILMAH CEYLON GOLD HERBATA 200G OPK100 | C7: Herbata czarna DILMAH Ceylon Gold, 100 torebek | D7: 1 op. (100 torobek)
A8: 8 | B8: DILMAH EARL GREY HERBATA LIŚCIASTA 125G | C8: Herbata czarna liściasta DILMAH Earl Grey, 125 g | D8: 1 op. ( 125 g)
A9: 9 | B9: HERBAPOL BREAKFAST HERB MIĘTOWA OPK20 | C9: Herbata miętowa HERBAPOL Breakfast, 20 kopert | D9: 1 op.( 20 torebek)
A10: 10 | B10: HERBAPOL HERBATA MALINOWA OPK20 | C10: Herbata owocowa HERBAPOL Herbaciany Ogród malinowa, 20 torebek | D10: 1 op.( 20 torebek)
A11: 11 | B11: HERBAPOL PROSTO Z LASU OPK20 | C11: Herbata owocowa HERBAPOL Herbaciany Ogród, Prosto z lasu, 20 torebek | D11: 1 op.( 20 torebek)
A12: 12 | B12: HERBAPOL ZIELONA HERBATA OPK20 | C12: Herbata zielona HERBAPOL, 20 torebek bez zawieszki | D12: 1 op.( 20 torebek)
A13: 13 | B13: Herbata zielona Lipton Piramidki | C13: Herbata zielona LIPTON 20 torebek piramidek | D13: 1 op.( 20 torebek)
A14: 14 | B14: IRVING BIAŁ POZIOMK/MANDAR HERBATA OPK20 | C14: Harbata biała IRVING poziomkowa z mandarynką, 20 kopert | D14: 1 op.( 20 torebek)
A15: 15 | B15: IRVING HERBATA CLASSIC OPK100 | C15: Herbata czarna IRVING Classic, 100 torebek | D15: 1 op.( 100 torebek)
A16: 16 | B16: LIPTON EARL GREY HERBATA OPK100 | C16: Herbata czarna LIPTON Earl Grey, 100 torebek | D16: 1 op. (100 torebek)
A17: 17 | B17: LIPTON MELISA/WIŚNIA HERBATAOPK20 | C17: Herbata ziołowa LIPTON Melisa z wiśnią, 20 torebek | D17: 1 op. (20 torebek)
A18: 18 | B18: LIPTON PYRAMID CYTRYNOWA Z MELISĄ OPK20 | C18: Herbata czarna LIPTON cytrynowa z melisą, 20 torebek piramidek | D18: 1 op. (20 torebek)
A19: 19 | B19: LIPTON PYRAMID FOREST FRUIT | C19: Herbata owocowa LIPTON owoce leśne, 20 torebek piramidek | D19: 1 op. (20 torebek)
A20: 20 | B20: LIPTON YELLOW LABEL HERBATA OPK100 | C20: Herbata czarna LIPTON Yellow Label, 100 torebek | D20: 1 op. (100 torebek)
A21: 21 | B21: LIPTON YELLOW LABEL HERBATA OPK50 | C21: Herbata czarna LIPTON Yellow Label, 50 torebek | D21: 1 op. (50 torebek)
A22: 22 | B22: LIPTON ZIELONA CITRUS HERBATA OPK25 | C22: Herbata zielona LIPTON cytrusowa, 25 torebek | D22: 1 op. (25 torebek)
A23: 23 | B23: LIPTON ZIELONA MIĘTOWA HERBATA OPK25 | C23: Herbata zielona LIPTON miętowa, 25 torebek | D23: 1 op. (25 torebek)
A24: 24 | B24: TEEKANNE BLACK CURRANT HERBATA OPK20 | C24: Herbata owocowa TEEKANNE World of Fruits, Black Currant, 20 kopert | D24: 1 op. (20 torebek)
A25: 25 | B25: TEEKANNE EARL GREY HERBATA OPK100 | C25: Herbata czarna TEEKANNE Earl Grey, 100 torebek | D25: 1 op. (100 torebek)
A26: 26 | B26: TEEKANNE WORLD OF FRUITS ZESTAW OPK30 | C26: Zestaw herbat owocowych TEEKANNE World of Fruits, 30 kopert | D26: 1 op. (30 torebek)
A27: 27 | B27: TEEKANNE ZIELON OPUNCJA HERBATA OPK20 | C27: Herbata zielona TEEKANNE z opuncją, 20 kopert | D27: 1 op. (20 torebek)
A28: 28 | B28: VITAX HERBATA MELISA I POMARAŃCZA OPK20 | C28: Herbata owocowa VITAX Inspirations melisa & pomarańcza, 20 torebek | D28: 1 op. (20 torebek)
A29: 29 | B29: VITAX HERBATA ZIOŁOWA MELISA OPK20 | C29: Herbata ziołowa VITAX melisa, 20 okrągłych torebek bez zawieszki | D29: 1 op. (20 torebek)
A30: 30 | B30: VITAX HERBATA ZIOŁOWA MIĘTA OPK20 | C30: Herbata ziołowa VITAX mięta, 20 okrągłych torebek bez zawieszki | D30: 1 op. (20 torebek)
A31: 31 | B31: VITAX HERBATA ŻURAWINA I MALINA OPK20 | C31: Herbata owocowa VITAX Inspirations żurawina & malina, 20 torebek | D31: 1 op. (20 torebek)
A32: 32 | B32: VITAX NAPAR RUMIANEK OPK20 | C32: Herbata ziołowa VITAX rumianek, 20 kwadratowych torebek bez zawieszki | D32: 1 op. (20 torebek)
A33: 33 | B33: ASTRA ŁAGODNA TRADYCYJNA KAWA MIEL 250 G | C33: Kawa ziarnista Astra Łagodna 250 g | D33: 1 op. (250 g)
A34: 34 | B34: ASTRA ŁAGODNA TRADYCYJNA KAWA ZIARN 1 KG | C34: Kawa ziarnista Astra Łagodna 1 kg | D34: 1 op. (1 kg)
A35: 35 | B35: DUNI KUBEK PAPIER BIAŁY 210ML OPK50 | C35: Kubek papierowy do gorących i zminych napojów 210 ml | D35: 1 op. (50 szt.)
A36: 36 | B36: EDUSCHO CAFFE CREMA KAWA ZIARNISTA 1KG | C36: Kawa ziarnista EDUSCHO Caffe Crema, 1 kg | D36: 1 op. ( 1 kg.)
A37: 37 | B37: ESPRESSO KARMELOWE OPK50 NNSA 8868 | C37: Kawa w kapsułkach NESPRESSO ESPRESSO CARAMEL, 50 szt. (box) | D37: 1 op. (50 szt.)
A38: 38 | B38: ESPRESSO WANILIOWE OPK50 NNSA 8869 | C38: Kawa w kapsułkach NESPRESSO ESPRESSO VANILLA, 50 szt. (box) | D38: 2 op. (50 szt.)
A39: 39 | B39: INKA KAWA ZBOŻOWA 200G | C39: Kawa zbożowa INKA, puszka 200 g | D39: 1 op.( 200 g.)
A40: 40 | B40: JACOBS BARISTA AMERICANO KAWA ROZPU 155G | C40: Kawa rozpuszczalna JACOBS Barista Americano 155 g | D40: 1 op. (słoik 155g)
A41: 41 | B41: JACOBS CRONAT GOLD KAWA MIELONA 500G | C41: Kawa mielona JACOBS Cronat Gold, 500 g | D41: 1 op. (500 g.)
A42: 42 | B42: JACOBS CRONAT GOLD KAWA ROZPUSZCZ 200G | C42: Kawa rozpuszczalna JACOBS Cronat Gold, 200 g | D42: 1 op.( 200 g.)
A43: 43 | B43: JACOBS GOLD CREMA KAWA ROZPUSZCZ 200G | C43: Kawa rozpuszczalna JACOBS Crema Gold, 200 g | D43: 1 op.( 200 g.)
A44: 44 | B44: JACOBS KRONUNG KAWA MIELONA 250G | C44: Kawa mielona JACOBS Kronung, 250 g | D44: 1 op. (250 g.)
A45: 45 | B45: JACOBS KRONUNG KAWA ROZPUSZCZALNA 200G | C45: Kawa rozpuszczalna JACOBS Kronung, 200 g | D45: 1 op.( 200 g.)
A46: 46 | B46: KUBEK PAPIEROWY 110ML OPK50 | C46: Kubek papierowy do gorących napojów 110 ml | D46: 1 op. (50 szt.)
A47: 47 | B47: KUBEK PAPIEROWY 360ML OPK35 | C47: Kubek papierowy do gorących napojów 360 ml | D47: 1 op. (35 szt.)
A48: 48 | B48: KUBEK PLASTIK 200ML BIAŁE OPK100 | C48: Kubek plastikowy do zimnych napojów 200 ml Biały | D48: 1 op. (100 szt.)
A49: 49 | B49: LAVAZZA CREMA AROMA KAWA ZIARNISTA 1KG | C49: Kawa ziarnista LAVAZZA Crema Aroma, 1 kg | D49: 1 op. (1 kg)
A50: 50 | B50: LAVAZZA PRONTOCREMA GRANDE AROMA ZIA 1KG | C50: Kawa ziarnista LAVAZZA Pronto crema Grande Aroma 1 kg | D50: 1 op. (1 kg)
A51: 51 | B51: LAVAZZA QUALITA ORO KAWA MIELONA 250G | C51: Kawa mielona LAVAZZA Qualita Oro, 250 g | D51: 1 op. (250 g)
A52: 52 | B52: LAVAZZA QUALITA ORO KAWA ZIARNISTA 1 KG | C52: Kawa ziarnista LAVAZZA Qualita Oro, 1 kg | D52: 1 op. (1 kg)
A53: 53 | B53: LAVAZZA QUALITA ROSSA KAWA ZIARNISTA 1KG | C53: Kawa ziarnista LAVAZZA Qualita Rossa, 1 kg | D53: 1 op. (1 kg)
A54: 54 | B54: NESCAFE SENSAZIONE CREME KAWA ROZP 200G | C54: Kawa rozpuszczalna NESCAFÉ Sensazione Creme, 200 g | D54: 1 op.( 200 g.)
A55: 55 | B55: TCHIBO EXCLUSIVE KAWA MIELONA 250G | C55: Kawa mielona TCHIBO Exclusive, 250 g | D55: 1 op. (250 g)
A56: 56 | B56: TCHIBO FAMILY KAWA MIELONA 250G | C56: Kawa mielona TCHIBO Family, 250 g | D56: 1 op. (250 g)
A57: 57 | B57: TCHIBO FAMILY KAWA ROZPUSZCZALNA 200G | C57: Kawa rozpuszczalna TCHIBO Family, 200 g | D57: 1 op. (200 g)
A58: 58 | B58: TCHIBO PROFESSIONAL CREMA ZIARNISTA 1KG | C58: Kawa ziarnista TCHIBO Profesional Crema 1 kg | D58: 1 op. (1 kg)
A59: 59 | B59: GOSTYŃ MLEKO SKONDENS NIESŁODZONE 500G | C59: Mleko zagęszczone GOSTYŃ 7,5% niesłodzone, 500 g | D59: 1 op. ( 1 karton 500 g)
A60: 60 | B60: ŁACIATA ŚMIETANKA UHT 12% 500ML | C60: Śmietanka do kawy ŁACIATA 12%, 500 ml | D60: 1 op. (500 ml)
A61: 61 | B61: ŁACIATA ŚMIETANKA W KUBECZKACH OPK10X10G | C61: Śmietanka do kawy ŁACIATA 10%, 10 kubeczków x 10 g | D61: 1 op. (10 kubeczków)
A62: 62 | B62: ŁACIATE MLEKO UHT 2% 0,5L | C62: Mleko ŁACIATE UHT 2,0%, 0,5 l | D62: 1 op. (500 ml)
A63: 63 | B63: ŁACIATE MLEKO UHT 2% 1L | C63: Mleko ŁACIATE UHT 2,0%, 1 l | D63: 1 op. (1 l)
A64: 64 | B64: ŁACIATE MLEKO UHT 3,2% 0,5L | C64: Mleko ŁACIATE UHT 3,2%, 0,5 l | D64: 1 op. (500 ml)
A65: 65 | B65: ŁACIATE MLEKO UHT 3,2% 1L | C65: Mleko ŁACIATE UHT 3,2%, 1 l | D65: 1 op. (1 l)
A66: 66 | B66: ŁACIATE MLEKO ZAGĘSZCZONE 7,5% 0,5L | C66: Mleko zagęszczone ŁACIATE UHT 7,5%, 0,5 l | D66: 1 op. (500 ml)
A67: 67 | B67: MLEKOVITA BEZ LAKTOZY UHT WYDOJONE 1,5% | C67: Mleko WYDOJONE UHT, bez laktozy 1,5%, 1 l | D67: 1 op. (1 l)
A68: 68 | B68: MLEKOVITA BEZ LAKTOZY UHT WYDOJONE 3,2% | C68: Mleko WYDOJONE UHT, bez laktozy, 3,2%, 1 l | D68: 1 op. (1 l)
A69: 69 | B69: ZAMBROWSKIE MLEKO UHT 3,2% 1L | C69: Mleko ZAMBROWSKIE UHT 3,2 %, 1 l | D69: 1 op. (1 l)
A70: 70 | B70: BAKALLAND BAKALIE STUDENCKI MIX 200G | C70: Cukierki Mieszanka bakaliowa BAKALLAND Studencki Mix, 200 g | D70: 1 op (200 g)
A71: 71 | B71: BAKALLAND MIGDAŁY 300G | C71: Migdały BAKALLAND, 300 g | D71: 1 op. (300 g)
A72: 72 | B72: BAKALLAND ORZECHY NERKOWCA 300G | C72: Orzechy nerkowca BAKALLAND, 300 g | D72: 1 op. (300 g)
A73: 73 | B73: BELVITA CIASTKA KAKAOWE 300G | C73: Ciastka BELVITA, kakaowe, 300 g, 24 ciasteczka | D73: 1 op. (300 g)
A74: 74 | B74: BELVITA CIASTKA MUSLI+OWOCE 300G | C74: Ciastka BELVITA Musli z owocami, 24 ciasteczka pakowane po 4 sztuki, 300 g | D74: 1 op. (300 g)
A75: 75 | B75: CISOWIANKA WODA GAZOWANA 0,5L OPK12 | C75: Woda mineralna CISOWIANKA gazowana, zgrzewka 12 butelek x 0,5 l | D75: 1 op. (12 butelek)
A76: 76 | B76: DELICJE SZAMPAŃSKIE MALINA 147G | C76: Ciastka DELICJE Szampańskie malinowe, 147 g | D76: 1 op. (147 g)
A77: 77 | B77: DELICJE SZAMPAŃSKIE POMARAŃCZA 147G | C77: Ciastka DELICJE Szampańskie pomarańczowe, 147 g | D77: 1 op. (147 g)
A78: 78 | B78: DELICJE SZAMPAŃSKIE WIŚNIA 147G | C78: Ciastka DELICJE Szampańskie wiśniowe, 147 g | D78: 1 op. (147 g)
A79: 79 | B79: DELICJE SZAMPAŃSKIE WIŚNIOWE 294G | C79: Ciastka DELICJE Szampańskie wiśniowe, podwójne opakowanie, 294 g | D79: 1 op. ( 294 g)
A80: 80 | B80: FERRERO RAFAELLO 230 G | C80: Praliny RAFFAELLO, 230 g | D80: 1 op.( 230 g.)
A81: 81 | B81: FERRERO RAFFAELLO PRALINY 230G | C81: Praliny RAFFAELLO, 230 g | D81: 2 op.( 230 g.)
A82: 82 | B82: Ferrero Rocher Praliny 200g | C82: Czekoladki FERRERO ROCHER, 200 g | D82: 3 op.( 200 g.)
A83: 83 | B83: GOPLANA TOFFINO CHOCO 1KG | C83: Cukierki Goplana Toffino Choco Toffi mleczne z kremem czekoladowym 1 kg | D83: 1 op. ( 1 kg.)
A84: 84 | B84: HIT MARKIZY CZEKOLADOWE 220G | C84: Ciastka BAHLSEN HIT czekoladowe, 220 g | D84: 1 op.( 220 g)
A85: 85 | B85: JUTRZENKA JEŻYKI CAFE CIASTKA 140G | C85: Ciasta JEŻYKI Cafe, 140 g | D85: 1 op. (140 g)
A86: 86 | B86: JUTRZENKA JEŻYKI CIASTKA 140G | C86: Ciasta JEŻYKI Classic, 140 g | D86: 1 op. (140 g)
A87: 87 | B87: JUTRZENKA WAFLE FAMILIJNE ŚMIET-KAK 180G | C87: Wafle FAMILIJNE śmietankowo-kakaowe, 180 g | D87: 1 op. (180 g)
A88: 88 | B88: ŁAKOTKI DESEROWE Z CUKREM 168G | C88: Ciastka SAN ŁAKOTKI deserowe z cukrem, 168 g | D88: 1 op. (168 g)
A89: 89 | B89: ŁAKOTKI KAKAOWE 168G | C89: Ciastka SAN ŁAKOTKI kakaowe, 168 g | D89: 1 op. (168 g)
A90: 90 | B90: ŁAKOTKI KOKOSOWE 168G | C90: Ciastka SAN ŁAKOTKI kokosowe, 168 g | D90: 1 op. (168 g)
A91: 91 | B91: MERCI CZEKOLADKI 400 G | C91: Czekoladki MERCI, 400 g | D91: 1 op.(400 g.)
A92: 92 | B92: MILKA CHOCO GRAINS CIASTKA 126 G | C92: Ciastka MILKA Chocograins, 126 g | D92: 1 op.(126 g.)
A93: 93 | B93: MILKA CHOCOWAFER CIASTKA 150G | C93: Wafle MILKA ChocoWafer, 150 g | D93: 1 op.(150g.)
A94: 94 | B94: MILKA MOMENTS CZEKOL MIX 11X97G | C94: Praliny MILKA Moments Mix, 11 czekoladek | D94: 1 op. (11 sztuk)
A95: 95 | B95: MILKA MOMENTS TOFF/ORZECH 11x97G | C95: Praliny MILKA Moments Toffee Wholenut, 11 czekoladek | D95: 1 op. (11 sztuk)
A96: 96 | B96: MILKA PIEGUSKI CZEKOLADA ORZECHY 135G | C96: Ciastka MILKA Pieguski, czekolada i orzechy, 135 g | D96: 1 op. (135 g)
A97: 97 | B97: MILKA SINGLES CZEKOLADKI 138G | C97: Czekoladki MILKA Singles, 32 czekoladki pakowane osobno | D97: 1 op. (32 szt.)
A98: 98 | B98: NESPRESSO CZEKOLADKI BLOND 200G | C98: Czekoladki NESPRESSO blond, 200 g | D98: 1 op ( 200 g.)
A99: 99 | B99: NESPRESSO CZEKOLADKI MILK 200G | C99: Czekoladki NESPRESSO mleczne, 200 g | D99: 1 op ( 200 g.)
A100: 100 | B100: PASTYLKI MIĘTOWEW CZEKOLADZIE WAWEL | C100: Cukierki Pastylka miętowa WAWEL, 1 kg | D100: 1 op. (1 kg)
A101: 101 | B101: SOLIDARNOŚĆ ŚLIWKA NALECZOWSKA 1KG | C101: CukierkiŚliwka Nałęczowska SOLIDARNOŚĆ, 1 kg | D101: 2 op. (1 kg)
A102: 102 | B102: TAGO CIASTECZKA KORZENNE 4,8G OPK125 | C102: Ciastka TAGO korzenne, 125 ciasteczek po 4,8 g | D102: 1 op. (125 szt.)
A103: 103 | B103: TAGO OWSIANE DE LUX CIASTECZKA 210G | C103: Ciastka TAGO Owsiane de Lux, 210 g | D103: 1 op. (210 g)
A104: 104 | B104: TAGO PRECLE MAŚLANE 158 G | C104: Francuskie precle z masłem TAGO, 158 g | D104: 1 op. ( 158 g)
A105: 105 | B105: WAWEL MICHAŁKI 1 KG | C105: Cukierki WAWEL Michałki Klasyczne 300 g | D105: 1 op. (300 g)
A106: 106 | B106: WAWEL MICHAŁKI CLASSIC 300G | C106: Cukierki WAWEL Michałki Klasyczne 300 g | D106: 1 op. (300 g)
A107: 107 | B107: WAWEL MIESZANKA KRAKOWSKA 1 KG | C107: Cukierki Mieszanka krakowska WAWEL, 1 kg | D107: 1 op. (1 kg)
A108: 108 | B108: WAWEL TRUFLE 1 KG | C108: Cukierki WAWEL Trufle | D108: 1 op. (1 kg)
A109: 109 | B109: WEDEL AMERYKANKI KLASYCZNE 125 G | C109: Ciastka AMERYKANKI, klasyczne, 126 g | D109: 1 op. (126 g)
A110: 110 | B110: WEDEL MIESZANKA CUKIERKI DISPLAY 3KG | C110: Cukierki MIESZANKA WEDLOWSKA Classic, 3 kg w formie dyspensera | D110: 1 op. (3 kg)
A111: 111 | B111: WEDEL PTASIE MLECZKO WANILIOWE 360G | C111: Ptasie mleczko WEDEL, waniliowe, 360 g | D111: 1 op.( 360 g.)
A112: 112 | B112: WEDEL WAFLE TORCIKOWE MINI ORZECHOWE 160 | C112: Wafle Torcikowe WEDEL MINI orzechowe, 160 g | D112: 1 op. ( 160 g)
A113: 113 | B113: BAKALLAND MIGDAŁY SOLONE 90G | C113: Migdały lekko solone BAKALLAND, 90 g | D113: 1 op. (90 g)
A114: 114 | B114: BAKALLAND ORZECHY LASKOWE 300G | C114: Orzechy laskowe BAKALLAND, 300 g | D114: 1 op. (300 g)
A115: 115 | B115: BAKALLAND ORZECHY NERKOWCA SOLONE 70G | C115: Orzechy nerkowca solone BAKALLAND, 70 g | D115: 1 op. (70 g)
A116: 116 | B116: BAKALLAND ORZECHY WŁOSKIE 300G | C116: Orzechy włoskie BAKALLAND, 300 g | D116: 1 op. (300 g)
A117: 117 | B117: LAJKONIK PALUSZKI 200G | C117: Paluszki LAJKONIK solone, 200 g | D117: 1 op. (200 g)
A118: 118 | B118: CAPPY NEKTAR MULTIWIT PET 0,33L OPK12 | C118: Nektar multiwitamina CAPPY, 12 butelek x 0,33 l | D118: 1 op. (12 butelek)
A119: 119 | B119: CAPPY SOK POMARAŃCZOWY PET 0,33L OPK12 | C119: Sok pomarańczowy CAPPY, 12 butelek x 0,33 l | D119: 1 op. (12 butelek)
A120: 120 | B120: CHAMPION SOK CYTRYNOWY OPK10X7,5G | C120: Zagęszczony sok cytrynowy CHAMPION, 10 kubeczków x 7,5 g | D120: 1 op. (10 kubeczków)
A121: 121 | B121: COCA-COLA BUTELKA PET 0,5L OPK18 | C121: Napój gazowany COCA-COLA, zgrzewka 18 butelek x 0,5 l | D121: 1 op. (18 butelek)
A122: 122 | B122: COCA-COLA PUSZKA 0,33L OPK24 | C122: Napój gazowany COCA-COLA, 24 puszki x 0,33 l | D122: 1 op. (24 puszki 0,33 l)
A123: 123 | B123: COCA-COLA ZERO BUTELKA PET 0,5L OPK12 | C123: Napój gazowany COCA-COLA Zero, 12 butelek x 0,5 l | D123: 1 op. (12 butelek)
A124: 124 | B124: FORTUNA NEKTAR CZ.PORZECZKA 0,3L OPK15 | C124: Nektar czarna porzeczka FORTUNA, 15 butelek x 0,3 l | D124: 1 op. (15 butelek)
A125: 125 | B125: FORTUNA SOK MULTIWITAMINA 0,3 L OPK15 | C125: Sok multiwitamina FORTUNA, 15 butelek x 0,3 l | D125: 1 op. (15 butelek)
A126: 126 | B126: FORTUNA SOK POMARAŃCZOWY 0,3L OPK15 | C126: Sok pomarańczowy FORTUNA, 15 butelek x 0,3 l | D126: 1 op. (15 butelek)
A127: 127 | B127: FORTUNA SOK POMIDOROWY 0,3L OPK15 | C127: Sok pomidorowy FORTUNA, 15 butelek x 0,3 l | D127: 1 op. (15 butelek)
A128: 128 | B128: TARCZYN NEKTAR CZ.PORZECZKA 0,3L OPK15 | C128: Nektar czarna porzeczka TARCZYN, 15 butelek x 0,3 l | D128: 1 op. (15 butelek)
A129: 129 | B129: TARCZYN NEKTAR GREJPFRUT 0,3L OPK15 | C129: Nektar czerwony grejpfrut TARCZYN, zgrzewka 15 butelek x 0,3 l | D129: 1 op. (15 butelek)
A130: 130 | B130: TARCZYN SOK JABŁKOWY 0,3L OPK15 | C130: Sok jabłkowy TARCZYN, 15 butelek x 0,3 l | D130: 1 op. (15 butelek)
A131: 131 | B131: TARCZYN SOK POMARAŃCZOWY 0,3L OPK15 | C131: Sok pomarańczowy TARCZYN, 15 butelek x 0,3 l | D131: 1 op. (15 butelek)
A132: 132 | B132: TARCZYN SOK POMIDOROWY 300ML OPK15 | C132: Sok pomidorowy TARCZYN, zgrzewka 15 butelek x 0,3 l | D132: 1 op. (15 butelek)
A133: 133 | B133: TYMBARK JABŁKO SOK 100% 300ML OPK12 | C133: Sok TYMBARK jabłko 100%, 12 butelek x 300 ml | D133: 1 op. (12 butelek)
A134: 134 | B134: TYMBARK POMARAŃCZ SOK 100% 300ML OPK12 | C134: Sok TYMBARK pomarańcza 100%, 12 butelek x 300 ml | D134: 1 op. (12 butelek)
A135: 135 | B135: TYMBARK POMIDOR SOK 100% 300ML OPK12 | C135: Sok TYMBARK pomidor 100%, 12 butelek x 300 ml | D135: 1 op. (12 butelek)
A136: 136 | B136: TYMBARK VITAMINI BAN/MAR/JAB 300ML OPK12 | C136: Sok TYMBARK Vitamini banan, marchewka, jabłko, 12 butelek x 300 ml | D136: 1 op. (12 butelek)
A137: 137 | B137: CISOWIANKA LEKKOGAZOWANA WODA 0,5L OPK12 | C137: Woda mineralna CISOWIANKA lekko gazowana, zgrzewka 12 butelek x 0,5 l | D137: 1 op. (12 butelek)
A138: 138 | B138: CISOWIANKA PERLAGE GAZ SZKŁO 300ML OPK24 | C138: Woda mineralna CISOWIANKA Perlage gazowana, zgrzewka 24 butelki x 300 ml | D138: 1 op. (24 butelki)
A139: 139 | B139: CISOWIANKA WODA GAZOWANA 1,5L OPK6 | C139: Woda mineralna CISOWIANKA gazowana, zgrzewka 6 butelek x 1,5 l | D139: 1 op. (6 butelek)
A140: 140 | B140: CISOWIANKA WODA NIEGAZ SZKŁO 300ML OPK24 | C140: Woda mineralna CISOWIANKA niegazowana szklane butelki x 300 ml | D140: 1 op. (24 butelki)
A141: 141 | B141: CISOWIANKA WODA NIEGAZOWANA 0,5L OPK12 | C141: Woda mineralna CISOWIANKA niegazowana, zgrzewka 12 butelek x 0,5 l | D141: 1 op. (12 butelek)
A142: 142 | B142: CISOWIANKA WODA NIEGAZOWANA 1,5L OPK6 | C142: Woda mineralna CISOWIANKA niegazowana, zgrzewka 6 butelek x 1,5 l | D142: 1 op. (6 butelek)
A143: 143 | B143: CISOWIANKA WODA SPORT NIEGAZ 0,7L OPK8 | C143: Woda mineralna CISOWIANKA Sport niegazowana, zgrzewka 8 butelek x 0,7 l | D143: 1 op. (8 butelek)
A144: 144 | B144: KINGA PIENINSKA WODA GAZOWANA 0,5L OPK12 | C144: Woda mineralna KINGA PIENIŃSKA gazowana 0,5 l | D144: 1 op. (12 butelek)
A145: 145 | B145: KINGA PIENINSKA WODA NIEGAZOW 0,5L OPK12 | C145: Woda mineralna KINGA PIENIŃSKA niegazowana, zgrzewka 12 butelek x 0,5 l | D145: 1 op. (12 butelek)
A146: 146 | B146: KROPLA BESKIDU WODA GAZ 0,5L OPK12 | C146: Woda mineralna KROPLA BESKIDU gazowana, zgrzewka 12 butelek x 0,5 l | D146: 1 op. (12 butelek)
A147: 147 | B147: KROPLA BESKIDU WODA GAZ 1,5L OPK6 | C147: Woda mineralna KROPLA BESKIDU gazowana, zgrzewka 6 butelek x 1,5 l | D147: 1 op. (6 butelek)
A148: 148 | B148: KROPLA BESKIDU WODA NIEGAZ 0,5L OPK12 | C148: Woda mineralna KROPLA BESKIDU niegazowana, zgrzewka 12 butelek x 0,5 l | D148: 1 op. (12 butelek)
A149: 149 | B149: KROPLA BESKIDU WODA NIEGAZ 1,5L OPK6 | C149: Woda mineralna KROPLA BESKIDU niegazowana, zgrzewka 6 butelek x 1,5 l | D149: 1 op. (6 butelek)
A150: 150 | B150: NAŁĘCZOWIANKA WODA NIEGAZ 0,5L OPK12 | C150: Woda mineralna NAŁĘCZOWIANKA niegazowana, zgrzewka 12 butelek x 0,5 l | D150: 1 op. (12 butelek)
A151: 151 | B151: NAŁĘCZOWIANKA WODA NIEGAZ 1,5L OPK6 | C151: Woda mineralna NAŁĘCZOWIANKA niegazowana, zgrzewka 6 butelek x 1,5 l | D151: 1 op. (6 butelek)
A152: 152 | B152: NESTLE PURE LIFE WODA GAZ 1,5L OPK6 | C152: Woda źródlana NESTLÉ Pure Life gazowana, zgrzewka 6 butelek x 1,5 l | D152: 1 op. (6 butelek)
A153: 153 | B153: NESTLE PURE LIFE WODA NIEGAZ 0,5L OPK12 | C153: Woda źródlana NESTLÉ Pure Life niegazowana, zgrzewka 12 butelek x 0,5 l | D153: 1 op. (12 butelek)
A154: 154 | B154: NESTLE PURE LIFE WODA NIEGAZ 1,5L OPK6 | C154: Woda źródlana NESTLÉ Pure Life niegazowana, zgrzewka 6 butelek x 1,5 l | D154: 1 op. (6 butelek)
A155: 155 | B155: ŻYWIEC ZDRÓJ WODA GAZOWANA 0.5L OPK24 | C155: Woda źródlana ŻYWIOŁ od ŻYWIEC ZDRÓJ gazowana, 24 butelki x 0,5 l | D155: 1 op. (24 butelki)
A156: 156 | B156: ŻYWIEC ZDRÓJ WODA GAZOWANA 1,5L OPK6 | C156: Woda źródlana ŻYWIOŁ od ŻYWIEC ZDRÓJ gazowana, zgrzewka 6 butelek x 1,5 l | D156: 1 op. ( 6 butelek)
A157: 157 | B157: ŻYWIEC ZDRÓJ WODA NIEGAZOWANA 0.5L OPK24 | C157: Woda źródlana ŻYWIEC ZDRÓJ niegazowana, 24 butelki x 0,5 l | D157: 1 op. (24 butelki)
A158: 158 | B158: ŻYWIEC ZDRÓJ WODA NIEGAZOWANA 1,5L OPK6 | C158: Woda źródlana ŻYWIEC ZDRÓJ niegazowana, zgrzewka 6 butelek x 1,5 l | D158: 1 op. (6 butelek)

Sheet Zadanie13 (hidden)
A1: 1 | B1: DIAMANT CUKIER BIAŁY KOSTKA 1KG | C1: Cukier biały DIAMANT w kostkach, 1 kg | D1: 1 op. ( 1 kg.)
A2: 2 | B2: DIAMANT CUKIER BIAŁY W SASZET OPK100X5G | C2: Cukier biały DIAMANT, saszetki 100 sztuk x 5 g | D2: 1 op. (100 sztuk)
A3: 3 | B3: DIAMANT CUKIER DRY DEMERARA SYPKI 0,5KG | C3: Cukier trzcinowy DIAMANT Dry Demerara, sypki, 500 g | D3: 1 op. ( 500 g)
A4: 4 | B4: DIAMANT CUKIER KRYSZTAŁ BIAŁY 1KG | C4: Cukier biały DIAMANT sypki, 1 kg | D4: 1 op.( 1 kg.)
A5: 5 | B5: AHMAD HERBATA EARL GREY OPK100 | C5: Herbata czarna AHMAD Earl Grey, 100 torebek | D5: 1 op. (100 torobek)
A6: 6 | B6: BIG-ACTIVE PURE CEYLON HERBATA OPK100 | C6: Herbata czarna BIG-ACTIVE Pure Ceylon, 100 torebek | D6: 1 op. (100 torobek)
A7: 7 | B7: DILMAH CEYLON GOLD HERBATA 200G OPK100 | C7: Herbata czarna DILMAH Ceylon Gold, 100 torebek | D7: 1 op. (100 torobek)
A8: 8 | B8: DILMAH EARL GREY HERBATA LIŚCIASTA 125G | C8: Herbata czarna liściasta DILMAH Earl Grey, 125 g | D8: 1 op. ( 125 g)
A9: 9 | B9: HERBAPOL BREAKFAST HERB MIĘTOWA OPK20 | C9: Herbata miętowa HERBAPOL Breakfast, 20 kopert | D9: 1 op.( 20 torebek)
A10: 10 | B10: HERBAPOL HERBATA MALINOWA OPK20 | C10: Herbata owocowa HERBAPOL Herbaciany Ogród malinowa, 20 torebek | D10: 1 op.( 20 torebek)
A11: 11 | B11: HERBAPOL PROSTO Z LASU OPK20 | C11: Herbata owocowa HERBAPOL Herbaciany Ogród, Prosto z lasu, 20 torebek | D11: 1 op.( 20 torebek)
A12: 12 | B12: HERBAPOL ZIELONA HERBATA OPK20 | C12: Herbata zielona HERBAPOL, 20 torebek bez zawieszki | D12: 1 op.( 20 torebek)
A13: 13 | B13: Herbata zielona Lipton Piramidki | C13: Herbata zielona LIPTON 20 torebek piramidek | D13: 1 op.( 20 torebek)
A14: 14 | B14: IRVING BIAŁ POZIOMK/MANDAR HERBATA OPK20 | C14: Harbata biała IRVING poziomkowa z mandarynką, 20 kopert | D14: 1 op.( 20 torebek)
A15: 15 | B15: IRVING HERBATA CLASSIC OPK100 | C15: Herbata czarna IRVING Classic, 100 torebek | D15: 1 op.( 100 torebek)
A16: 16 | B16: LIPTON EARL GREY HERBATA OPK100 | C16: Herbata czarna LIPTON Earl Grey, 100 torebek | D16: 1 op. (100 torebek)
A17: 17 | B17: LIPTON MELISA/WIŚNIA HERBATAOPK20 | C17: Herbata ziołowa LIPTON Melisa z wiśnią, 20 torebek | D17: 1 op. (20 torebek)
A18: 18 | B18: LIPTON PYRAMID CYTRYNOWA Z MELISĄ OPK20 | C18: Herbata czarna LIPTON cytrynowa z melisą, 20 torebek piramidek | D18: 1 op. (20 torebek)
A19: 19 | B19: LIPTON PYRAMID FOREST FRUIT | C19: Herbata owocowa LIPTON owoce leśne, 20 torebek piramidek | D19: 1 op. (20 torebek)
A20: 20 | B20: LIPTON YELLOW LABEL HERBATA OPK100 | C20: Herbata czarna LIPTON Yellow Label, 100 torebek | D20: 1 op. (100 torebek)
A21: 21 | B21: LIPTON YELLOW LABEL HERBATA OPK50 | C21: Herbata czarna LIPTON Yellow Label, 50 torebek | D21: 1 op. (50 torebek)
A22: 22 | B22: LIPTON ZIELONA CITRUS HERBATA OPK25 | C22: Herbata zielona LIPTON cytrusowa, 25 torebek | D22: 1 op. (25 torebek)
A23: 23 | B23: LIPTON ZIELONA MIĘTOWA HERBATA OPK25 | C23: Herbata zielona LIPTON miętowa, 25 torebek | D23: 1 op. (25 torebek)
A24: 24 | B24: TEEKANNE BLACK CURRANT HERBATA OPK20 | C24: Herbata owocowa TEEKANNE World of Fruits, Black Currant, 20 kopert | D24: 1 op. (20 torebek)
A25: 25 | B25: TEEKANNE EARL GREY HERBATA OPK100 | C25: Herbata czarna TEEKANNE Earl Grey, 100 torebek | D25: 1 op. (100 torebek)
A26: 26 | B26: TEEKANNE WORLD OF FRUITS ZESTAW OPK30 | C26: Zestaw herbat owocowych TEEKANNE World of Fruits, 30 kopert | D26: 1 op. (30 torebek)
A27: 27 | B27: TEEKANNE ZIELON OPUNCJA HERBATA OPK20 | C27: Herbata zielona TEEKANNE z opuncją, 20 kopert | D27: 1 op. (20 torebek)
A28: 28 | B28: VITAX HERBATA MELISA I POMARAŃCZA OPK20 | C28: Herbata owocowa VITAX Inspirations melisa & pomarańcza, 20 torebek | D28: 1 op. (20 torebek)
A29: 29 | B29: VITAX HERBATA ZIOŁOWA MELISA OPK20 | C29: Herbata ziołowa VITAX melisa, 20 okrągłych torebek bez zawieszki | D29: 1 op. (20 torebek)
A30: 30 | B30: VITAX HERBATA ZIOŁOWA MIĘTA OPK20 | C30: Herbata ziołowa VITAX mięta, 20 okrągłych torebek bez zawieszki | D30: 1 op. (20 torebek)
A31: 31 | B31: VITAX HERBATA ŻURAWINA I MALINA OPK20 | C31: Herbata owocowa VITAX Inspirations żurawina & malina, 20 torebek | D31: 1 op. (20 torebek)
A32: 32 | B32: VITAX NAPAR RUMIANEK OPK20 | C32: Herbata ziołowa VITAX rumianek, 20 kwadratowych torebek bez zawieszki | D32: 1 op. (20 torebek)
A33: 33 | B33: ASTRA ŁAGODNA TRADYCYJNA KAWA ZIARN 1 KG | C33: Kawa ziarnista Astra Łagodna 1 kg | D33: 1 op. (1 kg)
A34: 34 | B34: DUNI KUBEK PAPIER BIAŁY 210ML OPK50 | C34: Kubek papierowy do gorących i zminych napojów 210 ml | D34: 1 op. (50 szt.)
A35: 35 | B35: EDUSCHO CAFFE CREMA KAWA ZIARNISTA 1KG | C35: Kawa ziarnista EDUSCHO Caffe Crema, 1 kg | D35: 1 op. ( 1 kg.)
A36: 36 | B36: JACOBS BARISTA AMERICANO KAWA ROZPU 155G | C36: Kawa rozpuszczalna JACOBS Barista Americano 155 g | D36: 1 op. (słoik 155g)
A37: 37 | B37: JACOBS CRONAT GOLD KAWA MIELONA 500G | C37: Kawa mielona JACOBS Cronat Gold, 500 g | D37: 1 op. (500 g.)
A38: 38 | B38: JACOBS CRONAT GOLD KAWA ROZPUSZCZ 200G | C38: Kawa rozpuszczalna JACOBS Cronat Gold, 200 g | D38: 1 op.( 200 g.)
A39: 39 | B39: JACOBS GOLD CREMA KAWA ROZPUSZCZ 200G | C39: Kawa rozpuszczalna JACOBS Crema Gold, 200 g | D39: 1 op.( 200 g.)
A40: 40 | B40: JACOBS KRONUNG KAWA MIELONA 250G | C40: Kawa mielona JACOBS Kronung, 250 g | D40: 1 op. (250 g.)
A41: 41 | B41: JACOBS KRONUNG KAWA ROZPUSZCZALNA 200G | C41: Kawa rozpuszczalna JACOBS Kronung, 200 g | D41: 1 op.( 200 g.)
A42: 42 | B42: KUBEK PLASTIK 200ML BIAŁE OPK100 | C42: Kubek plastikowy do zimnych napojów 200 ml Biały | D42: 1 op. (100 szt.)
A43: 43 | B43: LAVAZZA CREMA AROMA KAWA ZIARNISTA 1KG | C43: Kawa ziarnista LAVAZZA Crema Aroma, 1 kg | D43: 1 op. (1 kg)
A44: 44 | B44: LAVAZZA PRONTOCREMA GRANDE AROMA ZIA 1KG | C44: Kawa ziarnista LAVAZZA Pronto crema Grande Aroma 1 kg | D44: 1 op. (1 kg)
A45: 45 | B45: LAVAZZA QUALITA ORO KAWA MIELONA 250G | C45: Kawa mielona LAVAZZA Qualita Oro, 250 g | D45: 1 op. (250 g)
A46: 46 | B46: LAVAZZA QUALITA ORO KAWA ZIARNISTA 1 KG | C46: Kawa ziarnista LAVAZZA Qualita Oro, 1 kg | D46: 1 op. (1 kg)
A47: 47 | B47: LAVAZZA QUALITA ROSSA KAWA ZIARNISTA 1KG | C47: Kawa ziarnista LAVAZZA Qualita Rossa, 1 kg | D47: 1 op. (1 kg)
A48: 48 | B48: NESCAFE SENSAZIONE CREME KAWA ROZP 200G | C48: Kawa rozpuszczalna NESCAFÉ Sensazione Creme, 200 g | D48: 1 op.( 200 g.)
A49: 49 | B49: TCHIBO EXCLUSIVE KAWA MIELONA 250G | C49: Kawa mielona TCHIBO Exclusive, 250 g | D49: 1 op. (250 g)
A50: 50 | B50: TCHIBO FAMILY KAWA MIELONA 250G | C50: Kawa mielona TCHIBO Family, 250 g | D50: 1 op. (250 g)
A51: 51 | B51: TCHIBO FAMILY KAWA ROZPUSZCZALNA 200G | C51: Kawa rozpuszczalna TCHIBO Family, 200 g | D51: 1 op. (200 g)
A52: 52 | B52: TCHIBO PROFESSIONAL CREMA ZIARNISTA 1KG | C52: Kawa ziarnista TCHIBO Profesional Crema 1 kg | D52: 1 op. (1 kg)
A53: 53 | B53: GOSTYŃ MLEKO SKONDENS NIESŁODZONE 500G | C53: Mleko zagęszczone GOSTYŃ 7,5% niesłodzone, 500 g | D53: 1 op. ( 1 karton 500 g)
A54: 54 | B54: ŁACIATA ŚMIETANKA UHT 12% 500ML | C54: Śmietanka do kawy ŁACIATA 12%, 500 ml | D54: 1 op. (500 ml)
A55: 55 | B55: ŁACIATA ŚMIETANKA W KUBECZKACH OPK10X10G | C55: Śmietanka do kawy ŁACIATA 10%, 10 kubeczków x 10 g | D55: 1 op. (10 kubeczków)
A56: 56 | B56: ŁACIATE MLEKO UHT 2% 0,5L | C56: Mleko ŁACIATE UHT 2,0%, 0,5 l | D56: 1 op. (500 ml)
A57: 57 | B57: ŁACIATE MLEKO UHT 2% 1L | C57: Mleko ŁACIATE UHT 2,0%, 1 l | D57: 1 op. (1 l)
A58: 58 | B58: ŁACIATE MLEKO UHT 3,2% 0,5L | C58: Mleko ŁACIATE UHT 3,2%, 0,5 l | D58: 1 op. (500 ml)
A59: 59 | B59: ŁACIATE MLEKO UHT 3,2% 1L | C59: Mleko ŁACIATE UHT 3,2%, 1 l | D59: 1 op. (1 l)
A60: 60 | B60: ŁACIATE MLEKO ZAGĘSZCZONE 7,5% 0,5L | C60: Mleko zagęszczone ŁACIATE UHT 7,5%, 0,5 l | D60: 1 op. (500 ml)
A61: 61 | B61: ZAMBROWSKIE MLEKO UHT 3,2% 1L | C61: Mleko ZAMBROWSKIE UHT 3,2 %, 1 l | D61: 1 op. (1 l)
A62: 62 | B62: BAKALLAND BAKALIE STUDENCKI MIX 200G | C62: Cukierki Mieszanka bakaliowa BAKALLAND Studencki Mix, 200 g | D62: 1 op (200 g)
A63: 63 | B63: BAKALLAND MIGDAŁY 300G | C63: Migdały BAKALLAND, 300 g | D63: 1 op. (300 g)
A64: 64 | B64: BAKALLAND ORZECHY NERKOWCA 300G | C64: Orzechy nerkowca BAKALLAND, 300 g | D64: 1 op. (300 g)
A65: 65 | B65: BELVITA CIASTKA KAKAOWE 300G | C65: Ciastka BELVITA, kakaowe, 300 g, 24 ciasteczka | D65: 1 op. (300 g)
A66: 66 | B66: BELVITA CIASTKA MUSLI+OWOCE 300G | C66: Ciastka BELVITA Musli z owocami, 24 ciasteczka pakowane po 4 sztuki, 300 g | D66: 1 op. (300 g)
A67: 67 | B67: CISOWIANKA WODA GAZOWANA 0,5L OPK12 | C67: Woda mineralna CISOWIANKA gazowana, zgrzewka 12 butelek x 0,5 l | D67: 1 op. (12 butelek)
A68: 68 | B68: DELICJE SZAMPAŃSKIE MALINA 147G | C68: Ciastka DELICJE Szampańskie malinowe, 147 g | D68: 1 op. (147 g)
A69: 69 | B69: DELICJE SZAMPAŃSKIE POMARAŃCZA 147G | C69: Ciastka DELICJE Szampańskie pomarańczowe, 147 g | D69: 1 op. (147 g)
A70: 70 | B70: DELICJE SZAMPAŃSKIE WIŚNIA 147G | C70: Ciastka DELICJE Szampańskie wiśniowe, 147 g | D70: 1 op. (147 g)
A71: 71 | B71: DELICJE SZAMPAŃSKIE WIŚNIOWE 294G | C71: Ciastka DELICJE Szampańskie wiśniowe, podwójne opakowanie, 294 g | D71: 1 op. ( 294 g)
A72: 72 | B72: FERRERO RAFAELLO 230 G | C72: Praliny RAFFAELLO, 230 g | D72: 1 op.( 230 g.)
A73: 73 | B73: FERRERO RAFFAELLO PRALINY 230G | C73: Praliny RAFFAELLO, 230 g | D73: 2 op.( 230 g.)
A74: 74 | B74: Ferrero Rocher Praliny 200g | C74: Czekoladki FERRERO ROCHER, 200 g | D74: 3 op.( 200 g.)
A75: 75 | B75: GOPLANA TOFFINO CHOCO 1KG | C75: Cukierki Goplana Toffino Choco Toffi mleczne z kremem czekoladowym 1 kg | D75: 1 op. ( 1 kg.)
A76: 76 | B76: HIT MARKIZY CZEKOLADOWE 220G | C76: Ciastka BAHLSEN HIT czekoladowe, 220 g | D76: 1 op.( 220 g)
A77: 77 | B77: JUTRZENKA JEŻYKI CAFE CIASTKA 140G | C77: Ciasta JEŻYKI Cafe, 140 g | D77: 1 op. (140 g)
A78: 78 | B78: JUTRZENKA JEŻYKI CIASTKA 140G | C78: Ciasta JEŻYKI Classic, 140 g | D78: 1 op. (140 g)
A79: 79 | B79: JUTRZENKA WAFLE FAMILIJNE ŚMIET-KAK 180G | C79: Wafle FAMILIJNE śmietankowo-kakaowe, 180 g | D79: 1 op. (180 g)
A80: 80 | B80: ŁAKOTKI DESEROWE Z CUKREM 168G | C80: Ciastka SAN ŁAKOTKI deserowe z cukrem, 168 g | D80: 1 op. (168 g)
A81: 81 | B81: ŁAKOTKI KAKAOWE 168G | C81: Ciastka SAN ŁAKOTKI kakaowe, 168 g | D81: 1 op. (168 g)
A82: 82 | B82: ŁAKOTKI KOKOSOWE 168G | C82: Ciastka SAN ŁAKOTKI kokosowe, 168 g | D82: 1 op. (168 g)
A83: 83 | B83: MERCI CZEKOLADKI 400 G | C83: Czekoladki MERCI, 400 g | D83: 1 op.(400 g.)
A84: 84 | B84: MILKA CHOCO GRAINS CIASTKA 126 G | C84: Ciastka MILKA Chocograins, 126 g | D84: 1 op.(126 g.)
A85: 85 | B85: MILKA CHOCOWAFER CIASTKA 150G | C85: Wafle MILKA ChocoWafer, 150 g | D85: 1 op.(150g.)
A86: 86 | B86: MILKA MOMENTS CZEKOL MIX 11X97G | C86: Praliny MILKA Moments Mix, 11 czekoladek | D86: 1 op. (11 sztuk)
A87: 87 | B87: MILKA MOMENTS TOFF/ORZECH 11x97G | C87: Praliny MILKA Moments Toffee Wholenut, 11 czekoladek | D87: 1 op. (11 sztuk)
A88: 88 | B88: MILKA PIEGUSKI CZEKOLADA ORZECHY 135G | C88: Ciastka MILKA Pieguski, czekolada i orzechy, 135 g | D88: 1 op. (135 g)
A89: 89 | B89: MILKA SINGLES CZEKOLADKI 138G | C89: Czekoladki MILKA Singles, 32 czekoladki pakowane osobno | D89: 1 op. (32 szt.)
A90: 90 | B90: NESPRESSO CZEKOLADKI BLOND 200G | C90: Czekoladki NESPRESSO blond, 200 g | D90: 1 op ( 200 g.)
A91: 91 | B91: NESPRESSO CZEKOLADKI MILK 200G | C91: Czekoladki NESPRESSO mleczne, 200 g | D91: 1 op ( 200 g.)
A92: 92 | B92: PASTYLKI MIĘTOWEW CZEKOLADZIE WAWEL | C92: Cukierki Pastylka miętowa WAWEL, 1 kg | D92: 1 op. (1 kg)
A93: 93 | B93: SOLIDARNOŚĆ ŚLIWKA NALECZOWSKA 1KG | C93: CukierkiŚliwka Nałęczowska SOLIDARNOŚĆ, 1 kg | D93: 2 op. (1 kg)
A94: 94 | B94: TAGO CIASTECZKA KORZENNE 4,8G OPK125 | C94: Ciastka TAGO korzenne, 125 ciasteczek po 4,8 g | D94: 1 op. (125 szt.)
A95: 95 | B95: TAGO OWSIANE DE LUX CIASTECZKA 210G | C95: Ciastka TAGO Owsiane de Lux, 210 g | D95: 1 op. (210 g)
A96: 96 | B96: TAGO PRECLE MAŚLANE 158 G | C96: Francuskie precle z masłem TAGO, 158 g | D96: 1 op. ( 158 g)
A97: 97 | B97: WAWEL MICHAŁKI 1 KG | C97: Cukierki WAWEL Michałki Klasyczne 300 g | D97: 1 op. (300 g)
A98: 98 | B98: WAWEL MICHAŁKI CLASSIC 300G | C98: Cukierki WAWEL Michałki Klasyczne 300 g | D98: 1 op. (300 g)
A99: 99 | B99: WAWEL MIESZANKA KRAKOWSKA 1 KG | C99: Cukierki Mieszanka krakowska WAWEL, 1 kg | D99: 1 op. (1 kg)
A100: 100 | B100: WAWEL TRUFLE 1 KG | C100: Cukierki WAWEL Trufle | D100: 1 op. (1 kg)
A101: 101 | B101: WEDEL AMERYKANKI KLASYCZNE 125 G | C101: Ciastka AMERYKANKI, klasyczne, 126 g | D101: 1 op. (126 g)
A102: 102 | B102: WEDEL MIESZANKA CUKIERKI DISPLAY 3KG | C102: Cukierki MIESZANKA WEDLOWSKA Classic, 3 kg w formie dyspensera | D102: 1 op. (3 kg)
A103: 103 | B103: WEDEL PTASIE MLECZKO WANILIOWE 360G | C103: Ptasie mleczko WEDEL, waniliowe, 360 g | D103: 1 op.( 360 g.)
A104: 104 | B104: WEDEL WAFLE TORCIKOWE MINI ORZECHOWE 160 | C104: Wafle Torcikowe WEDEL MINI orzechowe, 160 g | D104: 1 op. ( 160 g)
A105: 105 | B105: BAKALLAND MIGDAŁY SOLONE 90G | C105: Migdały lekko solone BAKALLAND, 90 g | D105: 1 op. (90 g)
A106: 106 | B106: BAKALLAND ORZECHY LASKOWE 300G | C106: Orzechy laskowe BAKALLAND, 300 g | D106: 1 op. (300 g)
A107: 107 | B107: BAKALLAND ORZECHY NERKOWCA SOLONE 70G | C107: Orzechy nerkowca solone BAKALLAND, 70 g | D107: 1 op. (70 g)
A108: 108 | B108: BAKALLAND ORZECHY WŁOSKIE 300G | C108: Orzechy włoskie BAKALLAND, 300 g | D108: 1 op. (300 g)
A109: 109 | B109: LAJKONIK PALUSZKI 200G | C109: Paluszki LAJKONIK solone, 200 g | D109: 1 op. (200 g)
A110: 110 | B110: CAPPY NEKTAR MULTIWIT PET 0,33L OPK12 | C110: Nektar multiwitamina CAPPY, 12 butelek x 0,33 l | D110: 1 op. (12 butelek)
A111: 111 | B111: CAPPY SOK POMARAŃCZOWY PET 0,33L OPK12 | C111: Sok pomarańczowy CAPPY, 12 butelek x 0,33 l | D111: 1 op. (12 butelek)
A112: 112 | B112: CHAMPION SOK CYTRYNOWY OPK10X7,5G | C112: Zagęszczony sok cytrynowy CHAMPION, 10 kubeczków x 7,5 g | D112: 1 op. (10 kubeczków)
A113: 113 | B113: COCA-COLA BUTELKA PET 0,5L OPK18 | C113: Napój gazowany COCA-COLA, zgrzewka 18 butelek x 0,5 l | D113: 1 op. (18 butelek)
A114: 114 | B114: COCA-COLA ZERO BUTELKA PET 0,5L OPK12 | C114: Napój gazowany COCA-COLA Zero, 12 butelek x 0,5 l | D114: 1 op. (12 butelek)
A115: 115 | B115: FORTUNA NEKTAR CZ.PORZECZKA 0,3L OPK15 | C115: Nektar czarna porzeczka FORTUNA, 15 butelek x 0,3 l | D115: 1 op. (15 butelek)
A116: 116 | B116: FORTUNA SOK MULTIWITAMINA 0,3 L OPK15 | C116: Sok multiwitamina FORTUNA, 15 butelek x 0,3 l | D116: 1 op. (15 butelek)
A117: 117 | B117: FORTUNA SOK POMARAŃCZOWY 0,3L OPK15 | C117: Sok pomarańczowy FORTUNA, 15 butelek x 0,3 l | D117: 1 op. (15 butelek)
A118: 118 | B118: FORTUNA SOK POMIDOROWY 0,3L OPK15 | C118: Sok pomidorowy FORTUNA, 15 butelek x 0,3 l | D118: 1 op. (15 butelek)
A119: 119 | B119: TARCZYN NEKTAR CZ.PORZECZKA 0,3L OPK15 | C119: Nektar czarna porzeczka TARCZYN, 15 butelek x 0,3 l | D119: 1 op. (15 butelek)
A120: 120 | B120: TARCZYN NEKTAR GREJPFRUT 0,3L OPK15 | C120: Nektar czerwony grejpfrut TARCZYN, zgrzewka 15 butelek x 0,3 l | D120: 1 op. (15 butelek)
A121: 121 | B121: TARCZYN SOK JABŁKOWY 0,3L OPK15 | C121: Sok jabłkowy TARCZYN, 15 butelek x 0,3 l | D121: 1 op. (15 butelek)
A122: 122 | B122: TARCZYN SOK POMARAŃCZOWY 0,3L OPK15 | C122: Sok pomarańczowy TARCZYN, 15 butelek x 0,3 l | D122: 1 op. (15 butelek)
A123: 123 | B123: TARCZYN SOK POMIDOROWY 300ML OPK15 | C123: Sok pomidorowy TARCZYN, zgrzewka 15 butelek x 0,3 l | D123: 1 op. (15 butelek)
A124: 124 | B124: TYMBARK JABŁKO SOK 100% 300ML OPK12 | C124: Sok TYMBARK jabłko 100%, 12 butelek x 300 ml | D124: 1 op. (12 butelek)
A125: 125 | B125: TYMBARK POMARAŃCZ SOK 100% 300ML OPK12 | C125: Sok TYMBARK pomarańcza 100%, 12 butelek x 300 ml | D125: 1 op. (12 butelek)
A126: 126 | B126: TYMBARK VITAMINI BAN/MAR/JAB 300ML OPK12 | C126: Sok TYMBARK Vitamini banan, marchewka, jabłko, 12 butelek x 300 ml | D126: 1 op. (12 butelek)
A127: 127 | B127: CISOWIANKA LEKKOGAZOWANA WODA 0,5L OPK12 | C127: Woda mineralna CISOWIANKA lekko gazowana, zgrzewka 12 butelek x 0,5 l | D127: 1 op. (12 butelek)
A128: 128 | B128: CISOWIANKA PERLAGE GAZ SZKŁO 300ML OPK24 | C128: Woda mineralna CISOWIANKA Perlage gazowana, zgrzewka 24 butelki x 300 ml | D128: 1 op. (24 butelki)
A129: 129 | B129: CISOWIANKA WODA GAZOWANA 1,5L OPK6 | C129: Woda mineralna CISOWIANKA gazowana, zgrzewka 6 butelek x 1,5 l | D129: 1 op. (6 butelek)
A130: 130 | B130: CISOWIANKA WODA NIEGAZ SZKŁO 300ML OPK24 | C130: Woda mineralna CISOWIANKA niegazowana szklane butelki x 300 ml | D130: 1 op. (24 butelki)
A131: 131 | B131: CISOWIANKA WODA NIEGAZOWANA 0,5L OPK12 | C131: Woda mineralna CISOWIANKA niegazowana, zgrzewka 12 butelek x 0,5 l | D131: 1 op. (12 butelek)
A132: 132 | B132: CISOWIANKA WODA NIEGAZOWANA 1,5L OPK6 | C132: Woda mineralna CISOWIANKA niegazowana, zgrzewka 6 butelek x 1,5 l | D132: 1 op. (6 butelek)
A133: 133 | B133: CISOWIANKA WODA SPORT NIEGAZ 0,7L OPK8 | C133: Woda mineralna CISOWIANKA Sport niegazowana, zgrzewka 8 butelek x 0,7 l | D133: 1 op. (8 butelek)
A134: 134 | B134: KINGA PIENINSKA WODA GAZOWANA 0,5L OPK12 | C134: Woda mineralna KINGA PIENIŃSKA gazowana 0,5 l | D134: 1 op. (12 butelek)
A135: 135 | B135: KINGA PIENINSKA WODA NIEGAZOW 0,5L OPK12 | C135: Woda mineralna KINGA PIENIŃSKA niegazowana, zgrzewka 12 butelek x 0,5 l | D135: 1 op. (12 butelek)
A136: 136 | B136: KROPLA BESKIDU WODA GAZ 0,5L OPK12 | C136: Woda mineralna KROPLA BESKIDU gazowana, zgrzewka 12 butelek x 0,5 l | D136: 1 op. (12 butelek)
A137: 137 | B137: KROPLA BESKIDU WODA GAZ 1,5L OPK6 | C137: Woda mineralna KROPLA BESKIDU gazowana, zgrzewka 6 butelek x 1,5 l | D137: 1 op. (6 butelek)
A138: 138 | B138: KROPLA BESKIDU WODA NIEGAZ 0,5L OPK12 | C138: Woda mineralna KROPLA BESKIDU niegazowana, zgrzewka 12 butelek x 0,5 l | D138: 1 op. (12 butelek)
A139: 139 | B139: KROPLA BESKIDU WODA NIEGAZ 1,5L OPK6 | C139: Woda mineralna KROPLA BESKIDU niegazowana, zgrzewka 6 butelek x 1,5 l | D139: 1 op. (6 butelek)
A140: 140 | B140: NAŁĘCZOWIANKA WODA NIEGAZ 0,5L OPK12 | C140: Woda mineralna NAŁĘCZOWIANKA niegazowana, zgrzewka 12 butelek x 0,5 l | D140: 1 op. (12 butelek)
A141: 141 | B141: NAŁĘCZOWIANKA WODA NIEGAZ 1,5L OPK6 | C141: Woda mineralna NAŁĘCZOWIANKA niegazowana, zgrzewka 6 butelek x 1,5 l | D141: 1 op. (6 butelek)
A142: 142 | B142: NESTLE PURE LIFE WODA GAZ 1,5L OPK6 | C142: Woda źródlana NESTLÉ Pure Life gazowana, zgrzewka 6 butelek x 1,5 l | D142: 1 op. (6 butelek)
A143: 143 | B143: NESTLE PURE LIFE WODA NIEGAZ 0,5L OPK12 | C143: Woda źródlana NESTLÉ Pure Life niegazowana, zgrzewka 12 butelek x 0,5 l | D143: 1 op. (12 butelek)
A144: 144 | B144: NESTLE PURE LIFE WODA NIEGAZ 1,5L OPK6 | C144: Woda źródlana NESTLÉ Pure Life niegazowana, zgrzewka 6 butelek x 1,5 l | D144: 1 op. (6 butelek)
A145: 145 | B145: ŻYWIEC ZDRÓJ WODA GAZOWANA 0.5L OPK24 | C145: Woda źródlana ŻYWIOŁ od ŻYWIEC ZDRÓJ gazowana, 24 butelki x 0,5 l | D145: 1 op. (24 butelki)
A146: 146 | B146: ŻYWIEC ZDRÓJ WODA GAZOWANA 1,5L OPK6 | C146: Woda źródlana ŻYWIOŁ od ŻYWIEC ZDRÓJ gazowana, zgrzewka 6 butelek x 1,5 l | D146: 1 op. ( 6 butelek)
A147: 147 | B147: ŻYWIEC ZDRÓJ WODA NIEGAZOWANA 0.5L OPK24 | C147: Woda źródlana ŻYWIEC ZDRÓJ niegazowana, 24 butelki x 0,5 l | D147: 1 op. (24 butelki)
A148: 148 | B148: ŻYWIEC ZDRÓJ WODA NIEGAZOWANA 1,5L OPK6 | C148: Woda źródlana ŻYWIEC ZDRÓJ niegazowana, zgrzewka 6 butelek x 1,5 l | D148: 1 op. (6 butelek)

Sheet Załącznik 7 - F.O. Zad 6-10
C1: Oznaczenie sprawy: 1400/DW00/ZU/KZ/2021/0000074365
C3: ZAŁĄCZNIK NR 7 - FORMULARZ OFERTY DLA ZADAŃ: OD 6 DO 10
D6: (pieczęć wykonawcy)
C8: Ja, niżej podpisany (My niżej podpisani):
C11: działając w imieniu i na rzecz:
C14: Składam(y) ofertę na wykonanie zamówienia, którego przedmiotem jest:
C15: Dostawa artykułów biurowych, spożywczych i higienicznych dla spółek GK ENEA
C17: Oferujemy wykonanie zamówienia zgodnie z opisem przedmiotu zamówienia:
C19: ŁĄCZNA CENA NETTO OFERTY DLA ZADANIA 6 | D19: =IF(V55=TRUE,K55,"Wykonawca nie składa oferty") -> Wykonawca nie składa oferty
C20: CENA NETTO SŁOWNIE: | D20: =IF(V55=TRUE,zad1!E13,"") -> 
C22: ŁĄCZNA CENA NETTO OFERTY DLA ZADANIA 7 | D22: =IF(V56=TRUE,K56,"Wykonawca nie składa oferty") -> Wykonawca nie składa oferty
C23: CENA NETTO SŁOWNIE: | D23: =IF(V56=TRUE,zad2!E13,"") -> 
C25: ŁĄCZNA CENA NETTO OFERTY DLA ZADANIA 8 | D25: =IF(V57=TRUE,K57,"Wykonawca nie składa oferty") -> Wykonawca nie składa oferty
C26: CENA NETTO SŁOWNIE: | D26: =IF(V57=TRUE,zad3!E13,"") -> 
C28: ŁĄCZNA CENA NETTO OFERTY DLA ZADANIA 9 | D28: =IF(V58=TRUE,K58,"Wykonawca nie składa oferty") -> Wykonawca nie składa oferty
C29: CENA NETTO SŁOWNIE: | D29: =IF(V58=TRUE,zad4!E13,"") -> 
C31: ŁĄCZNA CENA NETTO OFERTY DLA ZADANIA 10 | D31: =IF(V59=TRUE,K59,"Wykonawca nie składa oferty") -> Wykonawca nie składa oferty
C32: CENA NETTO SŁOWNIE: | D32: =IF(V59=TRUE,zad5!E13,"") -> 
C41: INSTRUKCJA DLA WYKONAWCY: 1. Wykonawca wybiera w załączniku "FORMULARZ OFERTY DLA ZADAŃ: OD 6 DO 10" Zadania, na które składa ofertę (Zadania od 6 do 10) w kolumnie "J" a następnie (uruchamia makro ograniczające listę produktów) wciskając przycisk "Wykonaj". 2.Wykonawca w załączniku "FORMULARZ OFERTY DLA ZADAŃ: OD 6 DO 10" uzupełnia ceny jednostkowe netto oraz stawki vat dla wszystkich produktów (kolumna "F" i "G" Wiersze od 53). 3. Ceny jednostkowe netto wpisane w arkuszu "FORMULARZ OFERTY DLA ZADAŃ: OD 6 DO 10" zaciągają się do kolejnych arkuszy Zadań i wyliczają wartość oferty. 4. Cena netto Oferty dla danego Zadania (łącznie z cenami jednostkowymi netto) musi być podana w złotych polskich, z dokładnością do dwóch miejsc po przecinku poprzez zastosowanie w arkuszu kalkulacyjnym excel funkcji zaokrąglenia. tj. ZAOKR (=ZAOKR(A1;2), gdzie A1 oznacza liczbę). 5. Cena Oferty netto dla danego Zadania, w tym ceny jednostkowe netto, muszą być wyższe niż 0,00 PLN. Uwaga! Ponowne uruchomienie makra (przycisk Wykonaj), dostosowującego listę produktów wg wybranych Zadań, po wpisaniu cen spowoduje wykasowanie wcześniej wprowadzonych cen.
C42: Uwaga: na niebiesko zostały zaznaczone pola do uzupełnienia przez Wykonawców (załączniki: "FORMULARZ OFERTY DLA ZADAŃ: OD 6 DO 10" oraz Załączniki dla Zadania od 6 do 10).
C43: W celu złożenia oferty Wykonawca zobowiązany jest do uzupełnienia i podpisania arkusza: "FORMULARZ OFERTY DLA ZADAŃ: OD 6 DO 10" oraz uzupełnienia i podpisania załączników dla wszystkich Zadań, na które składa Ofertę, np. Wykonawca składając ofertę dla Zadania 6 i Zadania 10 powinien złożyć wypełniony i podpisany załącznik: "FORMULARZ OFERTY DLA ZADAŃ: OD 6 DO 10" (wypełniony zgodnie z powyższa instrukcją) oraz Załącznik nr 8 dla Zadanie 6 i Załącznik nr 12 dla Zadanie 10 (należy wypełnić tylko pola oznaczone na niebiesko).
B52: lp | C52: Opis | D52: Opis szczegółowy | E52: Jednostka | F52: Stawka VAT | G52: Cena jednostkowa netto
B53: 1 | C53: DIAMANT CUKIER BIAŁY KOSTKA 1KG | D53: Cukier biały DIAMANT w kostkach, 1 kg | E53: 1 op. ( 1 kg.) | J53: Wartość łączna oferty netto | K53: =SUM(K55:K61) -> 0
B54: 2 | C54: DIAMANT CUKIER BIAŁY W SASZET OPK100X5G | D54: Cukier biały DIAMANT, saszetki 100 sztuk x 5 g | E54: 1 op. (100 sztuk) | J54: Zaznacz zadanie/zadania na które składana jest oferta:
B55: 3 | C55: DIAMANT CUKIER DRY DEMERARA SYPKI 0,5KG | D55: Cukier trzcinowy DIAMANT Dry Demerara, sypki, 500 g | E55: 1 op. ( 500 g) | K55: =IF(V55=TRUE,'Załącznik 8-F.O. dla Zadania 6'!D19,0) -> 0 | V55: FALSE
B56: 4 | C56: DIAMANT CUKIER KRYSZTAŁ BIAŁY 1KG | D56: Cukier biały DIAMANT sypki, 1 kg | E56: 1 op.( 1 kg.) | K56: =IF(V56=TRUE,'Załącznik 9-F.O. dla Zadania 7'!D19,0) -> 0 | V56: FALSE
B57: 5 | C57: AHMAD HERBATA EARL GREY OPK100 | D57: Herbata czarna AHMAD Earl Grey, 100 torebek | E57: 1 op. (100 torobek) | K57: =IF(V57=TRUE,'Załącznik 10-F.O. dla Zadania 8'!D19,0) -> 0 | V57: FALSE
B58: 6 | C58: BIG-ACTIVE PURE CEYLON HERBATA OPK100 | D58: Herbata czarna BIG-ACTIVE Pure Ceylon, 100 torebek | E58: 1 op. (100 torobek) | K58: =IF(V58=TRUE,'Załącznik 11-F.O. dla Zadania 9'!D19,0) -> 0 | V58: FALSE
B59: 7 | C59: DILMAH CEYLON GOLD HERBATA 200G OPK100 | D59: Herbata czarna DILMAH Ceylon Gold, 100 torebek | E59: 1 op. (100 torobek) | K59: =IF(V59=TRUE,'Załącznik12-F.O. dla Zadania 10'!D19,0) -> 0 | V59: FALSE
B60: 8 | C60: DILMAH EARL GREY HERBATA LIŚCIASTA 125G | D60: Herbata czarna liściasta DILMAH Earl Grey, 125 g | E60: 1 op. ( 125 g)
B61: 9 | C61: HERBAPOL BREAKFAST HERB MIĘTOWA OPK20 | D61: Herbata miętowa HERBAPOL Breakfast, 20 kopert | E61: 1 op.( 20 torebek)
B62: 10 | C62: HERBAPOL HERBATA MALINOWA OPK20 | D62: Herbata owocowa HERBAPOL Herbaciany Ogród malinowa, 20 torebek | E62: 1 op.( 20 torebek)
B63: 11 | C63: HERBAPOL PROSTO Z LASU OPK20 | D63: Herbata owocowa HERBAPOL Herbaciany Ogród, Prosto z lasu, 20 torebek | E63: 1 op.( 20 torebek)
B64: 12 | C64: HERBAPOL ZIELONA HERBATA OPK20 | D64: Herbata zielona HERBAPOL, 20 torebek bez zawieszki | E64: 1 op.( 20 torebek)
B65: 13 | C65: Herbata zielona Lipton Piramidki | D65: Herbata zielona LIPTON 20 torebek piramidek | E65: 1 op.( 20 torebek)
B66: 14 | C66: IRVING BIAŁ POZIOMK/MANDAR HERBATA OPK20 | D66: Harbata biała IRVING poziomkowa z mandarynką, 20 kopert | E66: 1 op.( 20 torebek)
B67: 15 | C67: IRVING HERBATA CLASSIC OPK100 | D67: Herbata czarna IRVING Classic, 100 torebek | E67: 1 op.( 100 torebek)
B68: 16 | C68: LIPTON EARL GREY HERBATA OPK100 | D68: Herbata czarna LIPTON Earl Grey, 100 torebek | E68: 1 op. (100 torebek)
B69: 17 | C69: LIPTON MELISA/WIŚNIA HERBATAOPK20 | D69: Herbata ziołowa LIPTON Melisa z wiśnią, 20 torebek | E69: 1 op. (20 torebek)
B70: 18 | C70: LIPTON PYRAMID CYTRYNOWA Z MELISĄ OPK20 | D70: Herbata czarna LIPTON cytrynowa z melisą, 20 torebek piramidek | E70: 1 op. (20 torebek)
B71: 19 | C71: LIPTON PYRAMID FOREST FRUIT | D71: Herbata owocowa LIPTON owoce leśne, 20 torebek piramidek | E71: 1 op. (20 torebek)
B72: 20 | C72: LIPTON YELLOW LABEL HERBATA OPK100 | D72: Herbata czarna LIPTON Yellow Label, 100 torebek | E72: 1 op. (100 torebek)
B73: 21 | C73: LIPTON YELLOW LABEL HERBATA OPK50 | D73: Herbata czarna LIPTON Yellow Label, 50 torebek | E73: 1 op. (50 torebek)
B74: 22 | C74: LIPTON ZIELONA CITRUS HERBATA OPK25 | D74: Herbata zielona LIPTON cytrusowa, 25 torebek | E74: 1 op. (25 torebek)
B75: 23 | C75: LIPTON ZIELONA MIĘTOWA HERBATA OPK25 | D75: Herbata zielona LIPTON miętowa, 25 torebek | E75: 1 op. (25 torebek)
B76: 24 | C76: TEEKANNE BLACK CURRANT HERBATA OPK20 | D76: Herbata owocowa TEEKANNE World of Fruits, Black Currant, 20 kopert | E76: 1 op. (20 torebek)
B77: 25 | C77: TEEKANNE EARL GREY HERBATA OPK100 | D77: Herbata czarna TEEKANNE Earl Grey, 100 torebek | E77: 1 op. (100 torebek)
B78: 26 | C78: TEEKANNE WORLD OF FRUITS ZESTAW OPK30 | D78: Zestaw herbat owocowych TEEKANNE World of Fruits, 30 kopert | E78: 1 op. (30 torebek)
B79: 27 | C79: TEEKANNE ZIELON OPUNCJA HERBATA OPK20 | D79: Herbata zielona TEEKANNE z opuncją, 20 kopert | E79: 1 op. (20 torebek)
B80: 28 | C80: VITAX HERBATA MELISA I POMARAŃCZA OPK20 | D80: Herbata owocowa VITAX Inspirations melisa & pomarańcza, 20 torebek | E80: 1 op. (20 torebek)
B81: 29 | C81: VITAX HERBATA ZIOŁOWA MELISA OPK20 | D81: Herbata ziołowa VITAX melisa, 20 okrągłych torebek bez zawieszki | E81: 1 op. (20 torebek)
B82: 30 | C82: VITAX HERBATA ZIOŁOWA MIĘTA OPK20 | D82: Herbata ziołowa VITAX mięta, 20 okrągłych torebek bez zawieszki | E82: 1 op. (20 torebek)
B83: 31 | C83: VITAX HERBATA ŻURAWINA I MALINA OPK20 | D83: Herbata owocowa VITAX Inspirations żurawina & malina, 20 torebek | E83: 1 op. (20 torebek)
B84: 32 | C84: VITAX NAPAR RUMIANEK OPK20 | D84: Herbata ziołowa VITAX rumianek, 20 kwadratowych torebek bez zawieszki | E84: 1 op. (20 torebek)
B85: 33 | C85: ASTRA ŁAGODNA TRADYCYJNA KAWA MIEL 250 G | D85: Kawa ziarnista Astra Łagodna 250 g | E85: 1 op. (250 g)
B86: 34 | C86: ASTRA ŁAGODNA TRADYCYJNA KAWA ZIARN 1 KG | D86: Kawa ziarnista Astra Łagodna 1 kg | E86: 1 op. (1 kg)
B87: 35 | C87: DUNI KUBEK PAPIER BIAŁY 210ML OPK50 | D87: Kubek papierowy do gorących i zminych napojów 210 ml | E87: 1 op. (50 szt.)
B88: 36 | C88: EDUSCHO CAFFE CREMA KAWA ZIARNISTA 1KG | D88: Kawa ziarnista EDUSCHO Caffe Crema, 1 kg | E88: 1 op. ( 1 kg.)
B89: 37 | C89: ESPRESSO KARMELOWE OPK50 NNSA 8868 | D89: Kawa w kapsułkach NESPRESSO ESPRESSO CARAMEL, 50 szt. (box) | E89: 1 op. (50 szt.)
B90: 38 | C90: ESPRESSO WANILIOWE OPK50 NNSA 8869 | D90: Kawa w kapsułkach NESPRESSO ESPRESSO VANILLA, 50 szt. (box) | E90: 2 op. (50 szt.)
B91: 39 | C91: INKA KAWA ZBOŻOWA 200G | D91: Kawa zbożowa INKA, puszka 200 g | E91: 1 op.( 200 g.)
B92: 40 | C92: JACOBS BARISTA AMERICANO KAWA ROZPU 155G | D92: Kawa rozpuszczalna JACOBS Barista Americano 155 g | E92: 1 op. (słoik 155g)
B93: 41 | C93: JACOBS CRONAT GOLD KAWA MIELONA 500G | D93: Kawa mielona JACOBS Cronat Gold, 500 g | E93: 1 op. (500 g.)
B94: 42 | C94: JACOBS CRONAT GOLD KAWA ROZPUSZCZ 200G | D94: Kawa rozpuszczalna JACOBS Cronat Gold, 200 g | E94: 1 op.( 200 g.)
B95: 43 | C95: JACOBS GOLD CREMA KAWA ROZPUSZCZ 200G | D95: Kawa rozpuszczalna JACOBS Crema Gold, 200 g | E95: 1 op.( 200 g.)
B96: 44 | C96: JACOBS KRONUNG KAWA MIELONA 250G | D96: Kawa mielona JACOBS Kronung, 250 g | E96: 1 op. (250 g.)
B97: 45 | C97: JACOBS KRONUNG KAWA ROZPUSZCZALNA 200G | D97: Kawa rozpuszczalna JACOBS Kronung, 200 g | E97: 1 op.( 200 g.)
B98: 46 | C98: KUBEK PAPIEROWY 110ML OPK50 | D98: Kubek papierowy do gorących napojów 110 ml | E98: 1 op. (50 szt.)
B99: 47 | C99: KUBEK PAPIEROWY 360ML OPK35 | D99: Kubek papierowy do gorących napojów 360 ml | E99: 1 op. (35 szt.)
B100: 48 | C100: KUBEK PLASTIK 200ML BIAŁE OPK100 | D100: Kubek plastikowy do zimnych napojów 200 ml Biały | E100: 1 op. (100 szt.)
B101: 49 | C101: LAVAZZA CREMA AROMA KAWA ZIARNISTA 1KG | D101: Kawa ziarnista LAVAZZA Crema Aroma, 1 kg | E101: 1 op. (1 kg)
B102: 50 | C102: LAVAZZA PRONTOCREMA GRANDE AROMA ZIA 1KG | D102: Kawa ziarnista LAVAZZA Pronto crema Grande Aroma 1 kg | E102: 1 op. (1 kg)
B103: 51 | C103: LAVAZZA QUALITA ORO KAWA MIELONA 250G | D103: Kawa mielona LAVAZZA Qualita Oro, 250 g | E103: 1 op. (250 g)
B104: 52 | C104: LAVAZZA QUALITA ORO KAWA ZIARNISTA 1 KG | D104: Kawa ziarnista LAVAZZA Qualita Oro, 1 kg | E104: 1 op. (1 kg)
B105: 53 | C105: LAVAZZA QUALITA ROSSA KAWA ZIARNISTA 1KG | D105: Kawa ziarnista LAVAZZA Qualita Rossa, 1 kg | E105: 1 op. (1 kg)
B106: 54 | C106: NESCAFE SENSAZIONE CREME KAWA ROZP 200G | D106: Kawa rozpuszczalna NESCAFÉ Sensazione Creme, 200 g | E106: 1 op.( 200 g.)
B107: 55 | C107: TCHIBO EXCLUSIVE KAWA MIELONA 250G | D107: Kawa mielona TCHIBO Exclusive, 250 g | E107: 1 op. (250 g)
B108: 56 | C108: TCHIBO FAMILY KAWA MIELONA 250G | D108: Kawa mielona TCHIBO Family, 250 g | E108: 1 op. (250 g)
B109: 57 | C109: TCHIBO FAMILY KAWA ROZPUSZCZALNA 200G | D109: Kawa rozpuszczalna TCHIBO Family, 200 g | E109: 1 op. (200 g)
B110: 58 | C110: TCHIBO PROFESSIONAL CREMA ZIARNISTA 1KG | D110: Kawa ziarnista TCHIBO Profesional Crema 1 kg | E110: 1 op. (1 kg)
B111: 59 | C111: GOSTYŃ MLEKO SKONDENS NIESŁODZONE 500G | D111: Mleko zagęszczone GOSTYŃ 7,5% niesłodzone, 500 g | E111: 1 op. ( 1 karton 500 g)
B112: 60 | C112: ŁACIATA ŚMIETANKA UHT 12% 500ML | D112: Śmietanka do kawy ŁACIATA 12%, 500 ml | E112: 1 op. (500 ml)
B113: 61 | C113: ŁACIATA ŚMIETANKA W KUBECZKACH OPK10X10G | D113: Śmietanka do kawy ŁACIATA 10%, 10 kubeczków x 10 g | E113: 1 op. (10 kubeczków)
B114: 62 | C114: ŁACIATE MLEKO UHT 2% 0,5L | D114: Mleko ŁACIATE UHT 2,0%, 0,5 l | E114: 1 op. (500 ml)
B115: 63 | C115: ŁACIATE MLEKO UHT 2% 1L | D115: Mleko ŁACIATE UHT 2,0%, 1 l | E115: 1 op. (1 l)
B116: 64 | C116: ŁACIATE MLEKO UHT 3,2% 0,5L | D116: Mleko ŁACIATE UHT 3,2%, 0,5 l | E116: 1 op. (500 ml)
B117: 65 | C117: ŁACIATE MLEKO UHT 3,2% 1L | D117: Mleko ŁACIATE UHT 3,2%, 1 l | E117: 1 op. (1 l)
B118: 66 | C118: ŁACIATE MLEKO ZAGĘSZCZONE 7,5% 0,5L | D118: Mleko zagęszczone ŁACIATE UHT 7,5%, 0,5 l | E118: 1 op. (500 ml)
B119: 67 | C119: MLEKOVITA BEZ LAKTOZY UHT WYDOJONE 1,5% | D119: Mleko WYDOJONE UHT, bez laktozy 1,5%, 1 l | E119: 1 op. (1 l)
B120: 68 | C120: MLEKOVITA BEZ LAKTOZY UHT WYDOJONE 3,2% | D120: Mleko WYDOJONE UHT, bez laktozy, 3,2%, 1 l | E120: 1 op. (1 l)
B121: 69 | C121: ZAMBROWSKIE MLEKO UHT 3,2% 1L | D121: Mleko ZAMBROWSKIE UHT 3,2 %, 1 l | E121: 1 op. (1 l)
B122: 70 | C122: BAKALLAND BAKALIE STUDENCKI MIX 200G | D122: Cukierki Mieszanka bakaliowa BAKALLAND Studencki Mix, 200 g | E122: 1 op (200 g)
B123: 71 | C123: BAKALLAND MIGDAŁY 300G | D123: Migdały BAKALLAND, 300 g | E123: 1 op. (300 g)
B124: 72 | C124: BAKALLAND ORZECHY NERKOWCA 300G | D124: Orzechy nerkowca BAKALLAND, 300 g | E124: 1 op. (300 g)
B125: 73 | C125: BELVITA CIASTKA KAKAOWE 300G | D125: Ciastka BELVITA, kakaowe, 300 g, 24 ciasteczka | E125: 1 op. (300 g)
B126: 74 | C126: BELVITA CIASTKA MUSLI+OWOCE 300G | D126: Ciastka BELVITA Musli z owocami, 24 ciasteczka pakowane po 4 sztuki, 300 g | E126: 1 op. (300 g)
B127: 75 | C127: CISOWIANKA WODA GAZOWANA 0,5L OPK12 | D127: Woda mineralna CISOWIANKA gazowana, zgrzewka 12 butelek x 0,5 l | E127: 1 op. (12 butelek)
B128: 76 | C128: DELICJE SZAMPAŃSKIE MALINA 147G | D128: Ciastka DELICJE Szampańskie malinowe, 147 g | E128: 1 op. (147 g)
B129: 77 | C129: DELICJE SZAMPAŃSKIE POMARAŃCZA 147G | D129: Ciastka DELICJE Szampańskie pomarańczowe, 147 g | E129: 1 op. (147 g)
B130: 78 | C130: DELICJE SZAMPAŃSKIE WIŚNIA 147G | D130: Ciastka DELICJE Szampańskie wiśniowe, 147 g | E130: 1 op. (147 g)
B131: 79 | C131: DELICJE SZAMPAŃSKIE WIŚNIOWE 294G | D131: Ciastka DELICJE Szampańskie wiśniowe, podwójne opakowanie, 294 g | E131: 1 op. ( 294 g)
B132: 80 | C132: FERRERO RAFAELLO 230 G | D132: Praliny RAFFAELLO, 230 g | E132: 1 op.( 230 g.)
B133: 81 | C133: FERRERO RAFFAELLO PRALINY 230G | D133: Praliny RAFFAELLO, 230 g | E133: 2 op.( 230 g.)
B134: 82 | C134: Ferrero Rocher Praliny 200g | D134: Czekoladki FERRERO ROCHER, 200 g | E134: 3 op.( 200 g.)
B135: 83 | C135: GOPLANA TOFFINO CHOCO 1KG | D135: Cukierki Goplana Toffino Choco Toffi mleczne z kremem czekoladowym 1 kg | E135: 1 op. ( 1 kg.)
B136: 84 | C136: HIT MARKIZY CZEKOLADOWE 220G | D136: Ciastka BAHLSEN HIT czekoladowe, 220 g | E136: 1 op.( 220 g)
B137: 85 | C137: JUTRZENKA JEŻYKI CAFE CIASTKA 140G | D137: Ciasta JEŻYKI Cafe, 140 g | E137: 1 op. (140 g)
B138: 86 | C138: JUTRZENKA JEŻYKI CIASTKA 140G | D138: Ciasta JEŻYKI Classic, 140 g | E138: 1 op. (140 g)
B139: 87 | C139: JUTRZENKA WAFLE FAMILIJNE ŚMIET-KAK 180G | D139: Wafle FAMILIJNE śmietankowo-kakaowe, 180 g | E139: 1 op. (180 g)
B140: 88 | C140: ŁAKOTKI DESEROWE Z CUKREM 168G | D140: Ciastka SAN ŁAKOTKI deserowe z cukrem, 168 g | E140: 1 op. (168 g)
B141: 89 | C141: ŁAKOTKI KAKAOWE 168G | D141: Ciastka SAN ŁAKOTKI kakaowe, 168 g | E141: 1 op. (168 g)
B142: 90 | C142: ŁAKOTKI KOKOSOWE 168G | D142: Ciastka SAN ŁAKOTKI kokosowe, 168 g | E142: 1 op. (168 g)
B143: 91 | C143: MERCI CZEKOLADKI 400 G | D143: Czekoladki MERCI, 400 g | E143: 1 op.(400 g.)
B144: 92 | C144: MILKA CHOCO GRAINS CIASTKA 126 G | D144: Ciastka MILKA Chocograins, 126 g | E144: 1 op.(126 g.)
B145: 93 | C145: MILKA CHOCOWAFER CIASTKA 150G | D145: Wafle MILKA ChocoWafer, 150 g | E145: 1 op.(150g.)
B146: 94 | C146: MILKA MOMENTS CZEKOL MIX 11X97G | D146: Praliny MILKA Moments Mix, 11 czekoladek | E146: 1 op. (11 sztuk)
B147: 95 | C147: MILKA MOMENTS TOFF/ORZECH 11x97G | D147: Praliny MILKA Moments Toffee Wholenut, 11 czekoladek | E147: 1 op. (11 sztuk)
B148: 96 | C148: MILKA PIEGUSKI CZEKOLADA ORZECHY 135G | D148: Ciastka MILKA Pieguski, czekolada i orzechy, 135 g | E148: 1 op. (135 g)
B149: 97 | C149: MILKA SINGLES CZEKOLADKI 138G | D149: Czekoladki MILKA Singles, 32 czekoladki pakowane osobno | E149: 1 op. (32 szt.)
B150: 98 | C150: NESPRESSO CZEKOLADKI BLOND 200G | D150: Czekoladki NESPRESSO blond, 200 g | E150: 1 op ( 200 g.)
B151: 99 | C151: NESPRESSO CZEKOLADKI MILK 200G | D151: Czekoladki NESPRESSO mleczne, 200 g | E151: 1 op ( 200 g.)
B152: 100 | C152: PASTYLKI MIĘTOWEW CZEKOLADZIE WAWEL | D152: Cukierki Pastylka miętowa WAWEL, 1 kg | E152: 1 op. (1 kg)
B153: 101 | C153: SOLIDARNOŚĆ ŚLIWKA NALECZOWSKA 1KG | D153: CukierkiŚliwka Nałęczowska SOLIDARNOŚĆ, 1 kg | E153: 2 op. (1 kg)
B154: 102 | C154: TAGO CIASTECZKA KORZENNE 4,8G OPK125 | D154: Ciastka TAGO korzenne, 125 ciasteczek po 4,8 g | E154: 1 op. (125 szt.)
B155: 103 | C155: TAGO OWSIANE DE LUX CIASTECZKA 210G | D155: Ciastka TAGO Owsiane de Lux, 210 g | E155: 1 op. (210 g)
B156: 104 | C156: TAGO PRECLE MAŚLANE 158 G | D156: Francuskie precle z masłem TAGO, 158 g | E156: 1 op. ( 158 g)
B157: 105 | C157: WAWEL MICHAŁKI 1 KG | D157: Cukierki WAWEL Michałki Klasyczne 300 g | E157: 1 op. (300 g)
B158: 106 | C158: WAWEL MICHAŁKI CLASSIC 300G | D158: Cukierki WAWEL Michałki Klasyczne 300 g | E158: 1 op. (300 g)
B159: 107 | C159: WAWEL MIESZANKA KRAKOWSKA 1 KG | D159: Cukierki Mieszanka krakowska WAWEL, 1 kg | E159: 1 op. (1 kg)
B160: 108 | C160: WAWEL TRUFLE 1 KG | D160: Cukierki WAWEL Trufle | E160: 1 op. (1 kg)
B161: 109 | C161: WEDEL AMERYKANKI KLASYCZNE 125 G | D161: Ciastka AMERYKANKI, klasyczne, 126 g | E161: 1 op. (126 g)
B162: 110 | C162: WEDEL MIESZANKA CUKIERKI DISPLAY 3KG | D162: Cukierki MIESZANKA WEDLOWSKA Classic, 3 kg w formie dyspensera | E162: 1 op. (3 kg)
B163: 111 | C163: WEDEL PTASIE MLECZKO WANILIOWE 360G | D163: Ptasie mleczko WEDEL, waniliowe, 360 g | E163: 1 op.( 360 g.)
B164: 112 | C164: WEDEL WAFLE TORCIKOWE MINI ORZECHOWE 160 | D164: Wafle Torcikowe WEDEL MINI orzechowe, 160 g | E164: 1 op. ( 160 g)
B165: 113 | C165: BAKALLAND MIGDAŁY SOLONE 90G | D165: Migdały lekko solone BAKALLAND, 90 g | E165: 1 op. (90 g)
B166: 114 | C166: BAKALLAND ORZECHY LASKOWE 300G | D166: Orzechy laskowe BAKALLAND, 300 g | E166: 1 op. (300 g)
B167: 115 | C167: BAKALLAND ORZECHY NERKOWCA SOLONE 70G | D167: Orzechy nerkowca solone BAKALLAND, 70 g | E167: 1 op. (70 g)
B168: 116 | C168: BAKALLAND ORZECHY WŁOSKIE 300G | D168: Orzechy włoskie BAKALLAND, 300 g | E168: 1 op. (300 g)
B169: 117 | C169: LAJKONIK PALUSZKI 200G | D169: Paluszki LAJKONIK solone, 200 g | E169: 1 op. (200 g)
B170: 118 | C170: CAPPY NEKTAR MULTIWIT PET 0,33L OPK12 | D170: Nektar multiwitamina CAPPY, 12 butelek x 0,33 l | E170: 1 op. (12 butelek)
B171: 119 | C171: CAPPY SOK POMARAŃCZOWY PET 0,33L OPK12 | D171: Sok pomarańczowy CAPPY, 12 butelek x 0,33 l | E171: 1 op. (12 butelek)
B172: 120 | C172: CHAMPION SOK CYTRYNOWY OPK10X7,5G | D172: Zagęszczony sok cytrynowy CHAMPION, 10 kubeczków x 7,5 g | E172: 1 op. (10 kubeczków)
B173: 121 | C173: COCA-COLA BUTELKA PET 0,5L OPK18 | D173: Napój gazowany COCA-COLA, zgrzewka 18 butelek x 0,5 l | E173: 1 op. (18 butelek)
B174: 122 | C174: COCA-COLA PUSZKA 0,33L OPK24 | D174: Napój gazowany COCA-COLA, 24 puszki x 0,33 l | E174: 1 op. (24 puszki 0,33 l)
B175: 123 | C175: COCA-COLA ZERO BUTELKA PET 0,5L OPK12 | D175: Napój gazowany COCA-COLA Zero, 12 butelek x 0,5 l | E175: 1 op. (12 butelek)
B176: 124 | C176: FORTUNA NEKTAR CZ.PORZECZKA 0,3L OPK15 | D176: Nektar czarna porzeczka FORTUNA, 15 butelek x 0,3 l | E176: 1 op. (15 butelek)
B177: 125 | C177: FORTUNA SOK MULTIWITAMINA 0,3 L OPK15 | D177: Sok multiwitamina FORTUNA, 15 butelek x 0,3 l | E177: 1 op. (15 butelek)
B178: 126 | C178: FORTUNA SOK POMARAŃCZOWY 0,3L OPK15 | D178: Sok pomarańczowy FORTUNA, 15 butelek x 0,3 l | E178: 1 op. (15 butelek)
B179: 127 | C179: FORTUNA SOK POMIDOROWY 0,3L OPK15 | D179: Sok pomidorowy FORTUNA, 15 butelek x 0,3 l | E179: 1 op. (15 butelek)
B180: 128 | C180: TARCZYN NEKTAR CZ.PORZECZKA 0,3L OPK15 | D180: Nektar czarna porzeczka TARCZYN, 15 butelek x 0,3 l | E180: 1 op. (15 butelek)
B181: 129 | C181: TARCZYN NEKTAR GREJPFRUT 0,3L OPK15 | D181: Nektar czerwony grejpfrut TARCZYN, zgrzewka 15 butelek x 0,3 l | E181: 1 op. (15 butelek)
B182: 130 | C182: TARCZYN SOK JABŁKOWY 0,3L OPK15 | D182: Sok jabłkowy TARCZYN, 15 butelek x 0,3 l | E182: 1 op. (15 butelek)
B183: 131 | C183: TARCZYN SOK POMARAŃCZOWY 0,3L OPK15 | D183: Sok pomarańczowy TARCZYN, 15 butelek x 0,3 l | E183: 1 op. (15 butelek)
B184: 132 | C184: TARCZYN SOK POMIDOROWY 300ML OPK15 | D184: Sok pomidorowy TARCZYN, zgrzewka 15 butelek x 0,3 l | E184: 1 op. (15 butelek)
B185: 133 | C185: TYMBARK JABŁKO SOK 100% 300ML OPK12 | D185: Sok TYMBARK jabłko 100%, 12 butelek x 300 ml | E185: 1 op. (12 butelek)
B186: 134 | C186: TYMBARK POMARAŃCZ SOK 100% 300ML OPK12 | D186: Sok TYMBARK pomarańcza 100%, 12 butelek x 300 ml | E186: 1 op. (12 butelek)
B187: 135 | C187: TYMBARK POMIDOR SOK 100% 300ML OPK12 | D187: Sok TYMBARK pomidor 100%, 12 butelek x 300 ml | E187: 1 op. (12 butelek)
B188: 136 | C188: TYMBARK VITAMINI BAN/MAR/JAB 300ML OPK12 | D188: Sok TYMBARK Vitamini banan, marchewka, jabłko, 12 butelek x 300 ml | E188: 1 op. (12 butelek)
B189: 137 | C189: CISOWIANKA LEKKOGAZOWANA WODA 0,5L OPK12 | D189: Woda mineralna CISOWIANKA lekko gazowana, zgrzewka 12 butelek x 0,5 l | E189: 1 op. (12 butelek)
B190: 138 | C190: CISOWIANKA PERLAGE GAZ SZKŁO 300ML OPK24 | D190: Woda mineralna CISOWIANKA Perlage gazowana, zgrzewka 24 butelki x 300 ml | E190: 1 op. (24 butelki)
B191: 139 | C191: CISOWIANKA WODA GAZOWANA 1,5L OPK6 | D191: Woda mineralna CISOWIANKA gazowana, zgrzewka 6 butelek x 1,5 l | E191: 1 op. (6 butelek)
B192: 140 | C192: CISOWIANKA WODA NIEGAZ SZKŁO 300ML OPK24 | D192: Woda mineralna CISOWIANKA niegazowana szklane butelki x 300 ml | E192: 1 op. (24 butelki)
B193: 141 | C193: CISOWIANKA WODA NIEGAZOWANA 0,5L OPK12 | D193: Woda mineralna CISOWIANKA niegazowana, zgrzewka 12 butelek x 0,5 l | E193: 1 op. (12 butelek)
B194: 142 | C194: CISOWIANKA WODA NIEGAZOWANA 1,5L OPK6 | D194: Woda mineralna CISOWIANKA niegazowana, zgrzewka 6 butelek x 1,5 l | E194: 1 op. (6 butelek)
B195: 143 | C195: CISOWIANKA WODA SPORT NIEGAZ 0,7L OPK8 | D195: Woda mineralna CISOWIANKA Sport niegazowana, zgrzewka 8 butelek x 0,7 l | E195: 1 op. (8 butelek)
B196: 144 | C196: KINGA PIENINSKA WODA GAZOWANA 0,5L OPK12 | D196: Woda mineralna KINGA PIENIŃSKA gazowana 0,5 l | E196: 1 op. (12 butelek)
B197: 145 | C197: KINGA PIENINSKA WODA NIEGAZOW 0,5L OPK12 | D197: Woda mineralna KINGA PIENIŃSKA niegazowana, zgrzewka 12 butelek x 0,5 l | E197: 1 op. (12 butelek)
B198: 146 | C198: KROPLA BESKIDU WODA GAZ 0,5L OPK12 | D198: Woda mineralna KROPLA BESKIDU gazowana, zgrzewka 12 butelek x 0,5 l | E198: 1 op. (12 butelek)
B199: 147 | C199: KROPLA BESKIDU WODA GAZ 1,5L OPK6 | D199: Woda mineralna KROPLA BESKIDU gazowana, zgrzewka 6 butelek x 1,5 l | E199: 1 op. (6 butelek)
B200: 148 | C200: KROPLA BESKIDU WODA NIEGAZ 0,5L OPK12 | D200: Woda mineralna KROPLA BESKIDU niegazowana, zgrzewka 12 butelek x 0,5 l | E200: 1 op. (12 butelek)
B201: 149 | C201: KROPLA BESKIDU WODA NIEGAZ 1,5L OPK6 | D201: Woda mineralna KROPLA BESKIDU niegazowana, zgrzewka 6 butelek x 1,5 l | E201: 1 op. (6 butelek)
B202: 150 | C202: NAŁĘCZOWIANKA WODA NIEGAZ 0,5L OPK12 | D202: Woda mineralna NAŁĘCZOWIANKA niegazowana, zgrzewka 12 butelek x 0,5 l | E202: 1 op. (12 butelek)
B203: 151 | C203: NAŁĘCZOWIANKA WODA NIEGAZ 1,5L OPK6 | D203: Woda mineralna NAŁĘCZOWIANKA niegazowana, zgrzewka 6 butelek x 1,5 l | E203: 1 op. (6 butelek)
B204: 152 | C204: NESTLE PURE LIFE WODA GAZ 1,5L OPK6 | D204: Woda źródlana NESTLÉ Pure Life gazowana, zgrzewka 6 butelek x 1,5 l | E204: 1 op. (6 butelek)
B205: 153 | C205: NESTLE PURE LIFE WODA NIEGAZ 0,5L OPK12 | D205: Woda źródlana NESTLÉ Pure Life niegazowana, zgrzewka 12 butelek x 0,5 l | E205: 1 op. (12 butelek)
B206: 154 | C206: NESTLE PURE LIFE WODA NIEGAZ 1,5L OPK6 | D206: Woda źródlana NESTLÉ Pure Life niegazowana, zgrzewka 6 butelek x 1,5 l | E206: 1 op. (6 butelek)
B207: 155 | C207: ŻYWIEC ZDRÓJ WODA GAZOWANA 0.5L OPK24 | D207: Woda źródlana ŻYWIOŁ od ŻYWIEC ZDRÓJ gazowana, 24 butelki x 0,5 l | E207: 1 op. (24 butelki)
B208: 156 | C208: ŻYWIEC ZDRÓJ WODA GAZOWANA 1,5L OPK6 | D208: Woda źródlana ŻYWIOŁ od ŻYWIEC ZDRÓJ gazowana, zgrzewka 6 butelek x 1,5 l | E208: 1 op. ( 6 butelek)
B209: 157 | C209: ŻYWIEC ZDRÓJ WODA NIEGAZOWANA 0.5L OPK24 | D209: Woda źródlana ŻYWIEC ZDRÓJ niegazowana, 24 butelki x 0,5 l | E209: 1 op. (24 butelki)
B210: 158 | C210: ŻYWIEC ZDRÓJ WODA NIEGAZOWANA 1,5L OPK6 | D210: Woda źródlana ŻYWIEC ZDRÓJ niegazowana, zgrzewka 6 butelek x 1,5 l | E210: 1 op. (6 butelek)
B214: miejscowość i data | D214: Pieczęć imienna i podpis przedstawiciela(i) Wykonawcy

Sheet Załącznik 8-F.O. dla Zadania 6
B1: Oznaczenie sprawy: 1400/DW00/ZU/KZ/2021/0000074365
B3: ZAŁĄCZNIK NR 8 - FORMULARZ OFERTY DLA ZADANIA 6 - DOSTAWA ARTYKUŁÓW SPOŻYWCZYCH POZNAŃ+ WOJ. WIELKOPOLSKIE; BYDGOSZCZ+ WOJ. KUJAWSKO-POMORSKIE; CHOJNICE + WOJ. POMORSKIE.
C6: (pieczęć wykonawcy)
B8: Ja, niżej podpisany (My niżej podpisani):
B11: działając w imieniu i na rzecz:
B14: Składam(y) ofertę na wykonanie zamówienia, którego przedmiotem jest:
B15: Dostawa artykułów biurowych, spożywczych i higienicznych dla spółek GK ENEA
B17: ZADANIE 6 - Dostawa artykułów spożywczych Poznań+ woj. Wielkopolskie; Bydgoszcz+ woj. Kujawsko-Pomorskie; Chojnice + woj. Pomorskie
B19: ŁĄCZNA CENA NETTO OFERTY DLA ZADANIA 6: | D19: =SUM(H22:H179) -> 0
B21: LP | C21: Nazwa produktu | D21: Opis szczegółowy | E21: Jednostka | F21: cena jednostkowa netto | G21: Ilość | H21: Wartość | I21: ENEA Enea Centrum Sp. z o.o. - Szacowana ilość | J21: ŁĄCZNA CENA NETTO DLA ENEA Centrum Sp. z o.o. | K21: ENEA Logistyka sp. z o.o. - Szacowana ilość | L21: ŁĄCZNA CENA NETTO DLA ENEA Logistyka sp. z o.o. | M21: ENEA Nowa Eenergia Sp. z o.o. - Szacowana ilość | N21: ŁĄCZNA CENA NETTO DLA ENEA Nowa Eenegia Sp. z o.o. | O21: ENEA Operator Sp. z o.o. - Szacowana ilość | P21: ŁĄCZNA CENA NETTO DLA ENEA Operator Sp. z o.o. | Q21: ENEA oświetlenie Sp. z o.o. - Szacowana ilość | R21: ŁĄCZNA CENA NETTO DLA ENEA Oświetlenie Sp. z o.o. | S21: ENEA Pomiary Sp. z o.o. - Szacowana ilość | T21: ŁĄCZNA CENA NETTO DLA ENEA Pomiary Sp. z o.o. | U21: ENEA Serwis Sp. z o.o. - Szacowana ilość | V21: ŁĄCZNA CENA NETTO DLA ENEA Serwis Sp. z o.o. | W21: ENEA S.A. - Szacowana ilość | X21: ŁĄCZNA CENA NETTO DLA ENEA S.A. | Y21: ENEA Trading sp. z o.o. - Szacowana ilość | Z21: ŁĄCZNA CENA NETTO DLA ENEA Trading Sp. z o.o.
B22: 1 | C22: DIAMANT CUKIER BIAŁY KOSTKA 1KG | D22: Cukier biały DIAMANT w kostkach, 1 kg | E22: 1 op. ( 1 kg.) | F22: =IF('Załącznik 7 - F.O. Zad 6-10'!$V$55,VLOOKUP(C22,'Załącznik 7 - F.O. Zad 6-10'!$C$52:$G$210,5,0),0) -> 0 | G22: =I22+K22+M22+O22+Q22+S22+U22+W22+Y22 -> 71 | H22: =G22*F22 -> 0 | I22: 1 | J22: =I22*F22 -> 0 | K22: 5 | L22: =K22*F22 -> 0 | O22: 7 | P22: =O22*F22 -> 0 | S22: 40 | T22: =S22*F22 -> 0 | U22: 6 | V22: =U22*F22 -> 0 | W22: 2 | X22: =W22*F22 -> 0 | Y22: 10 | Z22: =Y22*H22 -> 0
B23: 2 | C23: DIAMANT CUKIER BIAŁY W SASZET OPK100X5G | D23: Cukier biały DIAMANT, saszetki 100 sztuk x 5 g | E23: 1 op. (100 sztuk) | F23: =IF('Załącznik 7 - F.O. Zad 6-10'!$V$55,VLOOKUP(C23,'Załącznik 7 - F.O. Zad 6-10'!$C$52:$G$210,5,0),0) -> 0 | G23: =I23+K23+M23+O23+Q23+S23+U23+W23+Y23 -> 79 | H23: =G23*F23 -> 0 | I23: 13 | J23: =I23*F23 -> 0 | K23: 4 | L23: =K23*F23 -> 0 | O23: 19 | P23: =O23*F23 -> 0 | Q23: 20 | R23: =Q23*F23 -> 0 | S23: 7 | T23: =S23*F23 -> 0 | U23: 6 | V23: =U23*F23 -> 0 | Y23: 10 | Z23: =Y23*H23 -> 0
B24: 3 | C24: DIAMANT CUKIER DRY DEMERARA SYPKI 0,5KG | D24: Cukier trzcinowy DIAMANT Dry Demerara, sypki, 500 g | E24: 1 op. ( 500 g) | F24: =IF('Załącznik 7 - F.O. Zad 6-10'!$V$55,VLOOKUP(C24,'Załącznik 7 - F.O. Zad 6-10'!$C$52:$G$210,5,0),0) -> 0 | G24: 132 | H24: 0 | I24: 3 | J24: 0 | K24: 1 | L24: 0 | O24: 27 | P24: 0 | S24: 93 | T24: 0 | U24: 6 | V24: =U24*F24 -> 0 | W24: 2 | X24: =W24*F24 -> 0
B25: 4 | C25: DIAMANT CUKIER KRYSZTAŁ BIAŁY 1KG | D25: Cukier biały DIAMANT sypki, 1 kg | E25: 1 op.( 1 kg.) | F25: =IF('Załącznik 7 - F.O. Zad 6-10'!$V$55,VLOOKUP(C25,'Załącznik 7 - F.O. Zad 6-10'!$C$52:$G$210,5,0),0) -> 0 | G25: 503 | H25: 0 | I25: 240 | J25: 0 | K25: 15 | L25: 0 | M25: 10 | N25: =M25*F25 -> 0 | O25: 34 | P25: 0 | Q25: 12 | R25: 0 | S25: 166 | T25: 0 | U25: 6 | V25: 0 | Y25: 20 | Z25: =Y25*H25 -> 0
B26: 5 | C26: AHMAD HERBATA EARL GREY OPK100 | D26: Herbata czarna AHMAD Earl Grey, 100 torebek | E26: 1 op. (100 torobek) | F26: =IF('Załącznik 7 - F.O. Zad 6-10'!$V$55,VLOOKUP(C26,'Załącznik 7 - F.O. Zad 6-10'!$C$52:$G$210,5,0),0) -> 0 | G26: 34 | H26: 0 | I26: 10 | J26: 0 | M26: 2 | N26: 0 | O26: 4 | P26: 0 | Q26: 6 | R26: 0 | S26: 6 | T26: 0 | U26: 6 | V26: 0
B27: 6 | C27: BIG-ACTIVE PURE CEYLON HERBATA OPK100 | D27: Herbata czarna BIG-ACTIVE Pure Ceylon, 100 torebek | E27: 1 op. (100 torobek) | F27: =IF('Załącznik 7 - F.O. Zad 6-10'!$V$55,VLOOKUP(C27,'Załącznik 7 - F.O. Zad 6-10'!$C$52:$G$210,5,0),0) -> 0 | G27: 28 | H27: 0 | I27: 10 | J27: 0 | K27: 1 | L27: 0 | M27: 2 | N27: 0 | O27: 7 | P27: 0 | U27: 6 | V27: 0 | W27: 2 | X27: 0
B28: 7 | C28: DILMAH CEYLON GOLD HERBATA 200G OPK100 | D28: Herbata czarna DILMAH Ceylon Gold, 100 torebek | E28: 1 op. (100 torobek) | F28: =IF('Załącznik 7 - F.O. Zad 6-10'!$V$55,VLOOKUP(C28,'Załącznik 7 - F.O. Zad 6-10'!$C$52:$G$210,5,0),0) -> 0 | G28: 140 | H28: 0 | I28: 5 | J28: 0 | K28: 101 | L28: 0 | O28: 6 | P28: 0 | Q28: 6 | R28: 0 | S28: 6 | T28: 0 | U28: 6 | V28: 0 | W28: 10 | X28: 0
B29: 8 | C29: DILMAH EARL GREY HERBATA LIŚCIASTA 125G | D29: Herbata czarna liściasta DILMAH Earl Grey, 125 g | E29: 1 op. ( 125 g) | F29: =IF('Załącznik 7 - F.O. Zad 6-10'!$V$55,VLOOKUP(C29,'Załącznik 7 - F.O. Zad 6-10'!$C$52:$G$210,5,0),0) -> 0 | G29: 18 | H29: 0 | I29: 3 | J29: 0 | K29: 2 | L29: 0 | O29: 7 | P29: 0 | U29: 6 | V29: 0
B30: 9 | C30: HERBAPOL BREAKFAST HERB MIĘTOWA OPK20 | D30: Herbata miętowa HERBAPOL Breakfast, 20 kopert | E30: 1 op.( 20 torebek) | F30: =IF('Załącznik 7 - F.O. Zad 6-10'!$V$55,VLOOKUP(C30,'Załącznik 7 - F.O. Zad 6-10'!$C$52:$G$210,5,0),0) -> 0 | G30: 24 | H30: 0 | I30: 5 | J30: 0 | K30: 2 | L30: 0 | O30: 7 | P30: 0 | U30: 6 | V30: 0 | W30: 4 | X30: 0
B31: 10 | C31: HERBAPOL HERBATA MALINOWA OPK20 | D31: Herbata owocowa HERBAPOL Herbaciany Ogród malinowa, 20 torebek | E31: 1 op.( 20 torebek) | F31: =IF('Załącznik 7 - F.O. Zad 6-10'!$V$55,VLOOKUP(C31,'Załącznik 7 - F.O. Zad 6-10'!$C$52:$G$210,5,0),0) -> 0 | G31: 71 | H31: 0 | I31: 15 | J31: 0 | K31: 4 | L31: 0 | M31: 2 | N31: 0 | O31: 23 | P31: 0 | Q31: 4 | R31: 0 | S31: 13 | T31: 0 | U31: 6 | V31: 0 | W31: 4 | X31: 0
B32: 11 | C32: HERBAPOL PROSTO Z LASU OPK20 | D32: Herbata owocowa HERBAPOL Herbaciany Ogród, Prosto z lasu, 20 torebek | E32: 1 op.( 20 torebek) | F32: =IF('Załącznik 7 - F.O. Zad 6-10'!$V$55,VLOOKUP(C32,'Załącznik 7 - F.O. Zad 6-10'!$C$52:$G$210,5,0),0) -> 0 | G32: 23 | H32: 0 | I32: 4 | J32: 0 | O32: 7 | P32: 0 | Q32: 2 | R32: 0 | U32: 6 | V32: 0 | W32: 4 | X32: 0
B33: 12 | C33: HERBAPOL ZIELONA HERBATA OPK20 | D33: Herbata zielona HERBAPOL, 20 torebek bez zawieszki | E33: 1 op.( 20 torebek) | F33: =IF('Załącznik 7 - F.O. Zad 6-10'!$V$55,VLOOKUP(C33,'Załącznik 7 - F.O. Zad 6-10'!$C$52:$G$210,5,0),0) -> 0 | G33: 203 | H33: 0 | I33: 35 | J33: 0 | K33: 1 | L33: 0 | O33: 12 | P33: 0 | Q33: 9 | R33: 0 | S33: 136 | T33: 0 | U33: 6 | V33: 0 | W33: 4 | X33: 0
B34: 13 | C34: Herbata zielona Lipton Piramidki | D34: Herbata zielona LIPTON 20 torebek piramidek | E34: 1 op.( 20 torebek) | F34: =IF('Załącznik 7 - F.O. Zad 6-10'!$V$55,VLOOKUP(C34,'Załącznik 7 - F.O. Zad 6-10'!$C$52:$G$210,5,0),0) -> 0 | G34: 26 | H34: 0 | I34: 6 | J34: 0 | M34: 3 | N34: 0 | O34: 7 | P34: 0 | U34: 6 | V34: 0 | W34: 4 | X34: 0
B35: 14 | C35: IRVING BIAŁ POZIOMK/MANDAR HERBATA OPK20 | D35: Harbata biała IRVING poziomkowa z mandarynką, 20 kopert | E35: 1 op.( 20 torebek) | F35: =IF('Załącznik 7 - F.O. Zad 6-10'!$V$55,VLOOKUP(C35,'Załącznik 7 - F.O. Zad 6-10'!$C$52:$G$210,5,0),0) -> 0 | G35: 20 | H35: 0 | I35: 5 | J35: 0 | M35: 2 | N35: 0 | O35: 7 | P35: 0 | U35: 6 | V35: 0
B36: 15 | C36: IRVING HERBATA CLASSIC OPK100 | D36: Herbata czarna IRVING Classic, 100 torebek | E36: 1 op.( 100 torebek) | F36: =IF('Załącznik 7 - F.O. Zad 6-10'!$V$55,VLOOKUP(C36,'Załącznik 7 - F.O. Zad 6-10'!$C$52:$G$210,5,0),0) -> 0 | G36: 175 | H36: 0 | I36: 10 | J36: 0 | O36: 2 | P36: 0 | Q36: 151 | R36: 0 | S36: 6 | T36: 0 | U36: 6 | V36: 0
B37: 16 | C37: LIPTON EARL GREY HERBATA OPK100 | D37: Herbata czarna LIPTON Earl Grey, 100 torebek | E37: 1 op. (100 torebek) | F37: =IF('Załącznik 7 - F.O. Zad 6-10'!$V$55,VLOOKUP(C37,'Załącznik 7 - F.O. Zad 6-10'!$C$52:$G$210,5,0),0) -> 0 | G37: 495 | H37: 0 | I37: 125 | J37: 0 | K37: 10 | L37: 0 | O37: 10 | P37: 0 | Q37: 71 | R37: 0 | S37: 253 | T37: 0 | U37: 6 | V37: 0 | Y37: 20 | Z37: 0
B38: 17 | C38: LIPTON MELISA/WIŚNIA HERBATAOPK20 | D38: Herbata ziołowa LIPTON Melisa z wiśnią, 20 torebek | E38: 1 op. (20 torebek) | F38: =IF('Załącznik 7 - F.O. Zad 6-10'!$V$55,VLOOKUP(C38,'Załącznik 7 - F.O. Zad 6-10'!$C$52:$G$210,5,0),0) -> 0 | G38: 49 | H38: 0 | I38: 10 | J38: 0 | O38: 7 | P38: 0 | U38: 6 | V38: 0 | W38: 6 | X38: 0 | Y38: 20 | Z38: 0
B39: 18 | C39: LIPTON PYRAMID CYTRYNOWA Z MELISĄ OPK20 | D39: Herbata czarna LIPTON cytrynowa z melisą, 20 torebek piramidek | E39: 1 op. (20 torebek) | F39: =IF('Załącznik 7 - F.O. Zad 6-10'!$V$55,VLOOKUP(C39,'Załącznik 7 - F.O. Zad 6-10'!$C$52:$G$210,5,0),0) -> 0 | G39: 52 | H39: 0 | I39: 10 | J39: 0 | O39: 11 | P39: 0 | Q39: 3 | R39: 0 | U39: 6 | V39: 0 | W39: 2 | X39: 0 | Y39: 20 | Z39: 0
B40: 19 | C40: LIPTON PYRAMID FOREST FRUIT | D40: Herbata owocowa LIPTON owoce leśne, 20 torebek piramidek | E40: 1 op. (20 torebek) | F40: =IF('Załącznik 7 - F.O. Zad 6-10'!$V$55,VLOOKUP(C40,'Załącznik 7 - F.O. Zad 6-10'!$C$52:$G$210,5,0),0) -> 0 | G40: 51 | H40: 0 | I40: 10 | J40: 0 | O40: 7 | P40: 0 | U40: 8 | V40: 0 | W40: 6 | X40: 0 | Y40: 20 | Z40: 0
B41: 20 | C41: LIPTON YELLOW LABEL HERBATA OPK100 | D41: Herbata czarna LIPTON Yellow Label, 100 torebek | E41: 1 op. (100 torebek) | F41: =IF('Załącznik 7 - F.O. Zad 6-10'!$V$55,VLOOKUP(C41,'Załącznik 7 - F.O. Zad 6-10'!$C$52:$G$210,5,0),0) -> 0 | G41: 997 | H41: 0 | I41: 85 | J41: 0 | K41: 218 | L41: 0 | M41: 5 | N41: 0 | O41: 26 | P41: 0 | S41: 633 | T41: 0 | U41: 6 | V41: 0 | W41: 4 | X41: 0 | Y41: 20 | Z41: 0
B42: 21 | C42: LIPTON YELLOW LABEL HERBATA OPK50 | D42: Herbata czarna LIPTON Yellow Label, 50 torebek | E42: 1 op. (50 torebek) | F42: =IF('Załącznik 7 - F.O. Zad 6-10'!$V$55,VLOOKUP(C42,'Załącznik 7 - F.O. Zad 6-10'!$C$52:$G$210,5,0),0) -> 0 | G42: 42 | H42: 0 | I42: 10 | J42: 0 | O42: 26 | P42: 0 | U42: 6 | V42: 0
B43: 22 | C43: LIPTON ZIELONA CITRUS HERBATA OPK25 | D43: Herbata zielona LIPTON cytrusowa, 25 torebek | E43: 1 op. (25 torebek) | F43: =IF('Załącznik 7 - F.O. Zad 6-10'!$V$55,VLOOKUP(C43,'Załącznik 7 - F.O. Zad 6-10'!$C$52:$G$210,5,0),0) -> 0 | G43: 71 | H43: 0 | I43: 9 | J43: 0 | O43: 23 | P43: 0 | Q43: 3 | R43: 0 | S43: 6 | T43: 0 | U43: 6 | V43: 0 | W43: 4 | X43: 0 | Y43: 20 | Z43: 0
B44: 23 | C44: LIPTON ZIELONA MIĘTOWA HERBATA OPK25 | D44: Herbata zielona LIPTON miętowa, 25 torebek | E44: 1 op. (25 torebek) | F44: =IF('Załącznik 7 - F.O. Zad 6-10'!$V$55,VLOOKUP(C44,'Załącznik 7 - F.O. Zad 6-10'!$C$52:$G$210,5,0),0) -> 0 | G44: 66 | H44: 0 | I44: 5 | J44: 0 | K44: 2 | L44: 0 | O44: 24 | P44: 0 | S44: 6 | T44: 0 | U44: 6 | V44: 0 | W44: 3 | X44: 0 | Y44: 20 | Z44: 0
B45: 24 | C45: TEEKANNE BLACK CURRANT HERBATA OPK20 | D45: Herbata owocowa TEEKANNE World of Fruits, Black Currant, 20 kopert | E45: 1 op. (20 torebek) | F45: =IF('Załącznik 7 - F.O. Zad 6-10'!$V$55,VLOOKUP(C45,'Załącznik 7 - F.O. Zad 6-10'!$C$52:$G$210,5,0),0) -> 0 | G45: 38 | H45: 0 | I45: 2 | J45: 0 | K45: 3 | L45: 0 | O45: 7 | P45: 0 | U45: 6 | V45: 0 | Y45: 20 | Z45: 0
B46: 25 | C46: TEEKANNE EARL GREY HERBATA OPK100 | D46: Herbata czarna TEEKANNE Earl Grey, 100 torebek | E46: 1 op. (100 torebek) | F46: =IF('Załącznik 7 - F.O. Zad 6-10'!$V$55,VLOOKUP(C46,'Załącznik 7 - F.O. Zad 6-10'!$C$52:$G$210,5,0),0) -> 0 | G46: 320 | H46: 0 | I46: 5 | J46: 0 | K46: 122 | L46: 0 | O46: 10 | P46: 0 | Q46: 151 | R46: 0 | S46: 6 | T46: 0 | U46: 6 | V46: 0 | Y46: 20 | Z46: 0
B47: 26 | C47: TEEKANNE WORLD OF FRUITS ZESTAW OPK30 | D47: Zestaw herbat owocowych TEEKANNE World of Fruits, 30 kopert | E47: 1 op. (30 torebek) | F47: =IF('Załącznik 7 - F.O. Zad 6-10'!$V$55,VLOOKUP(C47,'Załącznik 7 - F.O. Zad 6-10'!$C$52:$G$210,5,0),0) -> 0 | G47: 50 | H47: 0 | I47: 2 | J47: 0 | M47: 2 | N47: 0 | O47: 10 | P47: 0 | Q47: 10 | R47: 0 | U47: 6 | V47: 0 | Y47: 20 | Z47: 0
B48: 27 | C48: TEEKANNE ZIELON OPUNCJA HERBATA OPK20 | D48: Herbata zielona TEEKANNE z opuncją, 20 kopert | E48: 1 op. (20 torebek) | F48: =IF('Załącznik 7 - F.O. Zad 6-10'!$V$55,VLOOKUP(C48,'Załącznik 7 - F.O. Zad 6-10'!$C$52:$G$210,5,0),0) -> 0 | G48: 82 | H48: 0 | I48: 5 | J48: 0 | O48: 28 | P48: 0 | S48: 13 | T48: 0 | U48: 6 | V48: 0 | Y48: 30 | Z48: 0
B49: 28 | C49: VITAX HERBATA MELISA I POMARAŃCZA OPK20 | D49: Herbata owocowa VITAX Inspirations melisa & pomarańcza, 20 torebek | E49: 1 op. (20 torebek) | F49: =IF('Załącznik 7 - F.O. Zad 6-10'!$V$55,VLOOKUP(C49,'Załącznik 7 - F.O. Zad 6-10'!$C$52:$G$210,5,0),0) -> 0 | G49: 89 | H49: 0 | I49: 45 | J49: 0 | O49: 20 | P49: 0 | Q49: 2 | R49: 0 | S49: 6 | T49: 0 | U49: 6 | V49: 0 | Y49: 10 | Z49: 0
B50: 29 | C50: VITAX HERBATA ZIOŁOWA MELISA OPK20 | D50: Herbata ziołowa VITAX melisa, 20 okrągłych torebek bez zawieszki | E50: 1 op. (20 torebek) | F50: =IF('Załącznik 7 - F.O. Zad 6-10'!$V$55,VLOOKUP(C50,'Załącznik 7 - F.O. Zad 6-10'!$C$52:$G$210,5,0),0) -> 0 | G50: 43 | H50: 0 | I50: 4 | J50: 0 | O50: 3 | P50: 0 | Q50: 10 | R50: 0 | S50: 6 | T50: 0 | U50: 6 | V50: 0 | W50: 4 | X50: 0 | Y50: 10 | Z50: 0
B51: 30 | C51: VITAX HERBATA ZIOŁOWA MIĘTA OPK20 | D51: Herbata ziołowa VITAX mięta, 20 okrągłych torebek bez zawieszki | E51: 1 op. (20 torebek) | F51: =IF('Załącznik 7 - F.O. Zad 6-10'!$V$55,VLOOKUP(C51,'Załącznik 7 - F.O. Zad 6-10'!$C$52:$G$210,5,0),0) -> 0 | G51: 135 | H51: 0 | I51: 50 | J51: 0 | K51: 4 | L51: 0 | O51: 12 | P51: 0 | Q51: 10 | R51: 0 | S51: 33 | T51: 0 | U51: 6 | V51: 0 | Y51: 20 | Z51: 0
B52: 31 | C52: VITAX HERBATA ŻURAWINA I MALINA OPK20 | D52: Herbata owocowa VITAX Inspirations żurawina & malina, 20 torebek | E52: 1 op. (20 torebek) | F52: =IF('Załącznik 7 - F.O. Zad 6-10'!$V$55,VLOOKUP(C52,'Załącznik 7 - F.O. Zad 6-10'!$C$52:$G$210,5,0),0) -> 0 | G52: 82 | H52: 0 | I52: 6 | J52: 0 | K52: 7 | L52: 0 | O52: 24 | P52: 0 | Q52: 9 | R52: 0 | S52: 6 | T52: 0 | U52: 6 | V52: 0 | W52: 4 | X52: 0 | Y52: 20 | Z52: 0
B53: 32 | C53: VITAX NAPAR RUMIANEK OPK20 | D53: Herbata ziołowa VITAX rumianek, 20 kwadratowych torebek bez zawieszki | E53: 1 op. (20 torebek) | F53: =IF('Załącznik 7 - F.O. Zad 6-10'!$V$55,VLOOKUP(C53,'Załącznik 7 - F.O. Zad 6-10'!$C$52:$G$210,5,0),0) -> 0 | G53: 28 | H53: 0 | I53: 2 | J53: 0 | O53: 5 | P53: 0 | U53: 6 | V53: 0 | Y53: 15 | Z53: 0
B54: 33 | C54: ASTRA ŁAGODNA TRADYCYJNA KAWA MIEL 250 G | D54: Kawa ziarnista Astra Łagodna 250 g | E54: 1 op. (250 g) | F54: =IF('Załącznik 7 - F.O. Zad 6-10'!$V$55,VLOOKUP(C54,'Załącznik 7 - F.O. Zad 6-10'!$C$52:$G$210,5,0),0) -> 0 | G54: 28 | H54: 0 | O54: 22 | P54: 0 | U54: 6 | V54: 0
B55: 34 | C55: ASTRA ŁAGODNA TRADYCYJNA KAWA ZIARN 1 KG | D55: Kawa ziarnista Astra Łagodna 1 kg | E55: 1 op. (1 kg) | F55: =IF('Załącznik 7 - F.O. Zad 6-10'!$V$55,VLOOKUP(C55,'Załącznik 7 - F.O. Zad 6-10'!$C$52:$G$210,5,0),0) -> 0 | G55: 84 | H55: 0 | I55: 10 | J55: 0 | K55: 29 | L55: 0 | O55: 39 | P55: 0 | U55: 6 | V55: 0
B56: 35 | C56: DUNI KUBEK PAPIER BIAŁY 210ML OPK50 | D56: Kubek papierowy do gorących i zminych napojów 210 ml | E56: 1 op. (50 szt.) | F56: =IF('Załącznik 7 - F.O. Zad 6-10'!$V$55,VLOOKUP(C56,'Załącznik 7 - F.O. Zad 6-10'!$C$52:$G$210,5,0),0) -> 0 | G56: 14 | H56: 0 | I56: 1 | J56: 0 | O56: 7 | P56: 0 | U56: 6 | V56: 0
B57: 36 | C57: EDUSCHO CAFFE CREMA KAWA ZIARNISTA 1KG | D57: Kawa ziarnista EDUSCHO Caffe Crema, 1 kg | E57: 1 op. ( 1 kg.) | F57: =IF('Załącznik 7 - F.O. Zad 6-10'!$V$55,VLOOKUP(C57,'Załącznik 7 - F.O. Zad 6-10'!$C$52:$G$210,5,0),0) -> 0 | G57: 320 | H57: 0 | I57: 10 | J57: 0 | K57: 32 | L57: 0 | O57: 27 | P57: 0 | Q57: 15 | R57: 0 | S57: 200 | T57: 0 | U57: 6 | V57: 0 | Y57: 30 | Z57: 0
B58: 37 | C58: ESPRESSO KARMELOWE OPK50 NNSA 8868 | D58: Kawa w kapsułkach NESPRESSO ESPRESSO CARAMEL, 50 szt. (box) | E58: 1 op. (50 szt.) | F58: =IF('Załącznik 7 - F.O. Zad 6-10'!$V$55,VLOOKUP(C58,'Załącznik 7 - F.O. Zad 6-10'!$C$52:$G$210,5,0),0) -> 0 | G58: 13 | H58: 0 | O58: 7 | P58: 0 | U58: 6 | V58: 0
B59: 38 | C59: ESPRESSO WANILIOWE OPK50 NNSA 8869 | D59: Kawa w kapsułkach NESPRESSO ESPRESSO VANILLA, 50 szt. (box) | E59: 2 op. (50 szt.) | F59: =IF('Załącznik 7 - F.O. Zad 6-10'!$V$55,VLOOKUP(C59,'Załącznik 7 - F.O. Zad 6-10'!$C$52:$G$210,5,0),0) -> 0 | G59: 13 | H59: 0 | O59: 7 | P59: 0 | U59: 6 | V59: 0
B60: 39 | C60: INKA KAWA ZBOŻOWA 200G | D60: Kawa zbożowa INKA, puszka 200 g | E60: 1 op.( 200 g.) | F60: =IF('Załącznik 7 - F.O. Zad 6-10'!$V$55,VLOOKUP(C60,'Załącznik 7 - F.O. Zad 6-10'!$C$52:$G$210,5,0),0) -> 0 | G60: 36 | H60: 0 | I60: 23 | J60: 0 | K60: 3 | L60: 0 | O60: 4 | P60: 0 | U60: 6 | V60: 0
B61: 40 | C61: JACOBS BARISTA AMERICANO KAWA ROZPU 155G | D61: Kawa rozpuszczalna JACOBS Barista Americano 155 g | E61: 1 op. (słoik 155g) | F61: =IF('Załącznik 7 - F.O. Zad 6-10'!$V$55,VLOOKUP(C61,'Załącznik 7 - F.O. Zad 6-10'!$C$52:$G$210,5,0),0) -> 0 | G61: 15 | H61: 0 | I61: 2 | J61: 0 | O61: 7 | P61: 0 | U61: 6 | V61: 0
B62: 41 | C62: JACOBS CRONAT GOLD KAWA MIELONA 500G | D62: Kawa mielona JACOBS Cronat Gold, 500 g | E62: 1 op. (500 g.) | F62: =IF('Załącznik 7 - F.O. Zad 6-10'!$V$55,VLOOKUP(C62,'Załącznik 7 - F.O. Zad 6-10'!$C$52:$G$210,5,0),0) -> 0 | G62: 40 | H62: 0 | I62: 5 | J62: 0 | K62: 10 | L62: 0 | O62: 15 | P62: 0 | U62: 6 | V62: 0 | W62: 4 | X62: 0
B63: 42 | C63: JACOBS CRONAT GOLD KAWA ROZPUSZCZ 200G | D63: Kawa rozpuszczalna JACOBS Cronat Gold, 200 g | E63: 1 op.( 200 g.) | F63: =IF('Załącznik 7 - F.O. Zad 6-10'!$V$55,VLOOKUP(C63,'Załącznik 7 - F.O. Zad 6-10'!$C$52:$G$210,5,0),0) -> 0 | G63: 168 | H63: 0 | I63: 20 | J63: 0 | K63: 6 | L63: 0 | O63: 3 | P63: 0 | S63: 133 | T63: 0 | U63: 6 | V63: 0
B64: 43 | C64: JACOBS GOLD CREMA KAWA ROZPUSZCZ 200G | D64: Kawa rozpuszczalna JACOBS Crema Gold, 200 g | E64: 1 op.( 200 g.) | F64: =IF('Załącznik 7 - F.O. Zad 6-10'!$V$55,VLOOKUP(C64,'Załącznik 7 - F.O. Zad 6-10'!$C$52:$G$210,5,0),0) -> 0 | G64: 168 | H64: 0 | I64: 5 | J64: 0 | M64: 10 | N64: 0 | O64: 10 | P64: 0 | Q64: 4 | R64: 0 | S64: 133 | T64: 0 | U64: 6 | V64: 0
B65: 44 | C65: JACOBS KRONUNG KAWA MIELONA 250G | D65: Kawa mielona JACOBS Kronung, 250 g | E65: 1 op. (250 g.) | F65: =IF('Załącznik 7 - F.O. Zad 6-10'!$V$55,VLOOKUP(C65,'Załącznik 7 - F.O. Zad 6-10'!$C$52:$G$210,5,0),0) -> 0 | G65: 254 | H65: 0 | I65: 26 | J65: 0 | K65: 17 | L65: 0 | M65: 12 | N65: 0 | O65: 40 | P65: 0 | Q65: 20 | R65: 0 | S65: 133 | T65: 0 | U65: 6 | V65: 0
B66: 45 | C66: JACOBS KRONUNG KAWA ROZPUSZCZALNA 200G | D66: Kawa rozpuszczalna JACOBS Kronung, 200 g | E66: 1 op.( 200 g.) | F66: =IF('Załącznik 7 - F.O. Zad 6-10'!$V$55,VLOOKUP(C66,'Załącznik 7 - F.O. Zad 6-10'!$C$52:$G$210,5,0),0) -> 0 | G66: 470 | H66: 0 | I66: 14 | J66: 0 | O66: 14 | P66: 0 | S66: 433 | T66: 0 | U66: 6 | V66: 0 | W66: 3 | X66: 0
B67: 46 | C67: KUBEK PAPIEROWY 110ML OPK50 | D67: Kubek papierowy do gorących napojów 110 ml | E67: 1 op. (50 szt.) | F67: =IF('Załącznik 7 - F.O. Zad 6-10'!$V$55,VLOOKUP(C67,'Załącznik 7 - F.O. Zad 6-10'!$C$52:$G$210,5,0),0) -> 0 | G67: 14 | H67: 0 | I67: 1 | J67: 0 | O67: 7 | P67: 0 | U67: 6 | V67: 0
B68: 47 | C68: KUBEK PAPIEROWY 360ML OPK35 | D68: Kubek papierowy do gorących napojów 360 ml | E68: 1 op. (35 szt.) | F68: =IF('Załącznik 7 - F.O. Zad 6-10'!$V$55,VLOOKUP(C68,'Załącznik 7 - F.O. Zad 6-10'!$C$52:$G$210,5,0),0) -> 0 | G68: 14 | H68: 0 | I68: 1 | J68: 0 | O68: 7 | P68: 0 | U68: 6 | V68: 0
B69: 48 | C69: KUBEK PLASTIK 200ML BIAŁE OPK100 | D69: Kubek plastikowy do zimnych napojów 200 ml Biały | E69: 1 op. (100 szt.) | F69: =IF('Załącznik 7 - F.O. Zad 6-10'!$V$55,VLOOKUP(C69,'Załącznik 7 - F.O. Zad 6-10'!$C$52:$G$210,5,0),0) -> 0 | G69: 14 | H69: 0 | I69: 1 | J69: 0 | O69: 7 | P69: 0 | U69: 6 | V69: 0
B70: 49 | C70: LAVAZZA CREMA AROMA KAWA ZIARNISTA 1KG | D70: Kawa ziarnista LAVAZZA Crema Aroma, 1 kg | E70: 1 op. (1 kg) | F70: =IF('Załącznik 7 - F.O. Zad 6-10'!$V$55,VLOOKUP(C70,'Załącznik 7 - F.O. Zad 6-10'!$C$52:$G$210,5,0),0) -> 0 | G70: 354 | H70: 0 | I70: 48 | J70: 0 | K70: 33 | L70: 0 | O70: 122 | P70: 0 | Q70: 12 | R70: 0 | S70: 133 | T70: 0 | U70: 6 | V70: 0
B71: 50 | C71: LAVAZZA PRONTOCREMA GRANDE AROMA ZIA 1KG | D71: Kawa ziarnista LAVAZZA Pronto crema Grande Aroma 1 kg | E71: 1 op. (1 kg) | F71: =IF('Załącznik 7 - F.O. Zad 6-10'!$V$55,VLOOKUP(C71,'Załącznik 7 - F.O. Zad 6-10'!$C$52:$G$210,5,0),0) -> 0 | G71: 80 | H71: 0 | K71: 1 | L71: 0 | O71: 7 | P71: 0 | S71: 66 | T71: 0 | U71: 6 | V71: 0
B72: 51 | C72: LAVAZZA QUALITA ORO KAWA MIELONA 250G | D72: Kawa mielona LAVAZZA Qualita Oro, 250 g | E72: 1 op. (250 g) | F72: =IF('Załącznik 7 - F.O. Zad 6-10'!$V$55,VLOOKUP(C72,'Załącznik 7 - F.O. Zad 6-10'!$C$52:$G$210,5,0),0) -> 0 | G72: 152 | H72: 0 | I72: 120 | J72: 0 | O72: 16 | P72: 0 | Q72: 7 | R72: 0 | U72: 6 | V72: 0 | W72: 3 | X72: 0
B73: 52 | C73: LAVAZZA QUALITA ORO KAWA ZIARNISTA 1 KG | D73: Kawa ziarnista LAVAZZA Qualita Oro, 1 kg | E73: 1 op. (1 kg) | F73: =IF('Załącznik 7 - F.O. Zad 6-10'!$V$55,VLOOKUP(C73,'Załącznik 7 - F.O. Zad 6-10'!$C$52:$G$210,5,0),0) -> 0 | G73: 114 | H73: 0 | I73: 20 | J73: 0 | K73: 6 | L73: 0 | O73: 76 | P73: 0 | S73: 6 | T73: 0 | U73: 6 | V73: 0
B74: 53 | C74: LAVAZZA QUALITA ROSSA KAWA ZIARNISTA 1KG | D74: Kawa ziarnista LAVAZZA Qualita Rossa, 1 kg | E74: 1 op. (1 kg) | F74: =IF('Załącznik 7 - F.O. Zad 6-10'!$V$55,VLOOKUP(C74,'Załącznik 7 - F.O. Zad 6-10'!$C$52:$G$210,5,0),0) -> 0 | G74: 171 | H74: 0 | I74: 55 | J74: 0 | K74: 19 | L74: 0 | M74: 25 | N74: 0 | O74: 51 | P74: 0 | Q74: 6 | R74: 0 | S74: 6 | T74: 0 | U74: 6 | V74: 0 | W74: 3 | X74: 0
B75: 54 | C75: NESCAFE SENSAZIONE CREME KAWA ROZP 200G | D75: Kawa rozpuszczalna NESCAFÉ Sensazione Creme, 200 g | E75: 1 op.( 200 g.) | F75: =IF('Załącznik 7 - F.O. Zad 6-10'!$V$55,VLOOKUP(C75,'Załącznik 7 - F.O. Zad 6-10'!$C$52:$G$210,5,0),0) -> 0 | G75: 912 | H75: 0 | I75: 130 | J75: 0 | K75: 20 | L75: 0 | M75: 10 | N75: 0 | O75: 11 | P75: 0 | S75: 733 | T75: 0 | U75: 6 | V75: 0 | W75: 2 | X75: 0
B76: 55 | C76: TCHIBO EXCLUSIVE KAWA MIELONA 250G | D76: Kawa mielona TCHIBO Exclusive, 250 g | E76: 1 op. (250 g) | F76: =IF('Załącznik 7 - F.O. Zad 6-10'!$V$55,VLOOKUP(C76,'Załącznik 7 - F.O. Zad 6-10'!$C$52:$G$210,5,0),0) -> 0 | G76: 121 | H76: 0 | I76: 20 | J76: 0 | K76: 71 | L76: 0 | O76: 16 | P76: 0 | S76: 6 | T76: 0 | U76: 6 | V76: 0 | W76: 2 | X76: 0
B77: 56 | C77: TCHIBO FAMILY KAWA MIELONA 250G | D77: Kawa mielona TCHIBO Family, 250 g | E77: 1 op. (250 g) | F77: =IF('Załącznik 7 - F.O. Zad 6-10'!$V$55,VLOOKUP(C77,'Załącznik 7 - F.O. Zad 6-10'!$C$52:$G$210,5,0),0) -> 0 | G77: 609 | H77: 0 | I77: 100 | J77: 0 | O77: 3 | P77: 0 | S77: 500 | T77: 0 | U77: 6 | V77: 0
B78: 57 | C78: TCHIBO FAMILY KAWA ROZPUSZCZALNA 200G | D78: Kawa rozpuszczalna TCHIBO Family, 200 g | E78: 1 op. (200 g) | F78: =IF('Załącznik 7 - F.O. Zad 6-10'!$V$55,VLOOKUP(C78,'Załącznik 7 - F.O. Zad 6-10'!$C$52:$G$210,5,0),0) -> 0 | G78: 30 | H78: 0 | I78: 15 | J78: 0 | O78: 2 | P78: 0 | U78: 6 | V78: 0 | W78: 2 | X78: 0 | Y78: 5 | Z78: 0
B79: 58 | C79: TCHIBO PROFESSIONAL CREMA ZIARNISTA 1KG | D79: Kawa ziarnista TCHIBO Profesional Crema 1 kg | E79: 1 op. (1 kg) | F79: =IF('Załącznik 7 - F.O. Zad 6-10'!$V$55,VLOOKUP(C79,'Załącznik 7 - F.O. Zad 6-10'!$C$52:$G$210,5,0),0) -> 0 | G79: 35 | H79: 0 | K79: 2 | L79: 0 | O79: 7 | P79: 0 | U79: 6 | V79: 0 | Y79: 20 | Z79: 0
B80: 59 | C80: GOSTYŃ MLEKO SKONDENS NIESŁODZONE 500G | D80: Mleko zagęszczone GOSTYŃ 7,5% niesłodzone, 500 g | E80: 1 op. ( 1 karton 500 g) | F80: =IF('Załącznik 7 - F.O. Zad 6-10'!$V$55,VLOOKUP(C80,'Załącznik 7 - F.O. Zad 6-10'!$C$52:$G$210,5,0),0) -> 0 | G80: 80 | H80: 0 | I80: 1 | J80: 0 | M80: 60 | N80: 0 | O80: 7 | P80: 0 | S80: 6 | T80: 0 | U80: 6 | V80: 0
B81: 60 | C81: ŁACIATA ŚMIETANKA UHT 12% 500ML | D81: Śmietanka do kawy ŁACIATA 12%, 500 ml | E81: 1 op. (500 ml) | F81: =IF('Załącznik 7 - F.O. Zad 6-10'!$V$55,VLOOKUP(C81,'Załącznik 7 - F.O. Zad 6-10'!$C$52:$G$210,5,0),0) -> 0 | G81: 30 | H81: 0 | I81: 1 | J81: 0 | M81: 10 | N81: 0 | O81: 4 | P81: 0 | S81: 6 | T81: 0 | U81: 6 | V81: 0 | W81: 3 | X81: 0
B82: 61 | C82: ŁACIATA ŚMIETANKA W KUBECZKACH OPK10X10G | D82: Śmietanka do kawy ŁACIATA 10%, 10 kubeczków x 10 g | E82: 1 op. (10 kubeczków) | F82: =IF('Załącznik 7 - F.O. Zad 6-10'!$V$55,VLOOKUP(C82,'Załącznik 7 - F.O. Zad 6-10'!$C$52:$G$210,5,0),0) -> 0 | G82: 156 | H82: 0 | I82: 10 | J82: 0 | O82: 50 | P82: 0 | Q82: 65 | R82: 0 | S82: 18 | T82: 0 | U82: 7 | V82: 0 | W82: 6 | X82: 0
B83: 62 | C83: ŁACIATE MLEKO UHT 2% 0,5L | D83: Mleko ŁACIATE UHT 2,0%, 0,5 l | E83: 1 op. (500 ml) | F83: =IF('Załącznik 7 - F.O. Zad 6-10'!$V$55,VLOOKUP(C83,'Załącznik 7 - F.O. Zad 6-10'!$C$52:$G$210,5,0),0) -> 0 | G83: 143 | H83: 0 | I83: 80 | J83: 0 | O83: 38 | P83: 0 | S83: 7 | T83: 0 | U83: 6 | V83: 0 | W83: 12 | X83: 0
B84: 63 | C84: ŁACIATE MLEKO UHT 2% 1L | D84: Mleko ŁACIATE UHT 2,0%, 1 l | E84: 1 op. (1 l) | F84: =IF('Załącznik 7 - F.O. Zad 6-10'!$V$55,VLOOKUP(C84,'Załącznik 7 - F.O. Zad 6-10'!$C$52:$G$210,5,0),0) -> 0 | G84: 2474 | H84: 0 | I84: 790 | J84: 0 | K84: 11 | L84: 0 | O84: 36 | P84: 0 | Q84: 140 | R84: 0 | S84: 1433 | T84: 0 | U84: 7 | V84: 0 | W84: 37 | X84: 0 | Y84: 20 | Z84: 0
B85: 64 | C85: ŁACIATE MLEKO UHT 3,2% 0,5L | D85: Mleko ŁACIATE UHT 3,2%, 0,5 l | E85: 1 op. (500 ml) | F85: =IF('Załącznik 7 - F.O. Zad 6-10'!$V$55,VLOOKUP(C85,'Załącznik 7 - F.O. Zad 6-10'!$C$52:$G$210,5,0),0) -> 0 | G85: 291 | H85: 0 | I85: 95 | J85: 0 | K85: 104 | L85: 0 | O85: 28 | P85: 0 | Q85: 12 | R85: 0 | S85: 6 | T85: 0 | U85: 6 | V85: 0 | W85: 20 | X85: 0 | Y85: 20 | Z85: 0
B86: 65 | C86: ŁACIATE MLEKO UHT 3,2% 1L | D86: Mleko ŁACIATE UHT 3,2%, 1 l | E86: 1 op. (1 l) | F86: =IF('Załącznik 7 - F.O. Zad 6-10'!$V$55,VLOOKUP(C86,'Załącznik 7 - F.O. Zad 6-10'!$C$52:$G$210,5,0),0) -> 0 | G86: 1467 | H86: 0 | I86: 1200 | J86: 0 | K86: 13 | L86: 0 | O86: 33 | P86: 0 | Q86: 180 | R86: 0 | S86: 6 | T86: 0 | U86: 5 | V86: 0 | W86: 10 | X86: 0 | Y86: 20 | Z86: 0
B87: 66 | C87: ŁACIATE MLEKO ZAGĘSZCZONE 7,5% 0,5L | D87: Mleko zagęszczone ŁACIATE UHT 7,5%, 0,5 l | E87: 1 op. (500 ml) | F87: =IF('Załącznik 7 - F.O. Zad 6-10'!$V$55,VLOOKUP(C87,'Załącznik 7 - F.O. Zad 6-10'!$C$52:$G$210,5,0),0) -> 0 | G87: =I87+K87+M87+O87+Q87+S87+U87+W87+Y87 -> 44 | H87: =G87*F87 -> 0 | I87: 1 | J87: 0 | O87: 4 | P87: =O87*F87 -> 0 | S87: 13 | T87: =S87*F87 -> 0 | U87: 6 | V87: 0 | Y87: 20 | Z87: 0
B88: 67 | C88: MLEKOVITA BEZ LAKTOZY UHT WYDOJONE 1,5% | D88: Mleko WYDOJONE UHT, bez laktozy 1,5%, 1 l | E88: 1 op. (1 l) | F88: =IF('Załącznik 7 - F.O. Zad 6-10'!$V$55,VLOOKUP(C88,'Załącznik 7 - F.O. Zad 6-10'!$C$52:$G$210,5,0),0) -> 0 | G88: 33 | H88: 0 | I88: 20 | J88: 0 | O88: 7 | P88: 0 | U88: 6 | V88: =U88*F88 -> 0
B89: 68 | C89: MLEKOVITA BEZ LAKTOZY UHT WYDOJONE 3,2% | D89: Mleko WYDOJONE UHT, bez laktozy, 3,2%, 1 l | E89: 1 op. (1 l) | F89: =IF('Załącznik 7 - F.O. Zad 6-10'!$V$55,VLOOKUP(C89,'Załącznik 7 - F.O. Zad 6-10'!$C$52:$G$210,5,0),0) -> 0 | G89: 228 | H89: 0 | I89: 125 | J89: 0 | K89: 72 | L89: =K89*F89 -> 0 | O89: 19 | P89: 0 | S89: 6 | T89: 0 | U89: 6 | V89: 0
B90: 69 | C90: ZAMBROWSKIE MLEKO UHT 3,2% 1L | D90: Mleko ZAMBROWSKIE UHT 3,2 %, 1 l | E90: 1 op. (1 l) | F90: =IF('Załącznik 7 - F.O. Zad 6-10'!$V$55,VLOOKUP(C90,'Załącznik 7 - F.O. Zad 6-10'!$C$52:$G$210,5,0),0) -> 0 | G90: 424 | H90: 0 | I90: 200 | J90: 0 | K90: 190 | L90: 0 | O90: 7 | P90: 0 | U90: 7 | V90: 0 | Y90: 20 | Z90: =Y90*H90 -> 0
B91: 70 | C91: BAKALLAND BAKALIE STUDENCKI MIX 200G | D91: Cukierki Mieszanka bakaliowa BAKALLAND Studencki Mix, 200 g | E91: 1 op (200 g) | F91: =IF('Załącznik 7 - F.O. Zad 6-10'!$V$55,VLOOKUP(C91,'Załącznik 7 - F.O. Zad 6-10'!$C$52:$G$210,5,0),0) -> 0 | G91: 75 | H91: 0 | I91: 12 | J91: 0 | M91: 5 | N91: 0 | O91: 20 | P91: 0 | Q91: 10 | R91: 0 | S91: 10 | T91: 0 | U91: 6 | V91: 0 | W91: 12 | X91: =W91*F91 -> 0
B92: 71 | C92: BAKALLAND MIGDAŁY 300G | D92: Migdały BAKALLAND, 300 g | E92: 1 op. (300 g) | F92: =IF('Załącznik 7 - F.O. Zad 6-10'!$V$55,VLOOKUP(C92,'Załącznik 7 - F.O. Zad 6-10'!$C$52:$G$210,5,0),0) -> 0 | G92: 39 | H92: 0 | I92: 3 | J92: 0 | O92: 13 | P92: 0 | S92: 10 | T92: 0 | U92: 6 | V92: 0 | W92: 7 | X92: 0
B93: 72 | C93: BAKALLAND ORZECHY NERKOWCA 300G | D93: Orzechy nerkowca BAKALLAND, 300 g | E93: 1 op. (300 g) | F93: =IF('Załącznik 7 - F.O. Zad 6-10'!$V$55,VLOOKUP(C93,'Załącznik 7 - F.O. Zad 6-10'!$C$52:$G$210,5,0),0) -> 0 | G93: 44 | H93: 0 | O93: 20 | P93: 0 | S93: 10 | T93: 0 | U93: 6 | V93: 0 | W93: 8 | X93: 0
B94: 73 | C94: BELVITA CIASTKA KAKAOWE 300G | D94: Ciastka BELVITA, kakaowe, 300 g, 24 ciasteczka | E94: 1 op. (300 g) | F94: =IF('Załącznik 7 - F.O. Zad 6-10'!$V$55,VLOOKUP(C94,'Załącznik 7 - F.O. Zad 6-10'!$C$52:$G$210,5,0),0) -> 0 | G94: 53 | H94: 0 | I94: 10 | J94: 0 | M94: 2 | N94: 0 | O94: 11 | P94: 0 | Q94: 20 | R94: 0 | S94: 1 | T94: 0 | U94: 6 | V94: 0 | W94: 3 | X94: 0
B95: 74 | C95: BELVITA CIASTKA MUSLI+OWOCE 300G | D95: Ciastka BELVITA Musli z owocami, 24 ciasteczka pakowane po 4 sztuki, 300 g | E95: 1 op. (300 g) | F95: =IF('Załącznik 7 - F.O. Zad 6-10'!$V$55,VLOOKUP(C95,'Załącznik 7 - F.O. Zad 6-10'!$C$52:$G$210,5,0),0) -> 0 | G95: 51 | H95: 0 | I95: 5 | J95: 0 | O95: 7 | P95: 0 | Q95: 30 | R95: 0 | U95: 6 | V95: 0 | W95: 3 | X95: 0
B96: 75 | C96: CISOWIANKA WODA GAZOWANA 0,5L OPK12 | D96: Woda mineralna CISOWIANKA gazowana, zgrzewka 12 butelek x 0,5 l | E96: 1 op. (12 butelek) | F96: =IF('Załącznik 7 - F.O. Zad 6-10'!$V$55,VLOOKUP(C96,'Załącznik 7 - F.O. Zad 6-10'!$C$52:$G$210,5,0),0) -> 0 | G96: 212 | H96: 0 | I96: 140 | J96: 0 | Q96: 4 | R96: 0 | S96: 2 | T96: 0 | U96: 6 | V96: 0 | W96: 40 | X96: 0 | Y96: 20 | Z96: 0
B97: 76 | C97: DELICJE SZAMPAŃSKIE MALINA 147G | D97: Ciastka DELICJE Szampańskie malinowe, 147 g | E97: 1 op. (147 g) | F97: =IF('Załącznik 7 - F.O. Zad 6-10'!$V$55,VLOOKUP(C97,'Załącznik 7 - F.O. Zad 6-10'!$C$52:$G$210,5,0),0) -> 0 | G97: 124 | H97: 0 | I97: 15 | J97: 0 | K97: 9 | L97: 0 | M97: 15 | N97: 0 | O97: 38 | P97: 0 | Q97: 11 | R97: 0 | S97: 2 | T97: 0 | U97: 6 | V97: 0 | W97: 8 | X97: 0 | Y97: 20 | Z97: 0
B98: 77 | C98: DELICJE SZAMPAŃSKIE POMARAŃCZA 147G | D98: Ciastka DELICJE Szampańskie pomarańczowe, 147 g | E98: 1 op. (147 g) | F98: =IF('Załącznik 7 - F.O. Zad 6-10'!$V$55,VLOOKUP(C98,'Załącznik 7 - F.O. Zad 6-10'!$C$52:$G$210,5,0),0) -> 0 | G98: 128 | H98: 0 | I98: 30 | J98: 0 | K98: 3 | L98: 0 | M98: 10 | N98: 0 | O98: 40 | P98: 0 | Q98: 11 | R98: 0 | S98: 2 | T98: 0 | U98: 6 | V98: 0 | W98: 6 | X98: 0 | Y98: 20 | Z98: 0
B99: 78 | C99: DELICJE SZAMPAŃSKIE WIŚNIA 147G | D99: Ciastka DELICJE Szampańskie wiśniowe, 147 g | E99: 1 op. (147 g) | F99: =IF('Załącznik 7 - F.O. Zad 6-10'!$V$55,VLOOKUP(C99,'Załącznik 7 - F.O. Zad 6-10'!$C$52:$G$210,5,0),0) -> 0 | G99: 104 | H99: 0 | I99: 15 | J99: 0 | K99: 2 | L99: 0 | M99: 15 | N99: 0 | O99: 26 | P99: 0 | Q99: 11 | R99: 0 | S99: 3 | T99: 0 | U99: 6 | V99: 0 | W99: 6 | X99: 0 | Y99: 20 | Z99: 0
B100: 79 | C100: DELICJE SZAMPAŃSKIE WIŚNIOWE 294G | D100: Ciastka DELICJE Szampańskie wiśniowe, podwójne opakowanie, 294 g | E100: 1 op. ( 294 g) | F100: =IF('Załącznik 7 - F.O. Zad 6-10'!$V$55,VLOOKUP(C100,'Załącznik 7 - F.O. Zad 6-10'!$C$52:$G$210,5,0),0) -> 0 | G100: 46 | H100: 0 | I100: 5 | J100: 0 | M100: 6 | N100: 0 | O100: 7 | P100: 0 | S100: 2 | T100: 0 | U100: 6 | V100: 0 | Y100: 20 | Z100: 0
B101: 80 | C101: FERRERO RAFAELLO 230 G | D101: Praliny RAFFAELLO, 230 g | E101: 1 op.( 230 g.) | F101: =IF('Załącznik 7 - F.O. Zad 6-10'!$V$55,VLOOKUP(C101,'Załącznik 7 - F.O. Zad 6-10'!$C$52:$G$210,5,0),0) -> 0 | G101: 113 | H101: 0 | I101: 1 | J101: 0 | K101: 5 | L101: 0 | M101: 5 | N101: 0 | O101: 21 | P101: 0 | Q101: 5 | R101: 0 | S101: 66 | T101: 0 | U101: 6 | V101: 0 | W101: 4 | X101: 0
B102: 81 | C102: FERRERO RAFFAELLO PRALINY 230G | D102: Praliny RAFFAELLO, 230 g | E102: 2 op.( 230 g.) | F102: =IF('Załącznik 7 - F.O. Zad 6-10'!$V$55,VLOOKUP(C102,'Załącznik 7 - F.O. Zad 6-10'!$C$52:$G$210,5,0),0) -> 0 | G102: 8 | H102: 0 | U102: 6 | V102: 0 | W102: 2 | X102: 0
B103: 82 | C103: Ferrero Rocher Praliny 200g | D103: Czekoladki FERRERO ROCHER, 200 g | E103: 3 op.( 200 g.) | F103: =IF('Załącznik 7 - F.O. Zad 6-10'!$V$55,VLOOKUP(C103,'Załącznik 7 - F.O. Zad 6-10'!$C$52:$G$210,5,0),0) -> 0 | G103: 17 | H103: 0 | I103: 1 | J103: 0 | O103: 7 | P103: 0 | U103: 6 | V103: 0 | W103: 3 | X103: 0
B104: 83 | C104: GOPLANA TOFFINO CHOCO 1KG | D104: Cukierki Goplana Toffino Choco Toffi mleczne z kremem czekoladowym 1 kg | E104: 1 op. ( 1 kg.) | F104: =IF('Załącznik 7 - F.O. Zad 6-10'!$V$55,VLOOKUP(C104,'Załącznik 7 - F.O. Zad 6-10'!$C$52:$G$210,5,0),0) -> 0 | G104: 16 | H104: 0 | I104: 1 | J104: 0 | O104: 7 | P104: 0 | U104: 6 | V104: 0 | W104: 2 | X104: 0
B105: 84 | C105: HIT MARKIZY CZEKOLADOWE 220G | D105: Ciastka BAHLSEN HIT czekoladowe, 220 g | E105: 1 op.( 220 g) | F105: =IF('Załącznik 7 - F.O. Zad 6-10'!$V$55,VLOOKUP(C105,'Załącznik 7 - F.O. Zad 6-10'!$C$52:$G$210,5,0),0) -> 0 | G105: 47 | H105: 0 | I105: 1 | J105: 0 | O105: 17 | P105: 0 | Q105: 20 | R105: 0 | S105: 1 | T105: 0 | U105: 6 | V105: 0 | W105: 2 | X105: 0
B106: 85 | C106: JUTRZENKA JEŻYKI CAFE CIASTKA 140G | D106: Ciasta JEŻYKI Cafe, 140 g | E106: 1 op. (140 g) | F106: =IF('Załącznik 7 - F.O. Zad 6-10'!$V$55,VLOOKUP(C106,'Załącznik 7 - F.O. Zad 6-10'!$C$52:$G$210,5,0),0) -> 0 | G106: 66 | H106: 0 | I106: 1 | J106: 0 | M106: 15 | N106: 0 | O106: 19 | P106: 0 | Q106: 19 | R106: 0 | S106: 1 | T106: 0 | U106: 6 | V106: 0 | W106: 5 | X106: 0
B107: 86 | C107: JUTRZENKA JEŻYKI CIASTKA 140G | D107: Ciasta JEŻYKI Classic, 140 g | E107: 1 op. (140 g) | F107: =IF('Załącznik 7 - F.O. Zad 6-10'!$V$55,VLOOKUP(C107,'Załącznik 7 - F.O. Zad 6-10'!$C$52:$G$210,5,0),0) -> 0 | G107: 119 | H107: 0 | I107: 25 | J107: 0 | M107: 15 | N107: 0 | O107: 50 | P107: 0 | Q107: 15 | R107: 0 | S107: 3 | T107: 0 | U107: 6 | V107: 0 | W107: 5 | X107: 0
B108: 87 | C108: JUTRZENKA WAFLE FAMILIJNE ŚMIET-KAK 180G | D108: Wafle FAMILIJNE śmietankowo-kakaowe, 180 g | E108: 1 op. (180 g) | F108: =IF('Załącznik 7 - F.O. Zad 6-10'!$V$55,VLOOKUP(C108,'Załącznik 7 - F.O. Zad 6-10'!$C$52:$G$210,5,0),0) -> 0 | G108: 40 | H108: 0 | I108: 10 | J108: 0 | M108: 10 | N108: 0 | O108: 10 | P108: 0 | Q108: 3 | R108: 0 | S108: 1 | T108: 0 | U108: 6 | V108: 0
B109: 88 | C109: ŁAKOTKI DESEROWE Z CUKREM 168G | D109: Ciastka SAN ŁAKOTKI deserowe z cukrem, 168 g | E109: 1 op. (168 g) | F109: =IF('Załącznik 7 - F.O. Zad 6-10'!$V$55,VLOOKUP(C109,'Załącznik 7 - F.O. Zad 6-10'!$C$52:$G$210,5,0),0) -> 0 | G109: 73 | H109: 0 | I109: 5 | J109: 0 | K109: 9 | L109: 0 | M109: 10 | N109: 0 | O109: 34 | P109: 0 | Q109: 5 | R109: 0 | S109: 1 | T109: 0 | U109: 6 | V109: 0 | W109: 3 | X109: 0
B110: 89 | C110: ŁAKOTKI KAKAOWE 168G | D110: Ciastka SAN ŁAKOTKI kakaowe, 168 g | E110: 1 op. (168 g) | F110: =IF('Załącznik 7 - F.O. Zad 6-10'!$V$55,VLOOKUP(C110,'Załącznik 7 - F.O. Zad 6-10'!$C$52:$G$210,5,0),0) -> 0 | G110: 36 | H110: 0 | I110: 4 | J110: 0 | K110: 5 | L110: 0 | M110: 10 | N110: 0 | O110: 7 | P110: 0 | S110: 1 | T110: 0 | U110: 6 | V110: 0 | W110: 3 | X110: 0
B111: 90 | C111: ŁAKOTKI KOKOSOWE 168G | D111: Ciastka SAN ŁAKOTKI kokosowe, 168 g | E111: 1 op. (168 g) | F111: =IF('Załącznik 7 - F.O. Zad 6-10'!$V$55,VLOOKUP(C111,'Załącznik 7 - F.O. Zad 6-10'!$C$52:$G$210,5,0),0) -> 0 | G111: 72 | H111: 0 | I111: 5 | J111: 0 | K111: 9 | L111: 0 | M111: 10 | N111: 0 | O111: 29 | P111: 0 | Q111: 9 | R111: 0 | S111: 1 | T111: 0 | U111: 6 | V111: 0 | W111: 3 | X111: 0
B112: 91 | C112: MERCI CZEKOLADKI 400 G | D112: Czekoladki MERCI, 400 g | E112: 1 op.(400 g.) | F112: =IF('Załącznik 7 - F.O. Zad 6-10'!$V$55,VLOOKUP(C112,'Załącznik 7 - F.O. Zad 6-10'!$C$52:$G$210,5,0),0) -> 0 | G112: 35 | H112: 0 | I112: 2 | J112: 0 | K112: 5 | L112: 0 | M112: 4 | N112: 0 | O112: 15 | P112: 0 | U112: 6 | V112: 0 | W112: 3 | X112: 0
B113: 92 | C113: MILKA CHOCO GRAINS CIASTKA 126 G | D113: Ciastka MILKA Chocograins, 126 g | E113: 1 op.(126 g.) | F113: =IF('Załącznik 7 - F.O. Zad 6-10'!$V$55,VLOOKUP(C113,'Załącznik 7 - F.O. Zad 6-10'!$C$52:$G$210,5,0),0) -> 0 | G113: 95 | H113: 0 | I113: 60 | J113: 0 | M113: 10 | N113: 0 | O113: 14 | P113: 0 | S113: 3 | T113: 0 | U113: 6 | V113: 0 | W113: 2 | X113: 0
B114: 93 | C114: MILKA CHOCOWAFER CIASTKA 150G | D114: Wafle MILKA ChocoWafer, 150 g | E114: 1 op.(150g.) | F114: =IF('Załącznik 7 - F.O. Zad 6-10'!$V$55,VLOOKUP(C114,'Załącznik 7 - F.O. Zad 6-10'!$C$52:$G$210,5,0),0) -> 0 | G114: 34 | H114: 0 | I114: 3 | J114: 0 | K114: 16 | L114: 0 | O114: 7 | P114: 0 | U114: 6 | V114: 0 | W114: 2 | X114: 0
B115: 94 | C115: MILKA MOMENTS CZEKOL MIX 11X97G | D115: Praliny MILKA Moments Mix, 11 czekoladek | E115: 1 op. (11 sztuk) | F115: =IF('Załącznik 7 - F.O. Zad 6-10'!$V$55,VLOOKUP(C115,'Załącznik 7 - F.O. Zad 6-10'!$C$52:$G$210,5,0),0) -> 0 | G115: 21 | H115: 0 | I115: 1 | J115: 0 | K115: 5 | L115: 0 | O115: 7 | P115: 0 | U115: 6 | V115: 0 | W115: 2 | X115: 0
B116: 95 | C116: MILKA MOMENTS TOFF/ORZECH 11x97G | D116: Praliny MILKA Moments Toffee Wholenut, 11 czekoladek | E116: 1 op. (11 sztuk) | F116: =IF('Załącznik 7 - F.O. Zad 6-10'!$V$55,VLOOKUP(C116,'Załącznik 7 - F.O. Zad 6-10'!$C$52:$G$210,5,0),0) -> 0 | G116: 19 | H116: 0 | I116: 1 | J116: 0 | K116: 3 | L116: 0 | O116: 7 | P116: 0 | U116: 6 | V116: 0 | W116: 2 | X116: 0
B117: 96 | C117: MILKA PIEGUSKI CZEKOLADA ORZECHY 135G | D117: Ciastka MILKA Pieguski, czekolada i orzechy, 135 g | E117: 1 op. (135 g) | F117: =IF('Załącznik 7 - F.O. Zad 6-10'!$V$55,VLOOKUP(C117,'Załącznik 7 - F.O. Zad 6-10'!$C$52:$G$210,5,0),0) -> 0 | G117: 102 | H117: 0 | I117: 27 | J117: 0 | M117: 25 | N117: 0 | O117: 35 | P117: 0 | Q117: 4 | R117: 0 | S117: 3 | T117: 0 | U117: 6 | V117: 0 | W117: 2 | X117: 0
B118: 97 | C118: MILKA SINGLES CZEKOLADKI 138G | D118: Czekoladki MILKA Singles, 32 czekoladki pakowane osobno | E118: 1 op. (32 szt.) | F118: =IF('Załącznik 7 - F.O. Zad 6-10'!$V$55,VLOOKUP(C118,'Załącznik 7 - F.O. Zad 6-10'!$C$52:$G$210,5,0),0) -> 0 | G118: 42 | H118: 0 | I118: 10 | J118: 0 | O118: 20 | P118: 0 | Q118: 5 | R118: 0 | S118: 1 | T118: 0 | U118: 6 | V118: 0
B119: 98 | C119: NESPRESSO CZEKOLADKI BLOND 200G | D119: Czekoladki NESPRESSO blond, 200 g | E119: 1 op ( 200 g.) | F119: =IF('Załącznik 7 - F.O. Zad 6-10'!$V$55,VLOOKUP(C119,'Załącznik 7 - F.O. Zad 6-10'!$C$52:$G$210,5,0),0) -> 0 | G119: 16 | H119: 0 | K119: 1 | L119: 0 | O119: 7 | P119: 0 | U119: 6 | V119: 0 | W119: 2 | X119: 0
B120: 99 | C120: NESPRESSO CZEKOLADKI MILK 200G | D120: Czekoladki NESPRESSO mleczne, 200 g | E120: 1 op ( 200 g.) | F120: =IF('Załącznik 7 - F.O. Zad 6-10'!$V$55,VLOOKUP(C120,'Załącznik 7 - F.O. Zad 6-10'!$C$52:$G$210,5,0),0) -> 0 | G120: 16 | H120: 0 | K120: 1 | L120: 0 | O120: 7 | P120: 0 | U120: 6 | V120: 0 | W120: 2 | X120: 0
B121: 100 | C121: PASTYLKI MIĘTOWEW CZEKOLADZIE WAWEL | D121: Cukierki Pastylka miętowa WAWEL, 1 kg | E121: 1 op. (1 kg) | F121: =IF('Załącznik 7 - F.O. Zad 6-10'!$V$55,VLOOKUP(C121,'Załącznik 7 - F.O. Zad 6-10'!$C$52:$G$210,5,0),0) -> 0 | G121: 17 | H121: 0 | I121: 4 | J121: 0 | O121: 7 | P121: 0 | U121: 6 | V121: 0
B122: 101 | C122: SOLIDARNOŚĆ ŚLIWKA NALECZOWSKA 1KG | D122: CukierkiŚliwka Nałęczowska SOLIDARNOŚĆ, 1 kg | E122: 2 op. (1 kg) | F122: =IF('Załącznik 7 - F.O. Zad 6-10'!$V$55,VLOOKUP(C122,'Załącznik 7 - F.O. Zad 6-10'!$C$52:$G$210,5,0),0) -> 0 | G122: 122 | H122: 0 | I122: 4 | J122: 0 | O122: 30 | P122: 0 | S122: 66 | T122: 0 | U122: 6 | V122: 0 | W122: 6 | X122: 0 | Y122: 10 | Z122: 0
B123: 102 | C123: TAGO CIASTECZKA KORZENNE 4,8G OPK125 | D123: Ciastka TAGO korzenne, 125 ciasteczek po 4,8 g | E123: 1 op. (125 szt.) | F123: =IF('Załącznik 7 - F.O. Zad 6-10'!$V$55,VLOOKUP(C123,'Załącznik 7 - F.O. Zad 6-10'!$C$52:$G$210,5,0),0) -> 0 | G123: 19 | H123: 0 | I123: 2 | J123: 0 | K123: 1 | L123: 0 | O123: 7 | P123: 0 | U123: 6 | V123: 0 | W123: 3 | X123: 0
B124: 103 | C124: TAGO OWSIANE DE LUX CIASTECZKA 210G | D124: Ciastka TAGO Owsiane de Lux, 210 g | E124: 1 op. (210 g) | F124: =IF('Załącznik 7 - F.O. Zad 6-10'!$V$55,VLOOKUP(C124,'Załącznik 7 - F.O. Zad 6-10'!$C$52:$G$210,5,0),0) -> 0 | G124: 73 | H124: 0 | I124: 2 | J124: 0 | M124: 10 | N124: 0 | O124: 14 | P124: 0 | Q124: 15 | R124: 0 | S124: 3 | T124: 0 | U124: 6 | V124: 0 | W124: 3 | X124: 0 | Y124: 20 | Z124: 0
B125: 104 | C125: TAGO PRECLE MAŚLANE 158 G | D125: Francuskie precle z masłem TAGO, 158 g | E125: 1 op. ( 158 g) | F125: =IF('Załącznik 7 - F.O. Zad 6-10'!$V$55,VLOOKUP(C125,'Załącznik 7 - F.O. Zad 6-10'!$C$52:$G$210,5,0),0) -> 0 | G125: 44 | H125: 0 | I125: 10 | J125: 0 | O125: 17 | P125: 0 | Q125: 10 | R125: 0 | S125: 1 | T125: 0 | U125: 6 | V125: 0
B126: 105 | C126: WAWEL MICHAŁKI 1 KG | D126: Cukierki WAWEL Michałki Klasyczne 300 g | E126: 1 op. (300 g) | F126: =IF('Załącznik 7 - F.O. Zad 6-10'!$V$55,VLOOKUP(C126,'Załącznik 7 - F.O. Zad 6-10'!$C$52:$G$210,5,0),0) -> 0 | G126: 38 | H126: 0 | I126: 10 | J126: 0 | K126: 2 | L126: 0 | O126: 7 | P126: 0 | S126: 6 | T126: 0 | U126: 6 | V126: 0 | W126: 7 | X126: 0
B127: 106 | C127: WAWEL MICHAŁKI CLASSIC 300G | D127: Cukierki WAWEL Michałki Klasyczne 300 g | E127: 1 op. (300 g) | F127: =IF('Załącznik 7 - F.O. Zad 6-10'!$V$55,VLOOKUP(C127,'Załącznik 7 - F.O. Zad 6-10'!$C$52:$G$210,5,0),0) -> 0 | G127: 6 | H127: 0 | U127: 6 | V127: 0
B128: 107 | C128: WAWEL MIESZANKA KRAKOWSKA 1 KG | D128: Cukierki Mieszanka krakowska WAWEL, 1 kg | E128: 1 op. (1 kg) | F128: =IF('Załącznik 7 - F.O. Zad 6-10'!$V$55,VLOOKUP(C128,'Załącznik 7 - F.O. Zad 6-10'!$C$52:$G$210,5,0),0) -> 0 | G128: 29 | H128: 0 | I128: 5 | J128: 0 | K128: 3 | L128: 0 | M128: 2 | N128: 0 | O128: 7 | P128: 0 | S128: 4 | T128: 0 | U128: 6 | V128: 0 | W128: 2 | X128: 0
B129: 108 | C129: WAWEL TRUFLE 1 KG | D129: Cukierki WAWEL Trufle | E129: 1 op. (1 kg) | F129: =IF('Załącznik 7 - F.O. Zad 6-10'!$V$55,VLOOKUP(C129,'Załącznik 7 - F.O. Zad 6-10'!$C$52:$G$210,5,0),0) -> 0 | G129: 133 | H129: 0 | I129: 5 | J129: 0 | K129: 1 | L129: 0 | M129: 2 | N129: 0 | O129: 53 | P129: 0 | S129: 66 | T129: 0 | U129: 6 | V129: 0
B130: 109 | C130: WEDEL AMERYKANKI KLASYCZNE 125 G | D130: Ciastka AMERYKANKI, klasyczne, 126 g | E130: 1 op. (126 g) | F130: =IF('Załącznik 7 - F.O. Zad 6-10'!$V$55,VLOOKUP(C130,'Załącznik 7 - F.O. Zad 6-10'!$C$52:$G$210,5,0),0) -> 0 | G130: 83 | H130: 0 | I130: 5 | J130: 0 | M130: 5 | N130: 0 | O130: 14 | P130: 0 | Q130: 30 | R130: 0 | S130: 3 | T130: 0 | U130: 6 | V130: 0 | Y130: 20 | Z130: 0
B131: 110 | C131: WEDEL MIESZANKA CUKIERKI DISPLAY 3KG | D131: Cukierki MIESZANKA WEDLOWSKA Classic, 3 kg w formie dyspensera | E131: 1 op. (3 kg) | F131: =IF('Załącznik 7 - F.O. Zad 6-10'!$V$55,VLOOKUP(C131,'Załącznik 7 - F.O. Zad 6-10'!$C$52:$G$210,5,0),0) -> 0 | G131: 55 | H131: 0 | I131: 4 | J131: 0 | O131: 29 | P131: 0 | Q131: 4 | R131: 0 | S131: 10 | T131: 0 | U131: 6 | V131: 0 | W131: 2 | X131: 0
B132: 111 | C132: WEDEL PTASIE MLECZKO WANILIOWE 360G | D132: Ptasie mleczko WEDEL, waniliowe, 360 g | E132: 1 op.( 360 g.) | F132: =IF('Załącznik 7 - F.O. Zad 6-10'!$V$55,VLOOKUP(C132,'Załącznik 7 - F.O. Zad 6-10'!$C$52:$G$210,5,0),0) -> 0 | G132: 35 | H132: 0 | I132: 3 | J132: 0 | M132: 4 | N132: 0 | O132: 19 | P132: 0 | S132: 3 | T132: 0 | U132: 6 | V132: 0
B133: 112 | C133: WEDEL WAFLE TORCIKOWE MINI ORZECHOWE 160 | D133: Wafle Torcikowe WEDEL MINI orzechowe, 160 g | E133: 1 op. ( 160 g) | F133: =IF('Załącznik 7 - F.O. Zad 6-10'!$V$55,VLOOKUP(C133,'Załącznik 7 - F.O. Zad 6-10'!$C$52:$G$210,5,0),0) -> 0 | G133: 33 | H133: 0 | I133: 6 | J133: 0 | O133: 18 | P133: 0 | Q133: 3 | R133: 0 | U133: 6 | V133: 0
B134: 113 | C134: BAKALLAND MIGDAŁY SOLONE 90G | D134: Migdały lekko solone BAKALLAND, 90 g | E134: 1 op. (90 g) | F134: =IF('Załącznik 7 - F.O. Zad 6-10'!$V$55,VLOOKUP(C134,'Załącznik 7 - F.O. Zad 6-10'!$C$52:$G$210,5,0),0) -> 0 | G134: 19 | H134: 0 | I134: 2 | J134: 0 | O134: 7 | P134: 0 | U134: 6 | V134: 0 | W134: 4 | X134: 0
B135: 114 | C135: BAKALLAND ORZECHY LASKOWE 300G | D135: Orzechy laskowe BAKALLAND, 300 g | E135: 1 op. (300 g) | F135: =IF('Załącznik 7 - F.O. Zad 6-10'!$V$55,VLOOKUP(C135,'Załącznik 7 - F.O. Zad 6-10'!$C$52:$G$210,5,0),0) -> 0 | G135: 30 | H135: 0 | O135: 10 | P135: 0 | S135: 10 | T135: 0 | U135: 6 | V135: 0 | W135: 4 | X135: 0
B136: 115 | C136: BAKALLAND ORZECHY NERKOWCA SOLONE 70G | D136: Orzechy nerkowca solone BAKALLAND, 70 g | E136: 1 op. (70 g) | F136: =IF('Załącznik 7 - F.O. Zad 6-10'!$V$55,VLOOKUP(C136,'Załącznik 7 - F.O. Zad 6-10'!$C$52:$G$210,5,0),0) -> 0 | G136: 17 | H136: 0 | O136: 7 | P136: 0 | U136: 6 | V136: 0 | W136: 4 | X136: 0
B137: 116 | C137: BAKALLAND ORZECHY WŁOSKIE 300G | D137: Orzechy włoskie BAKALLAND, 300 g | E137: 1 op. (300 g) | F137: =IF('Załącznik 7 - F.O. Zad 6-10'!$V$55,VLOOKUP(C137,'Załącznik 7 - F.O. Zad 6-10'!$C$52:$G$210,5,0),0) -> 0 | G137: 26 | H137: 0 | O137: 7 | P137: 0 | S137: 10 | T137: 0 | U137: 6 | V137: 0 | W137: 3 | X137: 0
B138: 117 | C138: LAJKONIK PALUSZKI 200G | D138: Paluszki LAJKONIK solone, 200 g | E138: 1 op. (200 g) | F138: =IF('Załącznik 7 - F.O. Zad 6-10'!$V$55,VLOOKUP(C138,'Załącznik 7 - F.O. Zad 6-10'!$C$52:$G$210,5,0),0) -> 0 | G138: 126 | H138: 0 | I138: 7 | J138: 0 | M138: 10 | N138: 0 | O138: 30 | P138: 0 | Q138: 50 | R138: 0 | S138: 1 | T138: 0 | U138: 5 | V138: 0 | W138: 3 | X138: 0 | Y138: 20 | Z138: 0
B139: 118 | C139: CAPPY NEKTAR MULTIWIT PET 0,33L OPK12 | D139: Nektar multiwitamina CAPPY, 12 butelek x 0,33 l | E139: 1 op. (12 butelek) | F139: =IF('Załącznik 7 - F.O. Zad 6-10'!$V$55,VLOOKUP(C139,'Załącznik 7 - F.O. Zad 6-10'!$C$52:$G$210,5,0),0) -> 0 | G139: 20 | H139: 0 | I139: 3 | J139: 0 | O139: 6 | P139: 0 | Q139: 2 | R139: 0 | S139: 1 | T139: 0 | U139: 6 | V139: 0 | W139: 2 | X139: 0
B140: 119 | C140: CAPPY SOK POMARAŃCZOWY PET 0,33L OPK12 | D140: Sok pomarańczowy CAPPY, 12 butelek x 0,33 l | E140: 1 op. (12 butelek) | F140: =IF('Załącznik 7 - F.O. Zad 6-10'!$V$55,VLOOKUP(C140,'Załącznik 7 - F.O. Zad 6-10'!$C$52:$G$210,5,0),0) -> 0 | G140: 82 | H140: 0 | I140: 10 | J140: 0 | O140: 37 | P140: 0 | Q140: 2 | R140: 0 | S140: 22 | T140: 0 | U140: 6 | V140: 0 | W140: 5 | X140: 0
B141: 120 | C141: CHAMPION SOK CYTRYNOWY OPK10X7,5G | D141: Zagęszczony sok cytrynowy CHAMPION, 10 kubeczków x 7,5 g | E141: 1 op. (10 kubeczków) | F141: =IF('Załącznik 7 - F.O. Zad 6-10'!$V$55,VLOOKUP(C141,'Załącznik 7 - F.O. Zad 6-10'!$C$52:$G$210,5,0),0) -> 0 | G141: 65 | H141: 0 | I141: 2 | J141: 0 | O141: 5 | P141: 0 | Q141: 30 | R141: 0 | S141: 22 | T141: 0 | U141: 6 | V141: 0
B142: 121 | C142: COCA-COLA BUTELKA PET 0,5L OPK18 | D142: Napój gazowany COCA-COLA, zgrzewka 18 butelek x 0,5 l | E142: 1 op. (18 butelek) | F142: =IF('Załącznik 7 - F.O. Zad 6-10'!$V$55,VLOOKUP(C142,'Załącznik 7 - F.O. Zad 6-10'!$C$52:$G$210,5,0),0) -> 0 | G142: 17 | H142: 0 | I142: 3 | J142: 0 | O142: 7 | P142: 0 | U142: 6 | V142: 0 | W142: 1 | X142: 0
B143: 122 | C143: COCA-COLA PUSZKA 0,33L OPK24 | D143: Napój gazowany COCA-COLA, 24 puszki x 0,33 l | E143: 1 op. (24 puszki 0,33 l) | F143: =IF('Załącznik 7 - F.O. Zad 6-10'!$V$55,VLOOKUP(C143,'Załącznik 7 - F.O. Zad 6-10'!$C$52:$G$210,5,0),0) -> 0 | G143: 20 | H143: 0 | I143: 4 | J143: 0 | O143: 9 | P143: 0 | U143: 6 | V143: 0 | W143: 1 | X143: 0
B144: 123 | C144: COCA-COLA ZERO BUTELKA PET 0,5L OPK12 | D144: Napój gazowany COCA-COLA Zero, 12 butelek x 0,5 l | E144: 1 op. (12 butelek) | F144: =IF('Załącznik 7 - F.O. Zad 6-10'!$V$55,VLOOKUP(C144,'Załącznik 7 - F.O. Zad 6-10'!$C$52:$G$210,5,0),0) -> 0 | G144: 15 | H144: 0 | I144: 2 | J144: 0 | O144: 7 | P144: 0 | U144: 6 | V144: 0
B145: 124 | C145: FORTUNA NEKTAR CZ.PORZECZKA 0,3L OPK15 | D145: Nektar czarna porzeczka FORTUNA, 15 butelek x 0,3 l | E145: 1 op. (15 butelek) | F145: =IF('Załącznik 7 - F.O. Zad 6-10'!$V$55,VLOOKUP(C145,'Załącznik 7 - F.O. Zad 6-10'!$C$52:$G$210,5,0),0) -> 0 | G145: 33 | H145: 0 | I145: 15 | J145: 0 | K145: 2 | L145: 0 | M145: 3 | N145: 0 | O145: 7 | P145: 0 | U145: 6 | V145: 0
B146: 125 | C146: FORTUNA SOK MULTIWITAMINA 0,3 L OPK15 | D146: Sok multiwitamina FORTUNA, 15 butelek x 0,3 l | E146: 1 op. (15 butelek) | F146: =IF('Załącznik 7 - F.O. Zad 6-10'!$V$55,VLOOKUP(C146,'Załącznik 7 - F.O. Zad 6-10'!$C$52:$G$210,5,0),0) -> 0 | G146: 70 | H146: 0 | I146: 10 | J146: 0 | K146: 6 | L146: 0 | O146: 19 | P146: 0 | S146: 23 | T146: 0 | U146: 6 | V146: 0 | W146: 6 | X146: 0
B147: 126 | C147: FORTUNA SOK POMARAŃCZOWY 0,3L OPK15 | D147: Sok pomarańczowy FORTUNA, 15 butelek x 0,3 l | E147: 1 op. (15 butelek) | F147: =IF('Załącznik 7 - F.O. Zad 6-10'!$V$55,VLOOKUP(C147,'Załącznik 7 - F.O. Zad 6-10'!$C$52:$G$210,5,0),0) -> 0 | G147: 40 | H147: 0 | I147: 10 | J147: 0 | K147: 6 | L147: 0 | M147: 5 | N147: 0 | O147: 7 | P147: 0 | U147: 6 | V147: 0 | W147: 6 | X147: 0
B148: 127 | C148: FORTUNA SOK POMIDOROWY 0,3L OPK15 | D148: Sok pomidorowy FORTUNA, 15 butelek x 0,3 l | E148: 1 op. (15 butelek) | F148: =IF('Załącznik 7 - F.O. Zad 6-10'!$V$55,VLOOKUP(C148,'Załącznik 7 - F.O. Zad 6-10'!$C$52:$G$210,5,0),0) -> 0 | G148: 92 | H148: 0 | I148: 10 | J148: 0 | M148: 3 | N148: 0 | O148: 30 | P148: 0 | Q148: 5 | R148: 0 | S148: 23 | T148: 0 | U148: 6 | V148: 0 | W148: 15 | X148: 0
B149: 128 | C149: TARCZYN NEKTAR CZ.PORZECZKA 0,3L OPK15 | D149: Nektar czarna porzeczka TARCZYN, 15 butelek x 0,3 l | E149: 1 op. (15 butelek) | F149: =IF('Załącznik 7 - F.O. Zad 6-10'!$V$55,VLOOKUP(C149,'Załącznik 7 - F.O. Zad 6-10'!$C$52:$G$210,5,0),0) -> 0 | G149: 37 | H149: 0 | I149: 3 | J149: 0 | K149: 1 | L149: 0 | O149: 7 | P149: 0 | U149: 6 | V149: 0 | W149: 5 | X149: 0 | Y149: 15 | Z149: 0
B150: 129 | C150: TARCZYN NEKTAR GREJPFRUT 0,3L OPK15 | D150: Nektar czerwony grejpfrut TARCZYN, zgrzewka 15 butelek x 0,3 l | E150: 1 op. (15 butelek) | F150: =IF('Załącznik 7 - F.O. Zad 6-10'!$V$55,VLOOKUP(C150,'Załącznik 7 - F.O. Zad 6-10'!$C$52:$G$210,5,0),0) -> 0 | G150: 34 | H150: 0 | I150: 3 | J150: 0 | O150: 7 | P150: 0 | U150: 6 | V150: 0 | W150: 6 | X150: 0 | Y150: 12 | Z150: 0
B151: 130 | C151: TARCZYN SOK JABŁKOWY 0,3L OPK15 | D151: Sok jabłkowy TARCZYN, 15 butelek x 0,3 l | E151: 1 op. (15 butelek) | F151: =IF('Załącznik 7 - F.O. Zad 6-10'!$V$55,VLOOKUP(C151,'Załącznik 7 - F.O. Zad 6-10'!$C$52:$G$210,5,0),0) -> 0 | G151: =I151+K151+M151+O151+Q151+S151+U151+W151+Y151 -> 136 | H151: =G151*F151 -> 0 | I151: 15 | J151: 0 | K151: 6 | L151: =K151*F151 -> 0 | O151: 30 | P151: =O151*F151 -> 0 | Q151: 32 | R151: 0 | S151: 23 | T151: =S151*F151 -> 0 | U151: 6 | V151: 0 | W151: 14 | X151: 0 | Y151: 10 | Z151: 0
B152: 131 | C152: TARCZYN SOK POMARAŃCZOWY 0,3L OPK15 | D152: Sok pomarańczowy TARCZYN, 15 butelek x 0,3 l | E152: 1 op. (15 butelek) | F152: =IF('Załącznik 7 - F.O. Zad 6-10'!$V$55,VLOOKUP(C152,'Załącznik 7 - F.O. Zad 6-10'!$C$52:$G$210,5,0),0) -> 0 | G152: 40 | H152: 0 | I152: 7 | J152: 0 | O152: 7 | P152: 0 | U152: 6 | V152: =U152*F152 -> 0 | W152: 10 | X152: =W152*F152 -> 0 | Y152: 10 | Z152: =Y152*H152 -> 0
B153: 132 | C153: TARCZYN SOK POMIDOROWY 300ML OPK15 | D153: Sok pomidorowy TARCZYN, zgrzewka 15 butelek x 0,3 l | E153: 1 op. (15 butelek) | F153: =IF('Załącznik 7 - F.O. Zad 6-10'!$V$55,VLOOKUP(C153,'Załącznik 7 - F.O. Zad 6-10'!$C$52:$G$210,5,0),0) -> 0 | G153: 69 | H153: 0 | I153: 4 | J153: 0 | O153: 7 | P153: 0 | S153: 23 | T153: 0 | U153: 6 | V153: 0 | W153: 9 | X153: 0 | Y153: 20 | Z153: 0
B154: 133 | C154: TYMBARK JABŁKO SOK 100% 300ML OPK12 | D154: Sok TYMBARK jabłko 100%, 12 butelek x 300 ml | E154: 1 op. (12 butelek) | F154: =IF('Załącznik 7 - F.O. Zad 6-10'!$V$55,VLOOKUP(C154,'Załącznik 7 - F.O. Zad 6-10'!$C$52:$G$210,5,0),0) -> 0 | G154: 47 | H154: 0 | I154: 4 | J154: 0 | M154: 5 | N154: 0 | O154: 7 | P154: 0 | U154: 6 | V154: 0 | W154: 5 | X154: 0 | Y154: 20 | Z154: 0
B155: 134 | C155: TYMBARK POMARAŃCZ SOK 100% 300ML OPK12 | D155: Sok TYMBARK pomarańcza 100%, 12 butelek x 300 ml | E155: 1 op. (12 butelek) | F155: =IF('Załącznik 7 - F.O. Zad 6-10'!$V$55,VLOOKUP(C155,'Załącznik 7 - F.O. Zad 6-10'!$C$52:$G$210,5,0),0) -> 0 | G155: 47 | H155: 0 | I155: 4 | J155: 0 | M155: 4 | N155: 0 | O155: 7 | P155: 0 | U155: 6 | V155: 0 | W155: 6 | X155: 0 | Y155: 20 | Z155: 0
B156: 135 | C156: TYMBARK POMIDOR SOK 100% 300ML OPK12 | D156: Sok TYMBARK pomidor 100%, 12 butelek x 300 ml | E156: 1 op. (12 butelek) | F156: =IF('Załącznik 7 - F.O. Zad 6-10'!$V$55,VLOOKUP(C156,'Załącznik 7 - F.O. Zad 6-10'!$C$52:$G$210,5,0),0) -> 0 | G156: 44 | H156: 0 | I156: 4 | J156: 0 | O156: 7 | P156: 0 | U156: 6 | V156: 0 | W156: 7 | X156: 0 | Y156: 20 | Z156: 0
B157: 136 | C157: TYMBARK VITAMINI BAN/MAR/JAB 300ML OPK12 | D157: Sok TYMBARK Vitamini banan, marchewka, jabłko, 12 butelek x 300 ml | E157: 1 op. (12 butelek) | F157: =IF('Załącznik 7 - F.O. Zad 6-10'!$V$55,VLOOKUP(C157,'Załącznik 7 - F.O. Zad 6-10'!$C$52:$G$210,5,0),0) -> 0 | G157: 40 | H157: 0 | I157: 6 | J157: 0 | O157: 7 | P157: 0 | S157: 1 | T157: 0 | U157: 6 | V157: 0 | Y157: 20 | Z157: 0
B158: 137 | C158: CISOWIANKA LEKKOGAZOWANA WODA 0,5L OPK12 | D158: Woda mineralna CISOWIANKA lekko gazowana, zgrzewka 12 butelek x 0,5 l | E158: 1 op. (12 butelek) | F158: =IF('Załącznik 7 - F.O. Zad 6-10'!$V$55,VLOOKUP(C158,'Załącznik 7 - F.O. Zad 6-10'!$C$52:$G$210,5,0),0) -> 0 | G158: 149 | H158: 0 | I158: 100 | J158: 0 | O158: 27 | P158: 0 | Q158: 5 | R158: 0 | S158: 1 | T158: 0 | U158: 6 | V158: 0 | W158: 10 | X158: 0
B159: 138 | C159: CISOWIANKA PERLAGE GAZ SZKŁO 300ML OPK24 | D159: Woda mineralna CISOWIANKA Perlage gazowana, zgrzewka 24 butelki x 300 ml | E159: 1 op. (24 butelki) | F159: =IF('Załącznik 7 - F.O. Zad 6-10'!$V$55,VLOOKUP(C159,'Załącznik 7 - F.O. Zad 6-10'!$C$52:$G$210,5,0),0) -> 0 | G159: 114 | H159: 0 | I159: 20 | J159: 0 | O159: 17 | P159: 0 | S159: 66 | T159: 0 | U159: 6 | V159: 0 | W159: 5 | X159: 0
B160: 139 | C160: CISOWIANKA WODA GAZOWANA 1,5L OPK6 | D160: Woda mineralna CISOWIANKA gazowana, zgrzewka 6 butelek x 1,5 l | E160: 1 op. (6 butelek) | F160: =IF('Załącznik 7 - F.O. Zad 6-10'!$V$55,VLOOKUP(C160,'Załącznik 7 - F.O. Zad 6-10'!$C$52:$G$210,5,0),0) -> 0 | G160: 1007 | H160: 0 | I160: 120 | J160: 0 | O160: 10 | P160: 0 | Q160: 5 | R160: 0 | S160: 866 | T160: 0 | U160: 6 | V160: 0
B161: 140 | C161: CISOWIANKA WODA NIEGAZ SZKŁO 300ML OPK24 | D161: Woda mineralna CISOWIANKA niegazowana szklane butelki x 300 ml | E161: 1 op. (24 butelki) | F161: =IF('Załącznik 7 - F.O. Zad 6-10'!$V$55,VLOOKUP(C161,'Załącznik 7 - F.O. Zad 6-10'!$C$52:$G$210,5,0),0) -> 0 | G161: 34 | H161: 0 | I161: 10 | J161: 0 | O161: 7 | P161: 0 | S161: 1 | T161: 0 | U161: 6 | V161: 0 | W161: 10 | X161: 0
B162: 141 | C162: CISOWIANKA WODA NIEGAZOWANA 0,5L OPK12 | D162: Woda mineralna CISOWIANKA niegazowana, zgrzewka 12 butelek x 0,5 l | E162: 1 op. (12 butelek) | F162: =IF('Załącznik 7 - F.O. Zad 6-10'!$V$55,VLOOKUP(C162,'Załącznik 7 - F.O. Zad 6-10'!$C$52:$G$210,5,0),0) -> 0 | G162: 307 | H162: 0 | I162: 220 | J162: 0 | O162: 50 | P162: 0 | Q162: 5 | R162: 0 | S162: 1 | T162: 0 | U162: 7 | V162: 0 | W162: 24 | X162: 0
B163: 142 | C163: CISOWIANKA WODA NIEGAZOWANA 1,5L OPK6 | D163: Woda mineralna CISOWIANKA niegazowana, zgrzewka 6 butelek x 1,5 l | E163: 1 op. (6 butelek) | F163: =IF('Załącznik 7 - F.O. Zad 6-10'!$V$55,VLOOKUP(C163,'Załącznik 7 - F.O. Zad 6-10'!$C$52:$G$210,5,0),0) -> 0 | G163: 1177 | H163: 0 | I163: 280 | J163: 0 | O163: 14 | P163: 0 | Q163: 5 | R163: 0 | S163: 866 | T163: 0 | U163: 6 | V163: 0 | W163: 6 | X163: 0
B164: 143 | C164: CISOWIANKA WODA SPORT NIEGAZ 0,7L OPK8 | D164: Woda mineralna CISOWIANKA Sport niegazowana, zgrzewka 8 butelek x 0,7 l | E164: 1 op. (8 butelek) | F164: =IF('Załącznik 7 - F.O. Zad 6-10'!$V$55,VLOOKUP(C164,'Załącznik 7 - F.O. Zad 6-10'!$C$52:$G$210,5,0),0) -> 0 | G164: 33 | H164: 0 | I164: 20 | J164: 0 | O164: 7 | P164: 0 | U164: 6 | V164: 0
B165: 144 | C165: KINGA PIENINSKA WODA GAZOWANA 0,5L OPK12 | D165: Woda mineralna KINGA PIENIŃSKA gazowana 0,5 l | E165: 1 op. (12 butelek) | F165: =IF('Załącznik 7 - F.O. Zad 6-10'!$V$55,VLOOKUP(C165,'Załącznik 7 - F.O. Zad 6-10'!$C$52:$G$210,5,0),0) -> 0 | G165: 76 | H165: 0 | I165: 25 | J165: 0 | K165: 24 | L165: 0 | O165: 20 | P165: 0 | S165: 1 | T165: 0 | U165: 6 | V165: 0
B166: 145 | C166: KINGA PIENINSKA WODA NIEGAZOW 0,5L OPK12 | D166: Woda mineralna KINGA PIENIŃSKA niegazowana, zgrzewka 12 butelek x 0,5 l | E166: 1 op. (12 butelek) | F166: =IF('Załącznik 7 - F.O. Zad 6-10'!$V$55,VLOOKUP(C166,'Załącznik 7 - F.O. Zad 6-10'!$C$52:$G$210,5,0),0) -> 0 | G166: 101 | H166: 0 | I166: 60 | J166: 0 | K166: 26 | L166: 0 | O166: 7 | P166: 0 | S166: 1 | T166: 0 | U166: 7 | V166: 0
B167: 146 | C167: KROPLA BESKIDU WODA GAZ 0,5L OPK12 | D167: Woda mineralna KROPLA BESKIDU gazowana, zgrzewka 12 butelek x 0,5 l | E167: 1 op. (12 butelek) | F167: =IF('Załącznik 7 - F.O. Zad 6-10'!$V$55,VLOOKUP(C167,'Załącznik 7 - F.O. Zad 6-10'!$C$52:$G$210,5,0),0) -> 0 | G167: 787 | H167: 0 | I167: 100 | J167: 0 | K167: 8 | L167: 0 | O167: 6 | P167: 0 | Q167: 14 | R167: 0 | S167: 633 | T167: 0 | U167: 6 | V167: 0 | W167: 20 | X167: 0
B168: 147 | C168: KROPLA BESKIDU WODA GAZ 1,5L OPK6 | D168: Woda mineralna KROPLA BESKIDU gazowana, zgrzewka 6 butelek x 1,5 l | E168: 1 op. (6 butelek) | F168: =IF('Załącznik 7 - F.O. Zad 6-10'!$V$55,VLOOKUP(C168,'Załącznik 7 - F.O. Zad 6-10'!$C$52:$G$210,5,0),0) -> 0 | G168: 167 | H168: 0 | I168: 60 | J168: 0 | O168: 7 | P168: 0 | Q168: 92 | R168: 0 | S168: 2 | T168: 0 | U168: 6 | V168: 0
B169: 148 | C169: KROPLA BESKIDU WODA NIEGAZ 0,5L OPK12 | D169: Woda mineralna KROPLA BESKIDU niegazowana, zgrzewka 12 butelek x 0,5 l | E169: 1 op. (12 butelek) | F169: =IF('Załącznik 7 - F.O. Zad 6-10'!$V$55,VLOOKUP(C169,'Załącznik 7 - F.O. Zad 6-10'!$C$52:$G$210,5,0),0) -> 0 | G169: 406 | H169: 0 | I169: 130 | J169: 0 | O169: 11 | P169: 0 | Q169: 35 | R169: 0 | S169: 200 | T169: 0 | U169: 6 | V169: 0 | W169: 24 | X169: 0
B170: 149 | C170: KROPLA BESKIDU WODA NIEGAZ 1,5L OPK6 | D170: Woda mineralna KROPLA BESKIDU niegazowana, zgrzewka 6 butelek x 1,5 l | E170: 1 op. (6 butelek) | F170: =IF('Załącznik 7 - F.O. Zad 6-10'!$V$55,VLOOKUP(C170,'Załącznik 7 - F.O. Zad 6-10'!$C$52:$G$210,5,0),0) -> 0 | G170: 366 | H170: 0 | I170: 90 | J170: 0 | O170: 7 | P170: 0 | Q170: 90 | R170: 0 | S170: 173 | T170: 0 | U170: 6 | V170: 0
B171: 150 | C171: NAŁĘCZOWIANKA WODA NIEGAZ 0,5L OPK12 | D171: Woda mineralna NAŁĘCZOWIANKA niegazowana, zgrzewka 12 butelek x 0,5 l | E171: 1 op. (12 butelek) | F171: =IF('Załącznik 7 - F.O. Zad 6-10'!$V$55,VLOOKUP(C171,'Załącznik 7 - F.O. Zad 6-10'!$C$52:$G$210,5,0),0) -> 0 | G171: 229 | H171: 0 | I171: 165 | J171: 0 | O171: 22 | P171: 0 | Q171: 35 | R171: 0 | S171: 1 | T171: 0 | U171: 6 | V171: 0
B172: 151 | C172: NAŁĘCZOWIANKA WODA NIEGAZ 1,5L OPK6 | D172: Woda mineralna NAŁĘCZOWIANKA niegazowana, zgrzewka 6 butelek x 1,5 l | E172: 1 op. (6 butelek) | F172: =IF('Załącznik 7 - F.O. Zad 6-10'!$V$55,VLOOKUP(C172,'Załącznik 7 - F.O. Zad 6-10'!$C$52:$G$210,5,0),0) -> 0 | G172: 189 | H172: 0 | I172: 60 | J172: 0 | O172: 9 | P172: 0 | S172: 113 | T172: 0 | U172: 7 | V172: 0
B173: 152 | C173: NESTLE PURE LIFE WODA GAZ 1,5L OPK6 | D173: Woda źródlana NESTLÉ Pure Life gazowana, zgrzewka 6 butelek x 1,5 l | E173: 1 op. (6 butelek) | F173: =IF('Załącznik 7 - F.O. Zad 6-10'!$V$55,VLOOKUP(C173,'Załącznik 7 - F.O. Zad 6-10'!$C$52:$G$210,5,0),0) -> 0 | G173: 70 | H173: 0 | I173: 60 | J173: 0 | O173: 2 | P173: 0 | S173: 2 | T173: 0 | U173: 6 | V173: 0
B174: 153 | C174: NESTLE PURE LIFE WODA NIEGAZ 0,5L OPK12 | D174: Woda źródlana NESTLÉ Pure Life niegazowana, zgrzewka 12 butelek x 0,5 l | E174: 1 op. (12 butelek) | F174: =IF('Załącznik 7 - F.O. Zad 6-10'!$V$55,VLOOKUP(C174,'Załącznik 7 - F.O. Zad 6-10'!$C$52:$G$210,5,0),0) -> 0 | G174: 83 | H174: 0 | I174: 60 | J174: 0 | O174: 6 | P174: 0 | Q174: 10 | R174: 0 | S174: 1 | T174: 0 | U174: 6 | V174: 0
B175: 154 | C175: NESTLE PURE LIFE WODA NIEGAZ 1,5L OPK6 | D175: Woda źródlana NESTLÉ Pure Life niegazowana, zgrzewka 6 butelek x 1,5 l | E175: 1 op. (6 butelek) | F175: =IF('Załącznik 7 - F.O. Zad 6-10'!$V$55,VLOOKUP(C175,'Załącznik 7 - F.O. Zad 6-10'!$C$52:$G$210,5,0),0) -> 0 | G175: 215 | H175: 0 | I175: 195 | J175: 0 | O175: 2 | P175: 0 | Q175: 10 | R175: 0 | S175: 2 | T175: 0 | U175: 6 | V175: 0
B176: 155 | C176: ŻYWIEC ZDRÓJ WODA GAZOWANA 0.5L OPK24 | D176: Woda źródlana ŻYWIOŁ od ŻYWIEC ZDRÓJ gazowana, 24 butelki x 0,5 l | E176: 1 op. (24 butelki) | F176: =IF('Załącznik 7 - F.O. Zad 6-10'!$V$55,VLOOKUP(C176,'Załącznik 7 - F.O. Zad 6-10'!$C$52:$G$210,5,0),0) -> 0 | G176: 21 | H176: 0 | I176: 10 | J176: 0 | K176: 1 | L176: 0 | O176: 3 | P176: 0 | S176: 1 | T176: 0 | U176: 6 | V176: 0
B177: 156 | C177: ŻYWIEC ZDRÓJ WODA GAZOWANA 1,5L OPK6 | D177: Woda źródlana ŻYWIOŁ od ŻYWIEC ZDRÓJ gazowana, zgrzewka 6 butelek x 1,5 l | E177: 1 op. ( 6 butelek) | F177: =IF('Załącznik 7 - F.O. Zad 6-10'!$V$55,VLOOKUP(C177,'Załącznik 7 - F.O. Zad 6-10'!$C$52:$G$210,5,0),0) -> 0 | G177: 188 | H177: 0 | I177: 30 | J177: 0 | O177: 3 | P177: 0 | Q177: 30 | R177: 0 | S177: 100 | T177: 0 | U177: 5 | V177: 0 | Y177: 20 | Z177: 0
B178: 157 | C178: ŻYWIEC ZDRÓJ WODA NIEGAZOWANA 0.5L OPK24 | D178: Woda źródlana ŻYWIEC ZDRÓJ niegazowana, 24 butelki x 0,5 l | E178: 1 op. (24 butelki) | F178: =IF('Załącznik 7 - F.O. Zad 6-10'!$V$55,VLOOKUP(C178,'Załącznik 7 - F.O. Zad 6-10'!$C$52:$G$210,5,0),0) -> 0 | G178: 162 | H178: 0 | I178: 55 | J178: 0 | O178: 19 | P178: 0 | Q178: 50 | R178: 0 | S178: 2 | T178: 0 | U178: 6 | V178: 0 | W178: 10 | X178: 0 | Y178: 20 | Z178: 0
B179: 158 | C179: ŻYWIEC ZDRÓJ WODA NIEGAZOWANA 1,5L OPK6 | D179: Woda źródlana ŻYWIEC ZDRÓJ niegazowana, zgrzewka 6 butelek x 1,5 l | E179: 1 op. (6 butelek) | F179: =IF('Załącznik 7 - F.O. Zad 6-10'!$V$55,VLOOKUP(C179,'Załącznik 7 - F.O. Zad 6-10'!$C$52:$G$210,5,0),0) -> 0 | G179: 155 | H179: 0 | I179: 50 | J179: =I179*F179 -> 0 | K179: 25 | L179: 0 | O179: 7 | P179: 0 | Q179: 10 | R179: =Q179*F179 -> 0 | S179: 56 | T179: 0 | U179: 7 | V179: 0
G180: =SUM(G22:G179) -> 23602 | I180: =SUM(I22:I179) -> 6401 | K180: =SUM(K22:K179) -> 1326 | M180: =SUM(M22:M179) -> 375 | O180: =SUM(O22:O179) -> 2464 | Q180: =SUM(Q22:Q179) -> 1701 | S180: =SUM(S22:S179) -> 8958 | U180: =SUM(U22:U179) -> 954 | W180: =SUM(W22:W179) -> 566 | Y180: =SUM(Y22:Y179) -> 857
I181: ŁĄCZNA CENA NETTO DLA ENEA Centrum Sp. z o.o. | J181: =SUM(J22:J179) -> 0 | K181: ŁĄCZNA CENA NETTO DLA ENEA Logistyka sp. z o.o. | L181: =SUM(L22:L179) -> 0 | M181: ŁĄCZNA CENA NETTO DLA ENEA Nowa Energia sp. z.o.o. | N181: =SUM(N22:N179) -> 0 | O181: ŁĄCZNA CENA NETTO DLA ENEA Operator Sp. z o.o. | P181: =SUM(P22:P179) -> 0 | Q181: ŁĄCZNA CENA NETTO DLA ENEA Oświetlenie sp. z.o.o. | R181: =SUM(R22:R179) -> 0 | S181: ŁĄCZNA CENA NETTO DLA ENEA Pomiary Sp. z o.o. | T181: =SUM(T22:T179) -> 0 | U181: ŁĄCZNA CENA NETTO DLA ENEA Serwis sp. z.o.o. | V181: =SUM(V22:V179) -> 0 | W181: ŁĄCZNA CENA NETTO DLA ENEA S.A. | X181: =SUM(X22:X179) -> 0 | Y181: ŁĄCZNA CENA NETTO DLA ENEA Trading Sp. z o.o. | Z181: =SUM(Z22:Z179) -> 0
C186: miejscowość i data | F186: Pieczęć imienna i podpis przedstawiciela(i) Wykonawcy

Sheet Załącznik 9-F.O. dla Zadania 7
B1: Oznaczenie sprawy: 1400/DW00/ZU/KZ/2021/0000074365
B3: ZAŁĄCZNIK NR 9 - FORMULARZ OFERTY DLA ZADANIA 7 - DOSTAWA ARTYKUŁÓW SPOŻYWCZYCH: ZIELONA GÓRA; GORZÓW WLKP. + WOJ. LUBUSKIE; SZCZECIN + WOJ. ZACHODNIOPOMORSKIE
C6: (pieczęć wykonawcy)
B8: Ja, niżej podpisany (My niżej podpisani):
B11: działając w imieniu i na rzecz:
B14: Składam(y) ofertę na wykonanie zamówienia, którego przedmiotem jest:
B15: Dostawa artykułów biurowych, spożywczych i higienicznych dla spółek GK ENEA
B17: ZADANIE 7 - Dostawa artykułów spożywczych: Zielona Góra; Gorzów Wlkp. + woj. Lubuskie; Szczecin + woj. Zachodniopomorskie
B19: ŁĄCZNA CENA NETTO OFERTY DLA ZADANIA 7: | D19: =SUM(H22:H179) -> 0
B21: LP | C21: Nazwa produktu | D21: Opis szczegółowy | E21: Jednostka | F21: cena jednostkowa netto | G21: Ilość | H21: Wartość | I21: ENEA Enea Centrum Sp. z o.o. - Szacowana ilość | J21: ŁĄCZNA CENA NETTO DLA ENEA Centrum Sp. z o.o. | K21: ENEA Logistyka sp. z o.o. - Szacowana ilość | L21: ŁĄCZNA CENA NETTO DLA ENEA Logistyka sp. z o.o. | M21: ENEA Operator Sp. z o.o. - Szacowana ilość | N21: ŁĄCZNA CENA NETTO DLA ENEA Operator Sp. z o.o. | O21: ENEA oświetlenie Sp. z o.o. - Szacowana ilość | P21: ŁĄCZNA CENA NETTO DLA ENEA Oświetlenie Sp. z o.o. | Q21: ENEA Pomiary Sp. z o.o. - Szacowana ilość | R21: ŁĄCZNA CENA NETTO DLA ENEA Pomiary Sp. z o.o. | S21: ENEA Serwis Sp. z o.o. - Szacowana ilość | T21: ŁĄCZNA CENA NETTO DLA ENEA Serwis Sp. z o.o. | U21: ENEA S.A. - Szacowana ilość | V21: ŁĄCZNA CENA NETTO DLA ENEA S.A.
B22: 1 | C22: DIAMANT CUKIER BIAŁY KOSTKA 1KG | D22: Cukier biały DIAMANT w kostkach, 1 kg | E22: 1 op. ( 1 kg.) | F22: =IF('Załącznik 7 - F.O. Zad 6-10'!$V$56,VLOOKUP(C22,'Załącznik 7 - F.O. Zad 6-10'!$C$52:$G$210,5,0),0) -> 0 | G22: =I22+K22+M22+O22+Q22+S22+U22 -> 33 | H22: =G22*F22 -> 0 | I22: 1 | J22: =I22*F22 -> 0 | M22: 6 | N22: =M22*F22 -> 0 | Q22: 20 | R22: =Q22*F22 -> 0 | S22: 6 | T22: =S22*F22 -> 0
B23: 2 | C23: DIAMANT CUKIER BIAŁY W SASZET OPK100X5G | D23: Cukier biały DIAMANT, saszetki 100 sztuk x 5 g | E23: 1 op. (100 sztuk) | F23: =IF('Załącznik 7 - F.O. Zad 6-10'!$V$56,VLOOKUP(C23,'Załącznik 7 - F.O. Zad 6-10'!$C$52:$G$210,5,0),0) -> 0 | G23: =I23+K23+M23+O23+Q23+S23+U23 -> 44 | H23: =G23*F23 -> 0 | I23: 2 | J23: =I23*F23 -> 0 | K23: 7 | L23: =K23*F23 -> 0 | M23: 15 | N23: 0 | O23: 5 | P23: =O23*F23 -> 0 | Q23: 4 | R23: 0 | S23: 6 | T23: 0 | U23: 5 | V23: =U23*F23 -> 0
B24: 3 | C24: DIAMANT CUKIER DRY DEMERARA SYPKI 0,5KG | D24: Cukier trzcinowy DIAMANT Dry Demerara, sypki, 500 g | E24: 1 op. ( 500 g) | F24: =IF('Załącznik 7 - F.O. Zad 6-10'!$V$56,VLOOKUP(C24,'Załącznik 7 - F.O. Zad 6-10'!$C$52:$G$210,5,0),0) -> 0 | G24: 81 | H24: 0 | I24: 2 | J24: 0 | M24: 21 | N24: 0 | Q24: 47 | R24: 0 | S24: 6 | T24: 0 | U24: 5 | V24: 0
B25: 4 | C25: DIAMANT CUKIER KRYSZTAŁ BIAŁY 1KG | D25: Cukier biały DIAMANT sypki, 1 kg | E25: 1 op.( 1 kg.) | F25: =IF('Załącznik 7 - F.O. Zad 6-10'!$V$56,VLOOKUP(C25,'Załącznik 7 - F.O. Zad 6-10'!$C$52:$G$210,5,0),0) -> 0 | G25: 191 | H25: 0 | I25: 22 | J25: 0 | K25: 6 | L25: 0 | M25: 25 | N25: 0 | O25: 48 | P25: 0 | Q25: 84 | R25: 0 | S25: 6 | T25: 0
B26: 5 | C26: AHMAD HERBATA EARL GREY OPK100 | D26: Herbata czarna AHMAD Earl Grey, 100 torebek | E26: 1 op. (100 torobek) | F26: =IF('Załącznik 7 - F.O. Zad 6-10'!$V$56,VLOOKUP(C26,'Załącznik 7 - F.O. Zad 6-10'!$C$52:$G$210,5,0),0) -> 0 | G26: 37 | H26: 0 | I26: 10 | J26: 0 | K26: 14 | L26: 0 | M26: 3 | N26: 0 | Q26: 4 | R26: 0 | S26: 6 | T26: 0
B27: 6 | C27: BIG-ACTIVE PURE CEYLON HERBATA OPK100 | D27: Herbata czarna BIG-ACTIVE Pure Ceylon, 100 torebek | E27: 1 op. (100 torobek) | F27: =IF('Załącznik 7 - F.O. Zad 6-10'!$V$56,VLOOKUP(C27,'Załącznik 7 - F.O. Zad 6-10'!$C$52:$G$210,5,0),0) -> 0 | G27: 20 | H27: 0 | I27: 5 | J27: 0 | M27: 6 | N27: 0 | S27: 6 | T27: 0 | U27: 3 | V27: 0
B28: 7 | C28: DILMAH CEYLON GOLD HERBATA 200G OPK100 | D28: Herbata czarna DILMAH Ceylon Gold, 100 torebek | E28: 1 op. (100 torobek) | F28: =IF('Załącznik 7 - F.O. Zad 6-10'!$V$56,VLOOKUP(C28,'Załącznik 7 - F.O. Zad 6-10'!$C$52:$G$210,5,0),0) -> 0 | G28: 39 | H28: 0 | I28: 5 | J28: 0 | K28: 16 | L28: 0 | M28: 4 | N28: 0 | O28: 1 | P28: 0 | Q28: 4 | R28: 0 | S28: 6 | T28: 0 | U28: 3 | V28: 0
B29: 8 | C29: DILMAH EARL GREY HERBATA LIŚCIASTA 125G | D29: Herbata czarna liściasta DILMAH Earl Grey, 125 g | E29: 1 op. ( 125 g) | F29: =IF('Załącznik 7 - F.O. Zad 6-10'!$V$56,VLOOKUP(C29,'Załącznik 7 - F.O. Zad 6-10'!$C$52:$G$210,5,0),0) -> 0 | G29: 13 | H29: 0 | K29: 1 | L29: 0 | M29: 6 | N29: 0 | S29: 6 | T29: 0
B30: 9 | C30: HERBAPOL BREAKFAST HERB MIĘTOWA OPK20 | D30: Herbata miętowa HERBAPOL Breakfast, 20 kopert | E30: 1 op.( 20 torebek) | F30: =IF('Załącznik 7 - F.O. Zad 6-10'!$V$56,VLOOKUP(C30,'Załącznik 7 - F.O. Zad 6-10'!$C$52:$G$210,5,0),0) -> 0 | G30: 23 | H30: 0 | I30: 3 | J30: 0 | M30: 6 | N30: 0 | O30: 2 | P30: 0 | S30: 6 | T30: 0 | U30: 6 | V30: 0
B31: 10 | C31: HERBAPOL HERBATA MALINOWA OPK20 | D31: Herbata owocowa HERBAPOL Herbaciany Ogród malinowa, 20 torebek | E31: 1 op.( 20 torebek) | F31: =IF('Załącznik 7 - F.O. Zad 6-10'!$V$56,VLOOKUP(C31,'Załącznik 7 - F.O. Zad 6-10'!$C$52:$G$210,5,0),0) -> 0 | G31: 61 | H31: 0 | I31: 5 | J31: 0 | K31: 12 | L31: 0 | M31: 18 | N31: 0 | O31: 7 | P31: 0 | Q31: 7 | R31: 0 | S31: 6 | T31: 0 | U31: 6 | V31: 0
B32: 11 | C32: HERBAPOL PROSTO Z LASU OPK20 | D32: Herbata owocowa HERBAPOL Herbaciany Ogród, Prosto z lasu, 20 torebek | E32: 1 op.( 20 torebek) | F32: =IF('Załącznik 7 - F.O. Zad 6-10'!$V$56,VLOOKUP(C32,'Załącznik 7 - F.O. Zad 6-10'!$C$52:$G$210,5,0),0) -> 0 | G32: 21 | H32: 0 | I32: 2 | J32: 0 | K32: 1 | L32: 0 | M32: 6 | N32: 0 | S32: 6 | T32: 0 | U32: 6 | V32: 0
B33: 12 | C33: HERBAPOL ZIELONA HERBATA OPK20 | D33: Herbata zielona HERBAPOL, 20 torebek bez zawieszki | E33: 1 op.( 20 torebek) | F33: =IF('Załącznik 7 - F.O. Zad 6-10'!$V$56,VLOOKUP(C33,'Załącznik 7 - F.O. Zad 6-10'!$C$52:$G$210,5,0),0) -> 0 | G33: 112 | H33: 0 | I33: 15 | J33: 0 | M33: 9 | N33: 0 | O33: 7 | P33: 0 | Q33: 69 | R33: 0 | S33: 6 | T33: 0 | U33: 6 | V33: 0
B34: 13 | C34: Herbata zielona Lipton Piramidki | D34: Herbata zielona LIPTON 20 torebek piramidek | E34: 1 op.( 20 torebek) | F34: =IF('Załącznik 7 - F.O. Zad 6-10'!$V$56,VLOOKUP(C34,'Załącznik 7 - F.O. Zad 6-10'!$C$52:$G$210,5,0),0) -> 0 | G34: 18 | H34: 0 | M34: 6 | N34: 0 | S34: 6 | T34: 0 | U34: 6 | V34: 0
B35: 14 | C35: IRVING BIAŁ POZIOMK/MANDAR HERBATA OPK20 | D35: Harbata biała IRVING poziomkowa z mandarynką, 20 kopert | E35: 1 op.( 20 torebek) | F35: =IF('Załącznik 7 - F.O. Zad 6-10'!$V$56,VLOOKUP(C35,'Załącznik 7 - F.O. Zad 6-10'!$C$52:$G$210,5,0),0) -> 0 | G35: 15 | H35: 0 | I35: 2 | J35: 0 | K35: 1 | L35: 0 | M35: 6 | N35: 0 | S35: 6 | T35: 0
B36: 15 | C36: IRVING HERBATA CLASSIC OPK100 | D36: Herbata czarna IRVING Classic, 100 torebek | E36: 1 op.( 100 torebek) | F36: =IF('Załącznik 7 - F.O. Zad 6-10'!$V$56,VLOOKUP(C36,'Załącznik 7 - F.O. Zad 6-10'!$C$52:$G$210,5,0),0) -> 0 | G36: 19 | H36: 0 | I36: 8 | J36: 0 | M36: 1 | N36: 0 | Q36: 4 | R36: 0 | S36: 6 | T36: 0
B37: 16 | C37: LIPTON EARL GREY HERBATA OPK100 | D37: Herbata czarna LIPTON Earl Grey, 100 torebek | E37: 1 op. (100 torebek) | F37: =IF('Załącznik 7 - F.O. Zad 6-10'!$V$56,VLOOKUP(C37,'Załącznik 7 - F.O. Zad 6-10'!$C$52:$G$210,5,0),0) -> 0 | G37: 204 | H37: 0 | I37: 10 | J37: 0 | K37: 48 | L37: 0 | M37: 8 | N37: 0 | O37: 5 | P37: 0 | Q37: 127 | R37: 0 | S37: 6 | T37: 0
B38: 17 | C38: LIPTON MELISA/WIŚNIA HERBATAOPK20 | D38: Herbata ziołowa LIPTON Melisa z wiśnią, 20 torebek | E38: 1 op. (20 torebek) | F38: =IF('Załącznik 7 - F.O. Zad 6-10'!$V$56,VLOOKUP(C38,'Załącznik 7 - F.O. Zad 6-10'!$C$52:$G$210,5,0),0) -> 0 | G38: 23 | H38: 0 | I38: 5 | J38: 0 | M38: 6 | N38: 0 | S38: 6 | T38: 0 | U38: 6 | V38: 0
B39: 18 | C39: LIPTON PYRAMID CYTRYNOWA Z MELISĄ OPK20 | D39: Herbata czarna LIPTON cytrynowa z melisą, 20 torebek piramidek | E39: 1 op. (20 torebek) | F39: =IF('Załącznik 7 - F.O. Zad 6-10'!$V$56,VLOOKUP(C39,'Załącznik 7 - F.O. Zad 6-10'!$C$52:$G$210,5,0),0) -> 0 | G39: 24 | H39: 0 | I39: 7 | J39: 0 | M39: 8 | N39: 0 | O39: 3 | P39: 0 | S39: 6 | T39: 0
B40: 19 | C40: LIPTON PYRAMID FOREST FRUIT | D40: Herbata owocowa LIPTON owoce leśne, 20 torebek piramidek | E40: 1 op. (20 torebek) | F40: =IF('Załącznik 7 - F.O. Zad 6-10'!$V$56,VLOOKUP(C40,'Załącznik 7 - F.O. Zad 6-10'!$C$52:$G$210,5,0),0) -> 0 | G40: 20 | H40: 0 | M40: 6 | N40: 0 | S40: 8 | T40: 0 | U40: 6 | V40: 0
B41: 20 | C41: LIPTON YELLOW LABEL HERBATA OPK100 | D41: Herbata czarna LIPTON Yellow Label, 100 torebek | E41: 1 op. (100 torebek) | F41: =IF('Załącznik 7 - F.O. Zad 6-10'!$V$56,VLOOKUP(C41,'Załącznik 7 - F.O. Zad 6-10'!$C$52:$G$210,5,0),0) -> 0 | G41: 768 | H41: 0 | I41: 10 | J41: 0 | K41: 87 | L41: 0 | M41: 20 | N41: 0 | O41: 324 | P41: 0 | Q41: 317 | R41: 0 | S41: 6 | T41: 0 | U41: 4 | V41: 0
B42: 21 | C42: LIPTON YELLOW LABEL HERBATA OPK50 | D42: Herbata czarna LIPTON Yellow Label, 50 torebek | E42: 1 op. (50 torebek) | F42: =IF('Załącznik 7 - F.O. Zad 6-10'!$V$56,VLOOKUP(C42,'Załącznik 7 - F.O. Zad 6-10'!$C$52:$G$210,5,0),0) -> 0 | G42: 111 | H42: 0 | I42: 10 | J42: 0 | K42: 75 | L42: 0 | M42: 20 | N42: 0 | S42: 6 | T42: 0
B43: 22 | C43: LIPTON ZIELONA CITRUS HERBATA OPK25 | D43: Herbata zielona LIPTON cytrusowa, 25 torebek | E43: 1 op. (25 torebek) | F43: =IF('Załącznik 7 - F.O. Zad 6-10'!$V$56,VLOOKUP(C43,'Załącznik 7 - F.O. Zad 6-10'!$C$52:$G$210,5,0),0) -> 0 | G43: 45 | H43: 0 | I43: 5 | J43: 0 | K43: 3 | L43: 0 | M43: 18 | N43: 0 | O43: 5 | P43: 0 | Q43: 4 | R43: 0 | S43: 6 | T43: 0 | U43: 4 | V43: 0
B44: 23 | C44: LIPTON ZIELONA MIĘTOWA HERBATA OPK25 | D44: Herbata zielona LIPTON miętowa, 25 torebek | E44: 1 op. (25 torebek) | F44: =IF('Załącznik 7 - F.O. Zad 6-10'!$V$56,VLOOKUP(C44,'Załącznik 7 - F.O. Zad 6-10'!$C$52:$G$210,5,0),0) -> 0 | G44: 38 | H44: 0 | I44: 5 | J44: 0 | M44: 18 | N44: 0 | O44: 2 | P44: 0 | Q44: 4 | R44: 0 | S44: 6 | T44: 0 | U44: 3 | V44: 0
B45: 24 | C45: TEEKANNE BLACK CURRANT HERBATA OPK20 | D45: Herbata owocowa TEEKANNE World of Fruits, Black Currant, 20 kopert | E45: 1 op. (20 torebek) | F45: =IF('Załącznik 7 - F.O. Zad 6-10'!$V$56,VLOOKUP(C45,'Załącznik 7 - F.O. Zad 6-10'!$C$52:$G$210,5,0),0) -> 0 | G45: 14 | H45: 0 | I45: 2 | J45: 0 | M45: 6 | N45: 0 | S45: 6 | T45: 0
B46: 25 | C46: TEEKANNE EARL GREY HERBATA OPK100 | D46: Herbata czarna TEEKANNE Earl Grey, 100 torebek | E46: 1 op. (100 torebek) | F46: =IF('Załącznik 7 - F.O. Zad 6-10'!$V$56,VLOOKUP(C46,'Załącznik 7 - F.O. Zad 6-10'!$C$52:$G$210,5,0),0) -> 0 | G46: 27 | H46: 0 | I46: 6 | J46: 0 | K46: 3 | L46: 0 | M46: 8 | N46: 0 | Q46: 4 | R46: 0 | S46: 6 | T46: 0
B47: 26 | C47: TEEKANNE WORLD OF FRUITS ZESTAW OPK30 | D47: Zestaw herbat owocowych TEEKANNE World of Fruits, 30 kopert | E47: 1 op. (30 torebek) | F47: =IF('Załącznik 7 - F.O. Zad 6-10'!$V$56,VLOOKUP(C47,'Załącznik 7 - F.O. Zad 6-10'!$C$52:$G$210,5,0),0) -> 0 | G47: 17 | H47: 0 | I47: 2 | J47: 0 | M47: 8 | N47: 0 | O47: 1 | P47: 0 | S47: 6 | T47: 0
B48: 27 | C48: TEEKANNE ZIELON OPUNCJA HERBATA OPK20 | D48: Herbata zielona TEEKANNE z opuncją, 20 kopert | E48: 1 op. (20 torebek) | F48: =IF('Załącznik 7 - F.O. Zad 6-10'!$V$56,VLOOKUP(C48,'Załącznik 7 - F.O. Zad 6-10'!$C$52:$G$210,5,0),0) -> 0 | G48: 44 | H48: 0 | I48: 5 | J48: 0 | K48: 5 | L48: 0 | M48: 21 | N48: 0 | Q48: 7 | R48: 0 | S48: 6 | T48: 0
B49: 28 | C49: VITAX HERBATA MELISA I POMARAŃCZA OPK20 | D49: Herbata owocowa VITAX Inspirations melisa & pomarańcza, 20 torebek | E49: 1 op. (20 torebek) | F49: =IF('Załącznik 7 - F.O. Zad 6-10'!$V$56,VLOOKUP(C49,'Załącznik 7 - F.O. Zad 6-10'!$C$52:$G$210,5,0),0) -> 0 | G49: 34 | H49: 0 | I49: 8 | J49: 0 | M49: 16 | N49: 0 | Q49: 4 | R49: 0 | S49: 6 | T49: 0
B50: 29 | C50: VITAX HERBATA ZIOŁOWA MELISA OPK20 | D50: Herbata ziołowa VITAX melisa, 20 okrągłych torebek bez zawieszki | E50: 1 op. (20 torebek) | F50: =IF('Załącznik 7 - F.O. Zad 6-10'!$V$56,VLOOKUP(C50,'Załącznik 7 - F.O. Zad 6-10'!$C$52:$G$210,5,0),0) -> 0 | G50: 23 | H50: 0 | I50: 6 | J50: 0 | M50: 3 | N50: 0 | Q50: 4 | R50: 0 | S50: 6 | T50: 0 | U50: 4 | V50: 0
B51: 30 | C51: VITAX HERBATA ZIOŁOWA MIĘTA OPK20 | D51: Herbata ziołowa VITAX mięta, 20 okrągłych torebek bez zawieszki | E51: 1 op. (20 torebek) | F51: =IF('Załącznik 7 - F.O. Zad 6-10'!$V$56,VLOOKUP(C51,'Załącznik 7 - F.O. Zad 6-10'!$C$52:$G$210,5,0),0) -> 0 | G51: 43 | H51: 0 | I51: 10 | J51: 0 | M51: 10 | N51: 0 | Q51: 17 | R51: 0 | S51: 6 | T51: 0
B52: 31 | C52: VITAX HERBATA ŻURAWINA I MALINA OPK20 | D52: Herbata owocowa VITAX Inspirations żurawina & malina, 20 torebek | E52: 1 op. (20 torebek) | F52: =IF('Załącznik 7 - F.O. Zad 6-10'!$V$56,VLOOKUP(C52,'Załącznik 7 - F.O. Zad 6-10'!$C$52:$G$210,5,0),0) -> 0 | G52: 36 | H52: 0 | I52: 2 | J52: 0 | M52: 19 | N52: 0 | O52: 1 | P52: 0 | Q52: 4 | R52: 0 | S52: 6 | T52: 0 | U52: 4 | V52: 0
B53: 32 | C53: VITAX NAPAR RUMIANEK OPK20 | D53: Herbata ziołowa VITAX rumianek, 20 kwadratowych torebek bez zawieszki | E53: 1 op. (20 torebek) | F53: =IF('Załącznik 7 - F.O. Zad 6-10'!$V$56,VLOOKUP(C53,'Załącznik 7 - F.O. Zad 6-10'!$C$52:$G$210,5,0),0) -> 0 | G53: 15 | H53: 0 | I53: 5 | J53: 0 | M53: 4 | N53: 0 | S53: 6 | T53: 0
B54: 33 | C54: ASTRA ŁAGODNA TRADYCYJNA KAWA MIEL 250 G | D54: Kawa ziarnista Astra Łagodna 250 g | E54: 1 op. (250 g) | F54: =IF('Załącznik 7 - F.O. Zad 6-10'!$V$56,VLOOKUP(C54,'Załącznik 7 - F.O. Zad 6-10'!$C$52:$G$210,5,0),0) -> 0 | G54: 23 | H54: 0 | M54: 17 | N54: 0 | S54: 6 | T54: 0
B55: 34 | C55: ASTRA ŁAGODNA TRADYCYJNA KAWA ZIARN 1 KG | D55: Kawa ziarnista Astra Łagodna 1 kg | E55: 1 op. (1 kg) | F55: =IF('Załącznik 7 - F.O. Zad 6-10'!$V$56,VLOOKUP(C55,'Załącznik 7 - F.O. Zad 6-10'!$C$52:$G$210,5,0),0) -> 0 | G55: 57 | H55: 0 | K55: 21 | L55: 0 | M55: 30 | N55: 0 | S55: 6 | T55: 0
B56: 35 | C56: DUNI KUBEK PAPIER BIAŁY 210ML OPK50 | D56: Kubek papierowy do gorących i zminych napojów 210 ml | E56: 1 op. (50 szt.) | F56: =IF('Załącznik 7 - F.O. Zad 6-10'!$V$56,VLOOKUP(C56,'Załącznik 7 - F.O. Zad 6-10'!$C$52:$G$210,5,0),0) -> 0 | G56: 15 | H56: 0 | I56: 1 | J56: 0 | K56: 1 | L56: 0 | M56: 6 | N56: 0 | O56: 1 | P56: 0 | S56: 6 | T56: 0
B57: 36 | C57: EDUSCHO CAFFE CREMA KAWA ZIARNISTA 1KG | D57: Kawa ziarnista EDUSCHO Caffe Crema, 1 kg | E57: 1 op. ( 1 kg.) | F57: =IF('Załącznik 7 - F.O. Zad 6-10'!$V$56,VLOOKUP(C57,'Załącznik 7 - F.O. Zad 6-10'!$C$52:$G$210,5,0),0) -> 0 | G57: 163 | H57: 0 | M57: 21 | N57: 0 | O57: 36 | P57: 0 | Q57: 100 | R57: 0 | S57: 6 | T57: 0
B58: 37 | C58: ESPRESSO KARMELOWE OPK50 NNSA 8868 | D58: Kawa w kapsułkach NESPRESSO ESPRESSO CARAMEL, 50 szt. (box) | E58: 1 op. (50 szt.) | F58: =IF('Załącznik 7 - F.O. Zad 6-10'!$V$56,VLOOKUP(C58,'Załącznik 7 - F.O. Zad 6-10'!$C$52:$G$210,5,0),0) -> 0 | G58: 12 | H58: 0 | M58: 6 | N58: 0 | S58: 6 | T58: 0
B59: 38 | C59: ESPRESSO WANILIOWE OPK50 NNSA 8869 | D59: Kawa w kapsułkach NESPRESSO ESPRESSO VANILLA, 50 szt. (box) | E59: 2 op. (50 szt.) | F59: =IF('Załącznik 7 - F.O. Zad 6-10'!$V$56,VLOOKUP(C59,'Załącznik 7 - F.O. Zad 6-10'!$C$52:$G$210,5,0),0) -> 0 | G59: 12 | H59: 0 | M59: 6 | N59: 0 | S59: 6 | T59: 0
B60: 39 | C60: INKA KAWA ZBOŻOWA 200G | D60: Kawa zbożowa INKA, puszka 200 g | E60: 1 op.( 200 g.) | F60: =IF('Załącznik 7 - F.O. Zad 6-10'!$V$56,VLOOKUP(C60,'Załącznik 7 - F.O. Zad 6-10'!$C$52:$G$210,5,0),0) -> 0 | G60: 12 | H60: 0 | I60: 3 | J60: 0 | M60: 3 | N60: 0 | S60: 6 | T60: 0
B61: 40 | C61: JACOBS BARISTA AMERICANO KAWA ROZPU 155G | D61: Kawa rozpuszczalna JACOBS Barista Americano 155 g | E61: 1 op. (słoik 155g) | F61: =IF('Załącznik 7 - F.O. Zad 6-10'!$V$56,VLOOKUP(C61,'Załącznik 7 - F.O. Zad 6-10'!$C$52:$G$210,5,0),0) -> 0 | G61: 13 | H61: 0 | K61: 1 | L61: 0 | M61: 6 | N61: 0 | S61: 6 | T61: 0
B62: 41 | C62: JACOBS CRONAT GOLD KAWA MIELONA 500G | D62: Kawa mielona JACOBS Cronat Gold, 500 g | E62: 1 op. (500 g.) | F62: =IF('Załącznik 7 - F.O. Zad 6-10'!$V$56,VLOOKUP(C62,'Załącznik 7 - F.O. Zad 6-10'!$C$52:$G$210,5,0),0) -> 0 | G62: 27 | H62: 0 | I62: 5 | J62: 0 | M62: 12 | N62: 0 | S62: 6 | T62: 0 | U62: 4 | V62: 0
B63: 42 | C63: JACOBS CRONAT GOLD KAWA ROZPUSZCZ 200G | D63: Kawa rozpuszczalna JACOBS Cronat Gold, 200 g | E63: 1 op.( 200 g.) | F63: =IF('Załącznik 7 - F.O. Zad 6-10'!$V$56,VLOOKUP(C63,'Załącznik 7 - F.O. Zad 6-10'!$C$52:$G$210,5,0),0) -> 0 | G63: 80 | H63: 0 | I63: 4 | J63: 0 | M63: 3 | N63: 0 | Q63: 67 | R63: 0 | S63: 6 | T63: 0
B64: 43 | C64: JACOBS GOLD CREMA KAWA ROZPUSZCZ 200G | D64: Kawa rozpuszczalna JACOBS Crema Gold, 200 g | E64: 1 op.( 200 g.) | F64: =IF('Załącznik 7 - F.O. Zad 6-10'!$V$56,VLOOKUP(C64,'Załącznik 7 - F.O. Zad 6-10'!$C$52:$G$210,5,0),0) -> 0 | G64: 89 | H64: 0 | I64: 5 | J64: 0 | M64: 8 | N64: 0 | O64: 3 | P64: 0 | Q64: 67 | R64: 0 | S64: 6 | T64: 0
B65: 44 | C65: JACOBS KRONUNG KAWA MIELONA 250G | D65: Kawa mielona JACOBS Kronung, 250 g | E65: 1 op. (250 g.) | F65: =IF('Załącznik 7 - F.O. Zad 6-10'!$V$56,VLOOKUP(C65,'Załącznik 7 - F.O. Zad 6-10'!$C$52:$G$210,5,0),0) -> 0 | G65: 115 | H65: 0 | I65: 6 | J65: 0 | K65: 3 | L65: 0 | M65: 30 | N65: 0 | O65: 3 | P65: 0 | Q65: 67 | R65: 0 | S65: 6 | T65: 0
B66: 45 | C66: JACOBS KRONUNG KAWA ROZPUSZCZALNA 200G | D66: Kawa rozpuszczalna JACOBS Kronung, 200 g | E66: 1 op.( 200 g.) | F66: =IF('Załącznik 7 - F.O. Zad 6-10'!$V$56,VLOOKUP(C66,'Załącznik 7 - F.O. Zad 6-10'!$C$52:$G$210,5,0),0) -> 0 | G66: 243 | H66: 0 | I66: 4 | J66: 0 | M66: 11 | N66: 0 | O66: 2 | P66: 0 | Q66: 217 | R66: 0 | S66: 6 | T66: 0 | U66: 3 | V66: 0
B67: 46 | C67: KUBEK PAPIEROWY 110ML OPK50 | D67: Kubek papierowy do gorących napojów 110 ml | E67: 1 op. (50 szt.) | F67: =IF('Załącznik 7 - F.O. Zad 6-10'!$V$56,VLOOKUP(C67,'Załącznik 7 - F.O. Zad 6-10'!$C$52:$G$210,5,0),0) -> 0 | G67: 15 | H67: 0 | I67: 1 | J67: 0 | K67: 2 | L67: 0 | M67: 6 | N67: 0 | S67: 6 | T67: 0
B68: 47 | C68: KUBEK PAPIEROWY 360ML OPK35 | D68: Kubek papierowy do gorących napojów 360 ml | E68: 1 op. (35 szt.) | F68: =IF('Załącznik 7 - F.O. Zad 6-10'!$V$56,VLOOKUP(C68,'Załącznik 7 - F.O. Zad 6-10'!$C$52:$G$210,5,0),0) -> 0 | G68: 15 | H68: 0 | I68: 1 | J68: 0 | K68: 2 | L68: 0 | M68: 6 | N68: 0 | S68: 6 | T68: 0
B69: 48 | C69: KUBEK PLASTIK 200ML BIAŁE OPK100 | D69: Kubek plastikowy do zimnych napojów 200 ml Biały | E69: 1 op. (100 szt.) | F69: =IF('Załącznik 7 - F.O. Zad 6-10'!$V$56,VLOOKUP(C69,'Załącznik 7 - F.O. Zad 6-10'!$C$52:$G$210,5,0),0) -> 0 | G69: 14 | H69: 0 | I69: 1 | J69: 0 | K69: 1 | L69: 0 | M69: 6 | N69: 0 | S69: 6 | T69: 0
B70: 49 | C70: LAVAZZA CREMA AROMA KAWA ZIARNISTA 1KG | D70: Kawa ziarnista LAVAZZA Crema Aroma, 1 kg | E70: 1 op. (1 kg) | F70: =IF('Załącznik 7 - F.O. Zad 6-10'!$V$56,VLOOKUP(C70,'Załącznik 7 - F.O. Zad 6-10'!$C$52:$G$210,5,0),0) -> 0 | G70: 196 | H70: 0 | I70: 30 | J70: 0 | K70: 1 | L70: 0 | M70: 92 | N70: 0 | Q70: 67 | R70: 0 | S70: 6 | T70: 0
B71: 50 | C71: LAVAZZA PRONTOCREMA GRANDE AROMA ZIA 1KG | D71: Kawa ziarnista LAVAZZA Pronto crema Grande Aroma 1 kg | E71: 1 op. (1 kg) | F71: =IF('Załącznik 7 - F.O. Zad 6-10'!$V$56,VLOOKUP(C71,'Załącznik 7 - F.O. Zad 6-10'!$C$52:$G$210,5,0),0) -> 0 | G71: 46 | H71: 0 | M71: 6 | N71: 0 | Q71: 34 | R71: 0 | S71: 6 | T71: 0
B72: 51 | C72: LAVAZZA QUALITA ORO KAWA MIELONA 250G | D72: Kawa mielona LAVAZZA Qualita Oro, 250 g | E72: 1 op. (250 g) | F72: =IF('Załącznik 7 - F.O. Zad 6-10'!$V$56,VLOOKUP(C72,'Załącznik 7 - F.O. Zad 6-10'!$C$52:$G$210,5,0),0) -> 0 | G72: 43 | H72: 0 | I72: 10 | J72: 0 | M72: 12 | N72: 0 | O72: 12 | P72: 0 | S72: 6 | T72: 0 | U72: 3 | V72: 0
B73: 52 | C73: LAVAZZA QUALITA ORO KAWA ZIARNISTA 1 KG | D73: Kawa ziarnista LAVAZZA Qualita Oro, 1 kg | E73: 1 op. (1 kg) | F73: =IF('Załącznik 7 - F.O. Zad 6-10'!$V$56,VLOOKUP(C73,'Załącznik 7 - F.O. Zad 6-10'!$C$52:$G$210,5,0),0) -> 0 | G73: 107 | H73: 0 | I73: 40 | J73: 0 | M73: 57 | N73: 0 | Q73: 4 | R73: 0 | S73: 6 | T73: 0
B74: 53 | C74: LAVAZZA QUALITA ROSSA KAWA ZIARNISTA 1KG | D74: Kawa ziarnista LAVAZZA Qualita Rossa, 1 kg | E74: 1 op. (1 kg) | F74: =IF('Załącznik 7 - F.O. Zad 6-10'!$V$56,VLOOKUP(C74,'Załącznik 7 - F.O. Zad 6-10'!$C$52:$G$210,5,0),0) -> 0 | G74: 63 | H74: 0 | I74: 15 | J74: 0 | M74: 38 | N74: 0 | Q74: 4 | R74: 0 | S74: 6 | T74: 0
B75: 54 | C75: NESCAFE SENSAZIONE CREME KAWA ROZP 200G | D75: Kawa rozpuszczalna NESCAFÉ Sensazione Creme, 200 g | E75: 1 op.( 200 g.) | F75: =IF('Załącznik 7 - F.O. Zad 6-10'!$V$56,VLOOKUP(C75,'Załącznik 7 - F.O. Zad 6-10'!$C$52:$G$210,5,0),0) -> 0 | G75: 408 | H75: 0 | I75: 25 | J75: 0 | M75: 8 | N75: 0 | Q75: 367 | R75: 0 | S75: 6 | T75: 0 | U75: 2 | V75: 0
B76: 55 | C76: TCHIBO EXCLUSIVE KAWA MIELONA 250G | D76: Kawa mielona TCHIBO Exclusive, 250 g | E76: 1 op. (250 g) | F76: =IF('Załącznik 7 - F.O. Zad 6-10'!$V$56,VLOOKUP(C76,'Załącznik 7 - F.O. Zad 6-10'!$C$52:$G$210,5,0),0) -> 0 | G76: 39 | H76: 0 | I76: 15 | J76: 0 | M76: 12 | N76: 0 | Q76: 4 | R76: 0 | S76: 6 | T76: 0 | U76: 2 | V76: 0
B77: 56 | C77: TCHIBO FAMILY KAWA MIELONA 250G | D77: Kawa mielona TCHIBO Family, 250 g | E77: 1 op. (250 g) | F77: =IF('Załącznik 7 - F.O. Zad 6-10'!$V$56,VLOOKUP(C77,'Załącznik 7 - F.O. Zad 6-10'!$C$52:$G$210,5,0),0) -> 0 | G77: 259 | H77: 0 | K77: 1 | L77: 0 | M77: 2 | N77: 0 | Q77: 250 | R77: 0 | S77: 6 | T77: 0
B78: 57 | C78: TCHIBO FAMILY KAWA ROZPUSZCZALNA 200G | D78: Kawa rozpuszczalna TCHIBO Family, 200 g | E78: 1 op. (200 g) | F78: =IF('Załącznik 7 - F.O. Zad 6-10'!$V$56,VLOOKUP(C78,'Załącznik 7 - F.O. Zad 6-10'!$C$52:$G$210,5,0),0) -> 0 | G78: 29 | H78: 0 | I78: 20 | J78: 0 | M78: 1 | N78: 0 | S78: 6 | T78: 0 | U78: 2 | V78: 0
B79: 58 | C79: TCHIBO PROFESSIONAL CREMA ZIARNISTA 1KG | D79: Kawa ziarnista TCHIBO Profesional Crema 1 kg | E79: 1 op. (1 kg) | F79: =IF('Załącznik 7 - F.O. Zad 6-10'!$V$56,VLOOKUP(C79,'Załącznik 7 - F.O. Zad 6-10'!$C$52:$G$210,5,0),0) -> 0 | G79: 13 | H79: 0 | I79: 1 | J79: 0 | M79: 6 | N79: 0 | S79: 6 | T79: 0
B80: 59 | C80: GOSTYŃ MLEKO SKONDENS NIESŁODZONE 500G | D80: Mleko zagęszczone GOSTYŃ 7,5% niesłodzone, 500 g | E80: 1 op. ( 1 karton 500 g) | F80: =IF('Załącznik 7 - F.O. Zad 6-10'!$V$56,VLOOKUP(C80,'Załącznik 7 - F.O. Zad 6-10'!$C$52:$G$210,5,0),0) -> 0 | G80: 19 | H80: 0 | I80: 1 | J80: 0 | K80: 2 | L80: 0 | M80: 6 | N80: 0 | Q80: 4 | R80: 0 | S80: 6 | T80: 0
B81: 60 | C81: ŁACIATA ŚMIETANKA UHT 12% 500ML | D81: Śmietanka do kawy ŁACIATA 12%, 500 ml | E81: 1 op. (500 ml) | F81: =IF('Załącznik 7 - F.O. Zad 6-10'!$V$56,VLOOKUP(C81,'Załącznik 7 - F.O. Zad 6-10'!$C$52:$G$210,5,0),0) -> 0 | G81: 17 | H81: 0 | I81: 1 | J81: 0 | M81: 3 | N81: 0 | Q81: 4 | R81: 0 | S81: 6 | T81: 0 | U81: 3 | V81: 0
B82: 61 | C82: ŁACIATA ŚMIETANKA W KUBECZKACH OPK10X10G | D82: Śmietanka do kawy ŁACIATA 10%, 10 kubeczków x 10 g | E82: 1 op. (10 kubeczków) | F82: =IF('Załącznik 7 - F.O. Zad 6-10'!$V$56,VLOOKUP(C82,'Załącznik 7 - F.O. Zad 6-10'!$C$52:$G$210,5,0),0) -> 0 | G82: 70 | H82: 0 | I82: 2 | J82: 0 | K82: 7 | L82: 0 | M82: 38 | N82: 0 | Q82: 10 | R82: 0 | S82: 7 | T82: 0 | U82: 6 | V82: 0
B83: 62 | C83: ŁACIATE MLEKO UHT 2% 0,5L | D83: Mleko ŁACIATE UHT 2,0%, 0,5 l | E83: 1 op. (500 ml) | F83: =IF('Załącznik 7 - F.O. Zad 6-10'!$V$56,VLOOKUP(C83,'Załącznik 7 - F.O. Zad 6-10'!$C$52:$G$210,5,0),0) -> 0 | G83: 124 | H83: 0 | I83: 10 | J83: 0 | K83: 1 | L83: 0 | M83: 29 | N83: 0 | O83: 60 | P83: 0 | Q83: 4 | R83: 0 | S83: 6 | T83: 0 | U83: 14 | V83: 0
B84: 63 | C84: ŁACIATE MLEKO UHT 2% 1L | D84: Mleko ŁACIATE UHT 2,0%, 1 l | E84: 1 op. (1 l) | F84: =IF('Załącznik 7 - F.O. Zad 6-10'!$V$56,VLOOKUP(C84,'Załącznik 7 - F.O. Zad 6-10'!$C$52:$G$210,5,0),0) -> 0 | G84: 1494 | H84: 0 | I84: 500 | J84: 0 | K84: 2 | L84: 0 | M84: 28 | N84: 0 | O84: 220 | P84: 0 | Q84: 717 | R84: 0 | S84: 7 | T84: 0 | U84: 20 | V84: 0
B85: 64 | C85: ŁACIATE MLEKO UHT 3,2% 0,5L | D85: Mleko ŁACIATE UHT 3,2%, 0,5 l | E85: 1 op. (500 ml) | F85: =IF('Załącznik 7 - F.O. Zad 6-10'!$V$56,VLOOKUP(C85,'Załącznik 7 - F.O. Zad 6-10'!$C$52:$G$210,5,0),0) -> 0 | G85: 157 | H85: 0 | I85: 20 | J85: 0 | K85: 1 | L85: 0 | M85: 21 | N85: 0 | O85: 80 | P85: 0 | Q85: 4 | R85: 0 | S85: 6 | T85: 0 | U85: 25 | V85: 0
B86: 65 | C86: ŁACIATE MLEKO UHT 3,2% 1L | D86: Mleko ŁACIATE UHT 3,2%, 1 l | E86: 1 op. (1 l) | F86: =IF('Załącznik 7 - F.O. Zad 6-10'!$V$56,VLOOKUP(C86,'Załącznik 7 - F.O. Zad 6-10'!$C$52:$G$210,5,0),0) -> 0 | G86: 193 | H86: 0 | I86: 100 | J86: 0 | K86: 37 | L86: 0 | M86: 25 | N86: =M86*F86 -> 0 | O86: 12 | P86: =O86*F86 -> 0 | Q86: 4 | R86: =Q86*F86 -> 0 | S86: 5 | T86: =S86*F86 -> 0 | U86: 10 | V86: =U86*F86 -> 0
B87: 66 | C87: ŁACIATE MLEKO ZAGĘSZCZONE 7,5% 0,5L | D87: Mleko zagęszczone ŁACIATE UHT 7,5%, 0,5 l | E87: 1 op. (500 ml) | F87: =IF('Załącznik 7 - F.O. Zad 6-10'!$V$56,VLOOKUP(C87,'Załącznik 7 - F.O. Zad 6-10'!$C$52:$G$210,5,0),0) -> 0 | G87: =I87+K87+M87+O87+Q87+S87+U87 -> 57 | H87: =G87*F87 -> 0 | I87: 1 | J87: 0 | M87: 3 | N87: 0 | O87: 40 | P87: 0 | Q87: 7 | R87: 0 | S87: 6 | T87: 0
B88: 67 | C88: MLEKOVITA BEZ LAKTOZY UHT WYDOJONE 1,5% | D88: Mleko WYDOJONE UHT, bez laktozy 1,5%, 1 l | E88: 1 op. (1 l) | F88: =IF('Załącznik 7 - F.O. Zad 6-10'!$V$56,VLOOKUP(C88,'Załącznik 7 - F.O. Zad 6-10'!$C$52:$G$210,5,0),0) -> 0 | G88: 19 | H88: 0 | I88: 5 | J88: 0 | K88: 2 | L88: =K88*F88 -> 0 | M88: 6 | N88: 0 | S88: 6 | T88: 0
B89: 68 | C89: MLEKOVITA BEZ LAKTOZY UHT WYDOJONE 3,2% | D89: Mleko WYDOJONE UHT, bez laktozy, 3,2%, 1 l | E89: 1 op. (1 l) | F89: =IF('Załącznik 7 - F.O. Zad 6-10'!$V$56,VLOOKUP(C89,'Załącznik 7 - F.O. Zad 6-10'!$C$52:$G$210,5,0),0) -> 0 | G89: 75 | H89: 0 | I89: 50 | J89: 0 | K89: 1 | L89: 0 | M89: 14 | N89: 0 | Q89: 4 | R89: 0 | S89: 6 | T89: 0
B90: 69 | C90: ZAMBROWSKIE MLEKO UHT 3,2% 1L | D90: Mleko ZAMBROWSKIE UHT 3,2 %, 1 l | E90: 1 op. (1 l) | F90: =IF('Załącznik 7 - F.O. Zad 6-10'!$V$56,VLOOKUP(C90,'Załącznik 7 - F.O. Zad 6-10'!$C$52:$G$210,5,0),0) -> 0 | G90: 34 | H90: 0 | I90: 15 | J90: 0 | M90: 6 | N90: 0 | O90: 6 | P90: 0 | S90: 7 | T90: 0
B91: 70 | C91: BAKALLAND BAKALIE STUDENCKI MIX 200G | D91: Cukierki Mieszanka bakaliowa BAKALLAND Studencki Mix, 200 g | E91: 1 op (200 g) | F91: =IF('Załącznik 7 - F.O. Zad 6-10'!$V$56,VLOOKUP(C91,'Załącznik 7 - F.O. Zad 6-10'!$C$52:$G$210,5,0),0) -> 0 | G91: 50 | H91: 0 | M91: 16 | N91: 0 | O91: 10 | P91: 0 | Q91: 5 | R91: 0 | S91: 6 | T91: 0 | U91: 13 | V91: 0
B92: 71 | C92: BAKALLAND MIGDAŁY 300G | D92: Migdały BAKALLAND, 300 g | E92: 1 op. (300 g) | F92: =IF('Załącznik 7 - F.O. Zad 6-10'!$V$56,VLOOKUP(C92,'Załącznik 7 - F.O. Zad 6-10'!$C$52:$G$210,5,0),0) -> 0 | G92: 27 | H92: 0 | M92: 10 | N92: 0 | Q92: 5 | R92: 0 | S92: 6 | T92: 0 | U92: 6 | V92: 0
B93: 72 | C93: BAKALLAND ORZECHY NERKOWCA 300G | D93: Orzechy nerkowca BAKALLAND, 300 g | E93: 1 op. (300 g) | F93: =IF('Załącznik 7 - F.O. Zad 6-10'!$V$56,VLOOKUP(C93,'Załącznik 7 - F.O. Zad 6-10'!$C$52:$G$210,5,0),0) -> 0 | G93: 30 | H93: 0 | M93: 15 | N93: 0 | Q93: 5 | R93: 0 | S93: 6 | T93: 0 | U93: 4 | V93: 0
B94: 73 | C94: BELVITA CIASTKA KAKAOWE 300G | D94: Ciastka BELVITA, kakaowe, 300 g, 24 ciasteczka | E94: 1 op. (300 g) | F94: =IF('Załącznik 7 - F.O. Zad 6-10'!$V$56,VLOOKUP(C94,'Załącznik 7 - F.O. Zad 6-10'!$C$52:$G$210,5,0),0) -> 0 | G94: 14 | H94: 0 | M94: 8 | N94: 0 | S94: 6 | T94: 0
B95: 74 | C95: BELVITA CIASTKA MUSLI+OWOCE 300G | D95: Ciastka BELVITA Musli z owocami, 24 ciasteczka pakowane po 4 sztuki, 300 g | E95: 1 op. (300 g) | F95: =IF('Załącznik 7 - F.O. Zad 6-10'!$V$56,VLOOKUP(C95,'Załącznik 7 - F.O. Zad 6-10'!$C$52:$G$210,5,0),0) -> 0 | G95: 12 | H95: 0 | M95: 6 | N95: 0 | S95: 6 | T95: 0
B96: 75 | C96: CISOWIANKA WODA GAZOWANA 0,5L OPK12 | D96: Woda mineralna CISOWIANKA gazowana, zgrzewka 12 butelek x 0,5 l | E96: 1 op. (12 butelek) | F96: =IF('Załącznik 7 - F.O. Zad 6-10'!$V$56,VLOOKUP(C96,'Załącznik 7 - F.O. Zad 6-10'!$C$52:$G$210,5,0),0) -> 0 | G96: 140 | H96: 0 | I96: 65 | J96: 0 | O96: 18 | P96: 0 | Q96: 1 | R96: 0 | S96: 6 | T96: 0 | U96: 50 | V96: 0
B97: 76 | C97: DELICJE SZAMPAŃSKIE MALINA 147G | D97: Ciastka DELICJE Szampańskie malinowe, 147 g | E97: 1 op. (147 g) | F97: =IF('Załącznik 7 - F.O. Zad 6-10'!$V$56,VLOOKUP(C97,'Załącznik 7 - F.O. Zad 6-10'!$C$52:$G$210,5,0),0) -> 0 | G97: 72 | H97: 0 | I97: 3 | J97: 0 | M97: 28 | N97: 0 | O97: 26 | P97: 0 | Q97: 1 | R97: 0 | S97: 6 | T97: 0 | U97: 8 | V97: 0
B98: 77 | C98: DELICJE SZAMPAŃSKIE POMARAŃCZA 147G | D98: Ciastka DELICJE Szampańskie pomarańczowe, 147 g | E98: 1 op. (147 g) | F98: =IF('Załącznik 7 - F.O. Zad 6-10'!$V$56,VLOOKUP(C98,'Załącznik 7 - F.O. Zad 6-10'!$C$52:$G$210,5,0),0) -> 0 | G98: 72 | H98: 0 | I98: 3 | J98: 0 | M98: 30 | N98: 0 | O98: 26 | P98: 0 | Q98: 1 | R98: 0 | S98: 6 | T98: 0 | U98: 6 | V98: 0
B99: 78 | C99: DELICJE SZAMPAŃSKIE WIŚNIA 147G | D99: Ciastka DELICJE Szampańskie wiśniowe, 147 g | E99: 1 op. (147 g) | F99: =IF('Załącznik 7 - F.O. Zad 6-10'!$V$56,VLOOKUP(C99,'Załącznik 7 - F.O. Zad 6-10'!$C$52:$G$210,5,0),0) -> 0 | G99: 60 | H99: 0 | I99: 3 | J99: 0 | M99: 19 | N99: 0 | O99: 25 | P99: 0 | Q99: 1 | R99: 0 | S99: 6 | T99: 0 | U99: 6 | V99: 0
B100: 79 | C100: DELICJE SZAMPAŃSKIE WIŚNIOWE 294G | D100: Ciastka DELICJE Szampańskie wiśniowe, podwójne opakowanie, 294 g | E100: 1 op. ( 294 g) | F100: =IF('Załącznik 7 - F.O. Zad 6-10'!$V$56,VLOOKUP(C100,'Załącznik 7 - F.O. Zad 6-10'!$C$52:$G$210,5,0),0) -> 0 | G100: 13 | H100: 0 | M100: 6 | N100: 0 | Q100: 1 | R100: 0 | S100: 6 | T100: 0
B101: 80 | C101: FERRERO RAFAELLO 230 G | D101: Praliny RAFFAELLO, 230 g | E101: 1 op.( 230 g.) | F101: =IF('Załącznik 7 - F.O. Zad 6-10'!$V$56,VLOOKUP(C101,'Załącznik 7 - F.O. Zad 6-10'!$C$52:$G$210,5,0),0) -> 0 | G101: 84 | H101: 0 | M101: 16 | N101: 0 | O101: 24 | P101: 0 | Q101: 34 | R101: 0 | S101: 6 | T101: 0 | U101: 4 | V101: 0
B102: 81 | C102: FERRERO RAFFAELLO PRALINY 230G | D102: Praliny RAFFAELLO, 230 g | E102: 2 op.( 230 g.) | F102: =IF('Załącznik 7 - F.O. Zad 6-10'!$V$56,VLOOKUP(C102,'Załącznik 7 - F.O. Zad 6-10'!$C$52:$G$210,5,0),0) -> 0 | G102: 8 | H102: 0 | S102: 6 | T102: 0 | U102: 2 | V102: 0
B103: 82 | C103: Ferrero Rocher Praliny 200g | D103: Czekoladki FERRERO ROCHER, 200 g | E103: 3 op.( 200 g.) | F103: =IF('Załącznik 7 - F.O. Zad 6-10'!$V$56,VLOOKUP(C103,'Załącznik 7 - F.O. Zad 6-10'!$C$52:$G$210,5,0),0) -> 0 | G103: 15 | H103: 0 | M103: 6 | N103: 0 | S103: 6 | T103: 0 | U103: 3 | V103: 0
B104: 83 | C104: GOPLANA TOFFINO CHOCO 1KG | D104: Cukierki Goplana Toffino Choco Toffi mleczne z kremem czekoladowym 1 kg | E104: 1 op. ( 1 kg.) | F104: =IF('Załącznik 7 - F.O. Zad 6-10'!$V$56,VLOOKUP(C104,'Załącznik 7 - F.O. Zad 6-10'!$C$52:$G$210,5,0),0) -> 0 | G104: 14 | H104: 0 | M104: 6 | N104: 0 | S104: 6 | T104: 0 | U104: 2 | V104: 0
B105: 84 | C105: HIT MARKIZY CZEKOLADOWE 220G | D105: Ciastka BAHLSEN HIT czekoladowe, 220 g | E105: 1 op.( 220 g) | F105: =IF('Załącznik 7 - F.O. Zad 6-10'!$V$56,VLOOKUP(C105,'Załącznik 7 - F.O. Zad 6-10'!$C$52:$G$210,5,0),0) -> 0 | G105: 27 | H105: 0 | M105: 13 | N105: 0 | O105: 6 | P105: 0 | S105: 6 | T105: 0 | U105: 2 | V105: 0
B106: 85 | C106: JUTRZENKA JEŻYKI CAFE CIASTKA 140G | D106: Ciasta JEŻYKI Cafe, 140 g | E106: 1 op. (140 g) | F106: =IF('Załącznik 7 - F.O. Zad 6-10'!$V$56,VLOOKUP(C106,'Załącznik 7 - F.O. Zad 6-10'!$C$52:$G$210,5,0),0) -> 0 | G106: 37 | H106: 0 | M106: 15 | N106: 0 | O106: 10 | P106: 0 | Q106: 1 | R106: 0 | S106: 6 | T106: 0 | U106: 5 | V106: 0
B107: 86 | C107: JUTRZENKA JEŻYKI CIASTKA 140G | D107: Ciasta JEŻYKI Classic, 140 g | E107: 1 op. (140 g) | F107: =IF('Załącznik 7 - F.O. Zad 6-10'!$V$56,VLOOKUP(C107,'Załącznik 7 - F.O. Zad 6-10'!$C$52:$G$210,5,0),0) -> 0 | G107: 64 | H107: 0 | I107: 4 | J107: 0 | M107: 37 | N107: 0 | O107: 10 | P107: 0 | Q107: 2 | R107: 0 | S107: 6 | T107: 0 | U107: 5 | V107: 0
B108: 87 | C108: JUTRZENKA WAFLE FAMILIJNE ŚMIET-KAK 180G | D108: Wafle FAMILIJNE śmietankowo-kakaowe, 180 g | E108: 1 op. (180 g) | F108: =IF('Załącznik 7 - F.O. Zad 6-10'!$V$56,VLOOKUP(C108,'Załącznik 7 - F.O. Zad 6-10'!$C$52:$G$210,5,0),0) -> 0 | G108: 43 | H108: 0 | M108: 7 | N108: 0 | O108: 30 | P108: 0 | S108: 6 | T108: 0
B109: 88 | C109: ŁAKOTKI DESEROWE Z CUKREM 168G | D109: Ciastka SAN ŁAKOTKI deserowe z cukrem, 168 g | E109: 1 op. (168 g) | F109: =IF('Załącznik 7 - F.O. Zad 6-10'!$V$56,VLOOKUP(C109,'Załącznik 7 - F.O. Zad 6-10'!$C$52:$G$210,5,0),0) -> 0 | G109: 44 | H109: 0 | M109: 25 | N109: 0 | O109: 10 | P109: 0 | S109: 6 | T109: 0 | U109: 3 | V109: 0
B110: 89 | C110: ŁAKOTKI KAKAOWE 168G | D110: Ciastka SAN ŁAKOTKI kakaowe, 168 g | E110: 1 op. (168 g) | F110: =IF('Załącznik 7 - F.O. Zad 6-10'!$V$56,VLOOKUP(C110,'Załącznik 7 - F.O. Zad 6-10'!$C$52:$G$210,5,0),0) -> 0 | G110: 15 | H110: 0 | M110: 6 | N110: 0 | S110: 6 | T110: 0 | U110: 3 | V110: 0
B111: 90 | C111: ŁAKOTKI KOKOSOWE 168G | D111: Ciastka SAN ŁAKOTKI kokosowe, 168 g | E111: 1 op. (168 g) | F111: =IF('Załącznik 7 - F.O. Zad 6-10'!$V$56,VLOOKUP(C111,'Załącznik 7 - F.O. Zad 6-10'!$C$52:$G$210,5,0),0) -> 0 | G111: 41 | H111: 0 | M111: 22 | N111: 0 | O111: 10 | P111: 0 | S111: 6 | T111: 0 | U111: 3 | V111: 0
B112: 91 | C112: MERCI CZEKOLADKI 400 G | D112: Czekoladki MERCI, 400 g | E112: 1 op.(400 g.) | F112: =IF('Załącznik 7 - F.O. Zad 6-10'!$V$56,VLOOKUP(C112,'Załącznik 7 - F.O. Zad 6-10'!$C$52:$G$210,5,0),0) -> 0 | G112: 23 | H112: 0 | M112: 12 | N112: 0 | O112: 2 | P112: 0 | S112: 6 | T112: 0 | U112: 3 | V112: 0
B113: 92 | C113: MILKA CHOCO GRAINS CIASTKA 126 G | D113: Ciastka MILKA Chocograins, 126 g | E113: 1 op.(126 g.) | F113: =IF('Załącznik 7 - F.O. Zad 6-10'!$V$56,VLOOKUP(C113,'Załącznik 7 - F.O. Zad 6-10'!$C$52:$G$210,5,0),0) -> 0 | G113: 37 | H113: 0 | I113: 4 | J113: 0 | M113: 10 | N113: 0 | O113: 10 | P113: 0 | Q113: 1 | R113: 0 | S113: 6 | T113: 0 | U113: 6 | V113: 0
B114: 93 | C114: MILKA CHOCOWAFER CIASTKA 150G | D114: Wafle MILKA ChocoWafer, 150 g | E114: 1 op.(150g.) | F114: =IF('Załącznik 7 - F.O. Zad 6-10'!$V$56,VLOOKUP(C114,'Załącznik 7 - F.O. Zad 6-10'!$C$52:$G$210,5,0),0) -> 0 | G114: 15 | H114: 0 | M114: 6 | N114: 0 | S114: 6 | T114: 0 | U114: 3 | V114: 0
B115: 94 | C115: MILKA MOMENTS CZEKOL MIX 11X97G | D115: Praliny MILKA Moments Mix, 11 czekoladek | E115: 1 op. (11 sztuk) | F115: =IF('Załącznik 7 - F.O. Zad 6-10'!$V$56,VLOOKUP(C115,'Załącznik 7 - F.O. Zad 6-10'!$C$52:$G$210,5,0),0) -> 0 | G115: 19 | H115: 0 | M115: 6 | N115: 0 | O115: 4 | P115: 0 | S115: 6 | T115: 0 | U115: 3 | V115: 0
B116: 95 | C116: MILKA MOMENTS TOFF/ORZECH 11x97G | D116: Praliny MILKA Moments Toffee Wholenut, 11 czekoladek | E116: 1 op. (11 sztuk) | F116: =IF('Załącznik 7 - F.O. Zad 6-10'!$V$56,VLOOKUP(C116,'Załącznik 7 - F.O. Zad 6-10'!$C$52:$G$210,5,0),0) -> 0 | G116: 15 | H116: 0 | M116: 6 | N116: 0 | S116: 6 | T116: 0 | U116: 3 | V116: 0
B117: 96 | C117: MILKA PIEGUSKI CZEKOLADA ORZECHY 135G | D117: Ciastka MILKA Pieguski, czekolada i orzechy, 135 g | E117: 1 op. (135 g) | F117: =IF('Załącznik 7 - F.O. Zad 6-10'!$V$56,VLOOKUP(C117,'Załącznik 7 - F.O. Zad 6-10'!$C$52:$G$210,5,0),0) -> 0 | G117: 51 | H117: 0 | I117: 4 | J117: 0 | K117: 1 | L117: 0 | M117: 26 | N117: 0 | O117: 10 | P117: 0 | Q117: 1 | R117: 0 | S117: 6 | T117: 0 | U117: 3 | V117: 0
B118: 97 | C118: MILKA SINGLES CZEKOLADKI 138G | D118: Czekoladki MILKA Singles, 32 czekoladki pakowane osobno | E118: 1 op. (32 szt.) | F118: =IF('Załącznik 7 - F.O. Zad 6-10'!$V$56,VLOOKUP(C118,'Załącznik 7 - F.O. Zad 6-10'!$C$52:$G$210,5,0),0) -> 0 | G118: 33 | H118: 0 | M118: 15 | N118: 0 | O118: 12 | P118: 0 | S118: 6 | T118: 0
B119: 98 | C119: NESPRESSO CZEKOLADKI BLOND 200G | D119: Czekoladki NESPRESSO blond, 200 g | E119: 1 op ( 200 g.) | F119: =IF('Załącznik 7 - F.O. Zad 6-10'!$V$56,VLOOKUP(C119,'Załącznik 7 - F.O. Zad 6-10'!$C$52:$G$210,5,0),0) -> 0 | G119: 14 | H119: 0 | M119: 6 | N119: 0 | S119: 6 | T119: 0 | U119: 2 | V119: 0
B120: 99 | C120: NESPRESSO CZEKOLADKI MILK 200G | D120: Czekoladki NESPRESSO mleczne, 200 g | E120: 1 op ( 200 g.) | F120: =IF('Załącznik 7 - F.O. Zad 6-10'!$V$56,VLOOKUP(C120,'Załącznik 7 - F.O. Zad 6-10'!$C$52:$G$210,5,0),0) -> 0 | G120: 14 | H120: 0 | M120: 6 | N120: 0 | S120: 6 | T120: 0 | U120: 2 | V120: 0
B121: 100 | C121: PASTYLKI MIĘTOWEW CZEKOLADZIE WAWEL | D121: Cukierki Pastylka miętowa WAWEL, 1 kg | E121: 1 op. (1 kg) | F121: =IF('Załącznik 7 - F.O. Zad 6-10'!$V$56,VLOOKUP(C121,'Załącznik 7 - F.O. Zad 6-10'!$C$52:$G$210,5,0),0) -> 0 | G121: 12 | H121: 0 | M121: 6 | N121: 0 | S121: 6 | T121: 0
B122: 101 | C122: SOLIDARNOŚĆ ŚLIWKA NALECZOWSKA 1KG | D122: CukierkiŚliwka Nałęczowska SOLIDARNOŚĆ, 1 kg | E122: 2 op. (1 kg) | F122: =IF('Załącznik 7 - F.O. Zad 6-10'!$V$56,VLOOKUP(C122,'Załącznik 7 - F.O. Zad 6-10'!$C$52:$G$210,5,0),0) -> 0 | G122: 68 | H122: 0 | M122: 22 | N122: 0 | Q122: 34 | R122: 0 | S122: 6 | T122: 0 | U122: 6 | V122: 0
B123: 102 | C123: TAGO CIASTECZKA KORZENNE 4,8G OPK125 | D123: Ciastka TAGO korzenne, 125 ciasteczek po 4,8 g | E123: 1 op. (125 szt.) | F123: =IF('Załącznik 7 - F.O. Zad 6-10'!$V$56,VLOOKUP(C123,'Załącznik 7 - F.O. Zad 6-10'!$C$52:$G$210,5,0),0) -> 0 | G123: 15 | H123: 0 | M123: 6 | N123: 0 | S123: 6 | T123: 0 | U123: 3 | V123: 0
B124: 103 | C124: TAGO OWSIANE DE LUX CIASTECZKA 210G | D124: Ciastka TAGO Owsiane de Lux, 210 g | E124: 1 op. (210 g) | F124: =IF('Załącznik 7 - F.O. Zad 6-10'!$V$56,VLOOKUP(C124,'Załącznik 7 - F.O. Zad 6-10'!$C$52:$G$210,5,0),0) -> 0 | G124: 36 | H124: 0 | K124: 1 | L124: 0 | M124: 11 | N124: 0 | O124: 14 | P124: 0 | Q124: 1 | R124: 0 | S124: 6 | T124: 0 | U124: 3 | V124: 0
B125: 104 | C125: TAGO PRECLE MAŚLANE 158 G | D125: Francuskie precle z masłem TAGO, 158 g | E125: 1 op. ( 158 g) | F125: =IF('Załącznik 7 - F.O. Zad 6-10'!$V$56,VLOOKUP(C125,'Załącznik 7 - F.O. Zad 6-10'!$C$52:$G$210,5,0),0) -> 0 | G125: 19 | H125: 0 | M125: 13 | N125: 0 | S125: 6 | T125: 0
B126: 105 | C126: WAWEL MICHAŁKI 1 KG | D126: Cukierki WAWEL Michałki Klasyczne 300 g | E126: 1 op. (300 g) | F126: =IF('Załącznik 7 - F.O. Zad 6-10'!$V$56,VLOOKUP(C126,'Załącznik 7 - F.O. Zad 6-10'!$C$52:$G$210,5,0),0) -> 0 | G126: 28 | H126: 0 | M126: 6 | N126: 0 | O126: 12 | P126: 0 | Q126: 4 | R126: 0 | S126: 6 | T126: 0
B127: 106 | C127: WAWEL MICHAŁKI CLASSIC 300G | D127: Cukierki WAWEL Michałki Klasyczne 300 g | E127: 1 op. (300 g) | F127: =IF('Załącznik 7 - F.O. Zad 6-10'!$V$56,VLOOKUP(C127,'Załącznik 7 - F.O. Zad 6-10'!$C$52:$G$210,5,0),0) -> 0 | G127: 6 | H127: 0 | S127: 6 | T127: 0
B128: 107 | C128: WAWEL MIESZANKA KRAKOWSKA 1 KG | D128: Cukierki Mieszanka krakowska WAWEL, 1 kg | E128: 1 op. (1 kg) | F128: =IF('Załącznik 7 - F.O. Zad 6-10'!$V$56,VLOOKUP(C128,'Załącznik 7 - F.O. Zad 6-10'!$C$52:$G$210,5,0),0) -> 0 | G128: 20 | H128: 0 | M128: 6 | N128: 0 | O128: 3 | P128: 0 | Q128: 3 | R128: 0 | S128: 6 | T128: 0 | U128: 2 | V128: 0
B129: 108 | C129: WAWEL TRUFLE 1 KG | D129: Cukierki WAWEL Trufle | E129: 1 op. (1 kg) | F129: =IF('Załącznik 7 - F.O. Zad 6-10'!$V$56,VLOOKUP(C129,'Załącznik 7 - F.O. Zad 6-10'!$C$52:$G$210,5,0),0) -> 0 | G129: 94 | H129: 0 | M129: 40 | N129: 0 | O129: 14 | P129: 0 | Q129: 34 | R129: 0 | S129: 6 | T129: 0
B130: 109 | C130: WEDEL AMERYKANKI KLASYCZNE 125 G | D130: Ciastka AMERYKANKI, klasyczne, 126 g | E130: 1 op. (126 g) | F130: =IF('Załącznik 7 - F.O. Zad 6-10'!$V$56,VLOOKUP(C130,'Załącznik 7 - F.O. Zad 6-10'!$C$52:$G$210,5,0),0) -> 0 | G130: 34 | H130: 0 | I130: 4 | J130: 0 | M130: 11 | N130: 0 | O130: 12 | P130: 0 | Q130: 1 | R130: 0 | S130: 6 | T130: 0
B131: 110 | C131: WEDEL MIESZANKA CUKIERKI DISPLAY 3KG | D131: Cukierki MIESZANKA WEDLOWSKA Classic, 3 kg w formie dyspensera | E131: 1 op. (3 kg) | F131: =IF('Załącznik 7 - F.O. Zad 6-10'!$V$56,VLOOKUP(C131,'Załącznik 7 - F.O. Zad 6-10'!$C$52:$G$210,5,0),0) -> 0 | G131: 42 | H131: 0 | M131: 22 | N131: 0 | O131: 7 | P131: 0 | Q131: 5 | R131: 0 | S131: 6 | T131: 0 | U131: 2 | V131: 0
B132: 111 | C132: WEDEL PTASIE MLECZKO WANILIOWE 360G | D132: Ptasie mleczko WEDEL, waniliowe, 360 g | E132: 1 op.( 360 g.) | F132: =IF('Załącznik 7 - F.O. Zad 6-10'!$V$56,VLOOKUP(C132,'Załącznik 7 - F.O. Zad 6-10'!$C$52:$G$210,5,0),0) -> 0 | G132: 21 | H132: 0 | M132: 14 | N132: 0 | Q132: 1 | R132: 0 | S132: 6 | T132: 0
B133: 112 | C133: WEDEL WAFLE TORCIKOWE MINI ORZECHOWE 160 | D133: Wafle Torcikowe WEDEL MINI orzechowe, 160 g | E133: 1 op. ( 160 g) | F133: =IF('Załącznik 7 - F.O. Zad 6-10'!$V$56,VLOOKUP(C133,'Załącznik 7 - F.O. Zad 6-10'!$C$52:$G$210,5,0),0) -> 0 | G133: 24 | H133: 0 | M133: 13 | N133: 0 | O133: 5 | P133: 0 | S133: 6 | T133: 0
B134: 113 | C134: BAKALLAND MIGDAŁY SOLONE 90G | D134: Migdały lekko solone BAKALLAND, 90 g | E134: 1 op. (90 g) | F134: =IF('Załącznik 7 - F.O. Zad 6-10'!$V$56,VLOOKUP(C134,'Załącznik 7 - F.O. Zad 6-10'!$C$52:$G$210,5,0),0) -> 0 | G134: 15 | H134: 0 | M134: 6 | N134: 0 | S134: 6 | T134: 0 | U134: 3 | V134: 0
B135: 114 | C135: BAKALLAND ORZECHY LASKOWE 300G | D135: Orzechy laskowe BAKALLAND, 300 g | E135: 1 op. (300 g) | F135: =IF('Załącznik 7 - F.O. Zad 6-10'!$V$56,VLOOKUP(C135,'Załącznik 7 - F.O. Zad 6-10'!$C$52:$G$210,5,0),0) -> 0 | G135: 21 | H135: 0 | M135: 7 | N135: 0 | Q135: 5 | R135: 0 | S135: 6 | T135: 0 | U135: 3 | V135: 0
B136: 115 | C136: BAKALLAND ORZECHY NERKOWCA SOLONE 70G | D136: Orzechy nerkowca solone BAKALLAND, 70 g | E136: 1 op. (70 g) | F136: =IF('Załącznik 7 - F.O. Zad 6-10'!$V$56,VLOOKUP(C136,'Załącznik 7 - F.O. Zad 6-10'!$C$52:$G$210,5,0),0) -> 0 | G136: 15 | H136: 0 | M136: 6 | N136: 0 | S136: 6 | T136: 0 | U136: 3 | V136: 0
B137: 116 | C137: BAKALLAND ORZECHY WŁOSKIE 300G | D137: Orzechy włoskie BAKALLAND, 300 g | E137: 1 op. (300 g) | F137: =IF('Załącznik 7 - F.O. Zad 6-10'!$V$56,VLOOKUP(C137,'Załącznik 7 - F.O. Zad 6-10'!$C$52:$G$210,5,0),0) -> 0 | G137: 18 | H137: 0 | M137: 5 | N137: 0 | Q137: 5 | R137: 0 | S137: 6 | T137: 0 | U137: 2 | V137: 0
B138: 117 | C138: LAJKONIK PALUSZKI 200G | D138: Paluszki LAJKONIK solone, 200 g | E138: 1 op. (200 g) | F138: =IF('Załącznik 7 - F.O. Zad 6-10'!$V$56,VLOOKUP(C138,'Załącznik 7 - F.O. Zad 6-10'!$C$52:$G$210,5,0),0) -> 0 | G138: 77 | H138: 0 | I138: 5 | J138: 0 | M138: 22 | N138: 0 | O138: 42 | P138: 0 | S138: 5 | T138: 0 | U138: 3 | V138: 0
B139: 118 | C139: CAPPY NEKTAR MULTIWIT PET 0,33L OPK12 | D139: Nektar multiwitamina CAPPY, 12 butelek x 0,33 l | E139: 1 op. (12 butelek) | F139: =IF('Załącznik 7 - F.O. Zad 6-10'!$V$56,VLOOKUP(C139,'Załącznik 7 - F.O. Zad 6-10'!$C$52:$G$210,5,0),0) -> 0 | G139: 14 | H139: 0 | I139: 3 | J139: 0 | M139: 5 | N139: 0 | S139: 6 | T139: 0
B140: 119 | C140: CAPPY SOK POMARAŃCZOWY PET 0,33L OPK12 | D140: Sok pomarańczowy CAPPY, 12 butelek x 0,33 l | E140: 1 op. (12 butelek) | F140: =IF('Załącznik 7 - F.O. Zad 6-10'!$V$56,VLOOKUP(C140,'Załącznik 7 - F.O. Zad 6-10'!$C$52:$G$210,5,0),0) -> 0 | G140: 84 | H140: 0 | I140: 4 | J140: 0 | M140: 28 | N140: 0 | O140: 35 | P140: 0 | Q140: 11 | R140: 0 | S140: 6 | T140: 0
B141: 120 | C141: CHAMPION SOK CYTRYNOWY OPK10X7,5G | D141: Zagęszczony sok cytrynowy CHAMPION, 10 kubeczków x 7,5 g | E141: 1 op. (10 kubeczków) | F141: =IF('Załącznik 7 - F.O. Zad 6-10'!$V$56,VLOOKUP(C141,'Załącznik 7 - F.O. Zad 6-10'!$C$52:$G$210,5,0),0) -> 0 | G141: 21 | H141: 0 | M141: 4 | N141: 0 | Q141: 11 | R141: 0 | S141: 6 | T141: 0
B142: 121 | C142: COCA-COLA BUTELKA PET 0,5L OPK18 | D142: Napój gazowany COCA-COLA, zgrzewka 18 butelek x 0,5 l | E142: 1 op. (18 butelek) | F142: =IF('Załącznik 7 - F.O. Zad 6-10'!$V$56,VLOOKUP(C142,'Załącznik 7 - F.O. Zad 6-10'!$C$52:$G$210,5,0),0) -> 0 | G142: 16 | H142: 0 | M142: 6 | N142: 0 | O142: 3 | P142: 0 | S142: 6 | T142: 0 | U142: 1 | V142: 0
B143: 122 | C143: COCA-COLA PUSZKA 0,33L OPK24 | D143: Napój gazowany COCA-COLA, 24 puszki x 0,33 l | E143: 1 op. (24 puszki 0,33 l) | F143: =IF('Załącznik 7 - F.O. Zad 6-10'!$V$56,VLOOKUP(C143,'Załącznik 7 - F.O. Zad 6-10'!$C$52:$G$210,5,0),0) -> 0 | G143: 17 | H143: 0 | I143: 4 | J143: 0 | M143: 7 | N143: 0 | S143: 6 | T143: 0
B144: 123 | C144: COCA-COLA ZERO BUTELKA PET 0,5L OPK12 | D144: Napój gazowany COCA-COLA Zero, 12 butelek x 0,5 l | E144: 1 op. (12 butelek) | F144: =IF('Załącznik 7 - F.O. Zad 6-10'!$V$56,VLOOKUP(C144,'Załącznik 7 - F.O. Zad 6-10'!$C$52:$G$210,5,0),0) -> 0 | G144: 15 | H144: 0 | I144: 1 | J144: 0 | M144: 6 | N144: 0 | O144: 2 | P144: 0 | S144: 6 | T144: 0
B145: 124 | C145: FORTUNA NEKTAR CZ.PORZECZKA 0,3L OPK15 | D145: Nektar czarna porzeczka FORTUNA, 15 butelek x 0,3 l | E145: 1 op. (15 butelek) | F145: =IF('Załącznik 7 - F.O. Zad 6-10'!$V$56,VLOOKUP(C145,'Załącznik 7 - F.O. Zad 6-10'!$C$52:$G$210,5,0),0) -> 0 | G145: 32 | H145: 0 | I145: 5 | J145: 0 | M145: 6 | N145: 0 | O145: 15 | P145: 0 | S145: 6 | T145: 0
B146: 125 | C146: FORTUNA SOK MULTIWITAMINA 0,3 L OPK15 | D146: Sok multiwitamina FORTUNA, 15 butelek x 0,3 l | E146: 1 op. (15 butelek) | F146: =IF('Załącznik 7 - F.O. Zad 6-10'!$V$56,VLOOKUP(C146,'Załącznik 7 - F.O. Zad 6-10'!$C$52:$G$210,5,0),0) -> 0 | G146: 84 | H146: 0 | M146: 14 | N146: 0 | O146: 45 | P146: 0 | Q146: 12 | R146: 0 | S146: 6 | T146: 0 | U146: 7 | V146: 0
B147: 126 | C147: FORTUNA SOK POMARAŃCZOWY 0,3L OPK15 | D147: Sok pomarańczowy FORTUNA, 15 butelek x 0,3 l | E147: 1 op. (15 butelek) | F147: =IF('Załącznik 7 - F.O. Zad 6-10'!$V$56,VLOOKUP(C147,'Załącznik 7 - F.O. Zad 6-10'!$C$52:$G$210,5,0),0) -> 0 | G147: 21 | H147: 0 | I147: 3 | J147: 0 | M147: 6 | N147: 0 | S147: 6 | T147: 0 | U147: 6 | V147: 0
B148: 127 | C148: FORTUNA SOK POMIDOROWY 0,3L OPK15 | D148: Sok pomidorowy FORTUNA, 15 butelek x 0,3 l | E148: 1 op. (15 butelek) | F148: =IF('Załącznik 7 - F.O. Zad 6-10'!$V$56,VLOOKUP(C148,'Załącznik 7 - F.O. Zad 6-10'!$C$52:$G$210,5,0),0) -> 0 | G148: 121 | H148: 0 | I148: 5 | J148: 0 | M148: 23 | N148: 0 | O148: 65 | P148: 0 | Q148: 12 | R148: 0 | S148: 6 | T148: 0 | U148: 10 | V148: 0
B149: 128 | C149: TARCZYN NEKTAR CZ.PORZECZKA 0,3L OPK15 | D149: Nektar czarna porzeczka TARCZYN, 15 butelek x 0,3 l | E149: 1 op. (15 butelek) | F149: =IF('Załącznik 7 - F.O. Zad 6-10'!$V$56,VLOOKUP(C149,'Załącznik 7 - F.O. Zad 6-10'!$C$52:$G$210,5,0),0) -> 0 | G149: 17 | H149: 0 | M149: 6 | N149: 0 | S149: 6 | T149: 0 | U149: 5 | V149: 0
B150: 129 | C150: TARCZYN NEKTAR GREJPFRUT 0,3L OPK15 | D150: Nektar czerwony grejpfrut TARCZYN, zgrzewka 15 butelek x 0,3 l | E150: 1 op. (15 butelek) | F150: =IF('Załącznik 7 - F.O. Zad 6-10'!$V$56,VLOOKUP(C150,'Załącznik 7 - F.O. Zad 6-10'!$C$52:$G$210,5,0),0) -> 0 | G150: 19 | H150: 0 | I150: 1 | J150: 0 | M150: 6 | N150: =M150*F150 -> 0 | S150: 6 | T150: =S150*F150 -> 0 | U150: 6 | V150: =U150*F150 -> 0
B151: 130 | C151: TARCZYN SOK JABŁKOWY 0,3L OPK15 | D151: Sok jabłkowy TARCZYN, 15 butelek x 0,3 l | E151: 1 op. (15 butelek) | F151: =IF('Załącznik 7 - F.O. Zad 6-10'!$V$56,VLOOKUP(C151,'Załącznik 7 - F.O. Zad 6-10'!$C$52:$G$210,5,0),0) -> 0 | G151: =I151+K151+M151+O151+Q151+S151+U151 -> 116 | H151: =G151*F151 -> 0 | I151: 4 | J151: 0 | M151: 23 | N151: 0 | O151: 60 | P151: =O151*F151 -> 0 | Q151: 12 | R151: =Q151*F151 -> 0 | S151: 6 | T151: 0 | U151: 11 | V151: 0
B152: 131 | C152: TARCZYN SOK POMARAŃCZOWY 0,3L OPK15 | D152: Sok pomarańczowy TARCZYN, 15 butelek x 0,3 l | E152: 1 op. (15 butelek) | F152: =IF('Załącznik 7 - F.O. Zad 6-10'!$V$56,VLOOKUP(C152,'Załącznik 7 - F.O. Zad 6-10'!$C$52:$G$210,5,0),0) -> 0 | G152: 27 | H152: 0 | I152: 3 | J152: 0 | M152: 6 | N152: 0 | S152: 6 | T152: 0 | U152: 12 | V152: 0
B153: 132 | C153: TARCZYN SOK POMIDOROWY 300ML OPK15 | D153: Sok pomidorowy TARCZYN, zgrzewka 15 butelek x 0,3 l | E153: 1 op. (15 butelek) | F153: =IF('Załącznik 7 - F.O. Zad 6-10'!$V$56,VLOOKUP(C153,'Załącznik 7 - F.O. Zad 6-10'!$C$52:$G$210,5,0),0) -> 0 | G153: 33 | H153: 0 | I153: 1 | J153: 0 | M153: 6 | N153: 0 | Q153: 12 | R153: 0 | S153: 6 | T153: 0 | U153: 8 | V153: 0
B154: 133 | C154: TYMBARK JABŁKO SOK 100% 300ML OPK12 | D154: Sok TYMBARK jabłko 100%, 12 butelek x 300 ml | E154: 1 op. (12 butelek) | F154: =IF('Załącznik 7 - F.O. Zad 6-10'!$V$56,VLOOKUP(C154,'Załącznik 7 - F.O. Zad 6-10'!$C$52:$G$210,5,0),0) -> 0 | G154: 19 | H154: 0 | I154: 1 | J154: 0 | M154: 6 | N154: 0 | S154: 6 | T154: 0 | U154: 6 | V154: 0
B155: 134 | C155: TYMBARK POMARAŃCZ SOK 100% 300ML OPK12 | D155: Sok TYMBARK pomarańcza 100%, 12 butelek x 300 ml | E155: 1 op. (12 butelek) | F155: =IF('Załącznik 7 - F.O. Zad 6-10'!$V$56,VLOOKUP(C155,'Załącznik 7 - F.O. Zad 6-10'!$C$52:$G$210,5,0),0) -> 0 | G155: 20 | H155: 0 | I155: 1 | J155: 0 | M155: 6 | N155: 0 | S155: 6 | T155: 0 | U155: 7 | V155: 0
B156: 135 | C156: TYMBARK POMIDOR SOK 100% 300ML OPK12 | D156: Sok TYMBARK pomidor 100%, 12 butelek x 300 ml | E156: 1 op. (12 butelek) | F156: =IF('Załącznik 7 - F.O. Zad 6-10'!$V$56,VLOOKUP(C156,'Załącznik 7 - F.O. Zad 6-10'!$C$52:$G$210,5,0),0) -> 0 | G156: 22 | H156: 0 | I156: 1 | J156: 0 | M156: 6 | N156: 0 | S156: 6 | T156: 0 | U156: 9 | V156: 0
B157: 136 | C157: TYMBARK VITAMINI BAN/MAR/JAB 300ML OPK12 | D157: Sok TYMBARK Vitamini banan, marchewka, jabłko, 12 butelek x 300 ml | E157: 1 op. (12 butelek) | F157: =IF('Załącznik 7 - F.O. Zad 6-10'!$V$56,VLOOKUP(C157,'Załącznik 7 - F.O. Zad 6-10'!$C$52:$G$210,5,0),0) -> 0 | G157: 13 | H157: 0 | I157: 1 | J157: 0 | M157: 6 | N157: 0 | S157: 6 | T157: 0
B158: 137 | C158: CISOWIANKA LEKKOGAZOWANA WODA 0,5L OPK12 | D158: Woda mineralna CISOWIANKA lekko gazowana, zgrzewka 12 butelek x 0,5 l | E158: 1 op. (12 butelek) | F158: =IF('Załącznik 7 - F.O. Zad 6-10'!$V$56,VLOOKUP(C158,'Załącznik 7 - F.O. Zad 6-10'!$C$52:$G$210,5,0),0) -> 0 | G158: 109 | H158: 0 | I158: 70 | J158: 0 | M158: 21 | N158: 0 | O158: 2 | P158: 0 | S158: 6 | T158: 0 | U158: 10 | V158: 0
B159: 138 | C159: CISOWIANKA PERLAGE GAZ SZKŁO 300ML OPK24 | D159: Woda mineralna CISOWIANKA Perlage gazowana, zgrzewka 24 butelki x 300 ml | E159: 1 op. (24 butelki) | F159: =IF('Załącznik 7 - F.O. Zad 6-10'!$V$56,VLOOKUP(C159,'Załącznik 7 - F.O. Zad 6-10'!$C$52:$G$210,5,0),0) -> 0 | G159: 67 | H159: 0 | I159: 4 | J159: 0 | K159: 1 | L159: =K159*F159 -> 0 | M159: 13 | N159: 0 | O159: 5 | P159: 0 | Q159: 34 | R159: 0 | S159: 6 | T159: 0 | U159: 4 | V159: 0
B160: 139 | C160: CISOWIANKA WODA GAZOWANA 1,5L OPK6 | D160: Woda mineralna CISOWIANKA gazowana, zgrzewka 6 butelek x 1,5 l | E160: 1 op. (6 butelek) | F160: =IF('Załącznik 7 - F.O. Zad 6-10'!$V$56,VLOOKUP(C160,'Załącznik 7 - F.O. Zad 6-10'!$C$52:$G$210,5,0),0) -> 0 | G160: 741 | H160: 0 | I160: 100 | J160: 0 | K160: 4 | L160: 0 | M160: 7 | N160: 0 | O160: 190 | P160: 0 | Q160: 434 | R160: 0 | S160: 6 | T160: 0
B161: 140 | C161: CISOWIANKA WODA NIEGAZ SZKŁO 300ML OPK24 | D161: Woda mineralna CISOWIANKA niegazowana szklane butelki x 300 ml | E161: 1 op. (24 butelki) | F161: =IF('Załącznik 7 - F.O. Zad 6-10'!$V$56,VLOOKUP(C161,'Załącznik 7 - F.O. Zad 6-10'!$C$52:$G$210,5,0),0) -> 0 | G161: 17 | H161: 0 | I161: 3 | J161: 0 | M161: 6 | N161: 0 | O161: 2 | P161: 0 | S161: 6 | T161: 0
B162: 141 | C162: CISOWIANKA WODA NIEGAZOWANA 0,5L OPK12 | D162: Woda mineralna CISOWIANKA niegazowana, zgrzewka 12 butelek x 0,5 l | E162: 1 op. (12 butelek) | F162: =IF('Załącznik 7 - F.O. Zad 6-10'!$V$56,VLOOKUP(C162,'Załącznik 7 - F.O. Zad 6-10'!$C$52:$G$210,5,0),0) -> 0 | G162: 194 | H162: 0 | I162: 90 | J162: 0 | K162: 1 | L162: 0 | M162: 38 | N162: 0 | O162: 30 | P162: 0 | S162: 7 | T162: 0 | U162: 28 | V162: 0
B163: 142 | C163: CISOWIANKA WODA NIEGAZOWANA 1,5L OPK6 | D163: Woda mineralna CISOWIANKA niegazowana, zgrzewka 6 butelek x 1,5 l | E163: 1 op. (6 butelek) | F163: =IF('Załącznik 7 - F.O. Zad 6-10'!$V$56,VLOOKUP(C163,'Załącznik 7 - F.O. Zad 6-10'!$C$52:$G$210,5,0),0) -> 0 | G163: 828 | H163: 0 | I163: 270 | J163: 0 | K163: 2 | L163: 0 | M163: 11 | N163: 0 | O163: 100 | P163: 0 | Q163: 434 | R163: 0 | S163: 6 | T163: 0 | U163: 5 | V163: 0
B164: 143 | C164: CISOWIANKA WODA SPORT NIEGAZ 0,7L OPK8 | D164: Woda mineralna CISOWIANKA Sport niegazowana, zgrzewka 8 butelek x 0,7 l | E164: 1 op. (8 butelek) | F164: =IF('Załącznik 7 - F.O. Zad 6-10'!$V$56,VLOOKUP(C164,'Załącznik 7 - F.O. Zad 6-10'!$C$52:$G$210,5,0),0) -> 0 | G164: 34 | H164: 0 | I164: 20 | J164: 0 | K164: 2 | L164: 0 | M164: 6 | N164: 0 | S164: 6 | T164: 0
B165: 144 | C165: KINGA PIENINSKA WODA GAZOWANA 0,5L OPK12 | D165: Woda mineralna KINGA PIENIŃSKA gazowana 0,5 l | E165: 1 op. (12 butelek) | F165: =IF('Załącznik 7 - F.O. Zad 6-10'!$V$56,VLOOKUP(C165,'Załącznik 7 - F.O. Zad 6-10'!$C$52:$G$210,5,0),0) -> 0 | G165: 27 | H165: 0 | I165: 6 | J165: 0 | M165: 15 | N165: 0 | S165: 6 | T165: 0
B166: 145 | C166: KINGA PIENINSKA WODA NIEGAZOW 0,5L OPK12 | D166: Woda mineralna KINGA PIENIŃSKA niegazowana, zgrzewka 12 butelek x 0,5 l | E166: 1 op. (12 butelek) | F166: =IF('Załącznik 7 - F.O. Zad 6-10'!$V$56,VLOOKUP(C166,'Załącznik 7 - F.O. Zad 6-10'!$C$52:$G$210,5,0),0) -> 0 | G166: 27 | H166: 0 | I166: 15 | J166: 0 | M166: 5 | N166: 0 | S166: 7 | T166: 0
B167: 146 | C167: KROPLA BESKIDU WODA GAZ 0,5L OPK12 | D167: Woda mineralna KROPLA BESKIDU gazowana, zgrzewka 12 butelek x 0,5 l | E167: 1 op. (12 butelek) | F167: =IF('Załącznik 7 - F.O. Zad 6-10'!$V$56,VLOOKUP(C167,'Załącznik 7 - F.O. Zad 6-10'!$C$52:$G$210,5,0),0) -> 0 | G167: 466 | H167: 0 | I167: 20 | J167: 0 | M167: 4 | N167: 0 | O167: 90 | P167: 0 | Q167: 317 | R167: 0 | S167: 6 | T167: 0 | U167: 29 | V167: 0
B168: 147 | C168: KROPLA BESKIDU WODA GAZ 1,5L OPK6 | D168: Woda mineralna KROPLA BESKIDU gazowana, zgrzewka 6 butelek x 1,5 l | E168: 1 op. (6 butelek) | F168: =IF('Załącznik 7 - F.O. Zad 6-10'!$V$56,VLOOKUP(C168,'Załącznik 7 - F.O. Zad 6-10'!$C$52:$G$210,5,0),0) -> 0 | G168: 34 | H168: 0 | I168: 20 | J168: 0 | M168: 6 | N168: 0 | Q168: 2 | R168: 0 | S168: 6 | T168: 0
B169: 148 | C169: KROPLA BESKIDU WODA NIEGAZ 0,5L OPK12 | D169: Woda mineralna KROPLA BESKIDU niegazowana, zgrzewka 12 butelek x 0,5 l | E169: 1 op. (12 butelek) | F169: =IF('Załącznik 7 - F.O. Zad 6-10'!$V$56,VLOOKUP(C169,'Załącznik 7 - F.O. Zad 6-10'!$C$52:$G$210,5,0),0) -> 0 | G169: 245 | H169: 0 | I169: 35 | J169: 0 | K169: 3 | L169: 0 | M169: 8 | N169: 0 | O169: 70 | P169: 0 | Q169: 100 | R169: 0 | S169: 6 | T169: 0 | U169: 23 | V169: 0
B170: 149 | C170: KROPLA BESKIDU WODA NIEGAZ 1,5L OPK6 | D170: Woda mineralna KROPLA BESKIDU niegazowana, zgrzewka 6 butelek x 1,5 l | E170: 1 op. (6 butelek) | F170: =IF('Załącznik 7 - F.O. Zad 6-10'!$V$56,VLOOKUP(C170,'Załącznik 7 - F.O. Zad 6-10'!$C$52:$G$210,5,0),0) -> 0 | G170: 157 | H170: 0 | I170: 55 | J170: 0 | K170: 3 | L170: 0 | M170: 6 | N170: 0 | Q170: 87 | R170: 0 | S170: 6 | T170: 0
B171: 150 | C171: NAŁĘCZOWIANKA WODA NIEGAZ 0,5L OPK12 | D171: Woda mineralna NAŁĘCZOWIANKA niegazowana, zgrzewka 12 butelek x 0,5 l | E171: 1 op. (12 butelek) | F171: =IF('Załącznik 7 - F.O. Zad 6-10'!$V$56,VLOOKUP(C171,'Załącznik 7 - F.O. Zad 6-10'!$C$52:$G$210,5,0),0) -> 0 | G171: 99 | H171: 0 | I171: 75 | J171: 0 | M171: 17 | N171: 0 | Q171: 1 | R171: 0 | S171: 6 | T171: 0
B172: 151 | C172: NAŁĘCZOWIANKA WODA NIEGAZ 1,5L OPK6 | D172: Woda mineralna NAŁĘCZOWIANKA niegazowana, zgrzewka 6 butelek x 1,5 l | E172: 1 op. (6 butelek) | F172: =IF('Załącznik 7 - F.O. Zad 6-10'!$V$56,VLOOKUP(C172,'Załącznik 7 - F.O. Zad 6-10'!$C$52:$G$210,5,0),0) -> 0 | G172: 156 | H172: 0 | I172: 85 | J172: 0 | M172: 7 | N172: 0 | Q172: 57 | R172: 0 | S172: 7 | T172: 0
B173: 152 | C173: NESTLE PURE LIFE WODA GAZ 1,5L OPK6 | D173: Woda źródlana NESTLÉ Pure Life gazowana, zgrzewka 6 butelek x 1,5 l | E173: 1 op. (6 butelek) | F173: =IF('Załącznik 7 - F.O. Zad 6-10'!$V$56,VLOOKUP(C173,'Załącznik 7 - F.O. Zad 6-10'!$C$52:$G$210,5,0),0) -> 0 | G173: 14 | H173: 0 | I173: 5 | J173: 0 | M173: 1 | N173: 0 | Q173: 2 | R173: 0 | S173: 6 | T173: 0
B174: 153 | C174: NESTLE PURE LIFE WODA NIEGAZ 0,5L OPK12 | D174: Woda źródlana NESTLÉ Pure Life niegazowana, zgrzewka 12 butelek x 0,5 l | E174: 1 op. (12 butelek) | F174: =IF('Załącznik 7 - F.O. Zad 6-10'!$V$56,VLOOKUP(C174,'Załącznik 7 - F.O. Zad 6-10'!$C$52:$G$210,5,0),0) -> 0 | G174: 15 | H174: 0 | I174: 5 | J174: 0 | M174: 4 | N174: 0 | S174: 6 | T174: 0
B175: 154 | C175: NESTLE PURE LIFE WODA NIEGAZ 1,5L OPK6 | D175: Woda źródlana NESTLÉ Pure Life niegazowana, zgrzewka 6 butelek x 1,5 l | E175: 1 op. (6 butelek) | F175: =IF('Załącznik 7 - F.O. Zad 6-10'!$V$56,VLOOKUP(C175,'Załącznik 7 - F.O. Zad 6-10'!$C$52:$G$210,5,0),0) -> 0 | G175: 134 | H175: 0 | I175: 125 | J175: 0 | M175: 1 | N175: 0 | Q175: 2 | R175: 0 | S175: 6 | T175: 0
B176: 155 | C176: ŻYWIEC ZDRÓJ WODA GAZOWANA 0.5L OPK24 | D176: Woda źródlana ŻYWIOŁ od ŻYWIEC ZDRÓJ gazowana, 24 butelki x 0,5 l | E176: 1 op. (24 butelki) | F176: =IF('Załącznik 7 - F.O. Zad 6-10'!$V$56,VLOOKUP(C176,'Załącznik 7 - F.O. Zad 6-10'!$C$52:$G$210,5,0),0) -> 0 | G176: 36 | H176: 0 | I176: 15 | J176: 0 | K176: 2 | L176: 0 | M176: 2 | N176: 0 | O176: 10 | P176: 0 | Q176: 1 | R176: 0 | S176: 6 | T176: 0
B177: 156 | C177: ŻYWIEC ZDRÓJ WODA GAZOWANA 1,5L OPK6 | D177: Woda źródlana ŻYWIOŁ od ŻYWIEC ZDRÓJ gazowana, zgrzewka 6 butelek x 1,5 l | E177: 1 op. ( 6 butelek) | F177: =IF('Załącznik 7 - F.O. Zad 6-10'!$V$56,VLOOKUP(C177,'Załącznik 7 - F.O. Zad 6-10'!$C$52:$G$210,5,0),0) -> 0 | G177: 88 | H177: 0 | I177: 30 | J177: 0 | M177: 3 | N177: 0 | Q177: 50 | R177: 0 | S177: 5 | T177: 0
B178: 157 | C178: ŻYWIEC ZDRÓJ WODA NIEGAZOWANA 0.5L OPK24 | D178: Woda źródlana ŻYWIEC ZDRÓJ niegazowana, 24 butelki x 0,5 l | E178: 1 op. (24 butelki) | F178: =IF('Załącznik 7 - F.O. Zad 6-10'!$V$56,VLOOKUP(C178,'Załącznik 7 - F.O. Zad 6-10'!$C$52:$G$210,5,0),0) -> 0 | G178: 83 | H178: 0 | I178: 40 | J178: 0 | M178: 15 | N178: 0 | O178: 10 | P178: 0 | Q178: 2 | R178: 0 | S178: 6 | T178: 0 | U178: 10 | V178: 0
B179: 158 | C179: ŻYWIEC ZDRÓJ WODA NIEGAZOWANA 1,5L OPK6 | D179: Woda źródlana ŻYWIEC ZDRÓJ niegazowana, zgrzewka 6 butelek x 1,5 l | E179: 1 op. (6 butelek) | F179: =IF('Załącznik 7 - F.O. Zad 6-10'!$V$56,VLOOKUP(C179,'Załącznik 7 - F.O. Zad 6-10'!$C$52:$G$210,5,0),0) -> 0 | G179: 121 | H179: 0 | I179: 80 | J179: =I179*F179 -> 0 | M179: 5 | N179: 0 | Q179: 29 | R179: 0 | S179: 7 | T179: 0
G180: =SUM(G22:G179) -> 12651 | I180: =SUM(I22:I179) -> 2373 | K180: =SUM(K22:K179) -> 385 | M180: =SUM(M22:M179) -> 1904 | O180: =SUM(O22:O179) -> 1972 | Q180: =SUM(Q22:Q179) -> 4515 | S180: =SUM(S22:S179) -> 954 | U180: =SUM(U22:U179) -> 548
I181: ŁĄCZNA CENA NETTO DLA ENEA Centrum Sp. z o.o. | J181: =SUM(J22:J179) -> 0 | K181: ŁĄCZNA CENA NETTO DLA ENEA Logistyka sp. z o.o. | L181: =SUM(L22:L179) -> 0 | M181: ŁĄCZNA CENA NETTO DLA ENEA Operator Sp. z o.o. | N181: =SUM(N22:N179) -> 0 | O181: ŁĄCZNA CENA NETTO DLA ENEA Oświetlenie sp. z.o.o. | P181: =SUM(P22:P179) -> 0 | Q181: ŁĄCZNA CENA NETTO DLA ENEA Pomiary Sp. z o.o. | R181: =SUM(R22:R179) -> 0 | S181: ŁĄCZNA CENA NETTO DLA ENEA Serwis sp. z.o.o. | T181: =SUM(T22:T179) -> 0 | U181: ŁĄCZNA CENA NETTO DLA ENEA S.A. | V181: =SUM(V22:V179) -> 0
C186: miejscowość i data | F186: Pieczęć imienna i podpis przedstawiciela(i) Wykonawcy

Sheet Załącznik 10-F.O. dla Zadania 8
B1: Oznaczenie sprawy: 1400/DW00/ZU/KZ/2021/0000074365
B3: ZAŁĄCZNIK NR 10 - FORMULARZ OFERTY DLA ZADANIA 8 - DOSTAWA ARTYKUŁÓW SPOŻYWCZYCH: BIAŁYSTOK
C6: (pieczęć wykonawcy)
B8: Ja, niżej podpisany (My niżej podpisani):
B11: działając w imieniu i na rzecz:
B14: Składam(y) ofertę na wykonanie zamówienia, którego przedmiotem jest:
B15: Dostawa artykułów biurowych, spożywczych i higienicznych dla spółek GK ENEA
B17: ZADANIE 8 -Dostawa artykułów spożywczych: Białystok
B19: ŁĄCZNA CENA NETTO OFERTY DLA ZADANIA 8: | D19: =SUM(H22:H169) -> 0
B21: LP | C21: Nazwa produktu | D21: Opis szczegółowy | E21: Jednostka | F21: cena jednostkowa netto | G21: Ilość | H21: Wartość | I21: ENEA Enea Centrum Sp. z o.o. - Szacowana ilość | J21: ŁĄCZNA CENA NETTO DLA ENEA Centrum Sp. z o.o. | K21: ENEA Ciepło sp. z o.o. (Centrala) - Szacowana ilość | L21: ŁĄCZNA CENA NETTO DLA ENEA Ciepło sp. z o.o. (Centrala) | M21: ENEA Ciepło Sp. z o.o. (Oddział) - Szacowana ilość | N21: ŁĄCZNA CENA NETTO DLA ENEA Ciepłor Sp. z o.o. (Oddział) | O21: ENEA Logistyka Sp. z o.o. - Szacowana ilość | P21: ŁĄCZNA CENA NETTO DLA ENEA Logistyka Sp. z o.o. | Q21: ENEA Trading Sp. z o.o. - Szacowana ilość | R21: ŁĄCZNA CENA NETTO DLA ENEA Trading Sp. z o.o.
B22: 1 | C22: DIAMANT CUKIER BIAŁY KOSTKA 1KG | D22: Cukier biały DIAMANT w kostkach, 1 kg | E22: 1 op. ( 1 kg.) | F22: =IF('Załącznik 7 - F.O. Zad 6-10'!$V$57,VLOOKUP(C22,'Załącznik 7 - F.O. Zad 6-10'!$C$52:$G$210,5,0),0) -> 0 | G22: =I22+K22+M22+O22+Q22 -> 18 | H22: =G22*F22 -> 0 | K22: 12 | L22: =K22*F22 -> 0 | M22: 5 | N22: =M22*F22 -> 0 | Q22: 1 | R22: =Q22*F22 -> 0
B23: 2 | C23: DIAMANT CUKIER BIAŁY W SASZET OPK100X5G | D23: Cukier biały DIAMANT, saszetki 100 sztuk x 5 g | E23: 1 op. (100 sztuk) | F23: =IF('Załącznik 7 - F.O. Zad 6-10'!$V$57,VLOOKUP(C23,'Załącznik 7 - F.O. Zad 6-10'!$C$52:$G$210,5,0),0) -> 0 | G23: =I23+K23+M23+O23+Q23 -> 7 | H23: =G23*F23 -> 0 | K23: 6 | L23: =K23*F23 -> 0 | Q23: 1 | R23: 0
B24: 3 | C24: DIAMANT CUKIER DRY DEMERARA SYPKI 0,5KG | D24: Cukier trzcinowy DIAMANT Dry Demerara, sypki, 500 g | E24: 1 op. ( 500 g) | F24: =IF('Załącznik 7 - F.O. Zad 6-10'!$V$57,VLOOKUP(C24,'Załącznik 7 - F.O. Zad 6-10'!$C$52:$G$210,5,0),0) -> 0 | G24: 4 | H24: 0 | K24: 4 | L24: 0
B25: 4 | C25: DIAMANT CUKIER KRYSZTAŁ BIAŁY 1KG | D25: Cukier biały DIAMANT sypki, 1 kg | E25: 1 op.( 1 kg.) | F25: =IF('Załącznik 7 - F.O. Zad 6-10'!$V$57,VLOOKUP(C25,'Załącznik 7 - F.O. Zad 6-10'!$C$52:$G$210,5,0),0) -> 0 | G25: 51 | H25: 0 | I25: 3 | J25: =I25*F25 -> 0 | K25: 12 | L25: 0 | M25: 34 | N25: 0 | Q25: 2 | R25: 0
B26: 5 | C26: AHMAD HERBATA EARL GREY OPK100 | D26: Herbata czarna AHMAD Earl Grey, 100 torebek | E26: 1 op. (100 torobek) | F26: =IF('Załącznik 7 - F.O. Zad 6-10'!$V$57,VLOOKUP(C26,'Załącznik 7 - F.O. Zad 6-10'!$C$52:$G$210,5,0),0) -> 0 | G26: 9 | H26: 0 | I26: 3 | J26: 0 | K26: 6 | L26: 0
B27: 6 | C27: BIG-ACTIVE PURE CEYLON HERBATA OPK100 | D27: Herbata czarna BIG-ACTIVE Pure Ceylon, 100 torebek | E27: 1 op. (100 torobek) | F27: =IF('Załącznik 7 - F.O. Zad 6-10'!$V$57,VLOOKUP(C27,'Załącznik 7 - F.O. Zad 6-10'!$C$52:$G$210,5,0),0) -> 0 | G27: 7 | H27: 0 | I27: 3 | J27: 0 | K27: 4 | L27: 0
B28: 7 | C28: DILMAH CEYLON GOLD HERBATA 200G OPK100 | D28: Herbata czarna DILMAH Ceylon Gold, 100 torebek | E28: 1 op. (100 torobek) | F28: =IF('Załącznik 7 - F.O. Zad 6-10'!$V$57,VLOOKUP(C28,'Załącznik 7 - F.O. Zad 6-10'!$C$52:$G$210,5,0),0) -> 0 | G28: 17 | H28: 0 | I28: 1 | J28: 0 | K28: 8 | L28: 0 | M28: 8 | N28: 0
B29: 8 | C29: DILMAH EARL GREY HERBATA LIŚCIASTA 125G | D29: Herbata czarna liściasta DILMAH Earl Grey, 125 g | E29: 1 op. ( 125 g) | F29: =IF('Załącznik 7 - F.O. Zad 6-10'!$V$57,VLOOKUP(C29,'Załącznik 7 - F.O. Zad 6-10'!$C$52:$G$210,5,0),0) -> 0 | G29: 2 | H29: 0 | K29: 2 | L29: 0
B30: 9 | C30: HERBAPOL BREAKFAST HERB MIĘTOWA OPK20 | D30: Herbata miętowa HERBAPOL Breakfast, 20 kopert | E30: 1 op.( 20 torebek) | F30: =IF('Załącznik 7 - F.O. Zad 6-10'!$V$57,VLOOKUP(C30,'Załącznik 7 - F.O. Zad 6-10'!$C$52:$G$210,5,0),0) -> 0 | G30: 4 | H30: 0 | K30: 4 | L30: 0
B31: 10 | C31: HERBAPOL HERBATA MALINOWA OPK20 | D31: Herbata owocowa HERBAPOL Herbaciany Ogród malinowa, 20 torebek | E31: 1 op.( 20 torebek) | F31: =IF('Załącznik 7 - F.O. Zad 6-10'!$V$57,VLOOKUP(C31,'Załącznik 7 - F.O. Zad 6-10'!$C$52:$G$210,5,0),0) -> 0 | G31: 43 | H31: 0 | K31: 10 | L31: 0 | M31: 33 | N31: 0
B32: 11 | C32: HERBAPOL PROSTO Z LASU OPK20 | D32: Herbata owocowa HERBAPOL Herbaciany Ogród, Prosto z lasu, 20 torebek | E32: 1 op.( 20 torebek) | F32: =IF('Załącznik 7 - F.O. Zad 6-10'!$V$57,VLOOKUP(C32,'Załącznik 7 - F.O. Zad 6-10'!$C$52:$G$210,5,0),0) -> 0 | G32: 10 | H32: 0 | K32: 10 | L32: 0
B33: 12 | C33: HERBAPOL ZIELONA HERBATA OPK20 | D33: Herbata zielona HERBAPOL, 20 torebek bez zawieszki | E33: 1 op.( 20 torebek) | F33: =IF('Załącznik 7 - F.O. Zad 6-10'!$V$57,VLOOKUP(C33,'Załącznik 7 - F.O. Zad 6-10'!$C$52:$G$210,5,0),0) -> 0 | G33: 9 | H33: 0 | K33: 2 | L33: 0 | M33: 7 | N33: 0
B34: 13 | C34: Herbata zielona Lipton Piramidki | D34: Herbata zielona LIPTON 20 torebek piramidek | E34: 1 op.( 20 torebek) | F34: =IF('Załącznik 7 - F.O. Zad 6-10'!$V$57,VLOOKUP(C34,'Załącznik 7 - F.O. Zad 6-10'!$C$52:$G$210,5,0),0) -> 0 | G34: 20 | H34: 0 | K34: 6 | L34: 0 | M34: 14 | N34: 0
B35: 14 | C35: IRVING BIAŁ POZIOMK/MANDAR HERBATA OPK20 | D35: Harbata biała IRVING poziomkowa z mandarynką, 20 kopert | E35: 1 op.( 20 torebek) | F35: =IF('Załącznik 7 - F.O. Zad 6-10'!$V$57,VLOOKUP(C35,'Załącznik 7 - F.O. Zad 6-10'!$C$52:$G$210,5,0),0) -> 0 | G35: 10 | H35: 0 | K35: 10 | L35: 0
B36: 15 | C36: IRVING HERBATA CLASSIC OPK100 | D36: Herbata czarna IRVING Classic, 100 torebek | E36: 1 op.( 100 torebek) | F36: =IF('Załącznik 7 - F.O. Zad 6-10'!$V$57,VLOOKUP(C36,'Załącznik 7 - F.O. Zad 6-10'!$C$52:$G$210,5,0),0) -> 0 | G36: 7 | H36: 0 | I36: 2 | J36: 0 | K36: 5 | L36: 0
B37: 16 | C37: LIPTON EARL GREY HERBATA OPK100 | D37: Herbata czarna LIPTON Earl Grey, 100 torebek | E37: 1 op. (100 torebek) | F37: =IF('Załącznik 7 - F.O. Zad 6-10'!$V$57,VLOOKUP(C37,'Załącznik 7 - F.O. Zad 6-10'!$C$52:$G$210,5,0),0) -> 0 | G37: 27 | H37: 0 | K37: 5 | L37: 0 | M37: 21 | N37: 0 | Q37: 1 | R37: 0
B38: 17 | C38: LIPTON MELISA/WIŚNIA HERBATAOPK20 | D38: Herbata ziołowa LIPTON Melisa z wiśnią, 20 torebek | E38: 1 op. (20 torebek) | F38: =IF('Załącznik 7 - F.O. Zad 6-10'!$V$57,VLOOKUP(C38,'Załącznik 7 - F.O. Zad 6-10'!$C$52:$G$210,5,0),0) -> 0 | G38: 3 | H38: 0 | K38: 2 | L38: 0 | Q38: 1 | R38: 0
B39: 18 | C39: LIPTON PYRAMID CYTRYNOWA Z MELISĄ OPK20 | D39: Herbata czarna LIPTON cytrynowa z melisą, 20 torebek piramidek | E39: 1 op. (20 torebek) | F39: =IF('Załącznik 7 - F.O. Zad 6-10'!$V$57,VLOOKUP(C39,'Załącznik 7 - F.O. Zad 6-10'!$C$52:$G$210,5,0),0) -> 0 | G39: 3 | H39: 0 | K39: 2 | L39: 0 | Q39: 1 | R39: 0
B40: 19 | C40: LIPTON PYRAMID FOREST FRUIT | D40: Herbata owocowa LIPTON owoce leśne, 20 torebek piramidek | E40: 1 op. (20 torebek) | F40: =IF('Załącznik 7 - F.O. Zad 6-10'!$V$57,VLOOKUP(C40,'Załącznik 7 - F.O. Zad 6-10'!$C$52:$G$210,5,0),0) -> 0 | G40: 14 | H40: 0 | K40: 11 | L40: 0 | M40: 2 | N40: 0 | Q40: 1 | R40: 0
B41: 20 | C41: LIPTON YELLOW LABEL HERBATA OPK100 | D41: Herbata czarna LIPTON Yellow Label, 100 torebek | E41: 1 op. (100 torebek) | F41: =IF('Załącznik 7 - F.O. Zad 6-10'!$V$57,VLOOKUP(C41,'Załącznik 7 - F.O. Zad 6-10'!$C$52:$G$210,5,0),0) -> 0 | G41: 37 | H41: 0 | K41: 10 | L41: 0 | M41: 26 | N41: 0 | Q41: 1 | R41: 0
B42: 21 | C42: LIPTON YELLOW LABEL HERBATA OPK50 | D42: Herbata czarna LIPTON Yellow Label, 50 torebek | E42: 1 op. (50 torebek) | F42: =IF('Załącznik 7 - F.O. Zad 6-10'!$V$57,VLOOKUP(C42,'Załącznik 7 - F.O. Zad 6-10'!$C$52:$G$210,5,0),0) -> 0 | G42: 5 | H42: 0 | K42: 5 | L42: 0
B43: 22 | C43: LIPTON ZIELONA CITRUS HERBATA OPK25 | D43: Herbata zielona LIPTON cytrusowa, 25 torebek | E43: 1 op. (25 torebek) | F43: =IF('Załącznik 7 - F.O. Zad 6-10'!$V$57,VLOOKUP(C43,'Załącznik 7 - F.O. Zad 6-10'!$C$52:$G$210,5,0),0) -> 0 | G43: 22 | H43: 0 | K43: 11 | L43: 0 | M43: 10 | N43: 0 | Q43: 1 | R43: 0
B44: 23 | C44: LIPTON ZIELONA MIĘTOWA HERBATA OPK25 | D44: Herbata zielona LIPTON miętowa, 25 torebek | E44: 1 op. (25 torebek) | F44: =IF('Załącznik 7 - F.O. Zad 6-10'!$V$57,VLOOKUP(C44,'Załącznik 7 - F.O. Zad 6-10'!$C$52:$G$210,5,0),0) -> 0 | G44: 23 | H44: 0 | K44: 7 | L44: 0 | M44: 15 | N44: 0 | Q44: 1 | R44: 0
B45: 24 | C45: TEEKANNE BLACK CURRANT HERBATA OPK20 | D45: Herbata owocowa TEEKANNE World of Fruits, Black Currant, 20 kopert | E45: 1 op. (20 torebek) | F45: =IF('Załącznik 7 - F.O. Zad 6-10'!$V$57,VLOOKUP(C45,'Załącznik 7 - F.O. Zad 6-10'!$C$52:$G$210,5,0),0) -> 0 | G45: 12 | H45: 0 | K45: 11 | L45: 0 | Q45: 1 | R45: 0
B46: 25 | C46: TEEKANNE EARL GREY HERBATA OPK100 | D46: Herbata czarna TEEKANNE Earl Grey, 100 torebek | E46: 1 op. (100 torebek) | F46: =IF('Załącznik 7 - F.O. Zad 6-10'!$V$57,VLOOKUP(C46,'Załącznik 7 - F.O. Zad 6-10'!$C$52:$G$210,5,0),0) -> 0 | G46: 3 | H46: 0 | K46: 2 | L46: 0 | Q46: 1 | R46: 0
B47: 26 | C47: TEEKANNE WORLD OF FRUITS ZESTAW OPK30 | D47: Zestaw herbat owocowych TEEKANNE World of Fruits, 30 kopert | E47: 1 op. (30 torebek) | F47: =IF('Załącznik 7 - F.O. Zad 6-10'!$V$57,VLOOKUP(C47,'Załącznik 7 - F.O. Zad 6-10'!$C$52:$G$210,5,0),0) -> 0 | G47: 13 | H47: 0 | K47: 12 | L47: 0 | Q47: 1 | R47: 0
B48: 27 | C48: TEEKANNE ZIELON OPUNCJA HERBATA OPK20 | D48: Herbata zielona TEEKANNE z opuncją, 20 kopert | E48: 1 op. (20 torebek) | F48: =IF('Załącznik 7 - F.O. Zad 6-10'!$V$57,VLOOKUP(C48,'Załącznik 7 - F.O. Zad 6-10'!$C$52:$G$210,5,0),0) -> 0 | G48: 14 | H48: 0 | K48: 12 | L48: 0 | Q48: 2 | R48: 0
B49: 28 | C49: VITAX HERBATA MELISA I POMARAŃCZA OPK20 | D49: Herbata owocowa VITAX Inspirations melisa & pomarańcza, 20 torebek | E49: 1 op. (20 torebek) | F49: =IF('Załącznik 7 - F.O. Zad 6-10'!$V$57,VLOOKUP(C49,'Załącznik 7 - F.O. Zad 6-10'!$C$52:$G$210,5,0),0) -> 0 | G49: 13 | H49: 0 | K49: 12 | L49: 0 | Q49: 1 | R49: 0
B50: 29 | C50: VITAX HERBATA ZIOŁOWA MELISA OPK20 | D50: Herbata ziołowa VITAX melisa, 20 okrągłych torebek bez zawieszki | E50: 1 op. (20 torebek) | F50: =IF('Załącznik 7 - F.O. Zad 6-10'!$V$57,VLOOKUP(C50,'Załącznik 7 - F.O. Zad 6-10'!$C$52:$G$210,5,0),0) -> 0 | G50: 1 | H50: 0 | Q50: 1 | R50: 0
B51: 30 | C51: VITAX HERBATA ZIOŁOWA MIĘTA OPK20 | D51: Herbata ziołowa VITAX mięta, 20 okrągłych torebek bez zawieszki | E51: 1 op. (20 torebek) | F51: =IF('Załącznik 7 - F.O. Zad 6-10'!$V$57,VLOOKUP(C51,'Załącznik 7 - F.O. Zad 6-10'!$C$52:$G$210,5,0),0) -> 0 | G51: 2 | H51: 0 | Q51: 2 | R51: 0
B52: 31 | C52: VITAX HERBATA ŻURAWINA I MALINA OPK20 | D52: Herbata owocowa VITAX Inspirations żurawina & malina, 20 torebek | E52: 1 op. (20 torebek) | F52: =IF('Załącznik 7 - F.O. Zad 6-10'!$V$57,VLOOKUP(C52,'Załącznik 7 - F.O. Zad 6-10'!$C$52:$G$210,5,0),0) -> 0 | G52: 48 | H52: 0 | K52: 12 | L52: 0 | M52: 34 | N52: 0 | Q52: 2 | R52: 0
B53: 32 | C53: VITAX NAPAR RUMIANEK OPK20 | D53: Herbata ziołowa VITAX rumianek, 20 kwadratowych torebek bez zawieszki | E53: 1 op. (20 torebek) | F53: =IF('Załącznik 7 - F.O. Zad 6-10'!$V$57,VLOOKUP(C53,'Załącznik 7 - F.O. Zad 6-10'!$C$52:$G$210,5,0),0) -> 0 | G53: 3 | H53: 0 | I53: 1 | J53: 0 | Q53: 2 | R53: 0
B54: 33 | C54: ASTRA ŁAGODNA TRADYCYJNA KAWA ZIARN 1 KG | D54: Kawa ziarnista Astra Łagodna 1 kg | E54: 1 op. (1 kg) | F54: =IF('Załącznik 7 - F.O. Zad 6-10'!$V$57,VLOOKUP(C54,'Załącznik 7 - F.O. Zad 6-10'!$C$52:$G$210,5,0),0) -> 0 | G54: 1 | H54: 0 | M54: 1 | N54: 0
B55: 34 | C55: DUNI KUBEK PAPIER BIAŁY 210ML OPK50 | D55: Kubek papierowy do gorących i zminych napojów 210 ml | E55: 1 op. (50 szt.) | F55: =IF('Załącznik 7 - F.O. Zad 6-10'!$V$57,VLOOKUP(C55,'Załącznik 7 - F.O. Zad 6-10'!$C$52:$G$210,5,0),0) -> 0 | G55: 20 | H55: 0 | K55: 20 | L55: 0
B56: 35 | C56: EDUSCHO CAFFE CREMA KAWA ZIARNISTA 1KG | D56: Kawa ziarnista EDUSCHO Caffe Crema, 1 kg | E56: 1 op. ( 1 kg.) | F56: =IF('Załącznik 7 - F.O. Zad 6-10'!$V$57,VLOOKUP(C56,'Załącznik 7 - F.O. Zad 6-10'!$C$52:$G$210,5,0),0) -> 0 | G56: 5 | H56: 0 | K56: 2 | L56: 0 | M56: 2 | N56: 0 | Q56: 1 | R56: 0
B57: 36 | C57: JACOBS BARISTA AMERICANO KAWA ROZPU 155G | D57: Kawa rozpuszczalna JACOBS Barista Americano 155 g | E57: 1 op. (słoik 155g) | F57: =IF('Załącznik 7 - F.O. Zad 6-10'!$V$57,VLOOKUP(C57,'Załącznik 7 - F.O. Zad 6-10'!$C$52:$G$210,5,0),0) -> 0 | G57: 2 | H57: 0 | K57: 2 | L57: 0
B58: 37 | C58: JACOBS CRONAT GOLD KAWA MIELONA 500G | D58: Kawa mielona JACOBS Cronat Gold, 500 g | E58: 1 op. (500 g.) | F58: =IF('Załącznik 7 - F.O. Zad 6-10'!$V$57,VLOOKUP(C58,'Załącznik 7 - F.O. Zad 6-10'!$C$52:$G$210,5,0),0) -> 0 | G58: 21 | H58: 0 | I58: 2 | J58: 0 | K58: 6 | L58: 0 | M58: 13 | N58: 0
B59: 38 | C59: JACOBS CRONAT GOLD KAWA ROZPUSZCZ 200G | D59: Kawa rozpuszczalna JACOBS Cronat Gold, 200 g | E59: 1 op.( 200 g.) | F59: =IF('Załącznik 7 - F.O. Zad 6-10'!$V$57,VLOOKUP(C59,'Załącznik 7 - F.O. Zad 6-10'!$C$52:$G$210,5,0),0) -> 0 | G59: 17 | H59: 0 | I59: 2 | J59: 0 | K59: 6 | L59: 0 | M59: 9 | N59: 0
B60: 39 | C60: JACOBS GOLD CREMA KAWA ROZPUSZCZ 200G | D60: Kawa rozpuszczalna JACOBS Crema Gold, 200 g | E60: 1 op.( 200 g.) | F60: =IF('Załącznik 7 - F.O. Zad 6-10'!$V$57,VLOOKUP(C60,'Załącznik 7 - F.O. Zad 6-10'!$C$52:$G$210,5,0),0) -> 0 | G60: 17 | H60: 0 | K60: 6 | L60: 0 | M60: 11 | N60: 0
B61: 40 | C61: JACOBS KRONUNG KAWA MIELONA 250G | D61: Kawa mielona JACOBS Kronung, 250 g | E61: 1 op. (250 g.) | F61: =IF('Załącznik 7 - F.O. Zad 6-10'!$V$57,VLOOKUP(C61,'Załącznik 7 - F.O. Zad 6-10'!$C$52:$G$210,5,0),0) -> 0 | G61: 15 | H61: 0 | K61: 4 | L61: 0 | M61: 11 | N61: 0
B62: 41 | C62: JACOBS KRONUNG KAWA ROZPUSZCZALNA 200G | D62: Kawa rozpuszczalna JACOBS Kronung, 200 g | E62: 1 op.( 200 g.) | F62: =IF('Załącznik 7 - F.O. Zad 6-10'!$V$57,VLOOKUP(C62,'Załącznik 7 - F.O. Zad 6-10'!$C$52:$G$210,5,0),0) -> 0 | G62: 23 | H62: 0 | K62: 8 | L62: 0 | M62: 15 | N62: 0
B63: 42 | C63: KUBEK PLASTIK 200ML BIAŁE OPK100 | D63: Kubek plastikowy do zimnych napojów 200 ml Biały | E63: 1 op. (100 szt.) | F63: =IF('Załącznik 7 - F.O. Zad 6-10'!$V$57,VLOOKUP(C63,'Załącznik 7 - F.O. Zad 6-10'!$C$52:$G$210,5,0),0) -> 0 | G63: 20 | H63: 0 | K63: 20 | L63: 0
B64: 43 | C64: LAVAZZA CREMA AROMA KAWA ZIARNISTA 1KG | D64: Kawa ziarnista LAVAZZA Crema Aroma, 1 kg | E64: 1 op. (1 kg) | F64: =IF('Załącznik 7 - F.O. Zad 6-10'!$V$57,VLOOKUP(C64,'Załącznik 7 - F.O. Zad 6-10'!$C$52:$G$210,5,0),0) -> 0 | G64: 29 | H64: 0 | K64: 12 | L64: 0 | M64: 15 | N64: 0 | O64: 2 | P64: =O64*F64 -> 0
B65: 44 | C65: LAVAZZA PRONTOCREMA GRANDE AROMA ZIA 1KG | D65: Kawa ziarnista LAVAZZA Pronto crema Grande Aroma 1 kg | E65: 1 op. (1 kg) | F65: =IF('Załącznik 7 - F.O. Zad 6-10'!$V$57,VLOOKUP(C65,'Załącznik 7 - F.O. Zad 6-10'!$C$52:$G$210,5,0),0) -> 0 | G65: 15 | H65: 0 | K65: 6 | L65: 0 | M65: 8 | N65: 0 | O65: 1 | P65: 0
B66: 45 | C66: LAVAZZA QUALITA ORO KAWA MIELONA 250G | D66: Kawa mielona LAVAZZA Qualita Oro, 250 g | E66: 1 op. (250 g) | F66: =IF('Załącznik 7 - F.O. Zad 6-10'!$V$57,VLOOKUP(C66,'Załącznik 7 - F.O. Zad 6-10'!$C$52:$G$210,5,0),0) -> 0 | G66: 4 | H66: 0 | K66: 4 | L66: 0
B67: 46 | C67: LAVAZZA QUALITA ORO KAWA ZIARNISTA 1 KG | D67: Kawa ziarnista LAVAZZA Qualita Oro, 1 kg | E67: 1 op. (1 kg) | F67: =IF('Załącznik 7 - F.O. Zad 6-10'!$V$57,VLOOKUP(C67,'Załącznik 7 - F.O. Zad 6-10'!$C$52:$G$210,5,0),0) -> 0 | G67: 68 | H67: 0 | K67: 24 | L67: 0 | M67: 43 | N67: 0 | O67: 1 | P67: 0
B68: 47 | C68: LAVAZZA QUALITA ROSSA KAWA ZIARNISTA 1KG | D68: Kawa ziarnista LAVAZZA Qualita Rossa, 1 kg | E68: 1 op. (1 kg) | F68: =IF('Załącznik 7 - F.O. Zad 6-10'!$V$57,VLOOKUP(C68,'Załącznik 7 - F.O. Zad 6-10'!$C$52:$G$210,5,0),0) -> 0 | G68: 50 | H68: 0 | K68: 12 | L68: 0 | M68: 38 | N68: 0
B69: 48 | C69: NESCAFE SENSAZIONE CREME KAWA ROZP 200G | D69: Kawa rozpuszczalna NESCAFÉ Sensazione Creme, 200 g | E69: 1 op.( 200 g.) | F69: =IF('Załącznik 7 - F.O. Zad 6-10'!$V$57,VLOOKUP(C69,'Załącznik 7 - F.O. Zad 6-10'!$C$52:$G$210,5,0),0) -> 0 | G69: 28 | H69: 0 | K69: 8 | L69: 0 | M69: 20 | N69: 0
B70: 49 | C70: TCHIBO EXCLUSIVE KAWA MIELONA 250G | D70: Kawa mielona TCHIBO Exclusive, 250 g | E70: 1 op. (250 g) | F70: =IF('Załącznik 7 - F.O. Zad 6-10'!$V$57,VLOOKUP(C70,'Załącznik 7 - F.O. Zad 6-10'!$C$52:$G$210,5,0),0) -> 0 | G70: 9 | H70: 0 | K70: 4 | L70: 0 | M70: 5 | N70: 0
B71: 50 | C71: TCHIBO FAMILY KAWA MIELONA 250G | D71: Kawa mielona TCHIBO Family, 250 g | E71: 1 op. (250 g) | F71: =IF('Załącznik 7 - F.O. Zad 6-10'!$V$57,VLOOKUP(C71,'Załącznik 7 - F.O. Zad 6-10'!$C$52:$G$210,5,0),0) -> 0 | G71: 4 | H71: 0 | K71: 4 | L71: 0
B72: 51 | C72: TCHIBO FAMILY KAWA ROZPUSZCZALNA 200G | D72: Kawa rozpuszczalna TCHIBO Family, 200 g | E72: 1 op. (200 g) | F72: =IF('Załącznik 7 - F.O. Zad 6-10'!$V$57,VLOOKUP(C72,'Załącznik 7 - F.O. Zad 6-10'!$C$52:$G$210,5,0),0) -> 0 | G72: 6 | H72: 0 | K72: 6 | L72: 0
B73: 52 | C73: TCHIBO PROFESSIONAL CREMA ZIARNISTA 1KG | D73: Kawa ziarnista TCHIBO Profesional Crema 1 kg | E73: 1 op. (1 kg) | F73: =IF('Załącznik 7 - F.O. Zad 6-10'!$V$57,VLOOKUP(C73,'Załącznik 7 - F.O. Zad 6-10'!$C$52:$G$210,5,0),0) -> 0 | G73: 5 | H73: 0 | K73: 4 | L73: 0 | Q73: 1 | R73: 0
B74: 53 | C74: GOSTYŃ MLEKO SKONDENS NIESŁODZONE 500G | D74: Mleko zagęszczone GOSTYŃ 7,5% niesłodzone, 500 g | E74: 1 op. ( 1 karton 500 g) | F74: =IF('Załącznik 7 - F.O. Zad 6-10'!$V$57,VLOOKUP(C74,'Załącznik 7 - F.O. Zad 6-10'!$C$52:$G$210,5,0),0) -> 0 | G74: 35 | H74: 0 | K74: 4 | L74: 0 | M74: 31 | N74: 0
B75: 54 | C75: ŁACIATA ŚMIETANKA UHT 12% 500ML | D75: Śmietanka do kawy ŁACIATA 12%, 500 ml | E75: 1 op. (500 ml) | F75: =IF('Załącznik 7 - F.O. Zad 6-10'!$V$57,VLOOKUP(C75,'Załącznik 7 - F.O. Zad 6-10'!$C$52:$G$210,5,0),0) -> 0 | G75: 4 | H75: 0 | K75: 4 | L75: 0
B76: 55 | C76: ŁACIATA ŚMIETANKA W KUBECZKACH OPK10X10G | D76: Śmietanka do kawy ŁACIATA 10%, 10 kubeczków x 10 g | E76: 1 op. (10 kubeczków) | F76: =IF('Załącznik 7 - F.O. Zad 6-10'!$V$57,VLOOKUP(C76,'Załącznik 7 - F.O. Zad 6-10'!$C$52:$G$210,5,0),0) -> 0 | G76: 52 | H76: 0 | K76: 12 | L76: 0 | M76: 40 | N76: 0
B77: 56 | C77: ŁACIATE MLEKO UHT 2% 0,5L | D77: Mleko ŁACIATE UHT 2,0%, 0,5 l | E77: 1 op. (500 ml) | F77: =IF('Załącznik 7 - F.O. Zad 6-10'!$V$57,VLOOKUP(C77,'Załącznik 7 - F.O. Zad 6-10'!$C$52:$G$210,5,0),0) -> 0 | G77: 38 | H77: 0 | K77: 12 | L77: 0 | M77: 26 | N77: 0
B78: 57 | C78: ŁACIATE MLEKO UHT 2% 1L | D78: Mleko ŁACIATE UHT 2,0%, 1 l | E78: 1 op. (1 l) | F78: =IF('Załącznik 7 - F.O. Zad 6-10'!$V$57,VLOOKUP(C78,'Załącznik 7 - F.O. Zad 6-10'!$C$52:$G$210,5,0),0) -> 0 | G78: 19 | H78: 0 | K78: 8 | L78: 0 | M78: 10 | N78: 0 | Q78: 1 | R78: 0
B79: 58 | C79: ŁACIATE MLEKO UHT 3,2% 0,5L | D79: Mleko ŁACIATE UHT 3,2%, 0,5 l | E79: 1 op. (500 ml) | F79: =IF('Załącznik 7 - F.O. Zad 6-10'!$V$57,VLOOKUP(C79,'Załącznik 7 - F.O. Zad 6-10'!$C$52:$G$210,5,0),0) -> 0 | G79: 13 | H79: 0 | K79: 12 | L79: 0 | Q79: 1 | R79: 0
B80: 59 | C80: ŁACIATE MLEKO UHT 3,2% 1L | D80: Mleko ŁACIATE UHT 3,2%, 1 l | E80: 1 op. (1 l) | F80: =IF('Załącznik 7 - F.O. Zad 6-10'!$V$57,VLOOKUP(C80,'Załącznik 7 - F.O. Zad 6-10'!$C$52:$G$210,5,0),0) -> 0 | G80: 199 | H80: 0 | K80: 8 | L80: 0 | M80: 190 | N80: =M80*F80 -> 0 | Q80: 1 | R80: =Q80*F80 -> 0
B81: 60 | C81: ŁACIATE MLEKO ZAGĘSZCZONE 7,5% 0,5L | D81: Mleko zagęszczone ŁACIATE UHT 7,5%, 0,5 l | E81: 1 op. (500 ml) | F81: =IF('Załącznik 7 - F.O. Zad 6-10'!$V$57,VLOOKUP(C81,'Załącznik 7 - F.O. Zad 6-10'!$C$52:$G$210,5,0),0) -> 0 | G81: =I81+K81+M81+O81+Q81 -> 5 | H81: =G81*F81 -> 0 | K81: 4 | L81: =K81*F81 -> 0 | Q81: 1 | R81: 0
B82: 61 | C82: ZAMBROWSKIE MLEKO UHT 3,2% 1L | D82: Mleko ZAMBROWSKIE UHT 3,2 %, 1 l | E82: 1 op. (1 l) | F82: =IF('Załącznik 7 - F.O. Zad 6-10'!$V$57,VLOOKUP(C82,'Załącznik 7 - F.O. Zad 6-10'!$C$52:$G$210,5,0),0) -> 0 | G82: 1 | H82: 0 | Q82: 1 | R82: 0
B83: 62 | C83: BAKALLAND BAKALIE STUDENCKI MIX 200G | D83: Cukierki Mieszanka bakaliowa BAKALLAND Studencki Mix, 200 g | E83: 1 op (200 g) | F83: =IF('Załącznik 7 - F.O. Zad 6-10'!$V$57,VLOOKUP(C83,'Załącznik 7 - F.O. Zad 6-10'!$C$52:$G$210,5,0),0) -> 0 | G83: 14 | H83: 0 | K83: 12 | L83: 0 | M83: 2 | N83: 0
B84: 63 | C84: BAKALLAND MIGDAŁY 300G | D84: Migdały BAKALLAND, 300 g | E84: 1 op. (300 g) | F84: =IF('Załącznik 7 - F.O. Zad 6-10'!$V$57,VLOOKUP(C84,'Załącznik 7 - F.O. Zad 6-10'!$C$52:$G$210,5,0),0) -> 0 | G84: 15 | H84: 0 | K84: 12 | L84: 0 | M84: 3 | N84: 0
B85: 64 | C85: BAKALLAND ORZECHY NERKOWCA 300G | D85: Orzechy nerkowca BAKALLAND, 300 g | E85: 1 op. (300 g) | F85: =IF('Załącznik 7 - F.O. Zad 6-10'!$V$57,VLOOKUP(C85,'Załącznik 7 - F.O. Zad 6-10'!$C$52:$G$210,5,0),0) -> 0 | G85: 15 | H85: 0 | K85: 12 | L85: 0 | M85: 3 | N85: 0
B86: 65 | C86: BELVITA CIASTKA KAKAOWE 300G | D86: Ciastka BELVITA, kakaowe, 300 g, 24 ciasteczka | E86: 1 op. (300 g) | F86: =IF('Załącznik 7 - F.O. Zad 6-10'!$V$57,VLOOKUP(C86,'Załącznik 7 - F.O. Zad 6-10'!$C$52:$G$210,5,0),0) -> 0 | G86: 12 | H86: 0 | K86: 12 | L86: 0
B87: 66 | C87: BELVITA CIASTKA MUSLI+OWOCE 300G | D87: Ciastka BELVITA Musli z owocami, 24 ciasteczka pakowane po 4 sztuki, 300 g | E87: 1 op. (300 g) | F87: =IF('Załącznik 7 - F.O. Zad 6-10'!$V$57,VLOOKUP(C87,'Załącznik 7 - F.O. Zad 6-10'!$C$52:$G$210,5,0),0) -> 0 | G87: 6 | H87: 0 | K87: 6 | L87: 0
B88: 67 | C88: CISOWIANKA WODA GAZOWANA 0,5L OPK12 | D88: Woda mineralna CISOWIANKA gazowana, zgrzewka 12 butelek x 0,5 l | E88: 1 op. (12 butelek) | F88: =IF('Załącznik 7 - F.O. Zad 6-10'!$V$57,VLOOKUP(C88,'Załącznik 7 - F.O. Zad 6-10'!$C$52:$G$210,5,0),0) -> 0 | G88: 45 | H88: 0 | K88: 6 | L88: 0 | M88: 38 | N88: 0 | Q88: 1 | R88: 0
B89: 68 | C89: DELICJE SZAMPAŃSKIE MALINA 147G | D89: Ciastka DELICJE Szampańskie malinowe, 147 g | E89: 1 op. (147 g) | F89: =IF('Załącznik 7 - F.O. Zad 6-10'!$V$57,VLOOKUP(C89,'Załącznik 7 - F.O. Zad 6-10'!$C$52:$G$210,5,0),0) -> 0 | G89: 67 | H89: 0 | K89: 24 | L89: 0 | M89: 42 | N89: 0 | Q89: 1 | R89: 0
B90: 69 | C90: DELICJE SZAMPAŃSKIE POMARAŃCZA 147G | D90: Ciastka DELICJE Szampańskie pomarańczowe, 147 g | E90: 1 op. (147 g) | F90: =IF('Załącznik 7 - F.O. Zad 6-10'!$V$57,VLOOKUP(C90,'Załącznik 7 - F.O. Zad 6-10'!$C$52:$G$210,5,0),0) -> 0 | G90: 41 | H90: 0 | K90: 24 | L90: 0 | M90: 16 | N90: 0 | Q90: 1 | R90: 0
B91: 70 | C91: DELICJE SZAMPAŃSKIE WIŚNIA 147G | D91: Ciastka DELICJE Szampańskie wiśniowe, 147 g | E91: 1 op. (147 g) | F91: =IF('Załącznik 7 - F.O. Zad 6-10'!$V$57,VLOOKUP(C91,'Załącznik 7 - F.O. Zad 6-10'!$C$52:$G$210,5,0),0) -> 0 | G91: 37 | H91: 0 | K91: 24 | L91: 0 | M91: 12 | N91: 0 | Q91: 1 | R91: 0
B92: 71 | C92: DELICJE SZAMPAŃSKIE WIŚNIOWE 294G | D92: Ciastka DELICJE Szampańskie wiśniowe, podwójne opakowanie, 294 g | E92: 1 op. ( 294 g) | F92: =IF('Załącznik 7 - F.O. Zad 6-10'!$V$57,VLOOKUP(C92,'Załącznik 7 - F.O. Zad 6-10'!$C$52:$G$210,5,0),0) -> 0 | G92: 45 | H92: 0 | K92: 12 | L92: 0 | M92: 32 | N92: 0 | Q92: 1 | R92: 0
B93: 72 | C93: FERRERO RAFAELLO 230 G | D93: Praliny RAFFAELLO, 230 g | E93: 1 op.( 230 g.) | F93: =IF('Załącznik 7 - F.O. Zad 6-10'!$V$57,VLOOKUP(C93,'Załącznik 7 - F.O. Zad 6-10'!$C$52:$G$210,5,0),0) -> 0 | G93: 45 | H93: 0 | K93: 12 | L93: 0 | M93: 33 | N93: 0
B94: 73 | C94: FERRERO RAFFAELLO PRALINY 230G | D94: Praliny RAFFAELLO, 230 g | E94: 2 op.( 230 g.) | F94: =IF('Załącznik 7 - F.O. Zad 6-10'!$V$57,VLOOKUP(C94,'Załącznik 7 - F.O. Zad 6-10'!$C$52:$G$210,5,0),0) -> 0 | G94: 6 | H94: 0 | K94: 6 | L94: 0
B95: 74 | C95: Ferrero Rocher Praliny 200g | D95: Czekoladki FERRERO ROCHER, 200 g | E95: 3 op.( 200 g.) | F95: =IF('Załącznik 7 - F.O. Zad 6-10'!$V$57,VLOOKUP(C95,'Załącznik 7 - F.O. Zad 6-10'!$C$52:$G$210,5,0),0) -> 0 | G95: 32 | H95: 0 | K95: 18 | L95: 0 | M95: 14 | N95: 0
B96: 75 | C96: GOPLANA TOFFINO CHOCO 1KG | D96: Cukierki Goplana Toffino Choco Toffi mleczne z kremem czekoladowym 1 kg | E96: 1 op. ( 1 kg.) | F96: =IF('Załącznik 7 - F.O. Zad 6-10'!$V$57,VLOOKUP(C96,'Załącznik 7 - F.O. Zad 6-10'!$C$52:$G$210,5,0),0) -> 0 | G96: 16 | H96: 0 | K96: 16 | L96: 0
B97: 76 | C97: HIT MARKIZY CZEKOLADOWE 220G | D97: Ciastka BAHLSEN HIT czekoladowe, 220 g | E97: 1 op.( 220 g) | F97: =IF('Załącznik 7 - F.O. Zad 6-10'!$V$57,VLOOKUP(C97,'Załącznik 7 - F.O. Zad 6-10'!$C$52:$G$210,5,0),0) -> 0 | G97: 10 | H97: 0 | K97: 8 | L97: 0 | M97: 2 | N97: 0
B98: 77 | C98: JUTRZENKA JEŻYKI CAFE CIASTKA 140G | D98: Ciasta JEŻYKI Cafe, 140 g | E98: 1 op. (140 g) | F98: =IF('Załącznik 7 - F.O. Zad 6-10'!$V$57,VLOOKUP(C98,'Załącznik 7 - F.O. Zad 6-10'!$C$52:$G$210,5,0),0) -> 0 | G98: 17 | H98: 0 | K98: 12 | L98: 0 | M98: 5 | N98: 0
B99: 78 | C99: JUTRZENKA JEŻYKI CIASTKA 140G | D99: Ciasta JEŻYKI Classic, 140 g | E99: 1 op. (140 g) | F99: =IF('Załącznik 7 - F.O. Zad 6-10'!$V$57,VLOOKUP(C99,'Załącznik 7 - F.O. Zad 6-10'!$C$52:$G$210,5,0),0) -> 0 | G99: 60 | H99: 0 | K99: 12 | L99: 0 | M99: 48 | N99: 0
B100: 79 | C100: JUTRZENKA WAFLE FAMILIJNE ŚMIET-KAK 180G | D100: Wafle FAMILIJNE śmietankowo-kakaowe, 180 g | E100: 1 op. (180 g) | F100: =IF('Załącznik 7 - F.O. Zad 6-10'!$V$57,VLOOKUP(C100,'Załącznik 7 - F.O. Zad 6-10'!$C$52:$G$210,5,0),0) -> 0 | G100: 49 | H100: 0 | K100: 6 | L100: 0 | M100: 43 | N100: 0
B101: 80 | C101: ŁAKOTKI DESEROWE Z CUKREM 168G | D101: Ciastka SAN ŁAKOTKI deserowe z cukrem, 168 g | E101: 1 op. (168 g) | F101: =IF('Załącznik 7 - F.O. Zad 6-10'!$V$57,VLOOKUP(C101,'Załącznik 7 - F.O. Zad 6-10'!$C$52:$G$210,5,0),0) -> 0 | G101: 38 | H101: 0 | K101: 6 | L101: 0 | M101: 32 | N101: 0
B102: 81 | C102: ŁAKOTKI KAKAOWE 168G | D102: Ciastka SAN ŁAKOTKI kakaowe, 168 g | E102: 1 op. (168 g) | F102: =IF('Załącznik 7 - F.O. Zad 6-10'!$V$57,VLOOKUP(C102,'Załącznik 7 - F.O. Zad 6-10'!$C$52:$G$210,5,0),0) -> 0 | G102: 6 | H102: 0 | K102: 6 | L102: 0
B103: 82 | C103: ŁAKOTKI KOKOSOWE 168G | D103: Ciastka SAN ŁAKOTKI kokosowe, 168 g | E103: 1 op. (168 g) | F103: =IF('Załącznik 7 - F.O. Zad 6-10'!$V$57,VLOOKUP(C103,'Załącznik 7 - F.O. Zad 6-10'!$C$52:$G$210,5,0),0) -> 0 | G103: 19 | H103: 0 | K103: 12 | L103: 0 | M103: 7 | N103: 0
B104: 83 | C104: MERCI CZEKOLADKI 400 G | D104: Czekoladki MERCI, 400 g | E104: 1 op.(400 g.) | F104: =IF('Załącznik 7 - F.O. Zad 6-10'!$V$57,VLOOKUP(C104,'Załącznik 7 - F.O. Zad 6-10'!$C$52:$G$210,5,0),0) -> 0 | G104: 18 | H104: 0 | K104: 12 | L104: 0 | M104: 6 | N104: 0
B105: 84 | C105: MILKA CHOCO GRAINS CIASTKA 126 G | D105: Ciastka MILKA Chocograins, 126 g | E105: 1 op.(126 g.) | F105: =IF('Załącznik 7 - F.O. Zad 6-10'!$V$57,VLOOKUP(C105,'Załącznik 7 - F.O. Zad 6-10'!$C$52:$G$210,5,0),0) -> 0 | G105: 12 | H105: 0 | K105: 12 | L105: 0
B106: 85 | C106: MILKA CHOCOWAFER CIASTKA 150G | D106: Wafle MILKA ChocoWafer, 150 g | E106: 1 op.(150g.) | F106: =IF('Załącznik 7 - F.O. Zad 6-10'!$V$57,VLOOKUP(C106,'Załącznik 7 - F.O. Zad 6-10'!$C$52:$G$210,5,0),0) -> 0 | G106: 19 | H106: 0 | K106: 12 | L106: 0 | M106: 7 | N106: 0
B107: 86 | C107: MILKA MOMENTS CZEKOL MIX 11X97G | D107: Praliny MILKA Moments Mix, 11 czekoladek | E107: 1 op. (11 sztuk) | F107: =IF('Załącznik 7 - F.O. Zad 6-10'!$V$57,VLOOKUP(C107,'Załącznik 7 - F.O. Zad 6-10'!$C$52:$G$210,5,0),0) -> 0 | G107: 12 | H107: 0 | K107: 12 | L107: 0
B108: 87 | C108: MILKA MOMENTS TOFF/ORZECH 11x97G | D108: Praliny MILKA Moments Toffee Wholenut, 11 czekoladek | E108: 1 op. (11 sztuk) | F108: =IF('Załącznik 7 - F.O. Zad 6-10'!$V$57,VLOOKUP(C108,'Załącznik 7 - F.O. Zad 6-10'!$C$52:$G$210,5,0),0) -> 0 | G108: 12 | H108: 0 | K108: 12 | L108: 0
B109: 88 | C109: MILKA PIEGUSKI CZEKOLADA ORZECHY 135G | D109: Ciastka MILKA Pieguski, czekolada i orzechy, 135 g | E109: 1 op. (135 g) | F109: =IF('Załącznik 7 - F.O. Zad 6-10'!$V$57,VLOOKUP(C109,'Załącznik 7 - F.O. Zad 6-10'!$C$52:$G$210,5,0),0) -> 0 | G109: 42 | H109: 0 | K109: 10 | L109: 0 | M109: 32 | N109: 0
B110: 89 | C110: MILKA SINGLES CZEKOLADKI 138G | D110: Czekoladki MILKA Singles, 32 czekoladki pakowane osobno | E110: 1 op. (32 szt.) | F110: =IF('Załącznik 7 - F.O. Zad 6-10'!$V$57,VLOOKUP(C110,'Załącznik 7 - F.O. Zad 6-10'!$C$52:$G$210,5,0),0) -> 0 | G110: 10 | H110: 0 | M110: 10 | N110: 0
B111: 90 | C111: NESPRESSO CZEKOLADKI BLOND 200G | D111: Czekoladki NESPRESSO blond, 200 g | E111: 1 op ( 200 g.) | F111: =IF('Załącznik 7 - F.O. Zad 6-10'!$V$57,VLOOKUP(C111,'Załącznik 7 - F.O. Zad 6-10'!$C$52:$G$210,5,0),0) -> 0 | G111: 4 | H111: 0 | K111: 4 | L111: 0
B112: 91 | C112: NESPRESSO CZEKOLADKI MILK 200G | D112: Czekoladki NESPRESSO mleczne, 200 g | E112: 1 op ( 200 g.) | F112: =IF('Załącznik 7 - F.O. Zad 6-10'!$V$57,VLOOKUP(C112,'Załącznik 7 - F.O. Zad 6-10'!$C$52:$G$210,5,0),0) -> 0 | G112: 9 | H112: 0 | K112: 4 | L112: 0 | M112: 5 | N112: 0
B113: 92 | C113: PASTYLKI MIĘTOWEW CZEKOLADZIE WAWEL | D113: Cukierki Pastylka miętowa WAWEL, 1 kg | E113: 1 op. (1 kg) | F113: =IF('Załącznik 7 - F.O. Zad 6-10'!$V$57,VLOOKUP(C113,'Załącznik 7 - F.O. Zad 6-10'!$C$52:$G$210,5,0),0) -> 0 | G113: 9 | H113: 0 | K113: 8 | L113: 0 | M113: 1 | N113: 0
B114: 93 | C114: SOLIDARNOŚĆ ŚLIWKA NALECZOWSKA 1KG | D114: CukierkiŚliwka Nałęczowska SOLIDARNOŚĆ, 1 kg | E114: 2 op. (1 kg) | F114: =IF('Załącznik 7 - F.O. Zad 6-10'!$V$57,VLOOKUP(C114,'Załącznik 7 - F.O. Zad 6-10'!$C$52:$G$210,5,0),0) -> 0 | G114: 29 | H114: 0 | K114: 16 | L114: 0 | M114: 13 | N114: 0
B115: 94 | C115: TAGO CIASTECZKA KORZENNE 4,8G OPK125 | D115: Ciastka TAGO korzenne, 125 ciasteczek po 4,8 g | E115: 1 op. (125 szt.) | F115: =IF('Załącznik 7 - F.O. Zad 6-10'!$V$57,VLOOKUP(C115,'Załącznik 7 - F.O. Zad 6-10'!$C$52:$G$210,5,0),0) -> 0 | G115: 8 | H115: 0 | K115: 8 | L115: 0
B116: 95 | C116: TAGO OWSIANE DE LUX CIASTECZKA 210G | D116: Ciastka TAGO Owsiane de Lux, 210 g | E116: 1 op. (210 g) | F116: =IF('Załącznik 7 - F.O. Zad 6-10'!$V$57,VLOOKUP(C116,'Załącznik 7 - F.O. Zad 6-10'!$C$52:$G$210,5,0),0) -> 0 | G116: 8 | H116: 0 | K116: 8 | L116: 0
B117: 96 | C117: TAGO PRECLE MAŚLANE 158 G | D117: Francuskie precle z masłem TAGO, 158 g | E117: 1 op. ( 158 g) | F117: =IF('Załącznik 7 - F.O. Zad 6-10'!$V$57,VLOOKUP(C117,'Załącznik 7 - F.O. Zad 6-10'!$C$52:$G$210,5,0),0) -> 0 | G117: 10 | H117: 0 | K117: 8 | L117: 0 | M117: 2 | N117: 0
B118: 97 | C118: WAWEL MICHAŁKI 1 KG | D118: Cukierki WAWEL Michałki Klasyczne 300 g | E118: 1 op. (300 g) | F118: =IF('Załącznik 7 - F.O. Zad 6-10'!$V$57,VLOOKUP(C118,'Załącznik 7 - F.O. Zad 6-10'!$C$52:$G$210,5,0),0) -> 0 | G118: 34 | H118: 0 | K118: 12 | L118: 0 | M118: 22 | N118: 0
B119: 98 | C119: WAWEL MICHAŁKI CLASSIC 300G | D119: Cukierki WAWEL Michałki Klasyczne 300 g | E119: 1 op. (300 g) | F119: =IF('Załącznik 7 - F.O. Zad 6-10'!$V$57,VLOOKUP(C119,'Załącznik 7 - F.O. Zad 6-10'!$C$52:$G$210,5,0),0) -> 0 | G119: 4 | H119: 0 | K119: 4 | L119: 0
B120: 99 | C120: WAWEL MIESZANKA KRAKOWSKA 1 KG | D120: Cukierki Mieszanka krakowska WAWEL, 1 kg | E120: 1 op. (1 kg) | F120: =IF('Załącznik 7 - F.O. Zad 6-10'!$V$57,VLOOKUP(C120,'Załącznik 7 - F.O. Zad 6-10'!$C$52:$G$210,5,0),0) -> 0 | G120: 8 | H120: 0 | K120: 6 | L120: 0 | M120: 2 | N120: 0
B121: 100 | C121: WAWEL TRUFLE 1 KG | D121: Cukierki WAWEL Trufle | E121: 1 op. (1 kg) | F121: =IF('Załącznik 7 - F.O. Zad 6-10'!$V$57,VLOOKUP(C121,'Załącznik 7 - F.O. Zad 6-10'!$C$52:$G$210,5,0),0) -> 0 | G121: 20 | H121: 0 | K121: 6 | L121: 0 | M121: 14 | N121: 0
B122: 101 | C122: WEDEL AMERYKANKI KLASYCZNE 125 G | D122: Ciastka AMERYKANKI, klasyczne, 126 g | E122: 1 op. (126 g) | F122: =IF('Załącznik 7 - F.O. Zad 6-10'!$V$57,VLOOKUP(C122,'Załącznik 7 - F.O. Zad 6-10'!$C$52:$G$210,5,0),0) -> 0 | G122: 8 | H122: 0 | K122: 8 | L122: 0
B123: 102 | C123: WEDEL MIESZANKA CUKIERKI DISPLAY 3KG | D123: Cukierki MIESZANKA WEDLOWSKA Classic, 3 kg w formie dyspensera | E123: 1 op. (3 kg) | F123: =IF('Załącznik 7 - F.O. Zad 6-10'!$V$57,VLOOKUP(C123,'Załącznik 7 - F.O. Zad 6-10'!$C$52:$G$210,5,0),0) -> 0 | G123: 13 | H123: 0 | K123: 8 | L123: 0 | M123: 5 | N123: 0
B124: 103 | C124: WEDEL PTASIE MLECZKO WANILIOWE 360G | D124: Ptasie mleczko WEDEL, waniliowe, 360 g | E124: 1 op.( 360 g.) | F124: =IF('Załącznik 7 - F.O. Zad 6-10'!$V$57,VLOOKUP(C124,'Załącznik 7 - F.O. Zad 6-10'!$C$52:$G$210,5,0),0) -> 0 | G124: 8 | H124: 0 | K124: 4 | L124: 0 | M124: 4 | N124: 0
B125: 104 | C125: WEDEL WAFLE TORCIKOWE MINI ORZECHOWE 160 | D125: Wafle Torcikowe WEDEL MINI orzechowe, 160 g | E125: 1 op. ( 160 g) | F125: =IF('Załącznik 7 - F.O. Zad 6-10'!$V$57,VLOOKUP(C125,'Załącznik 7 - F.O. Zad 6-10'!$C$52:$G$210,5,0),0) -> 0 | G125: 6 | H125: 0 | K125: 6 | L125: 0
B126: 105 | C126: BAKALLAND MIGDAŁY SOLONE 90G | D126: Migdały lekko solone BAKALLAND, 90 g | E126: 1 op. (90 g) | F126: =IF('Załącznik 7 - F.O. Zad 6-10'!$V$57,VLOOKUP(C126,'Załącznik 7 - F.O. Zad 6-10'!$C$52:$G$210,5,0),0) -> 0 | G126: 28 | H126: 0 | K126: 24 | L126: 0 | M126: 4 | N126: 0
B127: 106 | C127: BAKALLAND ORZECHY LASKOWE 300G | D127: Orzechy laskowe BAKALLAND, 300 g | E127: 1 op. (300 g) | F127: =IF('Załącznik 7 - F.O. Zad 6-10'!$V$57,VLOOKUP(C127,'Załącznik 7 - F.O. Zad 6-10'!$C$52:$G$210,5,0),0) -> 0 | G127: 16 | H127: 0 | K127: 12 | L127: 0 | M127: 4 | N127: 0
B128: 107 | C128: BAKALLAND ORZECHY NERKOWCA SOLONE 70G | D128: Orzechy nerkowca solone BAKALLAND, 70 g | E128: 1 op. (70 g) | F128: =IF('Załącznik 7 - F.O. Zad 6-10'!$V$57,VLOOKUP(C128,'Załącznik 7 - F.O. Zad 6-10'!$C$52:$G$210,5,0),0) -> 0 | G128: 28 | H128: 0 | K128: 24 | L128: 0 | M128: 4 | N128: 0
B129: 108 | C129: BAKALLAND ORZECHY WŁOSKIE 300G | D129: Orzechy włoskie BAKALLAND, 300 g | E129: 1 op. (300 g) | F129: =IF('Załącznik 7 - F.O. Zad 6-10'!$V$57,VLOOKUP(C129,'Załącznik 7 - F.O. Zad 6-10'!$C$52:$G$210,5,0),0) -> 0 | G129: 24 | H129: 0 | K129: 24 | L129: 0
B130: 109 | C130: LAJKONIK PALUSZKI 200G | D130: Paluszki LAJKONIK solone, 200 g | E130: 1 op. (200 g) | F130: =IF('Załącznik 7 - F.O. Zad 6-10'!$V$57,VLOOKUP(C130,'Załącznik 7 - F.O. Zad 6-10'!$C$52:$G$210,5,0),0) -> 0 | G130: 28 | H130: 0 | K130: 4 | L130: 0 | M130: 24 | N130: 0
B131: 110 | C131: CAPPY NEKTAR MULTIWIT PET 0,33L OPK12 | D131: Nektar multiwitamina CAPPY, 12 butelek x 0,33 l | E131: 1 op. (12 butelek) | F131: =IF('Załącznik 7 - F.O. Zad 6-10'!$V$57,VLOOKUP(C131,'Załącznik 7 - F.O. Zad 6-10'!$C$52:$G$210,5,0),0) -> 0 | G131: 12 | H131: 0 | K131: 12 | L131: 0
B132: 111 | C132: CAPPY SOK POMARAŃCZOWY PET 0,33L OPK12 | D132: Sok pomarańczowy CAPPY, 12 butelek x 0,33 l | E132: 1 op. (12 butelek) | F132: =IF('Załącznik 7 - F.O. Zad 6-10'!$V$57,VLOOKUP(C132,'Załącznik 7 - F.O. Zad 6-10'!$C$52:$G$210,5,0),0) -> 0 | G132: 18 | H132: 0 | I132: 1 | J132: 0 | K132: 12 | L132: 0 | M132: 5 | N132: 0
B133: 112 | C133: CHAMPION SOK CYTRYNOWY OPK10X7,5G | D133: Zagęszczony sok cytrynowy CHAMPION, 10 kubeczków x 7,5 g | E133: 1 op. (10 kubeczków) | F133: =IF('Załącznik 7 - F.O. Zad 6-10'!$V$57,VLOOKUP(C133,'Załącznik 7 - F.O. Zad 6-10'!$C$52:$G$210,5,0),0) -> 0 | G133: 6 | H133: 0 | K133: 6 | L133: 0
B134: 113 | C134: COCA-COLA BUTELKA PET 0,5L OPK18 | D134: Napój gazowany COCA-COLA, zgrzewka 18 butelek x 0,5 l | E134: 1 op. (18 butelek) | F134: =IF('Załącznik 7 - F.O. Zad 6-10'!$V$57,VLOOKUP(C134,'Załącznik 7 - F.O. Zad 6-10'!$C$52:$G$210,5,0),0) -> 0 | G134: 12 | H134: 0 | K134: 12 | L134: 0
B135: 114 | C135: COCA-COLA ZERO BUTELKA PET 0,5L OPK12 | D135: Napój gazowany COCA-COLA Zero, 12 butelek x 0,5 l | E135: 1 op. (12 butelek) | F135: =IF('Załącznik 7 - F.O. Zad 6-10'!$V$57,VLOOKUP(C135,'Załącznik 7 - F.O. Zad 6-10'!$C$52:$G$210,5,0),0) -> 0 | G135: 12 | H135: 0 | K135: 12 | L135: 0
B136: 115 | C136: FORTUNA NEKTAR CZ.PORZECZKA 0,3L OPK15 | D136: Nektar czarna porzeczka FORTUNA, 15 butelek x 0,3 l | E136: 1 op. (15 butelek) | F136: =IF('Załącznik 7 - F.O. Zad 6-10'!$V$57,VLOOKUP(C136,'Załącznik 7 - F.O. Zad 6-10'!$C$52:$G$210,5,0),0) -> 0 | G136: 12 | H136: 0 | K136: 12 | L136: 0
B137: 116 | C137: FORTUNA SOK MULTIWITAMINA 0,3 L OPK15 | D137: Sok multiwitamina FORTUNA, 15 butelek x 0,3 l | E137: 1 op. (15 butelek) | F137: =IF('Załącznik 7 - F.O. Zad 6-10'!$V$57,VLOOKUP(C137,'Załącznik 7 - F.O. Zad 6-10'!$C$52:$G$210,5,0),0) -> 0 | G137: 17 | H137: 0 | K137: 12 | L137: 0 | M137: 5 | N137: 0
B138: 117 | C138: FORTUNA SOK POMARAŃCZOWY 0,3L OPK15 | D138: Sok pomarańczowy FORTUNA, 15 butelek x 0,3 l | E138: 1 op. (15 butelek) | F138: =IF('Załącznik 7 - F.O. Zad 6-10'!$V$57,VLOOKUP(C138,'Załącznik 7 - F.O. Zad 6-10'!$C$52:$G$210,5,0),0) -> 0 | G138: 12 | H138: 0 | K138: 12 | L138: 0
B139: 118 | C139: FORTUNA SOK POMIDOROWY 0,3L OPK15 | D139: Sok pomidorowy FORTUNA, 15 butelek x 0,3 l | E139: 1 op. (15 butelek) | F139: =IF('Załącznik 7 - F.O. Zad 6-10'!$V$57,VLOOKUP(C139,'Załącznik 7 - F.O. Zad 6-10'!$C$52:$G$210,5,0),0) -> 0 | G139: 2 | H139: 0 | K139: 2 | L139: 0
B140: 119 | C140: TARCZYN NEKTAR CZ.PORZECZKA 0,3L OPK15 | D140: Nektar czarna porzeczka TARCZYN, 15 butelek x 0,3 l | E140: 1 op. (15 butelek) | F140: =IF('Załącznik 7 - F.O. Zad 6-10'!$V$57,VLOOKUP(C140,'Załącznik 7 - F.O. Zad 6-10'!$C$52:$G$210,5,0),0) -> 0 | G140: 7 | H140: 0 | K140: 6 | L140: 0 | Q140: 1 | R140: 0
B141: 120 | C141: TARCZYN NEKTAR GREJPFRUT 0,3L OPK15 | D141: Nektar czerwony grejpfrut TARCZYN, zgrzewka 15 butelek x 0,3 l | E141: 1 op. (15 butelek) | F141: =IF('Załącznik 7 - F.O. Zad 6-10'!$V$57,VLOOKUP(C141,'Załącznik 7 - F.O. Zad 6-10'!$C$52:$G$210,5,0),0) -> 0 | G141: 7 | H141: 0 | K141: 6 | L141: 0 | Q141: 1 | R141: =Q141*F141 -> 0
B142: 121 | C142: TARCZYN SOK JABŁKOWY 0,3L OPK15 | D142: Sok jabłkowy TARCZYN, 15 butelek x 0,3 l | E142: 1 op. (15 butelek) | F142: =IF('Załącznik 7 - F.O. Zad 6-10'!$V$57,VLOOKUP(C142,'Załącznik 7 - F.O. Zad 6-10'!$C$52:$G$210,5,0),0) -> 0 | G142: =I142+K142+M142+O142+Q142 -> 12 | H142: =G142*F142 -> 0 | K142: 6 | L142: =K142*F142 -> 0 | M142: 5 | N142: =M142*F142 -> 0 | Q142: 1 | R142: 0
B143: 122 | C143: TARCZYN SOK POMARAŃCZOWY 0,3L OPK15 | D143: Sok pomarańczowy TARCZYN, 15 butelek x 0,3 l | E143: 1 op. (15 butelek) | F143: =IF('Załącznik 7 - F.O. Zad 6-10'!$V$57,VLOOKUP(C143,'Załącznik 7 - F.O. Zad 6-10'!$C$52:$G$210,5,0),0) -> 0 | G143: 7 | H143: 0 | K143: 6 | L143: 0 | Q143: 1 | R143: 0
B144: 123 | C144: TARCZYN SOK POMIDOROWY 300ML OPK15 | D144: Sok pomidorowy TARCZYN, zgrzewka 15 butelek x 0,3 l | E144: 1 op. (15 butelek) | F144: =IF('Załącznik 7 - F.O. Zad 6-10'!$V$57,VLOOKUP(C144,'Załącznik 7 - F.O. Zad 6-10'!$C$52:$G$210,5,0),0) -> 0 | G144: 7 | H144: 0 | K144: 6 | L144: 0 | Q144: 1 | R144: 0
B145: 124 | C145: TYMBARK JABŁKO SOK 100% 300ML OPK12 | D145: Sok TYMBARK jabłko 100%, 12 butelek x 300 ml | E145: 1 op. (12 butelek) | F145: =IF('Załącznik 7 - F.O. Zad 6-10'!$V$57,VLOOKUP(C145,'Załącznik 7 - F.O. Zad 6-10'!$C$52:$G$210,5,0),0) -> 0 | G145: 7 | H145: 0 | K145: 6 | L145: 0 | Q145: 1 | R145: 0
B146: 125 | C146: TYMBARK POMARAŃCZ SOK 100% 300ML OPK12 | D146: Sok TYMBARK pomarańcza 100%, 12 butelek x 300 ml | E146: 1 op. (12 butelek) | F146: =IF('Załącznik 7 - F.O. Zad 6-10'!$V$57,VLOOKUP(C146,'Załącznik 7 - F.O. Zad 6-10'!$C$52:$G$210,5,0),0) -> 0 | G146: 7 | H146: 0 | K146: 6 | L146: 0 | Q146: 1 | R146: 0
B147: 126 | C147: TYMBARK VITAMINI BAN/MAR/JAB 300ML OPK12 | D147: Sok TYMBARK Vitamini banan, marchewka, jabłko, 12 butelek x 300 ml | E147: 1 op. (12 butelek) | F147: =IF('Załącznik 7 - F.O. Zad 6-10'!$V$57,VLOOKUP(C147,'Załącznik 7 - F.O. Zad 6-10'!$C$52:$G$210,5,0),0) -> 0 | G147: 7 | H147: 0 | K147: 6 | L147: 0 | Q147: 1 | R147: 0
B148: 127 | C148: CISOWIANKA LEKKOGAZOWANA WODA 0,5L OPK12 | D148: Woda mineralna CISOWIANKA lekko gazowana, zgrzewka 12 butelek x 0,5 l | E148: 1 op. (12 butelek) | F148: =IF('Załącznik 7 - F.O. Zad 6-10'!$V$57,VLOOKUP(C148,'Załącznik 7 - F.O. Zad 6-10'!$C$52:$G$210,5,0),0) -> 0 | G148: 30 | H148: 0 | I148: 4 | J148: 0 | K148: 12 | L148: 0 | M148: 14 | N148: 0
B149: 128 | C149: CISOWIANKA PERLAGE GAZ SZKŁO 300ML OPK24 | D149: Woda mineralna CISOWIANKA Perlage gazowana, zgrzewka 24 butelki x 300 ml | E149: 1 op. (24 butelki) | F149: =IF('Załącznik 7 - F.O. Zad 6-10'!$V$57,VLOOKUP(C149,'Załącznik 7 - F.O. Zad 6-10'!$C$52:$G$210,5,0),0) -> 0 | G149: 6 | H149: 0 | K149: 6 | L149: 0
B150: 129 | C150: CISOWIANKA WODA GAZOWANA 1,5L OPK6 | D150: Woda mineralna CISOWIANKA gazowana, zgrzewka 6 butelek x 1,5 l | E150: 1 op. (6 butelek) | F150: =IF('Załącznik 7 - F.O. Zad 6-10'!$V$57,VLOOKUP(C150,'Załącznik 7 - F.O. Zad 6-10'!$C$52:$G$210,5,0),0) -> 0 | G150: 11 | H150: 0 | I150: 10 | J150: 0 | M150: 1 | N150: 0
B151: 130 | C151: CISOWIANKA WODA NIEGAZ SZKŁO 300ML OPK24 | D151: Woda mineralna CISOWIANKA niegazowana szklane butelki x 300 ml | E151: 1 op. (24 butelki) | F151: =IF('Załącznik 7 - F.O. Zad 6-10'!$V$57,VLOOKUP(C151,'Załącznik 7 - F.O. Zad 6-10'!$C$52:$G$210,5,0),0) -> 0 | G151: 12 | H151: 0 | K151: 12 | L151: 0
B152: 131 | C152: CISOWIANKA WODA NIEGAZOWANA 0,5L OPK12 | D152: Woda mineralna CISOWIANKA niegazowana, zgrzewka 12 butelek x 0,5 l | E152: 1 op. (12 butelek) | F152: =IF('Załącznik 7 - F.O. Zad 6-10'!$V$57,VLOOKUP(C152,'Załącznik 7 - F.O. Zad 6-10'!$C$52:$G$210,5,0),0) -> 0 | G152: 93 | H152: 0 | I152: 5 | J152: 0 | K152: 32 | L152: 0 | M152: 56 | N152: 0
B153: 132 | C153: CISOWIANKA WODA NIEGAZOWANA 1,5L OPK6 | D153: Woda mineralna CISOWIANKA niegazowana, zgrzewka 6 butelek x 1,5 l | E153: 1 op. (6 butelek) | F153: =IF('Załącznik 7 - F.O. Zad 6-10'!$V$57,VLOOKUP(C153,'Załącznik 7 - F.O. Zad 6-10'!$C$52:$G$210,5,0),0) -> 0 | G153: 10 | H153: 0 | I153: 10 | J153: 0
B154: 133 | C154: CISOWIANKA WODA SPORT NIEGAZ 0,7L OPK8 | D154: Woda mineralna CISOWIANKA Sport niegazowana, zgrzewka 8 butelek x 0,7 l | E154: 1 op. (8 butelek) | F154: =IF('Załącznik 7 - F.O. Zad 6-10'!$V$57,VLOOKUP(C154,'Załącznik 7 - F.O. Zad 6-10'!$C$52:$G$210,5,0),0) -> 0 | G154: 6 | H154: 0 | K154: 6 | L154: 0
B155: 134 | C155: KINGA PIENINSKA WODA GAZOWANA 0,5L OPK12 | D155: Woda mineralna KINGA PIENIŃSKA gazowana 0,5 l | E155: 1 op. (12 butelek) | F155: =IF('Załącznik 7 - F.O. Zad 6-10'!$V$57,VLOOKUP(C155,'Załącznik 7 - F.O. Zad 6-10'!$C$52:$G$210,5,0),0) -> 0 | G155: 28 | H155: 0 | K155: 24 | L155: 0 | M155: 4 | N155: 0
B156: 135 | C156: KINGA PIENINSKA WODA NIEGAZOW 0,5L OPK12 | D156: Woda mineralna KINGA PIENIŃSKA niegazowana, zgrzewka 12 butelek x 0,5 l | E156: 1 op. (12 butelek) | F156: =IF('Załącznik 7 - F.O. Zad 6-10'!$V$57,VLOOKUP(C156,'Załącznik 7 - F.O. Zad 6-10'!$C$52:$G$210,5,0),0) -> 0 | G156: 31 | H156: 0 | K156: 24 | L156: 0 | M156: 7 | N156: 0
B157: 136 | C157: KROPLA BESKIDU WODA GAZ 0,5L OPK12 | D157: Woda mineralna KROPLA BESKIDU gazowana, zgrzewka 12 butelek x 0,5 l | E157: 1 op. (12 butelek) | F157: =IF('Załącznik 7 - F.O. Zad 6-10'!$V$57,VLOOKUP(C157,'Załącznik 7 - F.O. Zad 6-10'!$C$52:$G$210,5,0),0) -> 0 | G157: 46 | H157: 0 | I157: 2 | J157: 0 | K157: 24 | L157: 0 | M157: 20 | N157: 0
B158: 137 | C158: KROPLA BESKIDU WODA GAZ 1,5L OPK6 | D158: Woda mineralna KROPLA BESKIDU gazowana, zgrzewka 6 butelek x 1,5 l | E158: 1 op. (6 butelek) | F158: =IF('Załącznik 7 - F.O. Zad 6-10'!$V$57,VLOOKUP(C158,'Załącznik 7 - F.O. Zad 6-10'!$C$52:$G$210,5,0),0) -> 0 | G158: 2 | H158: 0 | I158: 2 | J158: 0
B159: 138 | C159: KROPLA BESKIDU WODA NIEGAZ 0,5L OPK12 | D159: Woda mineralna KROPLA BESKIDU niegazowana, zgrzewka 12 butelek x 0,5 l | E159: 1 op. (12 butelek) | F159: =IF('Załącznik 7 - F.O. Zad 6-10'!$V$57,VLOOKUP(C159,'Załącznik 7 - F.O. Zad 6-10'!$C$52:$G$210,5,0),0) -> 0 | G159: 52 | H159: 0 | I159: 1 | J159: 0 | K159: 24 | L159: 0 | M159: 27 | N159: 0
B160: 139 | C160: KROPLA BESKIDU WODA NIEGAZ 1,5L OPK6 | D160: Woda mineralna KROPLA BESKIDU niegazowana, zgrzewka 6 butelek x 1,5 l | E160: 1 op. (6 butelek) | F160: =IF('Załącznik 7 - F.O. Zad 6-10'!$V$57,VLOOKUP(C160,'Załącznik 7 - F.O. Zad 6-10'!$C$52:$G$210,5,0),0) -> 0 | G160: 10 | H160: 0 | M160: 10 | N160: 0
B161: 140 | C161: NAŁĘCZOWIANKA WODA NIEGAZ 0,5L OPK12 | D161: Woda mineralna NAŁĘCZOWIANKA niegazowana, zgrzewka 12 butelek x 0,5 l | E161: 1 op. (12 butelek) | F161: =IF('Załącznik 7 - F.O. Zad 6-10'!$V$57,VLOOKUP(C161,'Załącznik 7 - F.O. Zad 6-10'!$C$52:$G$210,5,0),0) -> 0 | G161: 64 | H161: 0 | I161: 1 | J161: 0 | K161: 24 | L161: 0 | M161: 39 | N161: 0
B162: 141 | C162: NAŁĘCZOWIANKA WODA NIEGAZ 1,5L OPK6 | D162: Woda mineralna NAŁĘCZOWIANKA niegazowana, zgrzewka 6 butelek x 1,5 l | E162: 1 op. (6 butelek) | F162: =IF('Załącznik 7 - F.O. Zad 6-10'!$V$57,VLOOKUP(C162,'Załącznik 7 - F.O. Zad 6-10'!$C$52:$G$210,5,0),0) -> 0 | G162: 1 | H162: 0 | I162: 1 | J162: 0
B163: 142 | C163: NESTLE PURE LIFE WODA GAZ 1,5L OPK6 | D163: Woda źródlana NESTLÉ Pure Life gazowana, zgrzewka 6 butelek x 1,5 l | E163: 1 op. (6 butelek) | F163: =IF('Załącznik 7 - F.O. Zad 6-10'!$V$57,VLOOKUP(C163,'Załącznik 7 - F.O. Zad 6-10'!$C$52:$G$210,5,0),0) -> 0 | G163: 3 | H163: 0 | M163: 3 | N163: 0
B164: 143 | C164: NESTLE PURE LIFE WODA NIEGAZ 0,5L OPK12 | D164: Woda źródlana NESTLÉ Pure Life niegazowana, zgrzewka 12 butelek x 0,5 l | E164: 1 op. (12 butelek) | F164: =IF('Załącznik 7 - F.O. Zad 6-10'!$V$57,VLOOKUP(C164,'Załącznik 7 - F.O. Zad 6-10'!$C$52:$G$210,5,0),0) -> 0 | G164: 2 | H164: 0 | M164: 2 | N164: 0
B165: 144 | C165: NESTLE PURE LIFE WODA NIEGAZ 1,5L OPK6 | D165: Woda źródlana NESTLÉ Pure Life niegazowana, zgrzewka 6 butelek x 1,5 l | E165: 1 op. (6 butelek) | F165: =IF('Załącznik 7 - F.O. Zad 6-10'!$V$57,VLOOKUP(C165,'Załącznik 7 - F.O. Zad 6-10'!$C$52:$G$210,5,0),0) -> 0 | G165: 5 | H165: 0 | I165: 5 | J165: 0
B166: 145 | C166: ŻYWIEC ZDRÓJ WODA GAZOWANA 0.5L OPK24 | D166: Woda źródlana ŻYWIOŁ od ŻYWIEC ZDRÓJ gazowana, 24 butelki x 0,5 l | E166: 1 op. (24 butelki) | F166: =IF('Załącznik 7 - F.O. Zad 6-10'!$V$57,VLOOKUP(C166,'Załącznik 7 - F.O. Zad 6-10'!$C$52:$G$210,5,0),0) -> 0 | G166: 16 | H166: 0 | K166: 12 | L166: 0 | M166: 4 | N166: 0
B167: 146 | C167: ŻYWIEC ZDRÓJ WODA GAZOWANA 1,5L OPK6 | D167: Woda źródlana ŻYWIOŁ od ŻYWIEC ZDRÓJ gazowana, zgrzewka 6 butelek x 1,5 l | E167: 1 op. ( 6 butelek) | F167: =IF('Załącznik 7 - F.O. Zad 6-10'!$V$57,VLOOKUP(C167,'Załącznik 7 - F.O. Zad 6-10'!$C$52:$G$210,5,0),0) -> 0 | G167: 3 | H167: 0 | Q167: 3 | R167: 0
B168: 147 | C168: ŻYWIEC ZDRÓJ WODA NIEGAZOWANA 0.5L OPK24 | D168: Woda źródlana ŻYWIEC ZDRÓJ niegazowana, 24 butelki x 0,5 l | E168: 1 op. (24 butelki) | F168: =IF('Załącznik 7 - F.O. Zad 6-10'!$V$57,VLOOKUP(C168,'Załącznik 7 - F.O. Zad 6-10'!$C$52:$G$210,5,0),0) -> 0 | G168: 35 | H168: 0 | K168: 24 | L168: 0 | M168: 8 | N168: 0 | Q168: 3 | R168: 0
B169: 148 | C169: ŻYWIEC ZDRÓJ WODA NIEGAZOWANA 1,5L OPK6 | D169: Woda źródlana ŻYWIEC ZDRÓJ niegazowana, zgrzewka 6 butelek x 1,5 l | E169: 1 op. (6 butelek) | F169: =IF('Załącznik 7 - F.O. Zad 6-10'!$V$57,VLOOKUP(C169,'Załącznik 7 - F.O. Zad 6-10'!$C$52:$G$210,5,0),0) -> 0 | G169: 3 | H169: 0 | M169: 3 | N169: 0
G170: =SUM(G22:G169) -> 2841 | I170: =SUM(I22:I169) -> 59 | K170: =SUM(K22:K169) -> 1327 | M170: =SUM(M22:M169) -> 1401 | O170: =SUM(O22:O169) -> 4 | Q170: =SUM(Q22:Q169) -> 50
I171: ŁĄCZNA CENA NETTO DLA ENEA Centrum Sp. z o.o. | J171: =SUM(J22:J169) -> 0 | K171: ŁĄCZNA CENA NETTO DLA ENEA Ciepło sp. z o.o. (Centrala) | L171: =SUM(L22:L169) -> 0 | M171: ŁĄCZNA CENA NETTO DLA ENEA Ciepło Sp. z o.o. (Oddział) | N171: =SUM(N22:N169) -> 0 | O171: ŁĄCZNA CENA NETTO DLA ENEA Logistyka sp. z.o.o. | P171: =SUM(P22:P169) -> 0 | Q171: ŁĄCZNA CENA NETTO DLA ENEA Trading Sp. z o.o. | R171: =SUM(R22:R169) -> 0
C176: miejscowość i data | F176: Pieczęć imienna i podpis przedstawiciela(i) Wykonawcy

Sheet Załącznik 11-F.O. dla Zadania 9
B1: Oznaczenie sprawy: 1400/DW00/ZU/KZ/2021/0000074365
B3: ZAŁĄCZNIK NR 11 - FORMULARZ OFERTY DLA ZADANIA 9 - DOSTAWA ARTYKUŁÓW SPOŻYWCZYCH: WARSZAWA + ŚWIERŻE GÓRNE + WOJ. MAZOWIECKIE.
C6: (pieczęć wykonawcy)
B8: Ja, niżej podpisany (My niżej podpisani):
B11: działając w imieniu i na rzecz:
B14: Składam(y) ofertę na wykonanie zamówienia, którego przedmiotem jest:
B15: Dostawa artykułów biurowych, spożywczych i higienicznych dla spółek GK ENEA
B17: ZADANIE 9 - Dostawa artykułów spożywczych: Warszawa + Świerże Górne + woj. Mazowieckie
B19: ŁĄCZNA CENA NETTO OFERTY DLA ZADANIA 9: | D19: =SUM(H22:H179) -> 0
B21: LP | C21: Nazwa produktu | D21: Opis szczegółowy | E21: Jednostka | F21: cena jednostkowa netto | G21: Ilość | H21: Wartość | I21: ENEA Enea Centrum Sp. z o.o. - Szacowana ilość | J21: ŁĄCZNA CENA NETTO DLA ENEA Centrum Sp. z o.o. | K21: ENEA Innowacje sp. z o.o. - Szacowana ilość | L21: ŁĄCZNA CENA NETTO DLA ENEA Innowacje sp. z o.o. | M21: ENEA Nowa Energia Sp. z o.o. - Szacowana ilość | N21: ŁĄCZNA CENA NETTO DLA ENEA Nowa Energia Sp. z o.o. | O21: ENEA S.A. - Szacowana ilość | P21: ŁĄCZNA CENA NETTO DLA ENEA S.A. | Q21: ENEA Trading Sp. z o.o. - Szacowana ilość | R21: ŁĄCZNA CENA NETTO DLA ENEA Trading Sp. z o.o.
B22: 1 | C22: DIAMANT CUKIER BIAŁY KOSTKA 1KG | D22: Cukier biały DIAMANT w kostkach, 1 kg | E22: 1 op. ( 1 kg.) | F22: =IF('Załącznik 7 - F.O. Zad 6-10'!$V$58,VLOOKUP(C22,'Załącznik 7 - F.O. Zad 6-10'!$C$52:$G$210,5,0),0) -> 0 | G22: =I22+K22+M22+O22+Q22 -> 30 | H22: =G22*F22 -> 0 | I22: 1 | J22: =I22*F22 -> 0 | K22: 9 | L22: =K22*F22 -> 0 | Q22: 20 | R22: =Q22*F22 -> 0
B23: 2 | C23: DIAMANT CUKIER BIAŁY W SASZET OPK100X5G | D23: Cukier biały DIAMANT, saszetki 100 sztuk x 5 g | E23: 1 op. (100 sztuk) | F23: =IF('Załącznik 7 - F.O. Zad 6-10'!$V$58,VLOOKUP(C23,'Załącznik 7 - F.O. Zad 6-10'!$C$52:$G$210,5,0),0) -> 0 | G23: =I23+K23+M23+O23+Q23 -> 29 | H23: =G23*F23 -> 0 | K23: 9 | L23: =K23*F23 -> 0 | Q23: 20 | R23: 0
B24: 3 | C24: DIAMANT CUKIER DRY DEMERARA SYPKI 0,5KG | D24: Cukier trzcinowy DIAMANT Dry Demerara, sypki, 500 g | E24: 1 op. ( 500 g) | F24: =IF('Załącznik 7 - F.O. Zad 6-10'!$V$58,VLOOKUP(C24,'Załącznik 7 - F.O. Zad 6-10'!$C$52:$G$210,5,0),0) -> 0 | G24: 24 | H24: 0 | I24: 1 | J24: =I24*F24 -> 0 | K24: 9 | L24: 0 | O24: 14 | P24: =O24*F24 -> 0
B25: 4 | C25: DIAMANT CUKIER KRYSZTAŁ BIAŁY 1KG | D25: Cukier biały DIAMANT sypki, 1 kg | E25: 1 op.( 1 kg.) | F25: =IF('Załącznik 7 - F.O. Zad 6-10'!$V$58,VLOOKUP(C25,'Załącznik 7 - F.O. Zad 6-10'!$C$52:$G$210,5,0),0) -> 0 | G25: 92 | H25: 0 | I25: 23 | J25: 0 | K25: 9 | L25: 0 | M25: 10 | N25: =M25*F25 -> 0 | Q25: 50 | R25: 0
B26: 5 | C26: AHMAD HERBATA EARL GREY OPK100 | D26: Herbata czarna AHMAD Earl Grey, 100 torebek | E26: 1 op. (100 torobek) | F26: =IF('Załącznik 7 - F.O. Zad 6-10'!$V$58,VLOOKUP(C26,'Załącznik 7 - F.O. Zad 6-10'!$C$52:$G$210,5,0),0) -> 0 | G26: 13 | H26: 0 | I26: 2 | J26: 0 | K26: 9 | L26: 0 | M26: 2 | N26: 0
B27: 6 | C27: BIG-ACTIVE PURE CEYLON HERBATA OPK100 | D27: Herbata czarna BIG-ACTIVE Pure Ceylon, 100 torebek | E27: 1 op. (100 torobek) | F27: =IF('Załącznik 7 - F.O. Zad 6-10'!$V$58,VLOOKUP(C27,'Załącznik 7 - F.O. Zad 6-10'!$C$52:$G$210,5,0),0) -> 0 | G27: 16 | H27: 0 | I27: 5 | J27: 0 | K27: 9 | L27: 0 | M27: 2 | N27: 0
B28: 7 | C28: DILMAH CEYLON GOLD HERBATA 200G OPK100 | D28: Herbata czarna DILMAH Ceylon Gold, 100 torebek | E28: 1 op. (100 torobek) | F28: =IF('Załącznik 7 - F.O. Zad 6-10'!$V$58,VLOOKUP(C28,'Załącznik 7 - F.O. Zad 6-10'!$C$52:$G$210,5,0),0) -> 0 | G28: 17 | H28: 0 | I28: 8 | J28: 0 | K28: 9 | L28: 0
B29: 8 | C29: DILMAH EARL GREY HERBATA LIŚCIASTA 125G | D29: Herbata czarna liściasta DILMAH Earl Grey, 125 g | E29: 1 op. ( 125 g) | F29: =IF('Załącznik 7 - F.O. Zad 6-10'!$V$58,VLOOKUP(C29,'Załącznik 7 - F.O. Zad 6-10'!$C$52:$G$210,5,0),0) -> 0 | G29: 10 | H29: 0 | K29: 9 | L29: 0 | O29: 1 | P29: 0
B30: 9 | C30: HERBAPOL BREAKFAST HERB MIĘTOWA OPK20 | D30: Herbata miętowa HERBAPOL Breakfast, 20 kopert | E30: 1 op.( 20 torebek) | F30: =IF('Załącznik 7 - F.O. Zad 6-10'!$V$58,VLOOKUP(C30,'Załącznik 7 - F.O. Zad 6-10'!$C$52:$G$210,5,0),0) -> 0 | G30: 9 | H30: 0 | K30: 9 | L30: 0
B31: 10 | C31: HERBAPOL HERBATA MALINOWA OPK20 | D31: Herbata owocowa HERBAPOL Herbaciany Ogród malinowa, 20 torebek | E31: 1 op.( 20 torebek) | F31: =IF('Załącznik 7 - F.O. Zad 6-10'!$V$58,VLOOKUP(C31,'Załącznik 7 - F.O. Zad 6-10'!$C$52:$G$210,5,0),0) -> 0 | G31: 15 | H31: 0 | K31: 9 | L31: 0 | M31: 2 | N31: 0 | O31: 4 | P31: 0
B32: 11 | C32: HERBAPOL PROSTO Z LASU OPK20 | D32: Herbata owocowa HERBAPOL Herbaciany Ogród, Prosto z lasu, 20 torebek | E32: 1 op.( 20 torebek) | F32: =IF('Załącznik 7 - F.O. Zad 6-10'!$V$58,VLOOKUP(C32,'Załącznik 7 - F.O. Zad 6-10'!$C$52:$G$210,5,0),0) -> 0 | G32: 9 | H32: 0 | K32: 9 | L32: 0
B33: 12 | C33: HERBAPOL ZIELONA HERBATA OPK20 | D33: Herbata zielona HERBAPOL, 20 torebek bez zawieszki | E33: 1 op.( 20 torebek) | F33: =IF('Załącznik 7 - F.O. Zad 6-10'!$V$58,VLOOKUP(C33,'Załącznik 7 - F.O. Zad 6-10'!$C$52:$G$210,5,0),0) -> 0 | G33: 15 | H33: 0 | I33: 6 | J33: 0 | K33: 9 | L33: 0
B34: 13 | C34: Herbata zielona Lipton Piramidki | D34: Herbata zielona LIPTON 20 torebek piramidek | E34: 1 op.( 20 torebek) | F34: =IF('Załącznik 7 - F.O. Zad 6-10'!$V$58,VLOOKUP(C34,'Załącznik 7 - F.O. Zad 6-10'!$C$52:$G$210,5,0),0) -> 0 | G34: 12 | H34: 0 | K34: 9 | L34: 0 | M34: 3 | N34: 0
B35: 14 | C35: IRVING BIAŁ POZIOMK/MANDAR HERBATA OPK20 | D35: Harbata biała IRVING poziomkowa z mandarynką, 20 kopert | E35: 1 op.( 20 torebek) | F35: =IF('Załącznik 7 - F.O. Zad 6-10'!$V$58,VLOOKUP(C35,'Załącznik 7 - F.O. Zad 6-10'!$C$52:$G$210,5,0),0) -> 0 | G35: 11 | H35: 0 | K35: 9 | L35: 0 | M35: 2 | N35: 0
B36: 15 | C36: IRVING HERBATA CLASSIC OPK100 | D36: Herbata czarna IRVING Classic, 100 torebek | E36: 1 op.( 100 torebek) | F36: =IF('Załącznik 7 - F.O. Zad 6-10'!$V$58,VLOOKUP(C36,'Załącznik 7 - F.O. Zad 6-10'!$C$52:$G$210,5,0),0) -> 0 | G36: 14 | H36: 0 | I36: 5 | J36: 0 | K36: 9 | L36: 0
B37: 16 | C37: LIPTON EARL GREY HERBATA OPK100 | D37: Herbata czarna LIPTON Earl Grey, 100 torebek | E37: 1 op. (100 torebek) | F37: =IF('Załącznik 7 - F.O. Zad 6-10'!$V$58,VLOOKUP(C37,'Załącznik 7 - F.O. Zad 6-10'!$C$52:$G$210,5,0),0) -> 0 | G37: 54 | H37: 0 | I37: 5 | J37: 0 | K37: 9 | L37: 0 | Q37: 40 | R37: 0
B38: 17 | C38: LIPTON MELISA/WIŚNIA HERBATAOPK20 | D38: Herbata ziołowa LIPTON Melisa z wiśnią, 20 torebek | E38: 1 op. (20 torebek) | F38: =IF('Załącznik 7 - F.O. Zad 6-10'!$V$58,VLOOKUP(C38,'Załącznik 7 - F.O. Zad 6-10'!$C$52:$G$210,5,0),0) -> 0 | G38: 56 | H38: 0 | I38: 2 | J38: 0 | K38: 9 | L38: 0 | O38: 5 | P38: 0 | Q38: 40 | R38: 0
B39: 18 | C39: LIPTON PYRAMID CYTRYNOWA Z MELISĄ OPK20 | D39: Herbata czarna LIPTON cytrynowa z melisą, 20 torebek piramidek | E39: 1 op. (20 torebek) | F39: =IF('Załącznik 7 - F.O. Zad 6-10'!$V$58,VLOOKUP(C39,'Załącznik 7 - F.O. Zad 6-10'!$C$52:$G$210,5,0),0) -> 0 | G39: 63 | H39: 0 | I39: 2 | J39: 0 | K39: 9 | L39: 0 | O39: 12 | P39: 0 | Q39: 40 | R39: 0
B40: 19 | C40: LIPTON PYRAMID FOREST FRUIT | D40: Herbata owocowa LIPTON owoce leśne, 20 torebek piramidek | E40: 1 op. (20 torebek) | F40: =IF('Załącznik 7 - F.O. Zad 6-10'!$V$58,VLOOKUP(C40,'Załącznik 7 - F.O. Zad 6-10'!$C$52:$G$210,5,0),0) -> 0 | G40: 49 | H40: 0 | K40: 9 | L40: 0 | Q40: 40 | R40: 0
B41: 20 | C41: LIPTON YELLOW LABEL HERBATA OPK100 | D41: Herbata czarna LIPTON Yellow Label, 100 torebek | E41: 1 op. (100 torebek) | F41: =IF('Załącznik 7 - F.O. Zad 6-10'!$V$58,VLOOKUP(C41,'Załącznik 7 - F.O. Zad 6-10'!$C$52:$G$210,5,0),0) -> 0 | G41: 70 | H41: 0 | I41: 15 | J41: 0 | K41: 9 | L41: 0 | M41: 5 | N41: 0 | O41: 1 | P41: 0 | Q41: 40 | R41: 0
B42: 21 | C42: LIPTON YELLOW LABEL HERBATA OPK50 | D42: Herbata czarna LIPTON Yellow Label, 50 torebek | E42: 1 op. (50 torebek) | F42: =IF('Załącznik 7 - F.O. Zad 6-10'!$V$58,VLOOKUP(C42,'Załącznik 7 - F.O. Zad 6-10'!$C$52:$G$210,5,0),0) -> 0 | G42: 24 | H42: 0 | I42: 15 | J42: 0 | K42: 9 | L42: 0
B43: 22 | C43: LIPTON ZIELONA CITRUS HERBATA OPK25 | D43: Herbata zielona LIPTON cytrusowa, 25 torebek | E43: 1 op. (25 torebek) | F43: =IF('Załącznik 7 - F.O. Zad 6-10'!$V$58,VLOOKUP(C43,'Załącznik 7 - F.O. Zad 6-10'!$C$52:$G$210,5,0),0) -> 0 | G43: 61 | H43: 0 | K43: 9 | L43: 0 | O43: 12 | P43: 0 | Q43: 40 | R43: 0
B44: 23 | C44: LIPTON ZIELONA MIĘTOWA HERBATA OPK25 | D44: Herbata zielona LIPTON miętowa, 25 torebek | E44: 1 op. (25 torebek) | F44: =IF('Załącznik 7 - F.O. Zad 6-10'!$V$58,VLOOKUP(C44,'Załącznik 7 - F.O. Zad 6-10'!$C$52:$G$210,5,0),0) -> 0 | G44: 51 | H44: 0 | K44: 9 | L44: 0 | O44: 2 | P44: 0 | Q44: 40 | R44: 0
B45: 24 | C45: TEEKANNE BLACK CURRANT HERBATA OPK20 | D45: Herbata owocowa TEEKANNE World of Fruits, Black Currant, 20 kopert | E45: 1 op. (20 torebek) | F45: =IF('Załącznik 7 - F.O. Zad 6-10'!$V$58,VLOOKUP(C45,'Załącznik 7 - F.O. Zad 6-10'!$C$52:$G$210,5,0),0) -> 0 | G45: 49 | H45: 0 | K45: 9 | L45: 0 | Q45: 40 | R45: 0
B46: 25 | C46: TEEKANNE EARL GREY HERBATA OPK100 | D46: Herbata czarna TEEKANNE Earl Grey, 100 torebek | E46: 1 op. (100 torebek) | F46: =IF('Załącznik 7 - F.O. Zad 6-10'!$V$58,VLOOKUP(C46,'Załącznik 7 - F.O. Zad 6-10'!$C$52:$G$210,5,0),0) -> 0 | G46: 49 | H46: 0 | K46: 9 | L46: 0 | Q46: 40 | R46: 0
B47: 26 | C47: TEEKANNE WORLD OF FRUITS ZESTAW OPK30 | D47: Zestaw herbat owocowych TEEKANNE World of Fruits, 30 kopert | E47: 1 op. (30 torebek) | F47: =IF('Załącznik 7 - F.O. Zad 6-10'!$V$58,VLOOKUP(C47,'Załącznik 7 - F.O. Zad 6-10'!$C$52:$G$210,5,0),0) -> 0 | G47: 53 | H47: 0 | I47: 2 | J47: 0 | K47: 9 | L47: 0 | M47: 2 | N47: 0 | Q47: 40 | R47: 0
B48: 27 | C48: TEEKANNE ZIELON OPUNCJA HERBATA OPK20 | D48: Herbata zielona TEEKANNE z opuncją, 20 kopert | E48: 1 op. (20 torebek) | F48: =IF('Załącznik 7 - F.O. Zad 6-10'!$V$58,VLOOKUP(C48,'Załącznik 7 - F.O. Zad 6-10'!$C$52:$G$210,5,0),0) -> 0 | G48: 71 | H48: 0 | I48: 2 | J48: 0 | K48: 9 | L48: 0 | Q48: 60 | R48: 0
B49: 28 | C49: VITAX HERBATA MELISA I POMARAŃCZA OPK20 | D49: Herbata owocowa VITAX Inspirations melisa & pomarańcza, 20 torebek | E49: 1 op. (20 torebek) | F49: =IF('Załącznik 7 - F.O. Zad 6-10'!$V$58,VLOOKUP(C49,'Załącznik 7 - F.O. Zad 6-10'!$C$52:$G$210,5,0),0) -> 0 | G49: 38 | H49: 0 | I49: 9 | J49: 0 | K49: 9 | L49: 0 | Q49: 20 | R49: 0
B50: 29 | C50: VITAX HERBATA ZIOŁOWA MELISA OPK20 | D50: Herbata ziołowa VITAX melisa, 20 okrągłych torebek bez zawieszki | E50: 1 op. (20 torebek) | F50: =IF('Załącznik 7 - F.O. Zad 6-10'!$V$58,VLOOKUP(C50,'Załącznik 7 - F.O. Zad 6-10'!$C$52:$G$210,5,0),0) -> 0 | G50: 33 | H50: 0 | I50: 4 | J50: 0 | K50: 9 | L50: 0 | Q50: 20 | R50: 0
B51: 30 | C51: VITAX HERBATA ZIOŁOWA MIĘTA OPK20 | D51: Herbata ziołowa VITAX mięta, 20 okrągłych torebek bez zawieszki | E51: 1 op. (20 torebek) | F51: =IF('Załącznik 7 - F.O. Zad 6-10'!$V$58,VLOOKUP(C51,'Załącznik 7 - F.O. Zad 6-10'!$C$52:$G$210,5,0),0) -> 0 | G51: 54 | H51: 0 | I51: 5 | J51: 0 | K51: 9 | L51: 0 | Q51: 40 | R51: 0
B52: 31 | C52: VITAX HERBATA ŻURAWINA I MALINA OPK20 | D52: Herbata owocowa VITAX Inspirations żurawina & malina, 20 torebek | E52: 1 op. (20 torebek) | F52: =IF('Załącznik 7 - F.O. Zad 6-10'!$V$58,VLOOKUP(C52,'Załącznik 7 - F.O. Zad 6-10'!$C$52:$G$210,5,0),0) -> 0 | G52: 66 | H52: 0 | I52: 10 | J52: 0 | K52: 9 | L52: 0 | O52: 7 | P52: 0 | Q52: 40 | R52: 0
B53: 32 | C53: VITAX NAPAR RUMIANEK OPK20 | D53: Herbata ziołowa VITAX rumianek, 20 kwadratowych torebek bez zawieszki | E53: 1 op. (20 torebek) | F53: =IF('Załącznik 7 - F.O. Zad 6-10'!$V$58,VLOOKUP(C53,'Załącznik 7 - F.O. Zad 6-10'!$C$52:$G$210,5,0),0) -> 0 | G53: 41 | H53: 0 | I53: 2 | J53: 0 | K53: 9 | L53: 0 | Q53: 30 | R53: 0
B54: 33 | C54: ASTRA ŁAGODNA TRADYCYJNA KAWA MIEL 250 G | D54: Kawa ziarnista Astra Łagodna 250 g | E54: 1 op. (250 g) | F54: =IF('Załącznik 7 - F.O. Zad 6-10'!$V$58,VLOOKUP(C54,'Załącznik 7 - F.O. Zad 6-10'!$C$52:$G$210,5,0),0) -> 0 | G54: 15 | H54: 0 | I54: 6 | J54: 0 | K54: 9 | L54: 0
B55: 34 | C55: ASTRA ŁAGODNA TRADYCYJNA KAWA ZIARN 1 KG | D55: Kawa ziarnista Astra Łagodna 1 kg | E55: 1 op. (1 kg) | F55: =IF('Załącznik 7 - F.O. Zad 6-10'!$V$58,VLOOKUP(C55,'Załącznik 7 - F.O. Zad 6-10'!$C$52:$G$210,5,0),0) -> 0 | G55: 11 | H55: 0 | I55: 2 | J55: 0 | K55: 9 | L55: 0
B56: 35 | C56: DUNI KUBEK PAPIER BIAŁY 210ML OPK50 | D56: Kubek papierowy do gorących i zminych napojów 210 ml | E56: 1 op. (50 szt.) | F56: =IF('Załącznik 7 - F.O. Zad 6-10'!$V$58,VLOOKUP(C56,'Załącznik 7 - F.O. Zad 6-10'!$C$52:$G$210,5,0),0) -> 0 | G56: 10 | H56: 0 | I56: 1 | J56: 0 | K56: 9 | L56: 0
B57: 36 | C57: EDUSCHO CAFFE CREMA KAWA ZIARNISTA 1KG | D57: Kawa ziarnista EDUSCHO Caffe Crema, 1 kg | E57: 1 op. ( 1 kg.) | F57: =IF('Załącznik 7 - F.O. Zad 6-10'!$V$58,VLOOKUP(C57,'Załącznik 7 - F.O. Zad 6-10'!$C$52:$G$210,5,0),0) -> 0 | G57: 65 | H57: 0 | I57: 6 | J57: 0 | K57: 9 | L57: 0 | Q57: 50 | R57: 0
B58: 37 | C58: ESPRESSO KARMELOWE OPK50 NNSA 8868 | D58: Kawa w kapsułkach NESPRESSO ESPRESSO CARAMEL, 50 szt. (box) | E58: 1 op. (50 szt.) | F58: =IF('Załącznik 7 - F.O. Zad 6-10'!$V$58,VLOOKUP(C58,'Załącznik 7 - F.O. Zad 6-10'!$C$52:$G$210,5,0),0) -> 0 | G58: 19 | H58: 0 | K58: 9 | L58: 0 | O58: 10 | P58: 0
B59: 38 | C59: ESPRESSO WANILIOWE OPK50 NNSA 8869 | D59: Kawa w kapsułkach NESPRESSO ESPRESSO VANILLA, 50 szt. (box) | E59: 2 op. (50 szt.) | F59: =IF('Załącznik 7 - F.O. Zad 6-10'!$V$58,VLOOKUP(C59,'Załącznik 7 - F.O. Zad 6-10'!$C$52:$G$210,5,0),0) -> 0 | G59: 20 | H59: 0 | K59: 9 | L59: 0 | O59: 11 | P59: 0
B60: 39 | C60: INKA KAWA ZBOŻOWA 200G | D60: Kawa zbożowa INKA, puszka 200 g | E60: 1 op.( 200 g.) | F60: =IF('Załącznik 7 - F.O. Zad 6-10'!$V$58,VLOOKUP(C60,'Załącznik 7 - F.O. Zad 6-10'!$C$52:$G$210,5,0),0) -> 0 | G60: 15 | H60: 0 | I60: 6 | J60: 0 | K60: 9 | L60: 0
B61: 40 | C61: JACOBS BARISTA AMERICANO KAWA ROZPU 155G | D61: Kawa rozpuszczalna JACOBS Barista Americano 155 g | E61: 1 op. (słoik 155g) | F61: =IF('Załącznik 7 - F.O. Zad 6-10'!$V$58,VLOOKUP(C61,'Załącznik 7 - F.O. Zad 6-10'!$C$52:$G$210,5,0),0) -> 0 | G61: 10 | H61: 0 | K61: 9 | L61: 0 | O61: 1 | P61: 0
B62: 41 | C62: JACOBS CRONAT GOLD KAWA MIELONA 500G | D62: Kawa mielona JACOBS Cronat Gold, 500 g | E62: 1 op. (500 g.) | F62: =IF('Załącznik 7 - F.O. Zad 6-10'!$V$58,VLOOKUP(C62,'Załącznik 7 - F.O. Zad 6-10'!$C$52:$G$210,5,0),0) -> 0 | G62: 14 | H62: 0 | I62: 5 | J62: 0 | K62: 9 | L62: 0
B63: 42 | C63: JACOBS CRONAT GOLD KAWA ROZPUSZCZ 200G | D63: Kawa rozpuszczalna JACOBS Cronat Gold, 200 g | E63: 1 op.( 200 g.) | F63: =IF('Załącznik 7 - F.O. Zad 6-10'!$V$58,VLOOKUP(C63,'Załącznik 7 - F.O. Zad 6-10'!$C$52:$G$210,5,0),0) -> 0 | G63: 30 | H63: 0 | I63: 21 | J63: 0 | K63: 9 | L63: 0
B64: 43 | C64: JACOBS GOLD CREMA KAWA ROZPUSZCZ 200G | D64: Kawa rozpuszczalna JACOBS Crema Gold, 200 g | E64: 1 op.( 200 g.) | F64: =IF('Załącznik 7 - F.O. Zad 6-10'!$V$58,VLOOKUP(C64,'Załącznik 7 - F.O. Zad 6-10'!$C$52:$G$210,5,0),0) -> 0 | G64: 14 | H64: 0 | I64: 5 | J64: 0 | K64: 9 | L64: 0
B65: 44 | C65: JACOBS KRONUNG KAWA MIELONA 250G | D65: Kawa mielona JACOBS Kronung, 250 g | E65: 1 op. (250 g.) | F65: =IF('Załącznik 7 - F.O. Zad 6-10'!$V$58,VLOOKUP(C65,'Załącznik 7 - F.O. Zad 6-10'!$C$52:$G$210,5,0),0) -> 0 | G65: 11 | H65: 0 | I65: 2 | J65: 0 | K65: 9 | L65: 0
B66: 45 | C66: JACOBS KRONUNG KAWA ROZPUSZCZALNA 200G | D66: Kawa rozpuszczalna JACOBS Kronung, 200 g | E66: 1 op.( 200 g.) | F66: =IF('Załącznik 7 - F.O. Zad 6-10'!$V$58,VLOOKUP(C66,'Załącznik 7 - F.O. Zad 6-10'!$C$52:$G$210,5,0),0) -> 0 | G66: 21 | H66: 0 | I66: 11 | J66: 0 | K66: 9 | L66: 0 | O66: 1 | P66: 0
B67: 46 | C67: KUBEK PAPIEROWY 110ML OPK50 | D67: Kubek papierowy do gorących napojów 110 ml | E67: 1 op. (50 szt.) | F67: =IF('Załącznik 7 - F.O. Zad 6-10'!$V$58,VLOOKUP(C67,'Załącznik 7 - F.O. Zad 6-10'!$C$52:$G$210,5,0),0) -> 0 | G67: 10 | H67: 0 | I67: 1 | J67: 0 | K67: 9 | L67: 0
B68: 47 | C68: KUBEK PAPIEROWY 360ML OPK35 | D68: Kubek papierowy do gorących napojów 360 ml | E68: 1 op. (35 szt.) | F68: =IF('Załącznik 7 - F.O. Zad 6-10'!$V$58,VLOOKUP(C68,'Załącznik 7 - F.O. Zad 6-10'!$C$52:$G$210,5,0),0) -> 0 | G68: 10 | H68: 0 | I68: 1 | J68: 0 | K68: 9 | L68: 0
B69: 48 | C69: KUBEK PLASTIK 200ML BIAŁE OPK100 | D69: Kubek plastikowy do zimnych napojów 200 ml Biały | E69: 1 op. (100 szt.) | F69: =IF('Załącznik 7 - F.O. Zad 6-10'!$V$58,VLOOKUP(C69,'Załącznik 7 - F.O. Zad 6-10'!$C$52:$G$210,5,0),0) -> 0 | G69: 10 | H69: 0 | I69: 1 | J69: 0 | K69: 9 | L69: 0
B70: 49 | C70: LAVAZZA CREMA AROMA KAWA ZIARNISTA 1KG | D70: Kawa ziarnista LAVAZZA Crema Aroma, 1 kg | E70: 1 op. (1 kg) | F70: =IF('Załącznik 7 - F.O. Zad 6-10'!$V$58,VLOOKUP(C70,'Załącznik 7 - F.O. Zad 6-10'!$C$52:$G$210,5,0),0) -> 0 | G70: 23 | H70: 0 | I70: 14 | J70: 0 | K70: 9 | L70: 0
B71: 50 | C71: LAVAZZA PRONTOCREMA GRANDE AROMA ZIA 1KG | D71: Kawa ziarnista LAVAZZA Pronto crema Grande Aroma 1 kg | E71: 1 op. (1 kg) | F71: =IF('Załącznik 7 - F.O. Zad 6-10'!$V$58,VLOOKUP(C71,'Załącznik 7 - F.O. Zad 6-10'!$C$52:$G$210,5,0),0) -> 0 | G71: 9 | H71: 0 | K71: 9 | L71: 0
B72: 51 | C72: LAVAZZA QUALITA ORO KAWA MIELONA 250G | D72: Kawa mielona LAVAZZA Qualita Oro, 250 g | E72: 1 op. (250 g) | F72: =IF('Załącznik 7 - F.O. Zad 6-10'!$V$58,VLOOKUP(C72,'Załącznik 7 - F.O. Zad 6-10'!$C$52:$G$210,5,0),0) -> 0 | G72: 20 | H72: 0 | I72: 11 | J72: 0 | K72: 9 | L72: 0
B73: 52 | C73: LAVAZZA QUALITA ORO KAWA ZIARNISTA 1 KG | D73: Kawa ziarnista LAVAZZA Qualita Oro, 1 kg | E73: 1 op. (1 kg) | F73: =IF('Załącznik 7 - F.O. Zad 6-10'!$V$58,VLOOKUP(C73,'Załącznik 7 - F.O. Zad 6-10'!$C$52:$G$210,5,0),0) -> 0 | G73: 49 | H73: 0 | I73: 40 | J73: 0 | K73: 9 | L73: 0
B74: 53 | C74: LAVAZZA QUALITA ROSSA KAWA ZIARNISTA 1KG | D74: Kawa ziarnista LAVAZZA Qualita Rossa, 1 kg | E74: 1 op. (1 kg) | F74: =IF('Załącznik 7 - F.O. Zad 6-10'!$V$58,VLOOKUP(C74,'Załącznik 7 - F.O. Zad 6-10'!$C$52:$G$210,5,0),0) -> 0 | G74: 24 | H74: 0 | I74: 15 | J74: 0 | K74: 9 | L74: 0
B75: 54 | C75: NESCAFE SENSAZIONE CREME KAWA ROZP 200G | D75: Kawa rozpuszczalna NESCAFÉ Sensazione Creme, 200 g | E75: 1 op.( 200 g.) | F75: =IF('Załącznik 7 - F.O. Zad 6-10'!$V$58,VLOOKUP(C75,'Załącznik 7 - F.O. Zad 6-10'!$C$52:$G$210,5,0),0) -> 0 | G75: 14 | H75: 0 | I75: 5 | J75: 0 | K75: 9 | L75: 0
B76: 55 | C76: TCHIBO EXCLUSIVE KAWA MIELONA 250G | D76: Kawa mielona TCHIBO Exclusive, 250 g | E76: 1 op. (250 g) | F76: =IF('Załącznik 7 - F.O. Zad 6-10'!$V$58,VLOOKUP(C76,'Załącznik 7 - F.O. Zad 6-10'!$C$52:$G$210,5,0),0) -> 0 | G76: 9 | H76: 0 | K76: 9 | L76: 0
B77: 56 | C77: TCHIBO FAMILY KAWA MIELONA 250G | D77: Kawa mielona TCHIBO Family, 250 g | E77: 1 op. (250 g) | F77: =IF('Załącznik 7 - F.O. Zad 6-10'!$V$58,VLOOKUP(C77,'Załącznik 7 - F.O. Zad 6-10'!$C$52:$G$210,5,0),0) -> 0 | G77: 14 | H77: 0 | I77: 5 | J77: 0 | K77: 9 | L77: 0
B78: 57 | C78: TCHIBO FAMILY KAWA ROZPUSZCZALNA 200G | D78: Kawa rozpuszczalna TCHIBO Family, 200 g | E78: 1 op. (200 g) | F78: =IF('Załącznik 7 - F.O. Zad 6-10'!$V$58,VLOOKUP(C78,'Załącznik 7 - F.O. Zad 6-10'!$C$52:$G$210,5,0),0) -> 0 | G78: 24 | H78: 0 | I78: 5 | J78: 0 | K78: 9 | L78: 0 | Q78: 10 | R78: 0
B79: 58 | C79: TCHIBO PROFESSIONAL CREMA ZIARNISTA 1KG | D79: Kawa ziarnista TCHIBO Profesional Crema 1 kg | E79: 1 op. (1 kg) | F79: =IF('Załącznik 7 - F.O. Zad 6-10'!$V$58,VLOOKUP(C79,'Załącznik 7 - F.O. Zad 6-10'!$C$52:$G$210,5,0),0) -> 0 | G79: 54 | H79: 0 | I79: 5 | J79: 0 | K79: 9 | L79: 0 | Q79: 40 | R79: 0
B80: 59 | C80: GOSTYŃ MLEKO SKONDENS NIESŁODZONE 500G | D80: Mleko zagęszczone GOSTYŃ 7,5% niesłodzone, 500 g | E80: 1 op. ( 1 karton 500 g) | F80: =IF('Załącznik 7 - F.O. Zad 6-10'!$V$58,VLOOKUP(C80,'Załącznik 7 - F.O. Zad 6-10'!$C$52:$G$210,5,0),0) -> 0 | G80: 70 | H80: 0 | I80: 1 | J80: 0 | K80: 9 | L80: 0 | M80: 60 | N80: 0
B81: 60 | C81: ŁACIATA ŚMIETANKA UHT 12% 500ML | D81: Śmietanka do kawy ŁACIATA 12%, 500 ml | E81: 1 op. (500 ml) | F81: =IF('Załącznik 7 - F.O. Zad 6-10'!$V$58,VLOOKUP(C81,'Załącznik 7 - F.O. Zad 6-10'!$C$52:$G$210,5,0),0) -> 0 | G81: 20 | H81: 0 | I81: 1 | J81: 0 | K81: 9 | L81: 0 | M81: 10 | N81: 0
B82: 61 | C82: ŁACIATA ŚMIETANKA W KUBECZKACH OPK10X10G | D82: Śmietanka do kawy ŁACIATA 10%, 10 kubeczków x 10 g | E82: 1 op. (10 kubeczków) | F82: =IF('Załącznik 7 - F.O. Zad 6-10'!$V$58,VLOOKUP(C82,'Załącznik 7 - F.O. Zad 6-10'!$C$52:$G$210,5,0),0) -> 0 | G82: 19 | H82: 0 | I82: 10 | J82: 0 | K82: 9 | L82: 0
B83: 62 | C83: ŁACIATE MLEKO UHT 2% 0,5L | D83: Mleko ŁACIATE UHT 2,0%, 0,5 l | E83: 1 op. (500 ml) | F83: =IF('Załącznik 7 - F.O. Zad 6-10'!$V$58,VLOOKUP(C83,'Załącznik 7 - F.O. Zad 6-10'!$C$52:$G$210,5,0),0) -> 0 | G83: 96 | H83: 0 | I83: 5 | J83: 0 | K83: 9 | L83: 0 | O83: 82 | P83: 0
B84: 63 | C84: ŁACIATE MLEKO UHT 2% 1L | D84: Mleko ŁACIATE UHT 2,0%, 1 l | E84: 1 op. (1 l) | F84: =IF('Załącznik 7 - F.O. Zad 6-10'!$V$58,VLOOKUP(C84,'Załącznik 7 - F.O. Zad 6-10'!$C$52:$G$210,5,0),0) -> 0 | G84: 102 | H84: 0 | I84: 5 | J84: 0 | K84: 9 | L84: 0 | O84: 48 | P84: 0 | Q84: 40 | R84: 0
B85: 64 | C85: ŁACIATE MLEKO UHT 3,2% 0,5L | D85: Mleko ŁACIATE UHT 3,2%, 0,5 l | E85: 1 op. (500 ml) | F85: =IF('Załącznik 7 - F.O. Zad 6-10'!$V$58,VLOOKUP(C85,'Załącznik 7 - F.O. Zad 6-10'!$C$52:$G$210,5,0),0) -> 0 | G85: 168 | H85: 0 | I85: 5 | J85: 0 | K85: 9 | L85: 0 | O85: 114 | P85: 0 | Q85: 40 | R85: 0
B86: 65 | C86: ŁACIATE MLEKO UHT 3,2% 1L | D86: Mleko ŁACIATE UHT 3,2%, 1 l | E86: 1 op. (1 l) | F86: =IF('Załącznik 7 - F.O. Zad 6-10'!$V$58,VLOOKUP(C86,'Załącznik 7 - F.O. Zad 6-10'!$C$52:$G$210,5,0),0) -> 0 | G86: 137 | H86: 0 | I86: 22 | J86: 0 | K86: 9 | L86: 0 | O86: 66 | P86: =O86*F86 -> 0 | Q86: 40 | R86: =Q86*F86 -> 0
B87: 66 | C87: ŁACIATE MLEKO ZAGĘSZCZONE 7,5% 0,5L | D87: Mleko zagęszczone ŁACIATE UHT 7,5%, 0,5 l | E87: 1 op. (500 ml) | F87: =IF('Załącznik 7 - F.O. Zad 6-10'!$V$58,VLOOKUP(C87,'Załącznik 7 - F.O. Zad 6-10'!$C$52:$G$210,5,0),0) -> 0 | G87: =I87+K87+M87+O87+Q87 -> 50 | H87: =G87*F87 -> 0 | I87: 1 | J87: 0 | K87: 9 | L87: =K87*F87 -> 0 | Q87: 40 | R87: 0
B88: 67 | C88: MLEKOVITA BEZ LAKTOZY UHT WYDOJONE 1,5% | D88: Mleko WYDOJONE UHT, bez laktozy 1,5%, 1 l | E88: 1 op. (1 l) | F88: =IF('Załącznik 7 - F.O. Zad 6-10'!$V$58,VLOOKUP(C88,'Załącznik 7 - F.O. Zad 6-10'!$C$52:$G$210,5,0),0) -> 0 | G88: 9 | H88: 0 | K88: 9 | L88: 0
B89: 68 | C89: MLEKOVITA BEZ LAKTOZY UHT WYDOJONE 3,2% | D89: Mleko WYDOJONE UHT, bez laktozy, 3,2%, 1 l | E89: 1 op. (1 l) | F89: =IF('Załącznik 7 - F.O. Zad 6-10'!$V$58,VLOOKUP(C89,'Załącznik 7 - F.O. Zad 6-10'!$C$52:$G$210,5,0),0) -> 0 | G89: 9 | H89: 0 | K89: 9 | L89: 0
B90: 69 | C90: ZAMBROWSKIE MLEKO UHT 3,2% 1L | D90: Mleko ZAMBROWSKIE UHT 3,2 %, 1 l | E90: 1 op. (1 l) | F90: =IF('Załącznik 7 - F.O. Zad 6-10'!$V$58,VLOOKUP(C90,'Załącznik 7 - F.O. Zad 6-10'!$C$52:$G$210,5,0),0) -> 0 | G90: 49 | H90: 0 | K90: 9 | L90: 0 | Q90: 40 | R90: 0
B91: 70 | C91: BAKALLAND BAKALIE STUDENCKI MIX 200G | D91: Cukierki Mieszanka bakaliowa BAKALLAND Studencki Mix, 200 g | E91: 1 op (200 g) | F91: =IF('Załącznik 7 - F.O. Zad 6-10'!$V$58,VLOOKUP(C91,'Załącznik 7 - F.O. Zad 6-10'!$C$52:$G$210,5,0),0) -> 0 | G91: 53 | H91: 0 | K91: 9 | L91: 0 | M91: 5 | N91: =M91*F91 -> 0 | O91: 39 | P91: 0
B92: 71 | C92: BAKALLAND MIGDAŁY 300G | D92: Migdały BAKALLAND, 300 g | E92: 1 op. (300 g) | F92: =IF('Załącznik 7 - F.O. Zad 6-10'!$V$58,VLOOKUP(C92,'Załącznik 7 - F.O. Zad 6-10'!$C$52:$G$210,5,0),0) -> 0 | G92: 34 | H92: 0 | K92: 9 | L92: 0 | O92: 25 | P92: 0
B93: 72 | C93: BAKALLAND ORZECHY NERKOWCA 300G | D93: Orzechy nerkowca BAKALLAND, 300 g | E93: 1 op. (300 g) | F93: =IF('Załącznik 7 - F.O. Zad 6-10'!$V$58,VLOOKUP(C93,'Załącznik 7 - F.O. Zad 6-10'!$C$52:$G$210,5,0),0) -> 0 | G93: 40 | H93: 0 | K93: 9 | L93: 0 | O93: 31 | P93: 0
B94: 73 | C94: BELVITA CIASTKA KAKAOWE 300G | D94: Ciastka BELVITA, kakaowe, 300 g, 24 ciasteczka | E94: 1 op. (300 g) | F94: =IF('Załącznik 7 - F.O. Zad 6-10'!$V$58,VLOOKUP(C94,'Załącznik 7 - F.O. Zad 6-10'!$C$52:$G$210,5,0),0) -> 0 | G94: 19 | H94: 0 | K94: 9 | L94: 0 | M94: 2 | N94: 0 | O94: 8 | P94: 0
B95: 74 | C95: BELVITA CIASTKA MUSLI+OWOCE 300G | D95: Ciastka BELVITA Musli z owocami, 24 ciasteczka pakowane po 4 sztuki, 300 g | E95: 1 op. (300 g) | F95: =IF('Załącznik 7 - F.O. Zad 6-10'!$V$58,VLOOKUP(C95,'Załącznik 7 - F.O. Zad 6-10'!$C$52:$G$210,5,0),0) -> 0 | G95: 9 | H95: 0 | K95: 9 | L95: 0
B96: 75 | C96: CISOWIANKA WODA GAZOWANA 0,5L OPK12 | D96: Woda mineralna CISOWIANKA gazowana, zgrzewka 12 butelek x 0,5 l | E96: 1 op. (12 butelek) | F96: =IF('Załącznik 7 - F.O. Zad 6-10'!$V$58,VLOOKUP(C96,'Załącznik 7 - F.O. Zad 6-10'!$C$52:$G$210,5,0),0) -> 0 | G96: 114 | H96: 0 | I96: 60 | J96: 0 | K96: 9 | L96: 0 | O96: 5 | P96: 0 | Q96: 40 | R96: 0
B97: 76 | C97: DELICJE SZAMPAŃSKIE MALINA 147G | D97: Ciastka DELICJE Szampańskie malinowe, 147 g | E97: 1 op. (147 g) | F97: =IF('Załącznik 7 - F.O. Zad 6-10'!$V$58,VLOOKUP(C97,'Załącznik 7 - F.O. Zad 6-10'!$C$52:$G$210,5,0),0) -> 0 | G97: 64 | H97: 0 | K97: 9 | L97: 0 | M97: 15 | N97: 0 | Q97: 40 | R97: 0
B98: 77 | C98: DELICJE SZAMPAŃSKIE POMARAŃCZA 147G | D98: Ciastka DELICJE Szampańskie pomarańczowe, 147 g | E98: 1 op. (147 g) | F98: =IF('Załącznik 7 - F.O. Zad 6-10'!$V$58,VLOOKUP(C98,'Załącznik 7 - F.O. Zad 6-10'!$C$52:$G$210,5,0),0) -> 0 | G98: 67 | H98: 0 | K98: 9 | L98: 0 | M98: 10 | N98: 0 | O98: 8 | P98: 0 | Q98: 40 | R98: 0
B99: 78 | C99: DELICJE SZAMPAŃSKIE WIŚNIA 147G | D99: Ciastka DELICJE Szampańskie wiśniowe, 147 g | E99: 1 op. (147 g) | F99: =IF('Załącznik 7 - F.O. Zad 6-10'!$V$58,VLOOKUP(C99,'Załącznik 7 - F.O. Zad 6-10'!$C$52:$G$210,5,0),0) -> 0 | G99: 65 | H99: 0 | K99: 9 | L99: 0 | M99: 15 | N99: 0 | O99: 1 | P99: 0 | Q99: 40 | R99: 0
B100: 79 | C100: DELICJE SZAMPAŃSKIE WIŚNIOWE 294G | D100: Ciastka DELICJE Szampańskie wiśniowe, podwójne opakowanie, 294 g | E100: 1 op. ( 294 g) | F100: =IF('Załącznik 7 - F.O. Zad 6-10'!$V$58,VLOOKUP(C100,'Załącznik 7 - F.O. Zad 6-10'!$C$52:$G$210,5,0),0) -> 0 | G100: 55 | H100: 0 | K100: 9 | L100: 0 | M100: 6 | N100: 0 | Q100: 40 | R100: 0
B101: 80 | C101: FERRERO RAFAELLO 230 G | D101: Praliny RAFFAELLO, 230 g | E101: 1 op.( 230 g.) | F101: =IF('Załącznik 7 - F.O. Zad 6-10'!$V$58,VLOOKUP(C101,'Załącznik 7 - F.O. Zad 6-10'!$C$52:$G$210,5,0),0) -> 0 | G101: 14 | H101: 0 | K101: 9 | L101: 0 | M101: 5 | N101: 0
B102: 81 | C102: FERRERO RAFFAELLO PRALINY 230G | D102: Praliny RAFFAELLO, 230 g | E102: 2 op.( 230 g.) | F102: =IF('Załącznik 7 - F.O. Zad 6-10'!$V$58,VLOOKUP(C102,'Załącznik 7 - F.O. Zad 6-10'!$C$52:$G$210,5,0),0) -> 0 | G102: 9 | H102: 0 | K102: 9 | L102: 0
B103: 82 | C103: Ferrero Rocher Praliny 200g | D103: Czekoladki FERRERO ROCHER, 200 g | E103: 3 op.( 200 g.) | F103: =IF('Załącznik 7 - F.O. Zad 6-10'!$V$58,VLOOKUP(C103,'Załącznik 7 - F.O. Zad 6-10'!$C$52:$G$210,5,0),0) -> 0 | G103: 49 | H103: 0 | K103: 9 | L103: 0 | O103: 40 | P103: 0
B104: 83 | C104: GOPLANA TOFFINO CHOCO 1KG | D104: Cukierki Goplana Toffino Choco Toffi mleczne z kremem czekoladowym 1 kg | E104: 1 op. ( 1 kg.) | F104: =IF('Załącznik 7 - F.O. Zad 6-10'!$V$58,VLOOKUP(C104,'Załącznik 7 - F.O. Zad 6-10'!$C$52:$G$210,5,0),0) -> 0 | G104: 9 | H104: 0 | K104: 9 | L104: 0
B105: 84 | C105: HIT MARKIZY CZEKOLADOWE 220G | D105: Ciastka BAHLSEN HIT czekoladowe, 220 g | E105: 1 op.( 220 g) | F105: =IF('Załącznik 7 - F.O. Zad 6-10'!$V$58,VLOOKUP(C105,'Załącznik 7 - F.O. Zad 6-10'!$C$52:$G$210,5,0),0) -> 0 | G105: 9 | H105: 0 | K105: 9 | L105: 0
B106: 85 | C106: JUTRZENKA JEŻYKI CAFE CIASTKA 140G | D106: Ciasta JEŻYKI Cafe, 140 g | E106: 1 op. (140 g) | F106: =IF('Załącznik 7 - F.O. Zad 6-10'!$V$58,VLOOKUP(C106,'Załącznik 7 - F.O. Zad 6-10'!$C$52:$G$210,5,0),0) -> 0 | G106: 29 | H106: 0 | K106: 9 | L106: 0 | M106: 15 | N106: 0 | O106: 5 | P106: 0
B107: 86 | C107: JUTRZENKA JEŻYKI CIASTKA 140G | D107: Ciasta JEŻYKI Classic, 140 g | E107: 1 op. (140 g) | F107: =IF('Załącznik 7 - F.O. Zad 6-10'!$V$58,VLOOKUP(C107,'Załącznik 7 - F.O. Zad 6-10'!$C$52:$G$210,5,0),0) -> 0 | G107: 32 | H107: 0 | I107: 2 | J107: 0 | K107: 9 | L107: 0 | M107: 15 | N107: 0 | O107: 6 | P107: 0
B108: 87 | C108: JUTRZENKA WAFLE FAMILIJNE ŚMIET-KAK 180G | D108: Wafle FAMILIJNE śmietankowo-kakaowe, 180 g | E108: 1 op. (180 g) | F108: =IF('Załącznik 7 - F.O. Zad 6-10'!$V$58,VLOOKUP(C108,'Załącznik 7 - F.O. Zad 6-10'!$C$52:$G$210,5,0),0) -> 0 | G108: 20 | H108: 0 | I108: 1 | J108: 0 | K108: 9 | L108: 0 | M108: 10 | N108: 0
B109: 88 | C109: ŁAKOTKI DESEROWE Z CUKREM 168G | D109: Ciastka SAN ŁAKOTKI deserowe z cukrem, 168 g | E109: 1 op. (168 g) | F109: =IF('Załącznik 7 - F.O. Zad 6-10'!$V$58,VLOOKUP(C109,'Załącznik 7 - F.O. Zad 6-10'!$C$52:$G$210,5,0),0) -> 0 | G109: 19 | H109: 0 | K109: 9 | L109: 0 | M109: 10 | N109: 0
B110: 89 | C110: ŁAKOTKI KAKAOWE 168G | D110: Ciastka SAN ŁAKOTKI kakaowe, 168 g | E110: 1 op. (168 g) | F110: =IF('Załącznik 7 - F.O. Zad 6-10'!$V$58,VLOOKUP(C110,'Załącznik 7 - F.O. Zad 6-10'!$C$52:$G$210,5,0),0) -> 0 | G110: 19 | H110: 0 | K110: 9 | L110: 0 | M110: 10 | N110: 0
B111: 90 | C111: ŁAKOTKI KOKOSOWE 168G | D111: Ciastka SAN ŁAKOTKI kokosowe, 168 g | E111: 1 op. (168 g) | F111: =IF('Załącznik 7 - F.O. Zad 6-10'!$V$58,VLOOKUP(C111,'Załącznik 7 - F.O. Zad 6-10'!$C$52:$G$210,5,0),0) -> 0 | G111: 24 | H111: 0 | K111: 9 | L111: 0 | M111: 10 | N111: 0 | O111: 5 | P111: 0
B112: 91 | C112: MERCI CZEKOLADKI 400 G | D112: Czekoladki MERCI, 400 g | E112: 1 op.(400 g.) | F112: =IF('Załącznik 7 - F.O. Zad 6-10'!$V$58,VLOOKUP(C112,'Załącznik 7 - F.O. Zad 6-10'!$C$52:$G$210,5,0),0) -> 0 | G112: 25 | H112: 0 | K112: 9 | L112: 0 | M112: 4 | N112: 0 | O112: 12 | P112: 0
B113: 92 | C113: MILKA CHOCO GRAINS CIASTKA 126 G | D113: Ciastka MILKA Chocograins, 126 g | E113: 1 op.(126 g.) | F113: =IF('Załącznik 7 - F.O. Zad 6-10'!$V$58,VLOOKUP(C113,'Załącznik 7 - F.O. Zad 6-10'!$C$52:$G$210,5,0),0) -> 0 | G113: 19 | H113: 0 | K113: 9 | L113: 0 | M113: 10 | N113: 0
B114: 93 | C114: MILKA CHOCOWAFER CIASTKA 150G | D114: Wafle MILKA ChocoWafer, 150 g | E114: 1 op.(150g.) | F114: =IF('Załącznik 7 - F.O. Zad 6-10'!$V$58,VLOOKUP(C114,'Załącznik 7 - F.O. Zad 6-10'!$C$52:$G$210,5,0),0) -> 0 | G114: 9 | H114: 0 | K114: 9 | L114: 0
B115: 94 | C115: MILKA MOMENTS CZEKOL MIX 11X97G | D115: Praliny MILKA Moments Mix, 11 czekoladek | E115: 1 op. (11 sztuk) | F115: =IF('Załącznik 7 - F.O. Zad 6-10'!$V$58,VLOOKUP(C115,'Załącznik 7 - F.O. Zad 6-10'!$C$52:$G$210,5,0),0) -> 0 | G115: 9 | H115: 0 | K115: 9 | L115: 0
B116: 95 | C116: MILKA MOMENTS TOFF/ORZECH 11x97G | D116: Praliny MILKA Moments Toffee Wholenut, 11 czekoladek | E116: 1 op. (11 sztuk) | F116: =IF('Załącznik 7 - F.O. Zad 6-10'!$V$58,VLOOKUP(C116,'Załącznik 7 - F.O. Zad 6-10'!$C$52:$G$210,5,0),0) -> 0 | G116: 9 | H116: 0 | K116: 9 | L116: 0
B117: 96 | C117: MILKA PIEGUSKI CZEKOLADA ORZECHY 135G | D117: Ciastka MILKA Pieguski, czekolada i orzechy, 135 g | E117: 1 op. (135 g) | F117: =IF('Załącznik 7 - F.O. Zad 6-10'!$V$58,VLOOKUP(C117,'Załącznik 7 - F.O. Zad 6-10'!$C$52:$G$210,5,0),0) -> 0 | G117: 34 | H117: 0 | K117: 9 | L117: 0 | M117: 25 | N117: 0
B118: 97 | C118: MILKA SINGLES CZEKOLADKI 138G | D118: Czekoladki MILKA Singles, 32 czekoladki pakowane osobno | E118: 1 op. (32 szt.) | F118: =IF('Załącznik 7 - F.O. Zad 6-10'!$V$58,VLOOKUP(C118,'Załącznik 7 - F.O. Zad 6-10'!$C$52:$G$210,5,0),0) -> 0 | G118: 13 | H118: 0 | K118: 9 | L118: 0 | O118: 4 | P118: 0
B119: 98 | C119: NESPRESSO CZEKOLADKI BLOND 200G | D119: Czekoladki NESPRESSO blond, 200 g | E119: 1 op ( 200 g.) | F119: =IF('Załącznik 7 - F.O. Zad 6-10'!$V$58,VLOOKUP(C119,'Załącznik 7 - F.O. Zad 6-10'!$C$52:$G$210,5,0),0) -> 0 | G119: 9 | H119: 0 | K119: 9 | L119: 0
B120: 99 | C120: NESPRESSO CZEKOLADKI MILK 200G | D120: Czekoladki NESPRESSO mleczne, 200 g | E120: 1 op ( 200 g.) | F120: =IF('Załącznik 7 - F.O. Zad 6-10'!$V$58,VLOOKUP(C120,'Załącznik 7 - F.O. Zad 6-10'!$C$52:$G$210,5,0),0) -> 0 | G120: 9 | H120: 0 | K120: 9 | L120: 0
B121: 100 | C121: PASTYLKI MIĘTOWEW CZEKOLADZIE WAWEL | D121: Cukierki Pastylka miętowa WAWEL, 1 kg | E121: 1 op. (1 kg) | F121: =IF('Załącznik 7 - F.O. Zad 6-10'!$V$58,VLOOKUP(C121,'Załącznik 7 - F.O. Zad 6-10'!$C$52:$G$210,5,0),0) -> 0 | G121: 9 | H121: 0 | K121: 9 | L121: 0
B122: 101 | C122: SOLIDARNOŚĆ ŚLIWKA NALECZOWSKA 1KG | D122: CukierkiŚliwka Nałęczowska SOLIDARNOŚĆ, 1 kg | E122: 2 op. (1 kg) | F122: =IF('Załącznik 7 - F.O. Zad 6-10'!$V$58,VLOOKUP(C122,'Załącznik 7 - F.O. Zad 6-10'!$C$52:$G$210,5,0),0) -> 0 | G122: 35 | H122: 0 | K122: 9 | L122: 0 | O122: 6 | P122: 0 | Q122: 20 | R122: 0
B123: 102 | C123: TAGO CIASTECZKA KORZENNE 4,8G OPK125 | D123: Ciastka TAGO korzenne, 125 ciasteczek po 4,8 g | E123: 1 op. (125 szt.) | F123: =IF('Załącznik 7 - F.O. Zad 6-10'!$V$58,VLOOKUP(C123,'Załącznik 7 - F.O. Zad 6-10'!$C$52:$G$210,5,0),0) -> 0 | G123: 9 | H123: 0 | K123: 9 | L123: 0
B124: 103 | C124: TAGO OWSIANE DE LUX CIASTECZKA 210G | D124: Ciastka TAGO Owsiane de Lux, 210 g | E124: 1 op. (210 g) | F124: =IF('Załącznik 7 - F.O. Zad 6-10'!$V$58,VLOOKUP(C124,'Załącznik 7 - F.O. Zad 6-10'!$C$52:$G$210,5,0),0) -> 0 | G124: 59 | H124: 0 | K124: 9 | L124: 0 | M124: 10 | N124: 0 | Q124: 40 | R124: 0
B125: 104 | C125: TAGO PRECLE MAŚLANE 158 G | D125: Francuskie precle z masłem TAGO, 158 g | E125: 1 op. ( 158 g) | F125: =IF('Załącznik 7 - F.O. Zad 6-10'!$V$58,VLOOKUP(C125,'Załącznik 7 - F.O. Zad 6-10'!$C$52:$G$210,5,0),0) -> 0 | G125: 9 | H125: 0 | K125: 9 | L125: 0
B126: 105 | C126: WAWEL MICHAŁKI 1 KG | D126: Cukierki WAWEL Michałki Klasyczne 300 g | E126: 1 op. (300 g) | F126: =IF('Załącznik 7 - F.O. Zad 6-10'!$V$58,VLOOKUP(C126,'Załącznik 7 - F.O. Zad 6-10'!$C$52:$G$210,5,0),0) -> 0 | G126: 12 | H126: 0 | K126: 9 | L126: 0 | O126: 3 | P126: 0
B127: 106 | C127: WAWEL MICHAŁKI CLASSIC 300G | D127: Cukierki WAWEL Michałki Klasyczne 300 g | E127: 1 op. (300 g) | F127: =IF('Załącznik 7 - F.O. Zad 6-10'!$V$58,VLOOKUP(C127,'Załącznik 7 - F.O. Zad 6-10'!$C$52:$G$210,5,0),0) -> 0 | G127: 9 | H127: 0 | K127: 9 | L127: 0
B128: 107 | C128: WAWEL MIESZANKA KRAKOWSKA 1 KG | D128: Cukierki Mieszanka krakowska WAWEL, 1 kg | E128: 1 op. (1 kg) | F128: =IF('Załącznik 7 - F.O. Zad 6-10'!$V$58,VLOOKUP(C128,'Załącznik 7 - F.O. Zad 6-10'!$C$52:$G$210,5,0),0) -> 0 | G128: 11 | H128: 0 | K128: 9 | L128: 0 | M128: 2 | N128: 0
B129: 108 | C129: WAWEL TRUFLE 1 KG | D129: Cukierki WAWEL Trufle | E129: 1 op. (1 kg) | F129: =IF('Załącznik 7 - F.O. Zad 6-10'!$V$58,VLOOKUP(C129,'Załącznik 7 - F.O. Zad 6-10'!$C$52:$G$210,5,0),0) -> 0 | G129: 11 | H129: 0 | K129: 9 | L129: 0 | M129: 2 | N129: 0
B130: 109 | C130: WEDEL AMERYKANKI KLASYCZNE 125 G | D130: Ciastka AMERYKANKI, klasyczne, 126 g | E130: 1 op. (126 g) | F130: =IF('Załącznik 7 - F.O. Zad 6-10'!$V$58,VLOOKUP(C130,'Załącznik 7 - F.O. Zad 6-10'!$C$52:$G$210,5,0),0) -> 0 | G130: 54 | H130: 0 | K130: 9 | L130: 0 | M130: 5 | N130: 0 | Q130: 40 | R130: 0
B131: 110 | C131: WEDEL MIESZANKA CUKIERKI DISPLAY 3KG | D131: Cukierki MIESZANKA WEDLOWSKA Classic, 3 kg w formie dyspensera | E131: 1 op. (3 kg) | F131: =IF('Załącznik 7 - F.O. Zad 6-10'!$V$58,VLOOKUP(C131,'Załącznik 7 - F.O. Zad 6-10'!$C$52:$G$210,5,0),0) -> 0 | G131: 9 | H131: 0 | K131: 9 | L131: 0
B132: 111 | C132: WEDEL PTASIE MLECZKO WANILIOWE 360G | D132: Ptasie mleczko WEDEL, waniliowe, 360 g | E132: 1 op.( 360 g.) | F132: =IF('Załącznik 7 - F.O. Zad 6-10'!$V$58,VLOOKUP(C132,'Załącznik 7 - F.O. Zad 6-10'!$C$52:$G$210,5,0),0) -> 0 | G132: 13 | H132: 0 | K132: 9 | L132: 0 | M132: 4 | N132: 0
B133: 112 | C133: WEDEL WAFLE TORCIKOWE MINI ORZECHOWE 160 | D133: Wafle Torcikowe WEDEL MINI orzechowe, 160 g | E133: 1 op. ( 160 g) | F133: =IF('Załącznik 7 - F.O. Zad 6-10'!$V$58,VLOOKUP(C133,'Załącznik 7 - F.O. Zad 6-10'!$C$52:$G$210,5,0),0) -> 0 | G133: 9 | H133: 0 | K133: 9 | L133: 0
B134: 113 | C134: BAKALLAND MIGDAŁY SOLONE 90G | D134: Migdały lekko solone BAKALLAND, 90 g | E134: 1 op. (90 g) | F134: =IF('Załącznik 7 - F.O. Zad 6-10'!$V$58,VLOOKUP(C134,'Załącznik 7 - F.O. Zad 6-10'!$C$52:$G$210,5,0),0) -> 0 | G134: 19 | H134: 0 | K134: 9 | L134: 0 | O134: 10 | P134: 0
B135: 114 | C135: BAKALLAND ORZECHY LASKOWE 300G | D135: Orzechy laskowe BAKALLAND, 300 g | E135: 1 op. (300 g) | F135: =IF('Załącznik 7 - F.O. Zad 6-10'!$V$58,VLOOKUP(C135,'Załącznik 7 - F.O. Zad 6-10'!$C$52:$G$210,5,0),0) -> 0 | G135: 23 | H135: 0 | K135: 9 | L135: 0 | O135: 14 | P135: 0
B136: 115 | C136: BAKALLAND ORZECHY NERKOWCA SOLONE 70G | D136: Orzechy nerkowca solone BAKALLAND, 70 g | E136: 1 op. (70 g) | F136: =IF('Załącznik 7 - F.O. Zad 6-10'!$V$58,VLOOKUP(C136,'Załącznik 7 - F.O. Zad 6-10'!$C$52:$G$210,5,0),0) -> 0 | G136: 26 | H136: 0 | K136: 9 | L136: 0 | O136: 17 | P136: 0
B137: 116 | C137: BAKALLAND ORZECHY WŁOSKIE 300G | D137: Orzechy włoskie BAKALLAND, 300 g | E137: 1 op. (300 g) | F137: =IF('Załącznik 7 - F.O. Zad 6-10'!$V$58,VLOOKUP(C137,'Załącznik 7 - F.O. Zad 6-10'!$C$52:$G$210,5,0),0) -> 0 | G137: 9 | H137: 0 | K137: 9 | L137: 0
B138: 117 | C138: LAJKONIK PALUSZKI 200G | D138: Paluszki LAJKONIK solone, 200 g | E138: 1 op. (200 g) | F138: =IF('Załącznik 7 - F.O. Zad 6-10'!$V$58,VLOOKUP(C138,'Załącznik 7 - F.O. Zad 6-10'!$C$52:$G$210,5,0),0) -> 0 | G138: 79 | H138: 0 | K138: 9 | L138: 0 | M138: 10 | N138: 0 | O138: 21 | P138: 0 | Q138: 39 | R138: 0
B139: 118 | C139: CAPPY NEKTAR MULTIWIT PET 0,33L OPK12 | D139: Nektar multiwitamina CAPPY, 12 butelek x 0,33 l | E139: 1 op. (12 butelek) | F139: =IF('Załącznik 7 - F.O. Zad 6-10'!$V$58,VLOOKUP(C139,'Załącznik 7 - F.O. Zad 6-10'!$C$52:$G$210,5,0),0) -> 0 | G139: 24 | H139: 0 | I139: 3 | J139: 0 | K139: 9 | L139: 0 | O139: 12 | P139: 0
B140: 119 | C140: CAPPY SOK POMARAŃCZOWY PET 0,33L OPK12 | D140: Sok pomarańczowy CAPPY, 12 butelek x 0,33 l | E140: 1 op. (12 butelek) | F140: =IF('Załącznik 7 - F.O. Zad 6-10'!$V$58,VLOOKUP(C140,'Załącznik 7 - F.O. Zad 6-10'!$C$52:$G$210,5,0),0) -> 0 | G140: 32 | H140: 0 | I140: 3 | J140: 0 | K140: 9 | L140: 0 | O140: 20 | P140: 0
B141: 120 | C141: CHAMPION SOK CYTRYNOWY OPK10X7,5G | D141: Zagęszczony sok cytrynowy CHAMPION, 10 kubeczków x 7,5 g | E141: 1 op. (10 kubeczków) | F141: =IF('Załącznik 7 - F.O. Zad 6-10'!$V$58,VLOOKUP(C141,'Załącznik 7 - F.O. Zad 6-10'!$C$52:$G$210,5,0),0) -> 0 | G141: 9 | H141: 0 | K141: 9 | L141: 0
B142: 121 | C142: COCA-COLA BUTELKA PET 0,5L OPK18 | D142: Napój gazowany COCA-COLA, zgrzewka 18 butelek x 0,5 l | E142: 1 op. (18 butelek) | F142: =IF('Załącznik 7 - F.O. Zad 6-10'!$V$58,VLOOKUP(C142,'Załącznik 7 - F.O. Zad 6-10'!$C$52:$G$210,5,0),0) -> 0 | G142: 12 | H142: 0 | I142: 1 | J142: 0 | K142: 9 | L142: 0 | O142: 2 | P142: 0
B143: 122 | C143: COCA-COLA PUSZKA 0,33L OPK24 | D143: Napój gazowany COCA-COLA, 24 puszki x 0,33 l | E143: 1 op. (24 puszki 0,33 l) | F143: =IF('Załącznik 7 - F.O. Zad 6-10'!$V$58,VLOOKUP(C143,'Załącznik 7 - F.O. Zad 6-10'!$C$52:$G$210,5,0),0) -> 0 | G143: 26 | H143: 0 | I143: 1 | J143: 0 | K143: 9 | L143: 0 | O143: 16 | P143: 0
B144: 123 | C144: COCA-COLA ZERO BUTELKA PET 0,5L OPK12 | D144: Napój gazowany COCA-COLA Zero, 12 butelek x 0,5 l | E144: 1 op. (12 butelek) | F144: =IF('Załącznik 7 - F.O. Zad 6-10'!$V$58,VLOOKUP(C144,'Załącznik 7 - F.O. Zad 6-10'!$C$52:$G$210,5,0),0) -> 0 | G144: 13 | H144: 0 | I144: 1 | J144: 0 | K144: 9 | L144: 0 | O144: 3 | P144: 0
B145: 124 | C145: FORTUNA NEKTAR CZ.PORZECZKA 0,3L OPK15 | D145: Nektar czarna porzeczka FORTUNA, 15 butelek x 0,3 l | E145: 1 op. (15 butelek) | F145: =IF('Załącznik 7 - F.O. Zad 6-10'!$V$58,VLOOKUP(C145,'Załącznik 7 - F.O. Zad 6-10'!$C$52:$G$210,5,0),0) -> 0 | G145: 14 | H145: 0 | I145: 2 | J145: 0 | K145: 9 | L145: 0 | M145: 3 | N145: 0
B146: 125 | C146: FORTUNA SOK MULTIWITAMINA 0,3 L OPK15 | D146: Sok multiwitamina FORTUNA, 15 butelek x 0,3 l | E146: 1 op. (15 butelek) | F146: =IF('Załącznik 7 - F.O. Zad 6-10'!$V$58,VLOOKUP(C146,'Załącznik 7 - F.O. Zad 6-10'!$C$52:$G$210,5,0),0) -> 0 | G146: 29 | H146: 0 | K146: 9 | L146: 0 | O146: 20 | P146: 0
B147: 126 | C147: FORTUNA SOK POMARAŃCZOWY 0,3L OPK15 | D147: Sok pomarańczowy FORTUNA, 15 butelek x 0,3 l | E147: 1 op. (15 butelek) | F147: =IF('Załącznik 7 - F.O. Zad 6-10'!$V$58,VLOOKUP(C147,'Załącznik 7 - F.O. Zad 6-10'!$C$52:$G$210,5,0),0) -> 0 | G147: 14 | H147: 0 | K147: 9 | L147: 0 | M147: 5 | N147: 0
B148: 127 | C148: FORTUNA SOK POMIDOROWY 0,3L OPK15 | D148: Sok pomidorowy FORTUNA, 15 butelek x 0,3 l | E148: 1 op. (15 butelek) | F148: =IF('Załącznik 7 - F.O. Zad 6-10'!$V$58,VLOOKUP(C148,'Załącznik 7 - F.O. Zad 6-10'!$C$52:$G$210,5,0),0) -> 0 | G148: 30 | H148: 0 | I148: 3 | J148: 0 | K148: 9 | L148: 0 | M148: 3 | N148: 0 | O148: 15 | P148: 0
B149: 128 | C149: TARCZYN NEKTAR CZ.PORZECZKA 0,3L OPK15 | D149: Nektar czarna porzeczka TARCZYN, 15 butelek x 0,3 l | E149: 1 op. (15 butelek) | F149: =IF('Załącznik 7 - F.O. Zad 6-10'!$V$58,VLOOKUP(C149,'Załącznik 7 - F.O. Zad 6-10'!$C$52:$G$210,5,0),0) -> 0 | G149: 35 | H149: 0 | K149: 9 | L149: 0 | O149: 1 | P149: 0 | Q149: 25 | R149: 0
B150: 129 | C150: TARCZYN NEKTAR GREJPFRUT 0,3L OPK15 | D150: Nektar czerwony grejpfrut TARCZYN, zgrzewka 15 butelek x 0,3 l | E150: 1 op. (15 butelek) | F150: =IF('Załącznik 7 - F.O. Zad 6-10'!$V$58,VLOOKUP(C150,'Załącznik 7 - F.O. Zad 6-10'!$C$52:$G$210,5,0),0) -> 0 | G150: 26 | H150: 0 | K150: 9 | L150: 0 | O150: 2 | P150: =O150*F150 -> 0 | Q150: 15 | R150: =Q150*F150 -> 0
B151: 130 | C151: TARCZYN SOK JABŁKOWY 0,3L OPK15 | D151: Sok jabłkowy TARCZYN, 15 butelek x 0,3 l | E151: 1 op. (15 butelek) | F151: =IF('Załącznik 7 - F.O. Zad 6-10'!$V$58,VLOOKUP(C151,'Załącznik 7 - F.O. Zad 6-10'!$C$52:$G$210,5,0),0) -> 0 | G151: =I151+K151+M151+O151+Q151 -> 36 | H151: =G151*F151 -> 0 | K151: 9 | L151: =K151*F151 -> 0 | O151: 12 | P151: 0 | Q151: 15 | R151: 0
B152: 131 | C152: TARCZYN SOK POMARAŃCZOWY 0,3L OPK15 | D152: Sok pomarańczowy TARCZYN, 15 butelek x 0,3 l | E152: 1 op. (15 butelek) | F152: =IF('Załącznik 7 - F.O. Zad 6-10'!$V$58,VLOOKUP(C152,'Załącznik 7 - F.O. Zad 6-10'!$C$52:$G$210,5,0),0) -> 0 | G152: 26 | H152: 0 | K152: 9 | L152: 0 | O152: 2 | P152: 0 | Q152: 15 | R152: 0
B153: 132 | C153: TARCZYN SOK POMIDOROWY 300ML OPK15 | D153: Sok pomidorowy TARCZYN, zgrzewka 15 butelek x 0,3 l | E153: 1 op. (15 butelek) | F153: =IF('Załącznik 7 - F.O. Zad 6-10'!$V$58,VLOOKUP(C153,'Załącznik 7 - F.O. Zad 6-10'!$C$52:$G$210,5,0),0) -> 0 | G153: 59 | H153: 0 | I153: 3 | J153: 0 | K153: 9 | L153: 0 | O153: 17 | P153: 0 | Q153: 30 | R153: 0
B154: 133 | C154: TYMBARK JABŁKO SOK 100% 300ML OPK12 | D154: Sok TYMBARK jabłko 100%, 12 butelek x 300 ml | E154: 1 op. (12 butelek) | F154: =IF('Załącznik 7 - F.O. Zad 6-10'!$V$58,VLOOKUP(C154,'Załącznik 7 - F.O. Zad 6-10'!$C$52:$G$210,5,0),0) -> 0 | G154: 46 | H154: 0 | K154: 9 | L154: 0 | M154: 5 | N154: =M154*F154 -> 0 | O154: 2 | P154: 0 | Q154: 30 | R154: 0
B155: 134 | C155: TYMBARK POMARAŃCZ SOK 100% 300ML OPK12 | D155: Sok TYMBARK pomarańcza 100%, 12 butelek x 300 ml | E155: 1 op. (12 butelek) | F155: =IF('Załącznik 7 - F.O. Zad 6-10'!$V$58,VLOOKUP(C155,'Załącznik 7 - F.O. Zad 6-10'!$C$52:$G$210,5,0),0) -> 0 | G155: 45 | H155: 0 | K155: 9 | L155: 0 | M155: 4 | N155: 0 | O155: 2 | P155: 0 | Q155: 30 | R155: 0
B156: 135 | C156: TYMBARK POMIDOR SOK 100% 300ML OPK12 | D156: Sok TYMBARK pomidor 100%, 12 butelek x 300 ml | E156: 1 op. (12 butelek) | F156: =IF('Załącznik 7 - F.O. Zad 6-10'!$V$58,VLOOKUP(C156,'Załącznik 7 - F.O. Zad 6-10'!$C$52:$G$210,5,0),0) -> 0 | G156: 32 | H156: 0 | K156: 9 | L156: 0 | O156: 3 | P156: 0 | Q156: 20 | R156: 0
B157: 136 | C157: TYMBARK VITAMINI BAN/MAR/JAB 300ML OPK12 | D157: Sok TYMBARK Vitamini banan, marchewka, jabłko, 12 butelek x 300 ml | E157: 1 op. (12 butelek) | F157: =IF('Załącznik 7 - F.O. Zad 6-10'!$V$58,VLOOKUP(C157,'Załącznik 7 - F.O. Zad 6-10'!$C$52:$G$210,5,0),0) -> 0 | G157: 62 | H157: 0 | K157: 9 | L157: 0 | O157: 23 | P157: 0 | Q157: 30 | R157: 0
B158: 137 | C158: CISOWIANKA LEKKOGAZOWANA WODA 0,5L OPK12 | D158: Woda mineralna CISOWIANKA lekko gazowana, zgrzewka 12 butelek x 0,5 l | E158: 1 op. (12 butelek) | F158: =IF('Załącznik 7 - F.O. Zad 6-10'!$V$58,VLOOKUP(C158,'Załącznik 7 - F.O. Zad 6-10'!$C$52:$G$210,5,0),0) -> 0 | G158: 78 | H158: 0 | I158: 65 | J158: 0 | K158: 9 | L158: 0 | O158: 4 | P158: 0
B159: 138 | C159: CISOWIANKA PERLAGE GAZ SZKŁO 300ML OPK24 | D159: Woda mineralna CISOWIANKA Perlage gazowana, zgrzewka 24 butelki x 300 ml | E159: 1 op. (24 butelki) | F159: =IF('Załącznik 7 - F.O. Zad 6-10'!$V$58,VLOOKUP(C159,'Załącznik 7 - F.O. Zad 6-10'!$C$52:$G$210,5,0),0) -> 0 | G159: 43 | H159: 0 | I159: 4 | J159: 0 | K159: 9 | L159: 0 | O159: 30 | P159: 0
B160: 139 | C160: CISOWIANKA WODA GAZOWANA 1,5L OPK6 | D160: Woda mineralna CISOWIANKA gazowana, zgrzewka 6 butelek x 1,5 l | E160: 1 op. (6 butelek) | F160: =IF('Załącznik 7 - F.O. Zad 6-10'!$V$58,VLOOKUP(C160,'Załącznik 7 - F.O. Zad 6-10'!$C$52:$G$210,5,0),0) -> 0 | G160: 64 | H160: 0 | I160: 55 | J160: 0 | K160: 9 | L160: 0
B161: 140 | C161: CISOWIANKA WODA NIEGAZ SZKŁO 300ML OPK24 | D161: Woda mineralna CISOWIANKA niegazowana szklane butelki x 300 ml | E161: 1 op. (24 butelki) | F161: =IF('Załącznik 7 - F.O. Zad 6-10'!$V$58,VLOOKUP(C161,'Załącznik 7 - F.O. Zad 6-10'!$C$52:$G$210,5,0),0) -> 0 | G161: 50 | H161: 0 | K161: 9 | L161: 0 | O161: 41 | P161: 0
B162: 141 | C162: CISOWIANKA WODA NIEGAZOWANA 0,5L OPK12 | D162: Woda mineralna CISOWIANKA niegazowana, zgrzewka 12 butelek x 0,5 l | E162: 1 op. (12 butelek) | F162: =IF('Załącznik 7 - F.O. Zad 6-10'!$V$58,VLOOKUP(C162,'Załącznik 7 - F.O. Zad 6-10'!$C$52:$G$210,5,0),0) -> 0 | G162: 170 | H162: 0 | I162: 140 | J162: 0 | K162: 9 | L162: 0 | O162: 21 | P162: 0
B163: 142 | C163: CISOWIANKA WODA NIEGAZOWANA 1,5L OPK6 | D163: Woda mineralna CISOWIANKA niegazowana, zgrzewka 6 butelek x 1,5 l | E163: 1 op. (6 butelek) | F163: =IF('Załącznik 7 - F.O. Zad 6-10'!$V$58,VLOOKUP(C163,'Załącznik 7 - F.O. Zad 6-10'!$C$52:$G$210,5,0),0) -> 0 | G163: 147 | H163: 0 | I163: 135 | J163: 0 | K163: 9 | L163: 0 | O163: 3 | P163: 0
B164: 143 | C164: CISOWIANKA WODA SPORT NIEGAZ 0,7L OPK8 | D164: Woda mineralna CISOWIANKA Sport niegazowana, zgrzewka 8 butelek x 0,7 l | E164: 1 op. (8 butelek) | F164: =IF('Załącznik 7 - F.O. Zad 6-10'!$V$58,VLOOKUP(C164,'Załącznik 7 - F.O. Zad 6-10'!$C$52:$G$210,5,0),0) -> 0 | G164: 14 | H164: 0 | I164: 5 | J164: 0 | K164: 9 | L164: 0
B165: 144 | C165: KINGA PIENINSKA WODA GAZOWANA 0,5L OPK12 | D165: Woda mineralna KINGA PIENIŃSKA gazowana 0,5 l | E165: 1 op. (12 butelek) | F165: =IF('Załącznik 7 - F.O. Zad 6-10'!$V$58,VLOOKUP(C165,'Załącznik 7 - F.O. Zad 6-10'!$C$52:$G$210,5,0),0) -> 0 | G165: 34 | H165: 0 | I165: 25 | J165: 0 | K165: 9 | L165: 0
B166: 145 | C166: KINGA PIENINSKA WODA NIEGAZOW 0,5L OPK12 | D166: Woda mineralna KINGA PIENIŃSKA niegazowana, zgrzewka 12 butelek x 0,5 l | E166: 1 op. (12 butelek) | F166: =IF('Załącznik 7 - F.O. Zad 6-10'!$V$58,VLOOKUP(C166,'Załącznik 7 - F.O. Zad 6-10'!$C$52:$G$210,5,0),0) -> 0 | G166: 39 | H166: 0 | I166: 30 | J166: 0 | K166: 9 | L166: 0
B167: 146 | C167: KROPLA BESKIDU WODA GAZ 0,5L OPK12 | D167: Woda mineralna KROPLA BESKIDU gazowana, zgrzewka 12 butelek x 0,5 l | E167: 1 op. (12 butelek) | F167: =IF('Załącznik 7 - F.O. Zad 6-10'!$V$58,VLOOKUP(C167,'Załącznik 7 - F.O. Zad 6-10'!$C$52:$G$210,5,0),0) -> 0 | G167: 79 | H167: 0 | I167: 70 | J167: 0 | K167: 9 | L167: 0
B168: 147 | C168: KROPLA BESKIDU WODA GAZ 1,5L OPK6 | D168: Woda mineralna KROPLA BESKIDU gazowana, zgrzewka 6 butelek x 1,5 l | E168: 1 op. (6 butelek) | F168: =IF('Załącznik 7 - F.O. Zad 6-10'!$V$58,VLOOKUP(C168,'Załącznik 7 - F.O. Zad 6-10'!$C$52:$G$210,5,0),0) -> 0 | G168: 14 | H168: 0 | I168: 5 | J168: 0 | K168: 9 | L168: 0
B169: 148 | C169: KROPLA BESKIDU WODA NIEGAZ 0,5L OPK12 | D169: Woda mineralna KROPLA BESKIDU niegazowana, zgrzewka 12 butelek x 0,5 l | E169: 1 op. (12 butelek) | F169: =IF('Załącznik 7 - F.O. Zad 6-10'!$V$58,VLOOKUP(C169,'Załącznik 7 - F.O. Zad 6-10'!$C$52:$G$210,5,0),0) -> 0 | G169: 79 | H169: 0 | I169: 70 | J169: 0 | K169: 9 | L169: 0
B170: 149 | C170: KROPLA BESKIDU WODA NIEGAZ 1,5L OPK6 | D170: Woda mineralna KROPLA BESKIDU niegazowana, zgrzewka 6 butelek x 1,5 l | E170: 1 op. (6 butelek) | F170: =IF('Załącznik 7 - F.O. Zad 6-10'!$V$58,VLOOKUP(C170,'Załącznik 7 - F.O. Zad 6-10'!$C$52:$G$210,5,0),0) -> 0 | G170: 14 | H170: 0 | I170: 5 | J170: 0 | K170: 9 | L170: 0
B171: 150 | C171: NAŁĘCZOWIANKA WODA NIEGAZ 0,5L OPK12 | D171: Woda mineralna NAŁĘCZOWIANKA niegazowana, zgrzewka 12 butelek x 0,5 l | E171: 1 op. (12 butelek) | F171: =IF('Załącznik 7 - F.O. Zad 6-10'!$V$58,VLOOKUP(C171,'Załącznik 7 - F.O. Zad 6-10'!$C$52:$G$210,5,0),0) -> 0 | G171: 234 | H171: 0 | I171: 225 | J171: 0 | K171: 9 | L171: 0
B172: 151 | C172: NAŁĘCZOWIANKA WODA NIEGAZ 1,5L OPK6 | D172: Woda mineralna NAŁĘCZOWIANKA niegazowana, zgrzewka 6 butelek x 1,5 l | E172: 1 op. (6 butelek) | F172: =IF('Załącznik 7 - F.O. Zad 6-10'!$V$58,VLOOKUP(C172,'Załącznik 7 - F.O. Zad 6-10'!$C$52:$G$210,5,0),0) -> 0 | G172: 37 | H172: 0 | I172: 25 | J172: 0 | K172: 9 | L172: 0 | O172: 3 | P172: 0
B173: 152 | C173: NESTLE PURE LIFE WODA GAZ 1,5L OPK6 | D173: Woda źródlana NESTLÉ Pure Life gazowana, zgrzewka 6 butelek x 1,5 l | E173: 1 op. (6 butelek) | F173: =IF('Załącznik 7 - F.O. Zad 6-10'!$V$58,VLOOKUP(C173,'Załącznik 7 - F.O. Zad 6-10'!$C$52:$G$210,5,0),0) -> 0 | G173: 11 | H173: 0 | I173: 2 | J173: 0 | K173: 9 | L173: 0
B174: 153 | C174: NESTLE PURE LIFE WODA NIEGAZ 0,5L OPK12 | D174: Woda źródlana NESTLÉ Pure Life niegazowana, zgrzewka 12 butelek x 0,5 l | E174: 1 op. (12 butelek) | F174: =IF('Załącznik 7 - F.O. Zad 6-10'!$V$58,VLOOKUP(C174,'Załącznik 7 - F.O. Zad 6-10'!$C$52:$G$210,5,0),0) -> 0 | G174: 40 | H174: 0 | I174: 30 | J174: 0 | K174: 10 | L174: 0
B175: 154 | C175: NESTLE PURE LIFE WODA NIEGAZ 1,5L OPK6 | D175: Woda źródlana NESTLÉ Pure Life niegazowana, zgrzewka 6 butelek x 1,5 l | E175: 1 op. (6 butelek) | F175: =IF('Załącznik 7 - F.O. Zad 6-10'!$V$58,VLOOKUP(C175,'Załącznik 7 - F.O. Zad 6-10'!$C$52:$G$210,5,0),0) -> 0 | G175: 19 | H175: 0 | I175: 10 | J175: 0 | K175: 9 | L175: 0
B176: 155 | C176: ŻYWIEC ZDRÓJ WODA GAZOWANA 0.5L OPK24 | D176: Woda źródlana ŻYWIOŁ od ŻYWIEC ZDRÓJ gazowana, 24 butelki x 0,5 l | E176: 1 op. (24 butelki) | F176: =IF('Załącznik 7 - F.O. Zad 6-10'!$V$58,VLOOKUP(C176,'Załącznik 7 - F.O. Zad 6-10'!$C$52:$G$210,5,0),0) -> 0 | G176: 24 | H176: 0 | I176: 15 | J176: 0 | K176: 9 | L176: 0
B177: 156 | C177: ŻYWIEC ZDRÓJ WODA GAZOWANA 1,5L OPK6 | D177: Woda źródlana ŻYWIOŁ od ŻYWIEC ZDRÓJ gazowana, zgrzewka 6 butelek x 1,5 l | E177: 1 op. ( 6 butelek) | F177: =IF('Załącznik 7 - F.O. Zad 6-10'!$V$58,VLOOKUP(C177,'Załącznik 7 - F.O. Zad 6-10'!$C$52:$G$210,5,0),0) -> 0 | G177: 53 | H177: 0 | I177: 15 | J177: 0 | K177: 9 | L177: 0 | Q177: 29 | R177: 0
B178: 157 | C178: ŻYWIEC ZDRÓJ WODA NIEGAZOWANA 0.5L OPK24 | D178: Woda źródlana ŻYWIEC ZDRÓJ niegazowana, 24 butelki x 0,5 l | E178: 1 op. (24 butelki) | F178: =IF('Załącznik 7 - F.O. Zad 6-10'!$V$58,VLOOKUP(C178,'Załącznik 7 - F.O. Zad 6-10'!$C$52:$G$210,5,0),0) -> 0 | G178: 82 | H178: 0 | I178: 40 | J178: 0 | K178: 12 | L178: 0 | Q178: 30 | R178: 0
B179: 158 | C179: ŻYWIEC ZDRÓJ WODA NIEGAZOWANA 1,5L OPK6 | D179: Woda źródlana ŻYWIEC ZDRÓJ niegazowana, zgrzewka 6 butelek x 1,5 l | E179: 1 op. (6 butelek) | F179: =IF('Załącznik 7 - F.O. Zad 6-10'!$V$58,VLOOKUP(C179,'Załącznik 7 - F.O. Zad 6-10'!$C$52:$G$210,5,0),0) -> 0 | G179: 57 | H179: 0 | I179: 45 | J179: =I179*F179 -> 0 | K179: 12 | L179: 0
G180: =SUM(G22:G179) -> 5698 | I180: =SUM(I22:I179) -> 1438 | K180: =SUM(K22:K179) -> 1429 | M180: =SUM(M22:M179) -> 318 | O180: =SUM(O22:O179) -> 905 | Q180: =SUM(Q22:Q179) -> 1608
I181: ŁĄCZNA CENA NETTO DLA ENEA Centrum Sp. z o.o. | J181: =SUM(J22:J179) -> 0 | K181: ŁĄCZNA CENA NETTO DLA ENEA Innowacje sp. z o.o. | L181: =SUM(L22:L179) -> 0 | M181: ŁĄCZNA CENA NETTO DLA ENEA Nowa Energia Sp. z o.o. | N181: =SUM(N22:N179) -> 0 | O181: ŁĄCZNA CENA NETTO DLA ENEA S.A. | P181: =SUM(P22:P179) -> 0 | Q181: ŁĄCZNA CENA NETTO DLA ENEA Trading Sp. z o.o. | R181: =SUM(R22:R179) -> 0
C186: miejscowość i data | F186: Pieczęć imienna i podpis przedstawiciela(i) Wykonawcy

Sheet Załącznik12-F.O. dla Zadania 10
B1: Oznaczenie sprawy: 1400/DW00/ZU/KZ/2021/0000074365
B3: ZAŁĄCZNIK NR 12 - FORMULARZ OFERTY DLA ZADANIA 10 - DOSTAWA ARTYKUŁÓW SPOŻYWCZYCH: POŁANIEC.
C6: (pieczęć wykonawcy)
B8: Ja, niżej podpisany (My niżej podpisani):
B11: działając w imieniu i na rzecz:
B14: Składam(y) ofertę na wykonanie zamówienia, którego przedmiotem jest:
B15: Dostawa artykułów biurowych, spożywczych i higienicznych dla spółek GK ENEA
B17: ZADANIE 10 - Dostawa artykułów spożywczych: Połaniec
B19: ŁĄCZNA CENA NETTO OFERTY DLA ZADANIA 10: | D19: =SUM(H22:H179) -> 0
B21: LP | C21: Nazwa produktu | D21: Opis szczegółowy | E21: Jednostka | F21: cena jednostkowa netto | G21: Ilość | H21: Wartość | I21: ENEA Bioenergia Sp. z o.o. - Szacowana ilość | J21: ŁĄCZNA CENA NETTO DLA ENEA Bioenergia Sp. z o.o. | K21: ENEA Centrum sp. z o.o. - Szacowana ilość | L21: ŁĄCZNA CENA NETTO DLA ENEA Centrum sp. z o.o. | M21: ENEA Elektrownia Połaniec Sp. z o.o. - Szacowana ilość | N21: ŁĄCZNA CENA NETTO DLA ENEA Elektrownia Połaniec Sp. z o.o. | O21: ENEA Połaniec Serwis Sp. z o.o. - Szacowana ilość | P21: ŁĄCZNA CENA NETTO DLA ENEA Połaniec Serwis Sp. z o.o. | Q21: ENEA Trading Sp. z o.o. - Szacowana ilość | R21: ŁĄCZNA CENA NETTO DLA ENEA Trading Sp. z o.o.
B22: 1 | C22: DIAMANT CUKIER BIAŁY KOSTKA 1KG | D22: Cukier biały DIAMANT w kostkach, 1 kg | E22: 1 op. ( 1 kg.) | F22: =IF('Załącznik 7 - F.O. Zad 6-10'!$V$59,VLOOKUP(C22,'Załącznik 7 - F.O. Zad 6-10'!$C$52:$G$210,5,0),0) -> 0 | G22: =I22+K22+M22+O22+Q22 -> 28 | H22: =G22*F22 -> 0 | I22: 10 | J22: =I22*F22 -> 0 | K22: 1 | L22: =K22*F22 -> 0 | M22: 10 | N22: =M22*F22 -> 0 | O22: 2 | P22: =O22*F22 -> 0 | Q22: 5 | R22: =Q22*F22 -> 0
B23: 2 | C23: DIAMANT CUKIER BIAŁY W SASZET OPK100X5G | D23: Cukier biały DIAMANT, saszetki 100 sztuk x 5 g | E23: 1 op. (100 sztuk) | F23: =IF('Załącznik 7 - F.O. Zad 6-10'!$V$59,VLOOKUP(C23,'Załącznik 7 - F.O. Zad 6-10'!$C$52:$G$210,5,0),0) -> 0 | G23: =I23+K23+M23+O23+Q23 -> 27 | H23: =G23*F23 -> 0 | I23: 22 | J23: =I23*F23 -> 0 | Q23: 5 | R23: 0
B24: 3 | C24: DIAMANT CUKIER DRY DEMERARA SYPKI 0,5KG | D24: Cukier trzcinowy DIAMANT Dry Demerara, sypki, 500 g | E24: 1 op. ( 500 g) | F24: =IF('Załącznik 7 - F.O. Zad 6-10'!$V$59,VLOOKUP(C24,'Załącznik 7 - F.O. Zad 6-10'!$C$52:$G$210,5,0),0) -> 0 | G24: 3 | H24: 0 | I24: 2 | J24: 0 | K24: 1 | L24: =K24*F24 -> 0
B25: 4 | C25: DIAMANT CUKIER KRYSZTAŁ BIAŁY 1KG | D25: Cukier biały DIAMANT sypki, 1 kg | E25: 1 op.( 1 kg.) | F25: =IF('Załącznik 7 - F.O. Zad 6-10'!$V$59,VLOOKUP(C25,'Załącznik 7 - F.O. Zad 6-10'!$C$52:$G$210,5,0),0) -> 0 | G25: 47 | H25: 0 | I25: 1 | J25: 0 | K25: 6 | L25: 0 | M25: 30 | N25: =M25*F25 -> 0 | Q25: 10 | R25: 0
B26: 5 | C26: AHMAD HERBATA EARL GREY OPK100 | D26: Herbata czarna AHMAD Earl Grey, 100 torebek | E26: 1 op. (100 torobek) | F26: =IF('Załącznik 7 - F.O. Zad 6-10'!$V$59,VLOOKUP(C26,'Załącznik 7 - F.O. Zad 6-10'!$C$52:$G$210,5,0),0) -> 0 | G26: 62 | H26: 0 | I26: 10 | J26: 0 | K26: 2 | L26: 0 | M26: 50 | N26: 0
B27: 6 | C27: BIG-ACTIVE PURE CEYLON HERBATA OPK100 | D27: Herbata czarna BIG-ACTIVE Pure Ceylon, 100 torebek | E27: 1 op. (100 torobek) | F27: =IF('Załącznik 7 - F.O. Zad 6-10'!$V$59,VLOOKUP(C27,'Załącznik 7 - F.O. Zad 6-10'!$C$52:$G$210,5,0),0) -> 0 | G27: 4 | H27: 0 | I27: 1 | J27: 0 | K27: 3 | L27: 0
B28: 7 | C28: DILMAH CEYLON GOLD HERBATA 200G OPK100 | D28: Herbata czarna DILMAH Ceylon Gold, 100 torebek | E28: 1 op. (100 torobek) | F28: =IF('Załącznik 7 - F.O. Zad 6-10'!$V$59,VLOOKUP(C28,'Załącznik 7 - F.O. Zad 6-10'!$C$52:$G$210,5,0),0) -> 0 | G28: 10 | H28: 0 | I28: 5 | J28: 0 | K28: 5 | L28: 0
B29: 8 | C29: DILMAH EARL GREY HERBATA LIŚCIASTA 125G | D29: Herbata czarna liściasta DILMAH Earl Grey, 125 g | E29: 1 op. ( 125 g) | F29: =IF('Załącznik 7 - F.O. Zad 6-10'!$V$59,VLOOKUP(C29,'Załącznik 7 - F.O. Zad 6-10'!$C$52:$G$210,5,0),0) -> 0 | G29: 5 | H29: 0 | I29: 5 | J29: 0
B30: 9 | C30: HERBAPOL BREAKFAST HERB MIĘTOWA OPK20 | D30: Herbata miętowa HERBAPOL Breakfast, 20 kopert | E30: 1 op.( 20 torebek) | F30: =IF('Załącznik 7 - F.O. Zad 6-10'!$V$59,VLOOKUP(C30,'Załącznik 7 - F.O. Zad 6-10'!$C$52:$G$210,5,0),0) -> 0 | G30: 5 | H30: 0 | I30: 5 | J30: 0
B31: 10 | C31: HERBAPOL HERBATA MALINOWA OPK20 | D31: Herbata owocowa HERBAPOL Herbaciany Ogród malinowa, 20 torebek | E31: 1 op.( 20 torebek) | F31: =IF('Załącznik 7 - F.O. Zad 6-10'!$V$59,VLOOKUP(C31,'Załącznik 7 - F.O. Zad 6-10'!$C$52:$G$210,5,0),0) -> 0 | G31: 5 | H31: 0 | I31: 5 | J31: 0
B32: 11 | C32: HERBAPOL PROSTO Z LASU OPK20 | D32: Herbata owocowa HERBAPOL Herbaciany Ogród, Prosto z lasu, 20 torebek | E32: 1 op.( 20 torebek) | F32: =IF('Załącznik 7 - F.O. Zad 6-10'!$V$59,VLOOKUP(C32,'Załącznik 7 - F.O. Zad 6-10'!$C$52:$G$210,5,0),0) -> 0 | G32: 2 | H32: 0 | I32: 2 | J32: 0
B33: 12 | C33: HERBAPOL ZIELONA HERBATA OPK20 | D33: Herbata zielona HERBAPOL, 20 torebek bez zawieszki | E33: 1 op.( 20 torebek) | F33: =IF('Załącznik 7 - F.O. Zad 6-10'!$V$59,VLOOKUP(C33,'Załącznik 7 - F.O. Zad 6-10'!$C$52:$G$210,5,0),0) -> 0 | G33: 3 | H33: 0 | I33: 3 | J33: 0
B34: 13 | C34: Herbata zielona Lipton Piramidki | D34: Herbata zielona LIPTON 20 torebek piramidek | E34: 1 op.( 20 torebek) | F34: =IF('Załącznik 7 - F.O. Zad 6-10'!$V$59,VLOOKUP(C34,'Załącznik 7 - F.O. Zad 6-10'!$C$52:$G$210,5,0),0) -> 0 | G34: 3 | H34: 0 | I34: 3 | J34: 0
B35: 14 | C35: IRVING BIAŁ POZIOMK/MANDAR HERBATA OPK20 | D35: Harbata biała IRVING poziomkowa z mandarynką, 20 kopert | E35: 1 op.( 20 torebek) | F35: =IF('Załącznik 7 - F.O. Zad 6-10'!$V$59,VLOOKUP(C35,'Załącznik 7 - F.O. Zad 6-10'!$C$52:$G$210,5,0),0) -> 0 | G35: 3 | H35: 0 | I35: 3 | J35: 0
B36: 15 | C36: IRVING HERBATA CLASSIC OPK100 | D36: Herbata czarna IRVING Classic, 100 torebek | E36: 1 op.( 100 torebek) | F36: =IF('Załącznik 7 - F.O. Zad 6-10'!$V$59,VLOOKUP(C36,'Załącznik 7 - F.O. Zad 6-10'!$C$52:$G$210,5,0),0) -> 0 | G36: 6 | H36: 0 | I36: 1 | J36: 0 | K36: 5 | L36: 0
B37: 16 | C37: LIPTON EARL GREY HERBATA OPK100 | D37: Herbata czarna LIPTON Earl Grey, 100 torebek | E37: 1 op. (100 torebek) | F37: =IF('Załącznik 7 - F.O. Zad 6-10'!$V$59,VLOOKUP(C37,'Załącznik 7 - F.O. Zad 6-10'!$C$52:$G$210,5,0),0) -> 0 | G37: 15 | H37: 0 | I37: 3 | J37: 0 | K37: 5 | L37: 0 | O37: 2 | P37: =O37*F37 -> 0 | Q37: 5 | R37: 0
B38: 17 | C38: LIPTON MELISA/WIŚNIA HERBATAOPK20 | D38: Herbata ziołowa LIPTON Melisa z wiśnią, 20 torebek | E38: 1 op. (20 torebek) | F38: =IF('Załącznik 7 - F.O. Zad 6-10'!$V$59,VLOOKUP(C38,'Załącznik 7 - F.O. Zad 6-10'!$C$52:$G$210,5,0),0) -> 0 | G38: 9 | H38: 0 | I38: 2 | J38: 0 | K38: 2 | L38: 0 | Q38: 5 | R38: 0
B39: 18 | C39: LIPTON PYRAMID CYTRYNOWA Z MELISĄ OPK20 | D39: Herbata czarna LIPTON cytrynowa z melisą, 20 torebek piramidek | E39: 1 op. (20 torebek) | F39: =IF('Załącznik 7 - F.O. Zad 6-10'!$V$59,VLOOKUP(C39,'Załącznik 7 - F.O. Zad 6-10'!$C$52:$G$210,5,0),0) -> 0 | G39: 37 | H39: 0 | I39: 10 | J39: 0 | K39: 2 | L39: 0 | M39: 20 | N39: 0 | Q39: 5 | R39: 0
B40: 19 | C40: LIPTON PYRAMID FOREST FRUIT | D40: Herbata owocowa LIPTON owoce leśne, 20 torebek piramidek | E40: 1 op. (20 torebek) | F40: =IF('Załącznik 7 - F.O. Zad 6-10'!$V$59,VLOOKUP(C40,'Załącznik 7 - F.O. Zad 6-10'!$C$52:$G$210,5,0),0) -> 0 | G40: 7 | H40: 0 | I40: 2 | J40: 0 | Q40: 5 | R40: 0
B41: 20 | C41: LIPTON YELLOW LABEL HERBATA OPK100 | D41: Herbata czarna LIPTON Yellow Label, 100 torebek | E41: 1 op. (100 torebek) | F41: =IF('Załącznik 7 - F.O. Zad 6-10'!$V$59,VLOOKUP(C41,'Załącznik 7 - F.O. Zad 6-10'!$C$52:$G$210,5,0),0) -> 0 | G41: 12 | H41: 0 | I41: 2 | J41: 0 | M41: 5 | N41: 0 | Q41: 5 | R41: 0
B42: 21 | C42: LIPTON YELLOW LABEL HERBATA OPK50 | D42: Herbata czarna LIPTON Yellow Label, 50 torebek | E42: 1 op. (50 torebek) | F42: =IF('Załącznik 7 - F.O. Zad 6-10'!$V$59,VLOOKUP(C42,'Załącznik 7 - F.O. Zad 6-10'!$C$52:$G$210,5,0),0) -> 0 | G42: 2 | H42: 0 | I42: 2 | J42: 0
B43: 22 | C43: LIPTON ZIELONA CITRUS HERBATA OPK25 | D43: Herbata zielona LIPTON cytrusowa, 25 torebek | E43: 1 op. (25 torebek) | F43: =IF('Załącznik 7 - F.O. Zad 6-10'!$V$59,VLOOKUP(C43,'Załącznik 7 - F.O. Zad 6-10'!$C$52:$G$210,5,0),0) -> 0 | G43: 7 | H43: 0 | I43: 2 | J43: 0 | Q43: 5 | R43: 0
B44: 23 | C44: LIPTON ZIELONA MIĘTOWA HERBATA OPK25 | D44: Herbata zielona LIPTON miętowa, 25 torebek | E44: 1 op. (25 torebek) | F44: =IF('Załącznik 7 - F.O. Zad 6-10'!$V$59,VLOOKUP(C44,'Załącznik 7 - F.O. Zad 6-10'!$C$52:$G$210,5,0),0) -> 0 | G44: 13 | H44: 0 | I44: 2 | J44: 0 | K44: 6 | L44: 0 | Q44: 5 | R44: 0
B45: 24 | C45: TEEKANNE BLACK CURRANT HERBATA OPK20 | D45: Herbata owocowa TEEKANNE World of Fruits, Black Currant, 20 kopert | E45: 1 op. (20 torebek) | F45: =IF('Załącznik 7 - F.O. Zad 6-10'!$V$59,VLOOKUP(C45,'Załącznik 7 - F.O. Zad 6-10'!$C$52:$G$210,5,0),0) -> 0 | G45: 36 | H45: 0 | I45: 1 | J45: 0 | M45: 30 | N45: 0 | Q45: 5 | R45: 0
B46: 25 | C46: TEEKANNE EARL GREY HERBATA OPK100 | D46: Herbata czarna TEEKANNE Earl Grey, 100 torebek | E46: 1 op. (100 torebek) | F46: =IF('Załącznik 7 - F.O. Zad 6-10'!$V$59,VLOOKUP(C46,'Załącznik 7 - F.O. Zad 6-10'!$C$52:$G$210,5,0),0) -> 0 | G46: 57 | H46: 0 | I46: 2 | J46: 0 | M46: 50 | N46: 0 | Q46: 5 | R46: 0
B47: 26 | C47: TEEKANNE WORLD OF FRUITS ZESTAW OPK30 | D47: Zestaw herbat owocowych TEEKANNE World of Fruits, 30 kopert | E47: 1 op. (30 torebek) | F47: =IF('Załącznik 7 - F.O. Zad 6-10'!$V$59,VLOOKUP(C47,'Załącznik 7 - F.O. Zad 6-10'!$C$52:$G$210,5,0),0) -> 0 | G47: 47 | H47: 0 | I47: 1 | J47: 0 | M47: 40 | N47: 0 | O47: 1 | P47: 0 | Q47: 5 | R47: 0
B48: 27 | C48: TEEKANNE ZIELON OPUNCJA HERBATA OPK20 | D48: Herbata zielona TEEKANNE z opuncją, 20 kopert | E48: 1 op. (20 torebek) | F48: =IF('Załącznik 7 - F.O. Zad 6-10'!$V$59,VLOOKUP(C48,'Załącznik 7 - F.O. Zad 6-10'!$C$52:$G$210,5,0),0) -> 0 | G48: 52 | H48: 0 | I48: 2 | J48: 0 | M48: 40 | N48: 0 | Q48: 10 | R48: 0
B49: 28 | C49: VITAX HERBATA MELISA I POMARAŃCZA OPK20 | D49: Herbata owocowa VITAX Inspirations melisa & pomarańcza, 20 torebek | E49: 1 op. (20 torebek) | F49: =IF('Załącznik 7 - F.O. Zad 6-10'!$V$59,VLOOKUP(C49,'Załącznik 7 - F.O. Zad 6-10'!$C$52:$G$210,5,0),0) -> 0 | G49: 17 | H49: 0 | I49: 2 | J49: 0 | K49: 10 | L49: 0 | Q49: 5 | R49: 0
B50: 29 | C50: VITAX HERBATA ZIOŁOWA MELISA OPK20 | D50: Herbata ziołowa VITAX melisa, 20 okrągłych torebek bez zawieszki | E50: 1 op. (20 torebek) | F50: =IF('Załącznik 7 - F.O. Zad 6-10'!$V$59,VLOOKUP(C50,'Załącznik 7 - F.O. Zad 6-10'!$C$52:$G$210,5,0),0) -> 0 | G50: 30 | H50: 0 | I50: 1 | J50: 0 | K50: 4 | L50: 0 | M50: 20 | N50: 0 | Q50: 5 | R50: 0
B51: 30 | C51: VITAX HERBATA ZIOŁOWA MIĘTA OPK20 | D51: Herbata ziołowa VITAX mięta, 20 okrągłych torebek bez zawieszki | E51: 1 op. (20 torebek) | F51: =IF('Załącznik 7 - F.O. Zad 6-10'!$V$59,VLOOKUP(C51,'Załącznik 7 - F.O. Zad 6-10'!$C$52:$G$210,5,0),0) -> 0 | G51: 46 | H51: 0 | I51: 2 | J51: 0 | K51: 4 | L51: 0 | M51: 30 | N51: 0 | Q51: 10 | R51: 0
B52: 31 | C52: VITAX HERBATA ŻURAWINA I MALINA OPK20 | D52: Herbata owocowa VITAX Inspirations żurawina & malina, 20 torebek | E52: 1 op. (20 torebek) | F52: =IF('Załącznik 7 - F.O. Zad 6-10'!$V$59,VLOOKUP(C52,'Załącznik 7 - F.O. Zad 6-10'!$C$52:$G$210,5,0),0) -> 0 | G52: 37 | H52: 0 | I52: 1 | J52: 0 | K52: 6 | L52: 0 | M52: 20 | N52: 0 | Q52: 10 | R52: 0
B53: 32 | C53: VITAX NAPAR RUMIANEK OPK20 | D53: Herbata ziołowa VITAX rumianek, 20 kwadratowych torebek bez zawieszki | E53: 1 op. (20 torebek) | F53: =IF('Załącznik 7 - F.O. Zad 6-10'!$V$59,VLOOKUP(C53,'Załącznik 7 - F.O. Zad 6-10'!$C$52:$G$210,5,0),0) -> 0 | G53: 33 | H53: 0 | I53: 1 | J53: 0 | K53: 2 | L53: 0 | M53: 20 | N53: 0 | Q53: 10 | R53: 0
B54: 33 | C54: ASTRA ŁAGODNA TRADYCYJNA KAWA MIEL 250 G | D54: Kawa ziarnista Astra Łagodna 250 g | E54: 1 op. (250 g) | F54: =IF('Załącznik 7 - F.O. Zad 6-10'!$V$59,VLOOKUP(C54,'Załącznik 7 - F.O. Zad 6-10'!$C$52:$G$210,5,0),0) -> 0 | G54: 18 | H54: 0 | I54: 4 | J54: 0 | K54: 14 | L54: 0
B55: 34 | C55: ASTRA ŁAGODNA TRADYCYJNA KAWA ZIARN 1 KG | D55: Kawa ziarnista Astra Łagodna 1 kg | E55: 1 op. (1 kg) | F55: =IF('Załącznik 7 - F.O. Zad 6-10'!$V$59,VLOOKUP(C55,'Załącznik 7 - F.O. Zad 6-10'!$C$52:$G$210,5,0),0) -> 0 | G55: 85 | H55: 0 | I55: 2 | J55: 0 | K55: 3 | L55: 0 | M55: 80 | N55: 0
B56: 35 | C56: DUNI KUBEK PAPIER BIAŁY 210ML OPK50 | D56: Kubek papierowy do gorących i zminych napojów 210 ml | E56: 1 op. (50 szt.) | F56: =IF('Załącznik 7 - F.O. Zad 6-10'!$V$59,VLOOKUP(C56,'Załącznik 7 - F.O. Zad 6-10'!$C$52:$G$210,5,0),0) -> 0 | G56: 2 | H56: 0 | I56: 1 | J56: 0 | K56: 1 | L56: 0
B57: 36 | C57: EDUSCHO CAFFE CREMA KAWA ZIARNISTA 1KG | D57: Kawa ziarnista EDUSCHO Caffe Crema, 1 kg | E57: 1 op. ( 1 kg.) | F57: =IF('Załącznik 7 - F.O. Zad 6-10'!$V$59,VLOOKUP(C57,'Załącznik 7 - F.O. Zad 6-10'!$C$52:$G$210,5,0),0) -> 0 | G57: 26 | H57: 0 | I57: 1 | J57: 0 | M57: 20 | N57: 0 | Q57: 5 | R57: 0
B58: 37 | C58: ESPRESSO KARMELOWE OPK50 NNSA 8868 | D58: Kawa w kapsułkach NESPRESSO ESPRESSO CARAMEL, 50 szt. (box) | E58: 1 op. (50 szt.) | F58: =IF('Załącznik 7 - F.O. Zad 6-10'!$V$59,VLOOKUP(C58,'Załącznik 7 - F.O. Zad 6-10'!$C$52:$G$210,5,0),0) -> 0 | G58: 1 | H58: 0 | I58: 1 | J58: 0
B59: 38 | C59: ESPRESSO WANILIOWE OPK50 NNSA 8869 | D59: Kawa w kapsułkach NESPRESSO ESPRESSO VANILLA, 50 szt. (box) | E59: 2 op. (50 szt.) | F59: =IF('Załącznik 7 - F.O. Zad 6-10'!$V$59,VLOOKUP(C59,'Załącznik 7 - F.O. Zad 6-10'!$C$52:$G$210,5,0),0) -> 0 | G59: 5 | H59: 0 | I59: 5 | J59: 0
B60: 39 | C60: INKA KAWA ZBOŻOWA 200G | D60: Kawa zbożowa INKA, puszka 200 g | E60: 1 op.( 200 g.) | F60: =IF('Załącznik 7 - F.O. Zad 6-10'!$V$59,VLOOKUP(C60,'Załącznik 7 - F.O. Zad 6-10'!$C$52:$G$210,5,0),0) -> 0 | G60: 9 | H60: 0 | I60: 7 | J60: 0 | K60: 2 | L60: 0
B61: 40 | C61: JACOBS BARISTA AMERICANO KAWA ROZPU 155G | D61: Kawa rozpuszczalna JACOBS Barista Americano 155 g | E61: 1 op. (słoik 155g) | F61: =IF('Załącznik 7 - F.O. Zad 6-10'!$V$59,VLOOKUP(C61,'Załącznik 7 - F.O. Zad 6-10'!$C$52:$G$210,5,0),0) -> 0 | G61: 5 | H61: 0 | I61: 5 | J61: 0
B62: 41 | C62: JACOBS CRONAT GOLD KAWA MIELONA 500G | D62: Kawa mielona JACOBS Cronat Gold, 500 g | E62: 1 op. (500 g.) | F62: =IF('Załącznik 7 - F.O. Zad 6-10'!$V$59,VLOOKUP(C62,'Załącznik 7 - F.O. Zad 6-10'!$C$52:$G$210,5,0),0) -> 0 | G62: 13 | H62: 0 | I62: 7 | J62: 0 | K62: 3 | L62: 0 | O62: 3 | P62: 0
B63: 42 | C63: JACOBS CRONAT GOLD KAWA ROZPUSZCZ 200G | D63: Kawa rozpuszczalna JACOBS Cronat Gold, 200 g | E63: 1 op.( 200 g.) | F63: =IF('Załącznik 7 - F.O. Zad 6-10'!$V$59,VLOOKUP(C63,'Załącznik 7 - F.O. Zad 6-10'!$C$52:$G$210,5,0),0) -> 0 | G63: 9 | H63: 0 | I63: 1 | J63: 0 | K63: 5 | L63: 0 | O63: 3 | P63: 0
B64: 43 | C64: JACOBS GOLD CREMA KAWA ROZPUSZCZ 200G | D64: Kawa rozpuszczalna JACOBS Crema Gold, 200 g | E64: 1 op.( 200 g.) | F64: =IF('Załącznik 7 - F.O. Zad 6-10'!$V$59,VLOOKUP(C64,'Załącznik 7 - F.O. Zad 6-10'!$C$52:$G$210,5,0),0) -> 0 | G64: 6 | H64: 0 | I64: 1 | J64: 0 | K64: 5 | L64: 0
B65: 44 | C65: JACOBS KRONUNG KAWA MIELONA 250G | D65: Kawa mielona JACOBS Kronung, 250 g | E65: 1 op. (250 g.) | F65: =IF('Załącznik 7 - F.O. Zad 6-10'!$V$59,VLOOKUP(C65,'Załącznik 7 - F.O. Zad 6-10'!$C$52:$G$210,5,0),0) -> 0 | G65: 3 | H65: 0 | I65: 1 | J65: 0 | K65: 2 | L65: 0
B66: 45 | C66: JACOBS KRONUNG KAWA ROZPUSZCZALNA 200G | D66: Kawa rozpuszczalna JACOBS Kronung, 200 g | E66: 1 op.( 200 g.) | F66: =IF('Załącznik 7 - F.O. Zad 6-10'!$V$59,VLOOKUP(C66,'Załącznik 7 - F.O. Zad 6-10'!$C$52:$G$210,5,0),0) -> 0 | G66: 1 | H66: 0 | I66: 1 | J66: 0
